Workbook

Sheet DATA (hidden)
A1: ID | B1: OVWID | C1: GI1_Date | D1: GI2_Year | E1: GI3_GranteeName | F1: GI4_Subgrant1 | G1: GI4_Subgrant2 | H1: GI4_Subgrant3 | I1: GI4_Subgrant4 | J1: GI4_Subgrant5 | K1: GI4_Subgrant6 | L1: GI4_Subgrant7 | M1: GI4_Subgrant8 | N1: GI4_Subgrant9 | O1: GI5_OrgType | P1: GI5_OtherDesc | Q1: GI6_FBO | R1: GI6_CultSpec | S1: GI7_FIrstName | T1: GI7_MI | U1: GI7_LastName | V1: GI7_OrgName | W1: GI7_Address | X1: GI7_City | Y1: GI7_State | Z1: GI7_Zip | AA1: GI7_Telephone | AB1: GI7_Fax | AC1: GI7_Email | AD1: GI8_TribalPop | AE1: GI8_TribalPopDesc | AF1: GI9_Prct_SA | AG1: GI9_Prct_DV | AH1: GI9_Prct_STK | AI1: GI9_TOTAL | AJ1: St_FundsUsed_YesNo | AK1: St_FundsUsed_1or0 | AL1: St1_Admin | AM1: St1_Attorney | AN1: St1_Counselor | AO1: St1_Court | AP1: St1_ITstaff | AQ1: St1_Investigator | AR1: St1_LEO | AS1: St1_LegalAdv | AT1: St1_Outreach | AU1: St1_Paralegal | AV1: St1_Probation | AW1: St1_PrgmCoord | AX1: St1_Prosecutor | AY1: St1_SANE | AZ1: St1_SuppStaff | BA1: St1_Trainer | BB1: St1_Translator | BC1: St1_VicAdv | BD1: St1_VicAssist | BE1: St1_OtherDesc | BF1: St1_Other | BG1: St1_TOTAL | BH1: PA13_STOP_1 | BI1: PA13_STOP_2 | BJ1: PA13_STOP_3 | BK1: PA13_STOP_4 | BL1: PA13_STOP_5 | BM1: PA13_STOP_6 | BN1: PA13_STOP_7 | BO1: PA13_STOP_8 | BP1: PA13_STOP_9 | BQ1: PA13_STOP_10 | BR1: PA13_STOP_11 | BS1: PA13_STOP_12 | BT1: PA13_STOP_13 | BU1: PA13_STOP_14 | BV1: PA13_STOP_15 | BW1: PA13_STOP_16 | BX1: PA13_STOP_17 | BY1: PA13_STOP_18 | BZ1: PA13_STOP_19 | CA1: PA13_STOP_20 | CB1: Tr_FundsUsed_YesNo | CC1: Tr_FundsUsed_1or0 | CD1: Tr1_TrnEvents | CE1: Tr2_AdvOrg | CF1: Tr2_Attorney | CG1: Tr2_BIP | CH1: Tr2_Corrections | CI1: Tr2_Court | CJ1: Tr2_DisOrg | CK1: Tr2_Educator | CL1: Tr2_Elder | CM1: Tr2_FaithBased | CN1: Tr2_Govt | CO1: Tr2_HealthProf | CP1: Tr2_ImmOrg | CQ1: Tr2_LEO | CR1: Tr2_LegServ | CS1: Tr2_HealthProf_MH | CT1: Tr2_Prosecutor | CU1: Tr2_SexOffTreat | CV1: Tr2_HealthProf_SANE | CW1: Tr2_SocialServ | CX1: Tr2_SubAbuse | CY1: Tr2_SupVisit | CZ1: Tr2_Translator | DA1: Tr2_Govt_Tribal | DB1: Tr2_VSProv_VicAdv | DC1: Tr2_VSProv_VicAssist | DD1: Tr2_Volunteer | DE1: Tr2_OtherDesc | DF1: Tr2_Other | DG1: Tr2_TOTAL | DH1: Tr3_Gen_AdvResp | DI1: Tr3_Gen_ChildWit | DJ1: Tr3_Gen_Confidential | DK1: Tr3_Gen_Overview_DAT | DL1: Tr3_Gen_Overview_DV | DM1: Tr3_Gen_MandReport | DN1: Tr3_Gen_Traffick | DO1: Tr3_Gen_Incarcerated | DP1: Tr3_Gen_SafetyPlan | DQ1: Tr3_Gen_Overview_SA | DR1: Tr3_Gen_Overview_STK | DS1: Tr3_Gen_SupVisits | DT1: Tr3_Gen_Other | DU1: Tr3_Gen_OtherDesc | DV1: Tr3_JS_CivCrtProc | DW1: Tr3_JS_CrimCrtProc | DX1: Tr3_JS_DVbyLEO | DY1: Tr3_JS_Statutes_DV | DZ1: Tr3_JS_Firearms | EA1: Tr3_JS_HomicidePrev | EB1: Tr3_JS_PredomAggressor | EC1: Tr3_JS_Immigration | ED1: Tr3_JS_Response_Judicial | EE1: Tr3_JS_Response_LEO | EF1: Tr3_JS_ProArrest | EG1: Tr3_JS_Response_Probation | EH1: Tr3_JS_Response_Prosecutor | EI1: Tr3_JS_POEnforce | EJ1: Tr3_JS_EvidCollect_SA | EK1: Tr3_JS_Statutes_SA | EL1: Tr3_JS_FrnExam_SA | EM1: Tr3_JS_Statutes_STK | EN1: Tr3_JS_TribJuris | EO1: Tr3_JS_Other | EP1: Tr3_JS_OtherDesc | EQ1: Tr3_US_AmerInd | ER1: Tr3_US_Asian | ES1: Tr3_US_Black | ET1: Tr3_US_Deaf | EU1: Tr3_US_Elderly | EV1: Tr3_US_Hispanic | EW1: Tr3_US_Homeless | EX1: Tr3_US_Immigrant | EY1: Tr3_US_Incarcerated | EZ1: Tr3_US_LGBTI | FA1: Tr3_US_Pacific | FB1: Tr3_US_Disability | FC1: Tr3_US_LEP | FD1: Tr3_US_MH | FE1: Tr3_US_SubAbuse | FF1: Tr3_US_Rural | FG1: Tr3_US_Other | FH1: Tr3_US_OtherDesc | FI1: Tr3_CR_CommResp_SA | FJ1: Tr3_CR_CCR | FK1: Tr3_CR_RespTeams | FL1: Tr3_CR_Technology | FM1: Tr3_CR_Other | FN1: Tr3_CR_OtherDesc | FO1: Ed_FundsUsed_YesNo | FP1: Ed_FundsUsed_1or0 | FQ1: Ed1_EdEvents | FR1: Ed2a_ChildCare | FS1: Ed2a_AdvGroup | FT1: Ed2a_Business | FU1: Ed2a_CommGroup | FV1: Ed2a_CommMember | FW1: Ed2a_Educator | FX1: Ed2a_Student_Elem | FY1: Ed2a_FaithBased | FZ1: Ed2a_Student_MSandHS | GA1: Ed2a_Parents | GB1: Ed2a_Student_Univ | GC1: Ed2a_Victim | GD1: Ed2a_Other | GE1: Ed2a_OtherDesc | GF1: Ed3_Gen_Overview_DAT | GG1: Ed3_Gen_Prevention_DAT | GH1: Ed3_Gen_Overview_DV | GI1: Ed3_Gen_Prevention_DV | GJ1: Ed3_Gen_HealthRel_6to12 | GK1: Ed3_Gen_HealthyRel_Comm | GL1: Ed3_Gen_Healthy_Univ | GM1: Ed3_Gen_IndigenousPrev | GN1: Ed3_Gen_SafetyPlan | GO1: Ed3_Gen_Overview_SA | GP1: Ed3_Gen_Prevention_SA | GQ1: Ed3_Gen_Overview_STK | GR1: Ed3_Gen_Prevention_STK | GS1: Ed3_Gen_WorkVIolence | GT1: Ed3_Gen_Other | GU1: Ed3_Gen_OtherDesc | GV1: Ed3_US_AmerInd | GW1: Ed3_US_Asian | GX1: Ed3_US_Black | GY1: Ed3_US_Deaf | GZ1: Ed3_US_Elderly | HA1: Ed3_US_Rural_GeoIsolated | HB1: Ed3_US_Hispanic | HC1: Ed3_US_Homeless | HD1: Ed3_US_Immigrant | HE1: Ed3_US_LGBTI | HF1: Ed3_US_Pacific | HG1: Ed3_US_Disability | HH1: Ed3_US_MH | HI1: Ed3_US_SubAbuse | HJ1: Ed3_US_Rural | HK1: Ed3_US_Urban | HL1: Ed3_US_Other | HM1: Ed3_US_OtherDesc | HN1: CCR1_AdvOrg_Ref | HO1: CCR1_AdvOrg_Mtg | HP1: CCR1_BIP_Ref | HQ1: CCR1_BIP_Mtg | HR1: CCR1_Corrections_Ref | HS1: CCR1_Corrections_Mtg | HT1: CCR1_Court_Ref | HU1: CCR1_Court_Mtg | HV1: CCR1_DVOrg_Ref | HW1: CCR1_DVOrg_Mtg | HX1: CCR1_Education_Ref | HY1: CCR1_Education_Mtg | HZ1: CCR1_FaithBased_Ref | IA1: CCR1_FaithBased_Mtg | IB1: CCR1_Govt_Ref | IC1: CCR1_Govt_Mtg | ID1: CCR1_HealthMH_Ref | IE1: CCR1_HealthMH_Mtg | IF1: CCR1_LE_Ref | IG1: CCR1_LE_Mtg | IH1: CCR1_LegalOrg_Ref | II1: CCR1_LegalOrg_Mtg | IJ1: CCR1_Prosecutor_Ref | IK1: CCR1_Prosecutor_Mtg | IL1: CCR1_SexOffTreat_Ref | IM1: CCR1_SexOffTreat_Mtg | IN1: CCR1_SAOrg_Ref | IO1: CCR1_SAOrg_Mtg | IP1: CCR1_SocialServ_Ref | IQ1: CCR1_SocialServ_Mtg | IR1: CCR1_TribGovt_Ref | IS1: CCR1_TribGovt_Mtg | IT1: CCR1_OtherDesc | IU1: CCR1_Other_Ref | IV1: CCR1_Other_Mtg | IW1: Pol_FundsUsed_YesNo | IX1: Pol_FundsUsed_1or0 | IY1: Pol1_VS_Underserved | IZ1: Pol1_VS_SubAbuseMH | JA1: Pol1_VS_ElderDis | JB1: Pol1_VS_Incarcerated | JC1: Pol1_VS_SexOrient | JD1: Pol1_VS_Confidential | JE1: Pol1_VS_HomicidePrev | JF1: Pol1_VS_MandTrain | JG1: Pol1_VS_JaneDoe | JH1: Pol1_VS_EvidCollect_SA | JI1: Pol1_VS_Diversity | JJ1: Pol1_VS_CrimeVicComp | JK1: Pol1_VS_Other | JL1: Pol1_VS_OtherDesc | JM1: Pol1_LE_Underserved | JN1: Pol1_LE_ElderDis | JO1: Pol1_LE_Incarcerated | JP1: Pol1_LE_SexOrient | JQ1: Pol1_LE_DVbyLEO | JR1: Pol1_LE_HomicidePrev | JS1: Pol1_LE_PredomAggressor | JT1: Pol1_LE_ImmAccessPO | JU1: Pol1_LE_MandTrain | JV1: Pol1_LE_NoCharge_Serv | JW1: Pol1_LE_NoCharge_Exam | JX1: Pol1_LE_NoCharge_Invest | JY1: Pol1_LE_NoPolygraph | JZ1: Pol1_LE_InternetDisc | KA1: Pol1_LE_ProArrest | KB1: Pol1_LE_JaneDoe | KC1: Pol1_LE_POEnforce | KD1: Pol1_LE_InformVic | KE1: Pol1_LE_EvidCollect_SA | KF1: Pol1_LE_ResponseSA | KG1: Pol1_LE_Other | KH1: Pol1_LE_OtherDesc | KI1: Pol1_Pros_Underserved | KJ1: Pol1_Pros_ElderDis | KK1: Pol1_Pros_Incarcerated | KL1: Pol1_Pros_SexOrient | KM1: Pol1_Pros_MandTrain | KN1: Pol1_Pros_NoCharge_Pros | KO1: Pol1_Pros_NoPolygraph | KP1: Pol1_Pros_InternetDisc | KQ1: Pol1_Pros_POEnforce | KR1: Pol1_Pros_EvidCollect_SA | KS1: Pol1_Pros_ResponseSA | KT1: Pol1_Pros_VerticalPros | KU1: Pol1_Pros_Notification | KV1: Pol1_Pros_Other | KW1: Pol1_Pros_OtherDesc | KX1: Pol1_Crt_AccTrial | KY1: Pol1_Crt_Underserved | KZ1: Pol1_Crt_ElderDis | LA1: Pol1_Crt_Incarcerated | LB1: Pol1_Crt_SexOrient | LC1: Pol1_Crt_DVDocket | LD1: Pol1_Crt_FullFaithPO | LE1: Pol1_Crt_ImmAccessPO | LF1: Pol1_Crt_JudMonitor | LG1: Pol1_Crt_MandTrain | LH1: Pol1_Crt_NoCharge_PO | LI1: Pol1_Crt_InternetDisc | LJ1: Pol1_Crt_MutualPO | LK1: Pol1_Crt_CrtSecurity | LL1: Pol1_Crt_EvidCollect_SA | LM1: Pol1_Crt_StandardPO | LN1: Pol1_Crt_Other | LO1: Pol1_Crt_OtherDesc | LP1: Pol1_Prob_Underserved | LQ1: Pol1_Prob_ElderDis | LR1: Pol1_Prob_Incarcerated | LS1: Pol1_Prob_SexOrient | LT1: Pol1_Prob_MandTrain | LU1: Pol1_Prob_ProtectVIc | LV1: Pol1_Prob_VicInclusion | LW1: Pol1_Prob_Notification | LX1: Pol1_Prob_Other | LY1: Pol1_Prob_OtherDesc | LZ1: Pol1_HC_AdvER | MA1: Pol1_HC_Underserved | MB1: Pol1_HC_AvoidTrauma | MC1: Pol1_HC_ElderDis | MD1: Pol1_HC_Incarcerated | ME1: Pol1_HC_SexOrient | MF1: Pol1_HC_NoCharge_Exam | MG1: Pol1_HC_MandTrain | MH1: Pol1_HC_Screening | MI1: Pol1_HC_EvidCollect_SA | MJ1: Pol1_HC_Other | MK1: Pol1_HC_OtherDesc | ML1: Prod_FundsUsed_YesNo | MM1: Prod_FundsUsed_1or0 | MN1: Prod1_Brochures1_Dev | MO1: Prod1_Brochures1_Title | MP1: Prod1_Brochures1_Aud | MQ1: Prod1_Brochures1_Lang | MR1: Prod1_Brochures2_Dev | MS1: Prod1_Brochures2_Title | MT1: Prod1_Brochures2_Aud | MU1: Prod1_Brochures2_Lang | MV1: Prod1_Brochures3_Dev | MW1: Prod1_Brochures3_Title | MX1: Prod1_Brochures3_Aud | MY1: Prod1_Brochures3_Lang | MZ1: Prod1_Manuals1_Dev | NA1: Prod1_Manuals1_Title | NB1: Prod1_Manuals1_Aud | NC1: Prod1_Manuals1_Lang | ND1: Prod1_Manuals2_Dev | NE1: Prod1_Manuals2_Title | NF1: Prod1_Manuals2_Aud | NG1: Prod1_Manuals2_Lang | NH1: Prod1_Manuals3_Dev | NI1: Prod1_Manuals3_Title | NJ1: Prod1_Manuals3_Aud | NK1: Prod1_Manuals3_Lang | NL1: Prod1_TrnMatCurr1_Dev | NM1: Prod1_TrnMatCurr1_Title | NN1: Prod1_TrnMatCurr1_Aud | NO1: Prod1_TrnMatCurr1_Lang | NP1: Prod1_TrnMatCurr2_Dev | NQ1: Prod1_TrnMatCurr2_Title | NR1: Prod1_TrnMatCurr2_Aud | NS1: Prod1_TrnMatCurr2_Lang | NT1: Prod1_TrnMatCurr3_Dev | NU1: Prod1_TrnMatCurr3_Title | NV1: Prod1_TrnMatCurr3_Aud | NW1: Prod1_TrnMatCurr3_Lang | NX1: Prod1_OtherDesc | NY1: Prod1_Other1_Dev | NZ1: Prod1_Other1_Title | OA1: Prod1_Other1_Aud | OB1: Prod1_Other1_Lang | OC1: Prod1_Other2_Dev | OD1: Prod1_Other2_Title | OE1: Prod1_Other2_Aud | OF1: Prod1_Other2_Lang | OG1: Prod1_Other3_Dev | OH1: Prod1_Other3_Title | OI1: Prod1_Other3_Aud | OJ1: Prod1_Other3_Lang | OK1: Data_FundsUsed_YesNo | OL1: Data_FundsUsed_1or0 | OM1: Data1_Develop | ON1: Data1_Install | OO1: Data1_Expand | OP1: Data1_Link | OQ1: Data1_Share | OR1: Data1_Manage | OS1: Data1_Purchase | OT1: Data2_Arrests | OU1: Data2_Bail | OV1: Data2_CaseMgmt | OW1: Data2_Compliance | OX1: Data2_Convictions | OY1: Data2_DocketMgmt | OZ1: Data2_Evaluation | PA1: Data2_IncidentRep | PB1: Data2_Probation | PC1: Data2_Prosecution | PD1: Data2_PO | PE1: Data2_Recidivism | PF1: Data2_Sentencing | PG1: Data2_EvidCollect_SA | PH1: Data2_STKOrders | PI1: Data2_VicNotification | PJ1: Data2_VicServices | PK1: Data2_ViolPO | PL1: Data2_Warrants | PM1: Data2_Other | PN1: Data2_OtherDesc | PO1: SU_FundsUsed_YesNo | PP1: SU_FundsUsed_1or0 | PQ1: SU1_Develop_LE | PR1: SU1_Develop_Pros | PS1: SU1_Develop_Crt | PT1: SU1_Develop_Prob | PU1: SU1_Support_LE | PV1: SU1_Support_Pros | PW1: SU1_Support_Crt | PX1: SU1_Support_Prob | PY1: SU1_Train_LE | PZ1: SU1_Train_Pros | QA1: SU1_Train_Crt | QB1: SU1_Train_Prob | QC1: SU1_OtherDesc | QD1: SU1_Other_LE | QE1: SU1_Other_Pros | QF1: SU1_Other_Crt | QG1: SU1_Other_Prob | QH1: SU2_SA_LE | QI1: SU2_SA_Pros | QJ1: SU2_SA_Crt | QK1: SU2_SA_Prob | QL1: SU2_DV_LE | QM1: SU2_DV_Pros | QN1: SU2_DV_Crt | QO1: SU2_DV_Prob | QP1: SU2_STK_LE | QQ1: SU2_STK_Pros | QR1: SU2_STK_Crt | QS1: SU2_STK_Prob | QT1: SI_FundsUsed_YesNo | QU1: SI_FundsUsed_1or0 | QV1: SI1_Evaluation_VS | QW1: SI1_Evaluation_LE | QX1: SI1_Evaluation_Pros | QY1: SI1_Evaluation_Crt | QZ1: SI1_Evaluation_Prob | RA1: SI1_FatalityRev_VS | RB1: SI1_FatalityRev_LE | RC1: SI1_FatalityRev_Pros | RD1: SI1_FatalityRev_Crt | RE1: SI1_FatalityRev_Prob | RF1: SI1_Interpreter_VS | RG1: SI1_Interpreter_LE | RH1: SI1_Interpreter_Pros | RI1: SI1_Interpreter_Crt | RJ1: SI1_Interpreter_Prob | RK1: SI1_LAP_VS | RL1: SI1_LAP_LE | RM1: SI1_LAP_Pros | RN1: SI1_LAP_Crt | RO1: SI1_LAP_Prob | RP1: SI1_Language_VS | RQ1: SI1_Language_LE | RR1: SI1_Language_Pros | RS1: SI1_Language_Crt | RT1: SI1_Language_Prob | RU1: SI1_MtgTrib_VS | RV1: SI1_MtgTrib_LE | RW1: SI1_MtgTrib_Pros | RX1: SI1_MtgTrib_Crt | RY1: SI1_MtgTrib_Prob | RZ1: SI1_SafetyAudits_VS | SA1: SI1_SafetyAudits_LE | SB1: SI1_SafetyAudits_Pros | SC1: SI1_SafetyAudits_Crt | SD1: SI1_SafetyAudits_Prob | SE1: SI1_Security_VS | SF1: SI1_Security_LE | SG1: SI1_Security_Pros | SH1: SI1_Security_Crt | SI1: SI1_Security_Prob | SJ1: SI1_Translation_VS | SK1: SI1_Translation_LE | SL1: SI1_Translation_Pros | SM1: SI1_Translation_Crt | SN1: SI1_Translation_Prob | SO1: SI1_OtherDesc | SP1: SI1_Other_VS | SQ1: SI1_Other_LE | SR1: SI1_Other_Pros | SS1: SI1_Other_Crt | ST1: SI1_Other_Prob | SU1: VS_FundsUsed_YesNo | SV1: VS_FundsUsed_1or0 | SW1: VS1_Srvd_SA | SX1: VS1_Srvd_DV | SY1: VS1_Srvd_STK | SZ1: VS1_TOTAL_Srvd | TA1: VS1_PSrvd_SA | TB1: VS1_PSrvd_DV | TC1: VS1_PSrvd_STK | TD1: VS1_TOTAL_PSrvd | TE1: VS1_SrvdPSrvd_SA | TF1: VS1_SrvdPSrvd_DV | TG1: VS1_SrvdPSrvd_STK | TH1: VS1_TOTAL_SrvdPSrvd | TI1: VS1_NotSrvd_SA | TJ1: VS1_NotSrvd_DV | TK1: VS1_NotSrvd_STK | TL1: VS1_TOTAL_NotSrvd | TM1: VS2_NewSrvd_SA | TN1: VS2_NewSrvd_DV | TO1: VS2_NewSrvd_STK | TP1: VS2_TOTAL_NewSrvd | TQ1: VS3_AddSA_SA | TR1: VS3_AddDV_SA | TS1: VS3_AddSTK_SA | TT1: VS3_AddTFK_SA | TU1: VS3_AddSA_DV | TV1: VS3_AddDV_DV | TW1: VS3_AddSTK_DV | TX1: VS3_AddTFK_DV | TY1: VS3_AddSA_STK | TZ1: VS3_AddDV_STK | UA1: VS3_AddSTK_STK | UB1: VS3_AddTFK_STK | UC1: VS3_TOTAL_AddSA | UD1: VS3_TOTAL_AddDV | UE1: VS3_TOTAL_AddSTK | UF1: VS3_TOTAL_AddTFK | UG1: IE1_SrvdPSrvd_SA | UH1: IE1_SrvdPSrvd_DV | UI1: IE1_SrvdPSrvd_STK | UJ1: IE1_TOTAL_SrvdPSrvd | UK1: VS4_Conflict_PSrvd | UL1: VS4_Conflict_NotSrvd | UM1: VS4_StatReq_PSrvd | UN1: VS4_StatReq_NotSrvd | UO1: VS4_Hours_PSrvd | UP1: VS4_Hours_NotSrvd | UQ1: VS4_CulturalSrv_PSrvd | UR1: VS4_CulturalSrv_NotSrvd | US1: VS4_Language_PSrvd | UT1: VS4_Language_NotSrvd | UU1: VS4_Disability_PSrvd | UV1: VS4_Disability_NotSrvd | UW1: VS4_Childcare_PSrvd | UX1: VS4_Childcare_NotSrvd | UY1: VS4_Capacity_PSrvd | UZ1: VS4_Capacity_NotSrvd | VA1: VS4_Rules_PSrvd | VB1: VS4_Rules_NotSrvd | VC1: VS4_Resources_PSrvd | VD1: VS4_Resources_NotSrvd | VE1: VS4_MH_PSrvd | VF1: VS4_MH_NotSrvd | VG1: VS4_SubAbuse_PSrvd | VH1: VS4_SubAbuse_NotSrvd | VI1: VS4_NotApprop_PSrvd | VJ1: VS4_NotApprop_NotSrvd | VK1: VS4_MaleAdolescent_PSrvd | VL1: VS4_MaleAdolescent_NotSrvd | VM1: VS4_Transport_PSrvd | VN1: VS4_Transport_NotSrvd | VO1: VS4_Other_PSrvd | VP1: VS4_Other_NotSrvd | VQ1: VS4_OtherDesc | VR1: VS5_Race_AmerInd | VS1: VS5_Race_Asian | VT1: VS5_Race_Black | VU1: VS5_Race_Hispanic | VV1: VS5_Race_Pacific | VW1: VS5_Race_White | VX1: VS5_Race_Other | VY1: VS5_Race_Unknown | VZ1: VS5_TOTAL_Race | WA1: VS5_Gen_Female | WB1: VS5_Gen_Male | WC1: VS5_Gen_Trans | WD1: VS5_Gen_Unknown | WE1: VS5_TOTAL_Gen | WF1: VS5_Age_b11to17 | WG1: VS5_Age_c18to24 | WH1: VS5_Age_d25to59 | WI1: VS5_Age_e60plus | WJ1: VS5_Age_Unknown | WK1: VS5_TOTAL_Age | WL1: VS5_Other_LGBTI | WM1: VS5_Other_Disability | WN1: VS5_Other_LEP | WO1: VS5_Other_Deaf | WP1: VS5_Other_Imm | WQ1: VS5_Other_Incarcerated | WR1: VS5_Other_Rural | WS1: VS6_SA_Spouse | WT1: VS6_DV_Spouse | WU1: VS6_STK_Spouse | WV1: VS6_SA_Family | WW1: VS6_DV_Family | WX1: VS6_STK_Family | WY1: VS6_SA_Dating | WZ1: VS6_DV_Dating | XA1: VS6_STK_Dating | XB1: VS6_SA_Acquaint | XC1: VS6_DV_Acquaint | XD1: VS6_STK_Acquaint | XE1: VS6_SA_Stranger | XF1: VS6_STK_Stranger | XG1: VS6_SA_Unknown | XH1: VS6_DV_Unknown | XI1: VS6_STK_Unknown | XJ1: VS6_TOTAL_SA | XK1: VS6_TOTAL_DV | XL1: VS6_TOTAL_STK | XM1: VS7_Vic_CivLegalAdv | XN1: VS7_Times_CivLegalAdv | XO1: VS7_Vic_Counsel | XP1: VS7_Times_Counsel | XQ1: VS7_Vic_CrimJustAdv | XR1: VS7_Times_CrimJustAdv | XS1: VS7_Vic_CrisisInt | XT1: VS7_Times_CrisisInt | XU1: VS7_Vic_ForensicExam | XV1: VS7_Times_ForensicExam | XW1: VS7_Vic_HospResp | XX1: VS7_Times_HospResp | XY1: VS7_Vic_Language | XZ1: VS7_Times_Language | YA1: VS7_Vic_Transport | YB1: VS7_Times_Transport | YC1: VS7_Vic_VicAdv | YD1: VS7_Times_VicAdv | YE1: VS7_OtherDesc | YF1: VS7_Vic_Other | YG1: VS7_Times_Other | YH1: VS7_Vic_Shelter | YI1: VS7_Fam_Shelter | YJ1: VS7_Bednight_Shelter | YK1: VS7_Vic_Thousing | YL1: VS7_Fam_Thousing | YM1: VS7_Bednight_Thousing | YN1: VS8_Hotline_Vic | YO1: VS8_Hotline_Total | YP1: VS9_Notification | YQ1: VS10_Req_Temp_SA | YR1: VS10_Req_Final_SA | YS1: VS10_Grnt_Temp_SA | YT1: VS10_Grnt_Final_SA | YU1: VS10_Req_Temp_DV | YV1: VS10_Req_Final_DV | YW1: VS10_Grnt_Temp_DV | YX1: VS10_Grnt_Final_DV | YY1: VS10_Req_Temp_STK | YZ1: VS10_Req_Final_STK | ZA1: VS10_Grnt_Temp_STK | ZB1: VS10_Grnt_Final_STK | ZC1: LS_FundsUsed_YesNo | ZD1: LS_FundsUsed_1or0 | ZE1: LS1_PO | ZF1: LS1_FamMat | ZG1: LS1_FamMat_Divorce | ZH1: LS1_FamMat_Custody | ZI1: LS1_FamMat_Paternity | ZJ1: LS1_FamMat_ChildSupp | ZK1: LS1_FamMat_Other | ZL1: LS1_Consumer | ZM1: LS1_Employment | ZN1: LS1_Income | ZO1: LS1_Housing | ZP1: LS1_ImmMat | ZQ1: LS1_ImmMat_VAWA | ZR1: LS1_ImmMat_Cancel | ZS1: LS1_ImmMat_Uvisa | ZT1: LS1_ImmMat_Tvisa | ZU1: LS1_ImmMat_Other | ZV1: LS1_Criminal | ZW1: LS1_Education | ZX1: LS1_OtherDesc | ZY1: LS1_Other | ZZ1: LS2_LegalAssist | AAA1: LS2_LegalAssist_Multiple | AAB1: LS3_PO_Info | AAC1: LS3_PO_BriefService | AAD1: LS3_PO_AdminDec | AAE1: LS3_PO_CrtDec | AAF1: LS3_PO_NegRes_Filed | AAG1: LS3_PO_NegRes_NoFiled | AAH1: LS3_PO_Withdrew | AAI1: LS3_PO_Other | AAJ1: LS3_Divorce_Info | AAK1: LS3_Divorce_BriefService | AAL1: LS3_Divorce_AdminDec | AAM1: LS3_Divorce_CrtDec | AAN1: LS3_Divorce_NegRes_Filed | AAO1: LS3_Divorce_NegRes_NoFiled | AAP1: LS3_Divorce_Withdrew | AAQ1: LS3_Divorce_Other | AAR1: LS3_Custody_Info | AAS1: LS3_Custody_BriefService | AAT1: LS3_Custody_AdminDec | AAU1: LS3_Custody_CrtDec | AAV1: LS3_Custody_NegRes_Filed | AAW1: LS3_Custody_NegRes_NoFiled | AAX1: LS3_Custody_Withdrew | AAY1: LS3_Custody_Other | AAZ1: LS3_Paternity_Info | ABA1: LS3_Paternity_BriefService | ABB1: LS3_Paternity_AdminDec | ABC1: LS3_Paternity_CrtDec | ABD1: LS3_Paternity_NegRes_Filed | ABE1: LS3_Paternity_NegRes_NoFiled | ABF1: LS3_Paternity_Withdrew | ABG1: LS3_Paternity_Other | ABH1: LS3_ChildSupp_Info | ABI1: LS3_ChildSupp_BriefService | ABJ1: LS3_ChildSupp_AdminDec | ABK1: LS3_ChildSupp_CrtDec | ABL1: LS3_ChildSupp_NegRes_Filed | ABM1: LS3_ChildSupp_NegRes_NoFiled | ABN1: LS3_ChildSupp_Withdrew | ABO1: LS3_ChildSupp_Other | ABP1: LS3_FamOther_Info | ABQ1: LS3_FamOther_BriefService | ABR1: LS3_FamOther_AdminDec | ABS1: LS3_FamOther_CrtDec | ABT1: LS3_FamOther_NegRes_Filed | ABU1: LS3_FamOther_NegRes_NoFiled | ABV1: LS3_FamOther_Withdrew | ABW1: LS3_FamOther_Other | ABX1: LS3_Consumer_Info | ABY1: LS3_Consumer_BriefService | ABZ1: LS3_Consumer_AdminDec | ACA1: LS3_Consumer_CrtDec | ACB1: LS3_Consumer_NegRes_Filed | ACC1: LS3_Consumer_NegRes_NoFiled | ACD1: LS3_Consumer_Withdrew | ACE1: LS3_Consumer_Other | ACF1: LS3_Employment_Info | ACG1: LS3_Employment_BriefService | ACH1: LS3_Employment_AdminDec | ACI1: LS3_Employment_CrtDec | ACJ1: LS3_Employment_NegRes_Filed | ACK1: LS3_Employment_NegRes_NoFiled | ACL1: LS3_Employment_Withdrew | ACM1: LS3_Employment_Other | ACN1: LS3_Income_Info | ACO1: LS3_Income_BriefService | ACP1: LS3_Income_AdminDec | ACQ1: LS3_Income_CrtDec | ACR1: LS3_Income_NegRes_Filed | ACS1: LS3_Income_NegRes_NoFiled | ACT1: LS3_Income_Withdrew | ACU1: LS3_Income_Other | ACV1: LS3_Housing_Info | ACW1: LS3_Housing_BriefService | ACX1: LS3_Housing_AdminDec | ACY1: LS3_Housing_CrtDec | ACZ1: LS3_Housing_NegRes_Filed | ADA1: LS3_Housing_NegRes_NoFiled | ADB1: LS3_Housing_Withdrew | ADC1: LS3_Housing_Other | ADD1: LS3_VAWA_Info | ADE1: LS3_VAWA_BriefService | ADF1: LS3_VAWA_AdminDec | ADG1: LS3_VAWA_CrtDec | ADH1: LS3_VAWA_NegRes_Filed | ADI1: LS3_VAWA_NegRes_NoFiled | ADJ1: LS3_VAWA_Withdrew | ADK1: LS3_VAWA_Other | ADL1: LS3_Cancel_Info | ADM1: LS3_Cancel_BriefService | ADN1: LS3_Cancel_AdminDec | ADO1: LS3_Cancel_CrtDec | ADP1: LS3_Cancel_NegRes_Filed | ADQ1: LS3_Cancel_NegRes_NoFiled | ADR1: LS3_Cancel_Withdrew | ADS1: LS3_Cancel_Other | ADT1: LS3_Uvisa_Info | ADU1: LS3_Uvisa_BriefService | ADV1: LS3_Uvisa_AdminDec | ADW1: LS3_Uvisa_CrtDec | ADX1: LS3_Uvisa_NegRes_Filed | ADY1: LS3_Uvisa_NegRes_NoFiled | ADZ1: LS3_Uvisa_Withdrew | AEA1: LS3_Uvisa_Other | AEB1: LS3_Tvisa_Info | AEC1: LS3_Tvisa_BriefService | AED1: LS3_Tvisa_AdminDec | AEE1: LS3_Tvisa_CrtDec | AEF1: LS3_Tvisa_NegRes_Filed | AEG1: LS3_Tvisa_NegRes_NoFiled | AEH1: LS3_Tvisa_Withdrew | AEI1: LS3_Tvisa_Other | AEJ1: LS3_ImmOther_Info | AEK1: LS3_ImmOther_BriefService | AEL1: LS3_ImmOther_AdminDec | AEM1: LS3_ImmOther_CrtDec | AEN1: LS3_ImmOther_NegRes_Filed | AEO1: LS3_ImmOther_NegRes_NoFiled | AEP1: LS3_ImmOther_Withdrew | AEQ1: LS3_ImmOther_Other | AER1: LS3_Criminal_Info | AES1: LS3_Criminal_BriefService | AET1: LS3_Criminal_AdminDec | AEU1: LS3_Criminal_CrtDec | AEV1: LS3_Criminal_NegRes_Filed | AEW1: LS3_Criminal_NegRes_NoFiled | AEX1: LS3_Criminal_Withdrew | AEY1: LS3_Criminal_Other | AEZ1: LS3_Education_Info | AFA1: LS3_Education_BriefService | AFB1: LS3_Education_AdminDec | AFC1: LS3_Education_CrtDec | AFD1: LS3_Education_NegRes_Filed | AFE1: LS3_Education_NegRes_NoFiled | AFF1: LS3_Education_Withdrew | AFG1: LS3_Education_Other | AFH1: LS3_OtherDesc | AFI1: LS3_Other_Info | AFJ1: LS3_Other_BriefService | AFK1: LS3_Other_AdminDec | AFL1: LS3_Other_CrtDec | AFM1: LS3_Other_NegRes_Filed | AFN1: LS3_Other_NegRes_NoFiled | AFO1: LS3_Other_Withdrew | AFP1: LS3_Other_Other | AFQ1: LE_FundsUsed_YesNo | AFR1: LE_FundsUsed_1or0 | AFS1: LE1_Calls_SA | AFT1: LE1_Calls_DV | AFU1: LE1_Calls_STK | AFV1: LE1_IncidentRpt_SA | AFW1: LE1_IncidentRpt_DV | AFX1: LE1_IncidentRpt_STK | AFY1: LE1_Investigated_SA | AFZ1: LE1_Investigated_DV | AGA1: LE1_Investigated_STK | AGB1: LE1_ForensicEvid_SA | AGC1: LE1_Arrest_SA | AGD1: LE1_Arrest_DV | AGE1: LE1_Arrest_STK | AGF1: LE1_DualArrest_DV | AGG1: LE1_POserved_SA | AGH1: LE1_POserved_DV | AGI1: LE1_POserved_STK | AGJ1: LE1_Arrest_BailViol_SA | AGK1: LE1_Arrest_BailViol_DV | AGL1: LE1_Arrest_BailViol_STK | AGM1: LE1_Warrant_SA | AGN1: LE1_Warrant_DV | AGO1: LE1_Warrant_STK | AGP1: LE1_Arrest_POViol_SA | AGQ1: LE1_Arrest_POViol_DV | AGR1: LE1_Arrest_POViol_STK | AGS1: LE1_POissued_SA | AGT1: LE1_POissued_DV | AGU1: LE1_POissued_STK | AGV1: LE1_RefToPros_SA | AGW1: LE1_RefToPros_DV | AGX1: LE1_RefToPros_STK | AGY1: LE1_RefToPros_Fed_SA | AGZ1: LE1_RefToPros_Fed_DV | AHA1: LE1_RefToPros_Fed_STK | AHB1: LE2_VSRef_Govt | AHC1: LE2_VSRef_NonGovt | AHD1: LE3_Req_Temp_SA | AHE1: LE3_Req_Final_SA | AHF1: LE3_Grnt_Temp_SA | AHG1: LE3_Grnt_Final_SA | AHH1: LE3_Req_Temp_DV | AHI1: LE3_Req_Final_DV | AHJ1: LE3_Grnt_Temp_DV | AHK1: LE3_Grnt_Final_DV | AHL1: LE3_Req_Temp_STK | AHM1: LE3_Req_Final_STK | AHN1: LE3_Grnt_Temp_STK | AHO1: LE3_Grnt_Final_STK | AHP1: Pros_FundsUsed_YesNo | AHQ1: Pros_FundsUsed_1or0 | AHR1: Pros1_Received_DV | AHS1: Pros1_Received_SA | AHT1: Pros1_Received_STK | AHU1: Pros1_Accepted_DV | AHV1: Pros1_Accepted_SA | AHW1: Pros1_Accepted_STK | AHX1: Pros1_Declined_DV | AHY1: Pros1_Declined_SA | AHZ1: Pros1_Declined_STK | AIA1: Pros1_Transfer_DV | AIB1: Pros1_Transfer_SA | AIC1: Pros1_Transfer_STK | AID1: Pros1_RefToFed_DV | AIE1: Pros1_RefToFed_SA | AIF1: Pros1_RefToFed_STK | AIG1: Pros2_IE_Return_DV | AIH1: Pros2_IE_Return_SA | AII1: Pros2_IE_Return_STK | AIJ1: Pros2_IE_Unavail_DV | AIK1: Pros2_IE_Unavail_SA | AIL1: Pros2_IE_Unavail_STK | AIM1: Pros2_VicReq_DV | AIN1: Pros2_VicReq_SA | AIO1: Pros2_VicReq_STK | AIP1: Pros2_OtherDesc | AIQ1: Pros2_Other_DV | AIR1: Pros2_Other_SA | AIS1: Pros2_Other_STK | AIT1: Pros3_Dismiss_DV_Ord | AIU1: Pros3_DefAdj_DV_Ord | AIV1: Pros3_Convict_PAC_DV_Ord | AIW1: Pros3_Convict_PSC_DV_Ord | AIX1: Pros3_Convict_PLC_DV_Ord | AIY1: Pros3_Convict_GAC_DV_Ord | AIZ1: Pros3_Convict_GSC_DV_Ord | AJA1: Pros3_Convict_GLC_DV_Ord | AJB1: Pros3_Acquit_DV_Ord | AJC1: Pros3_Total_DV_Ord | AJD1: Pros3_Dismiss_DV_Mis | AJE1: Pros3_DefAdj_DV_Mis | AJF1: Pros3_Convict_PAC_DV_Mis | AJG1: Pros3_Convict_PSC_DV_Mis | AJH1: Pros3_Convict_PLC_DV_Mis | AJI1: Pros3_Convict_GAC_DV_Mis | AJJ1: Pros3_Convict_GSC_DV_Mis | AJK1: Pros3_Convict_GLC_DV_Mis | AJL1: Pros3_Acquit_DV_Mis | AJM1: Pros3_Total_DV_Mis | AJN1: Pros3_Dismiss_DV_Fel | AJO1: Pros3_DefAdj_DV_Fel | AJP1: Pros3_Convict_PAC_DV_Fel | AJQ1: Pros3_Convict_PSC_DV_Fel | AJR1: Pros3_Convict_PLC_DV_Fel | AJS1: Pros3_Convict_GAC_DV_Fel | AJT1: Pros3_Convict_GSC_DV_Fel | AJU1: Pros3_Convict_GLC_DV_Fel | AJV1: Pros3_Acquit_DV_Fel | AJW1: Pros3_Total_DV_Fel | AJX1: Pros3_Dismiss_DV_Hom | AJY1: Pros3_DefAdj_DV_Hom | AJZ1: Pros3_Convict_PAC_DV_Hom | AKA1: Pros3_Convict_PSC_DV_Hom | AKB1: Pros3_Convict_PLC_DV_Hom | AKC1: Pros3_Convict_GAC_DV_Hom | AKD1: Pros3_Convict_GSC_DV_Hom | AKE1: Pros3_Convict_GLC_DV_Hom | AKF1: Pros3_Acquit_DV_Hom | AKG1: Pros3_Total_DV_Hom | AKH1: Pros3_Dismiss_SA_Mis | AKI1: Pros3_DefAdj_SA_Mis | AKJ1: Pros3_Convict_PAC_SA_Mis | AKK1: Pros3_Convict_PSC_SA_Mis | AKL1: Pros3_Convict_PLC_SA_Mis | AKM1: Pros3_Convict_GAC_SA_Mis | AKN1: Pros3_Convict_GSC_SA_Mis | AKO1: Pros3_Convict_GLC_SA_Mis | AKP1: Pros3_Acquit_SA_Mis | AKQ1: Pros3_Total_SA_Mis | AKR1: Pros3_Dismiss_SA_Fel | AKS1: Pros3_DefAdj_SA_Fel | AKT1: Pros3_Convict_PAC_SA_Fel | AKU1: Pros3_Convict_PSC_SA_Fel | AKV1: Pros3_Convict_PLC_SA_Fel | AKW1: Pros3_Convict_GAC_SA_Fel | AKX1: Pros3_Convict_GSC_SA_Fel | AKY1: Pros3_Convict_GLC_SA_Fel | AKZ1: Pros3_Acquit_SA_Fel | ALA1: Pros3_Total_SA_Fel | ALB1: Pros3_Dismiss_SA_Hom | ALC1: Pros3_DefAdj_SA_Hom | ALD1: Pros3_Convict_PAC_SA_Hom | ALE1: Pros3_Convict_PSC_SA_Hom | ALF1: Pros3_Convict_PLC_SA_Hom | ALG1: Pros3_Convict_GAC_SA_Hom | ALH1: Pros3_Convict_GSC_SA_Hom | ALI1: Pros3_Convict_GLC_SA_Hom | ALJ1: Pros3_Acquit_SA_Hom | ALK1: Pros3_Total_SA_Hom | ALL1: Pros3_Dismiss_STK_Ord | ALM1: Pros3_DefAdj_STK_Ord | ALN1: Pros3_Convict_PAC_STK_Ord | ALO1: Pros3_Convict_PSC_STK_Ord | ALP1: Pros3_Convict_PLC_STK_Ord | ALQ1: Pros3_Convict_GAC_STK_Ord | ALR1: Pros3_Convict_GSC_STK_Ord | ALS1: Pros3_Convict_GLC_STK_Ord | ALT1: Pros3_Acquit_STK_Ord | ALU1: Pros3_Total_STK_Ord | ALV1: Pros3_Dismiss_STK_Mis | ALW1: Pros3_DefAdj_STK_Mis | ALX1: Pros3_Convict_PAC_STK_Mis | ALY1: Pros3_Convict_PSC_STK_Mis | ALZ1: Pros3_Convict_PLC_STK_Mis | AMA1: Pros3_Convict_GAC_STK_Mis | AMB1: Pros3_Convict_GSC_STK_Mis | AMC1: Pros3_Convict_GLC_STK_Mis | AMD1: Pros3_Acquit_STK_Mis | AME1: Pros3_Total_STK_Mis | AMF1: Pros3_Dismiss_STK_Fel | AMG1: Pros3_DefAdj_STK_Fel | AMH1: Pros3_Convict_PAC_STK_Fel | AMI1: Pros3_Convict_PSC_STK_Fel | AMJ1: Pros3_Convict_PLC_STK_Fel | AMK1: Pros3_Convict_GAC_STK_Fel | AML1: Pros3_Convict_GSC_STK_Fel | AMM1: Pros3_Convict_GLC_STK_Fel | AMN1: Pros3_Acquit_STK_Fel | AMO1: Pros3_Total_STK_Fel | AMP1: Pros3_Dismiss_STK_Hom | AMQ1: Pros3_DefAdj_STK_Hom | AMR1: Pros3_Convict_PAC_STK_Hom | AMS1: Pros3_Convict_PSC_STK_Hom | AMT1: Pros3_Convict_PLC_STK_Hom | AMU1: Pros3_Convict_GAC_STK_Hom | AMV1: Pros3_Convict_GSC_STK_Hom | AMW1: Pros3_Convict_GLC_STK_Hom | AMX1: Pros3_Acquit_STK_Hom | AMY1: Pros3_Total_STK_Hom | AMZ1: Pros3_Dismiss_BailViol | ANA1: Pros3_DefAdj_BailViol | ANB1: Pros3_Convict_PAC_BailViol | ANC1: Pros3_Convict_PSC_BailViol | AND1: Pros3_Convict_PLC_BailViol | ANE1: Pros3_Convict_GAC_BailViol | ANF1: Pros3_Convict_GSC_BailViol | ANG1: Pros3_Convict_GLC_BailViol | ANH1: Pros3_Acquit_BailViol | ANI1: Pros3_Total_BailViol | ANJ1: Pros3_Dismiss_ProbViol | ANK1: Pros3_DefAdj_ProbViol | ANL1: Pros3_Convict_PAC_ProbViol | ANM1: Pros3_Convict_PSC_ProbViol | ANN1: Pros3_Convict_PLC_ProbViol | ANO1: Pros3_Convict_GAC_ProbViol | ANP1: Pros3_Convict_GSC_ProbViol | ANQ1: Pros3_Convict_GLC_ProbViol | ANR1: Pros3_Acquit_ProbViol | ANS1: Pros3_Total_ProbViol | ANT1: Pros3_Dismiss_POViol | ANU1: Pros3_DefAdj_POViol | ANV1: Pros3_Convict_PAC_POViol | ANW1: Pros3_Convict_PSC_POViol | ANX1: Pros3_Convict_PLC_POViol | ANY1: Pros3_Convict_GAC_POViol | ANZ1: Pros3_Convict_GSC_POViol | AOA1: Pros3_Convict_GLC_POViol | AOB1: Pros3_Acquit_POViol | AOC1: Pros3_Total_POViol | AOD1: Pros3_Dismiss_CrtOrder | AOE1: Pros3_DefAdj_CrtOrder | AOF1: Pros3_Convict_PAC_CrtOrder | AOG1: Pros3_Convict_PSC_CrtOrder | AOH1: Pros3_Convict_PLC_CrtOrder | AOI1: Pros3_Convict_GAC_CrtOrder | AOJ1: Pros3_Convict_GSC_CrtOrder | AOK1: Pros3_Convict_GLC_CrtOrder | AOL1: Pros3_Acquit_CrtOrder | AOM1: Pros3_Total_CrtOrder | AON1: Pros3_OtherDesc | AOO1: Pros3_Dismiss_Other | AOP1: Pros3_DefAdj_Other | AOQ1: Pros3_Convict_PAC_Other | AOR1: Pros3_Convict_PSC_Other | AOS1: Pros3_Convict_PLC_Other | AOT1: Pros3_Convict_GAC_Other | AOU1: Pros3_Convict_GSC_Other | AOV1: Pros3_Convict_GLC_Other | AOW1: Pros3_Acquit_Other | AOX1: Pros3_Total_Other | AOY1: Pros3_TOTAL_Dismiss | AOZ1: Pros3_TOTAL_DefAdj | APA1: Pros3_TOTAL_Convict_PAC | APB1: Pros3_TOTAL_Convict_PSC | APC1: Pros3_TOTAL_Convict_PLC | APD1: Pros3_TOTAL_Convict_GAC | APE1: Pros3_TOTAL_Convict_GSC | APF1: Pros3_TOTAL_Convict_GLC | APG1: Pros3_TOTAL_Acquit | APH1: Pros3_TOTAL_Total | API1: Pros4_RefToFed | APJ1: Pros4_RefToState | APK1: Pros4_TOTAL | APL1: Pros5_VSRef_Govt | APM1: Pros5_VSRef_NonGovt | APN1: Pros6_Req_Temp_SA | APO1: Pros6_Req_Final_SA | APP1: Pros6_Grnt_Temp_SA | APQ1: Pros6_Grnt_Final_SA | APR1: Pros6_Req_Temp_DV | APS1: Pros6_Req_Final_DV | APT1: Pros6_Grnt_Temp_DV | APU1: Pros6_Grnt_Final_DV | APV1: Pros6_Req_Temp_STK | APW1: Pros6_Req_Final_STK | APX1: Pros6_Grnt_Temp_STK | APY1: Pros6_Grnt_Final_STK | APZ1: Crt_FundsUsed_YesNo | AQA1: Crt_FundsUsed_1or0 | AQB1: Crt2_Dismiss_SA_Mis | AQC1: Crt2_DefAdj_SA_Mis | AQD1: Crt2_Convict_SA_Mis | AQE1: Crt2_Acquit_SA_Mis | AQF1: Crt2_Dismiss_SA_Fel | AQG1: Crt2_DefAdj_SA_Fel | AQH1: Crt2_Convict_SA_Fel | AQI1: Crt2_Acquit_SA_Fel | AQJ1: Crt2_Dismiss_Hom | AQK1: Crt2_DefAdj_Hom | AQL1: Crt2_Convict_Hom | AQM1: Crt2_Acquit_Hom | AQN1: Crt2_Dismiss_DV_Ord | AQO1: Crt2_DefAdj_DV_Ord | AQP1: Crt2_Convict_DV_Ord | AQQ1: Crt2_Acquit_DV_Ord | AQR1: Crt2_Dismiss_DV_Mis | AQS1: Crt2_DefAdj_DV_Mis | AQT1: Crt2_Convict_DV_Mis | AQU1: Crt2_Acquit_DV_Mis | AQV1: Crt2_Dismiss_DV_Fel | AQW1: Crt2_DefAdj_DV_Fel | AQX1: Crt2_Convict_DV_Fel | AQY1: Crt2_Acquit_DV_Fel | AQZ1: Crt2_Dismiss_STK_Ord | ARA1: Crt2_DefAdj_STK_Ord | ARB1: Crt2_Convict_STK_Ord | ARC1: Crt2_Acquit_STK_Ord | ARD1: Crt2_Dismiss_STK_Mis | ARE1: Crt2_DefAdj_STK_Mis | ARF1: Crt2_Convict_STK_Mis | ARG1: Crt2_Acquit_STK_Mis | ARH1: Crt2_Dismiss_STK_Fel | ARI1: Crt2_DefAdj_STK_Fel | ARJ1: Crt2_Convict_STK_Fel | ARK1: Crt2_Acquit_STK_Fel | ARL1: Crt2_Dismiss_POViol | ARM1: Crt2_DefAdj_POViol | ARN1: Crt2_Convict_POViol | ARO1: Crt2_Acquit_POViol | ARP1: Crt2_Dismiss_BailViol | ARQ1: Crt2_DefAdj_BailViol | ARR1: Crt2_Convict_BailViol | ARS1: Crt2_Acquit_BailViol | ART1: Crt2_Dismiss_ProbViol | ARU1: Crt2_DefAdj_ProbViol | ARV1: Crt2_Convict_ProbViol | ARW1: Crt2_Acquit_ProbViol | ARX1: Crt2_Dismiss_CrtOrder | ARY1: Crt2_DefAdj_CrtOrder | ARZ1: Crt2_Convict_CrtOrder | ASA1: Crt2_Acquit_CrtOrder | ASB1: Crt2_TOTAL_Dismiss | ASC1: Crt2_TOTAL_DefAdj | ASD1: Crt2_TOTAL_Convict | ASE1: Crt2_TOTAL_Acquit | ASF1: Crt3_Offender | ASG1: Crt3_Hearing | ASH1: Crt4_NoAction_PO | ASI1: Crt4_Warning_PO | ASJ1: Crt4_Fine_PO | ASK1: Crt4_AddCond_PO | ASL1: Crt4_Revoke_PO | ASM1: Crt4_NoAction_NewCrim | ASN1: Crt4_Warning_NewCrim | ASO1: Crt4_Fine_NewCrim | ASP1: Crt4_AddCond_NewCrim | ASQ1: Crt4_Revoke_NewCrim | ASR1: Crt4_NoAction_BIP | ASS1: Crt4_Warning_BIP | AST1: Crt4_Fine_BIP | ASU1: Crt4_AddCond_BIP | ASV1: Crt4_Revoke_BIP | ASW1: Crt4_NoAction_OtherTreat | ASX1: Crt4_Warning_OtherTreat | ASY1: Crt4_Fine_OtherTreat | ASZ1: Crt4_AddCond_OtherTreat | ATA1: Crt4_Revoke_OtherTreat | ATB1: Crt4_NoAction_OtherCond | ATC1: Crt4_Warning_OtherCond | ATD1: Crt4_Fine_OtherCond | ATE1: Crt4_AddCond_OtherCond | ATF1: Crt4_Revoke_OtherCond | ATG1: Crt4_TOTAL_NoAction | ATH1: Crt4_TOTAL_Warning | ATI1: Crt4_TOTAL_Fine | ATJ1: Crt4_TOTAL_AddCond | ATK1: Crt4_TOTAL_Revoke | ATL1: Crt5_VSRef_Govt | ATM1: Crt5_VSRef_NonGovt | ATN1: Crt6_Req_Temp_SA | ATO1: Crt6_Req_Final_SA | ATP1: Crt6_Grnt_Temp_SA | ATQ1: Crt6_Grnt_Final_SA | ATR1: Crt6_Req_Temp_DV | ATS1: Crt6_Req_Final_DV | ATT1: Crt6_Grnt_Temp_DV | ATU1: Crt6_Grnt_Final_DV | ATV1: Crt6_Req_Temp_STK | ATW1: Crt6_Req_Final_STK | ATX1: Crt6_Grnt_Temp_STK | ATY1: Crt6_Grnt_Final_STK | ATZ1: Crt7_Req_Crim | AUA1: Crt7_Grant_Crim | AUB1: Prob_FundsUsed_YesNo | AUC1: Prob_FundsUsed_1or0 | AUD1: Prob1_Offender_DV | AUE1: Prob1_Comp_NoViol_DV | AUF1: Prob1_Comp_Viol_DV | AUG1: Prob1_Offender_SA | AUH1: Prob1_Comp_NoViol_SA | AUI1: Prob1_Comp_Viol_SA | AUJ1: Prob1_Offender_STK | AUK1: Prob1_Comp_NoViol_STK | AUL1: Prob1_Comp_Viol_STK | AUM1: Prob1_TOTAL_Offender | AUN1: Prob1_TOTAL_Comp_NoViol | AUO1: Prob1_TOTAL_Comp_Viol | AUP1: Prob2_Face_Offender | AUQ1: Prob2_Face_Contacts | AUR1: Prob2_Phone_Offender | AUS1: Prob2_Phone_Contacts | AUT1: Prob2_Surveil_Offender | AUU1: Prob2_Surveil_Contacts | AUV1: Prob2_ElecMonitor_Offender | AUW1: Prob2_VicOutreach_Vic | AUX1: Prob2_VicOutreach_Contacts | AUY1: Prob3_NoAction_PO | AUZ1: Prob3_Warning_PO | AVA1: Prob3_Fine_PO | AVB1: Prob3_AddCond_PO | AVC1: Prob3_Revoke_PO | AVD1: Prob3_NoAction_NewCrim | AVE1: Prob3_Warning_NewCrim | AVF1: Prob3_Fine_NewCrim | AVG1: Prob3_AddCond_NewCrim | AVH1: Prob3_Revoke_NewCrim | AVI1: Prob3_NoAction_BIP | AVJ1: Prob3_Warning_BIP | AVK1: Prob3_Fine_BIP | AVL1: Prob3_AddCond_BIP | AVM1: Prob3_Revoke_BIP | AVN1: Prob3_NoAction_OtherTreat | AVO1: Prob3_Warning_OtherTreat | AVP1: Prob3_Fine_OtherTreat | AVQ1: Prob3_AddCond_OtherTreat | AVR1: Prob3_Revoke_OtherTreat | AVS1: Prob3_NoAction_OtherCond | AVT1: Prob3_Warning_OtherCond | AVU1: Prob3_Fine_OtherCond | AVV1: Prob3_AddCond_OtherCond | AVW1: Prob3_Revoke_OtherCond | AVX1: Prob3_TOTAL_NoAction | AVY1: Prob3_TOTAL_Warning | AVZ1: Prob3_TOTAL_Fine | AWA1: Prob3_TOTAL_AddCond | AWB1: Prob3_TOTAL_Revoke | AWC1: Prob4_VSRef_Govt | AWD1: Prob4_VSRef_NonGovt | AWE1: BIP_FundsUsed_YesNo | AWF1: BIP_FundsUsed_1or0 | AWG1: BIP1_Offender_BIP | AWH1: BIP2_Complete_BIP | AWI1: BIP2_Terminate_BIP | AWJ1: BIP2_Return_BIP | AWK1: BIP2_OtherDesc | AWL1: BIP2_Other_BIP | AWM1: BIP3_Weeks_A | AWN1: BIP3_Weeks_B | AWO1: BIP3_Weeks_C | AWP1: Tr_Narrative | AWQ1: CCR_Narrative | AWR1: Pol2_Narrative | AWS1: Pol_Narrative | AWT1: VS_Narrative | AWU1: LE_Narrative | AWV1: Pros3_Narrative | AWW1: Pros_Narrative | AWX1: Crt_Narrative | AWY1: Prob_Narrative | AWZ1: Narr2_RAN_1 | AXA1: Narr2_RAN_2 | AXB1: Narr3_FundAllow_1 | AXC1: Narr3_FundAllow_2 | AXD1: Narr_stop_CrystalJudson_1 | AXE1: Narr_stop_CrystalJudson_2 | AXF1: Narr4_Effectiveness_1 | AXG1: Narr4_Effectiveness_2 | AXH1: Narr5_Data_1 | AXI1: Narr5_Data_2
A2: 40392 | B2: OR40392 | C2: 2020-02-21 | D2: 2019 | E2: Burns Paiute Tribe | F2: 2017-Joint-00021 | I2: 2019-Joint-00060 | O2: GI5_OrgType_TribProg | Q2: NO | R2: YES | S2: Teresa | T2: L | U2: Cowing | V2: Burns Paiute Tribe | W2: 100 Pasigo Street | X2: Burns | Y2: OR | Z2: 97720 | AA2: 541-573-8053 | AB2: 541-573-4217 | AC2: teresa.cowing@burnspaiute-nsn.gov | AD2: YES | AE2: Burns Paiute Tribe | AF2: 20 | AG2: 60 | AH2: 20 | AI2: 100 | AJ2: YES | AK2: 1 | AL2: 0 | AM2: 0 | AN2: 0 | AO2: 0 | AP2: 0 | AQ2: 0 | AR2: 0 | AS2: 0 | AT2: 0 | AU2: 0 | AV2: 0 | AW2: 0 | AX2: 0 | AY2: 0 | AZ2: 0 | BA2: 0 | BB2: 0 | BC2: 0.15 | BD2: 0 | BF2: 0 | BG2: 0.15 | BH2: 0 | BI2: 0 | BJ2: 0 | BK2: 0 | BL2: 0 | BM2: 1 | BN2: 0 | BO2: 0 | BP2: 0 | BQ2: 0 | BR2: 0 | BS2: 0 | BT2: 0 | BU2: 0 | BV2: 0 | BW2: 0 | BX2: 0 | BY2: 0 | BZ2: 0 | CA2: 0 | CB2: NO | CC2: 0 | CD2: 0 | CE2: 0 | CF2: 0 | CG2: 0 | CH2: 0 | CI2: 0 | CJ2: 0 | CK2: 0 | CL2: 0 | CM2: 0 | CN2: 0 | CO2: 0 | CP2: 0 | CQ2: 0 | CR2: 0 | CS2: 0 | CT2: 0 | CU2: 0 | CV2: 0 | CW2: 0 | CX2: 0 | CY2: 0 | CZ2: 0 | DA2: 0 | DB2: 0 | DC2: 0 | DD2: 0 | DF2: 0 | DG2: 0 | DH2: 0 | DI2: 0 | DJ2: 0 | DK2: 0 | DL2: 0 | DM2: 0 | DN2: 0 | DO2: 0 | DP2: 0 | DQ2: 0 | DR2: 0 | DS2: 0 | DT2: 0 | DV2: 0 | DW2: 0 | DX2: 0 | DY2: 0 | DZ2: 0 | EA2: 0 | EB2: 0 | EC2: 0 | ED2: 0 | EE2: 0 | EF2: 0 | EG2: 0 | EH2: 0 | EI2: 0 | EJ2: 0 | EK2: 0 | EL2: 0 | EM2: 0 | EN2: 0 | EO2: 0 | EQ2: 0 | ER2: 0 | ES2: 0 | ET2: 0 | EU2: 0 | EV2: 0 | EW2: 0 | EX2: 0 | EY2: 0 | EZ2: 0 | FA2: 0 | FB2: 0 | FC2: 0 | FD2: 0 | FE2: 0 | FF2: 0 | FG2: 0 | FI2: 0 | FJ2: 0 | FK2: 0 | FL2: 0 | FM2: 0 | FO2: NO | FP2: 0 | FQ2: 0 | FR2: 0 | FS2: 0 | FT2: 0 | FU2: 0 | FV2: 0 | FW2: 0 | FX2: 0 | FY2: 0 | FZ2: 0 | GA2: 0 | GB2: 0 | GC2: 0 | GD2: 0 | GF2: 0 | GG2: 0 | GH2: 0 | GI2: 0 | GJ2: 0 | GK2: 0 | GL2: 0 | GM2: 0 | GN2: 0 | GO2: 0 | GP2: 0 | GQ2: 0 | GR2: 0 | GS2: 0 | GT2: 0 | GV2: 0 | GW2: 0 | GX2: 0 | GY2: 0 | GZ2: 0 | HA2: 0 | HB2: 0 | HC2: 0 | HD2: 0 | HE2: 0 | HF2: 0 | HG2: 0 | HH2: 0 | HI2: 0 | HJ2: 0 | HK2: 0 | HL2: 0 | HR2: Monthly | HS2: Monthly | HV2: Monthly | HW2: Monthly | HY2: Monthly | IC2: Monthly | ID2: Monthly | IE2: Monthly | IF2: Monthly | IG2: Monthly | IK2: Monthly | IO2: Monthly | IP2: Monthly | IQ2: Monthly | IR2: Monthly | IW2: NO | IX2: 0 | IY2: 0 | IZ2: 0 | JA2: 0 | JB2: 0 | JC2: 0 | JD2: 0 | JE2: 0 | JF2: 0 | JG2: 0 | JH2: 0 | JI2: 0 | JJ2: 0 | JK2: 0 | JM2: 0 | JN2: 0 | JO2: 0 | JP2: 0 | JQ2: 0 | JR2: 0 | JS2: 0 | JT2: 0 | JU2: 0 | JV2: 0 | JW2: 0 | JX2: 0 | JY2: 0 | JZ2: 0 | KA2: 0 | KB2: 0 | KC2: 0 | KD2: 0 | KE2: 0 | KF2: 0 | KG2: 0 | KI2: 0 | KJ2: 0 | KK2: 0 | KL2: 0 | KM2: 0 | KN2: 0 | KO2: 0 | KP2: 0 | KQ2: 0 | KR2: 0 | KS2: 0 | KT2: 0 | KU2: 0 | KV2: 0 | KX2: 0 | KY2: 0 | KZ2: 0 | LA2: 0 | LB2: 0 | LC2: 0 | LD2: 0 | LE2: 0 | LF2: 0 | LG2: 0 | LH2: 0 | LI2: 0 | LJ2: 0 | LK2: 0 | LL2: 0 | LM2: 0 | LN2: 0 | LP2: 0 | LQ2: 0 | LR2: 0 | LS2: 0 | LT2: 0 | LU2: 0 | LV2: 0 | LW2: 0 | LX2: 0 | LZ2: 0 | MA2: 0 | MB2: 0 | MC2: 0 | MD2: 0 | ME2: 0 | MF2: 0 | MG2: 0 | MH2: 0 | MI2: 0 | MJ2: 0 | ML2: NO | MM2: 0 | MN2: 0 | MR2: 0 | MV2: 0 | MZ2: 0 | ND2: 0 | NH2: 0 | NL2: 0 | NP2: 0 | NT2: 0 | NY2: 0 | OC2: 0 | OG2: 0 | OK2: NO | OL2: 0 | OM2: 0 | ON2: 0 | OO2: 0 | OP2: 0 | OQ2: 0 | OR2: 0 | OS2: 0 | OT2: 0 | OU2: 0 | OV2: 0 | OW2: 0 | OX2: 0 | OY2: 0 | OZ2: 0 | PA2: 0 | PB2: 0 | PC2: 0 | PD2: 0 | PE2: 0 | PF2: 0 | PG2: 0 | PH2: 0 | PI2: 0 | PJ2: 0 | PK2: 0 | PL2: 0 | PM2: 0 | PO2: NO | PP2: 0 | PQ2: 0 | PR2: 0 | PS2: 0 | PT2: 0 | PU2: 0 | PV2: 0 | PW2: 0 | PX2: 0 | PY2: 0 | PZ2: 0 | QA2: 0 | QB2: 0 | QD2: 0 | QE2: 0 | QF2: 0 | QG2: 0 | QH2: 0 | QI2: 0 | QJ2: 0 | QK2: 0 | QL2: 0 | QM2: 0 | QN2: 0 | QO2: 0 | QP2: 0 | QQ2: 0 | QR2: 0 | QS2: 0 | QT2: NO | QU2: 0 | QV2: 0 | QW2: 0 | QX2: 0 | QY2: 0 | QZ2: 0 | RA2: 0 | RB2: 0 | RC2: 0 | RD2: 0 | RE2: 0 | RF2: 0 | RG2: 0 | RH2: 0 | RI2: 0 | RJ2: 0 | RK2: 0 | RL2: 0 | RM2: 0 | RN2: 0 | RO2: 0 | RP2: 0 | RQ2: 0 | RR2: 0 | RS2: 0 | RT2: 0 | RU2: 0 | RV2: 0 | RW2: 0 | RX2: 0 | RY2: 0 | RZ2: 0 | SA2: 0 | SB2: 0 | SC2: 0 | SD2: 0 | SE2: 0 | SF2: 0 | SG2: 0 | SH2: 0 | SI2: 0 | SJ2: 0 | SK2: 0 | SL2: 0 | SM2: 0 | SN2: 0 | SP2: 0 | SQ2: 0 | SR2: 0 | SS2: 0 | ST2: 0 | SU2: YES | SV2: 1 | SW2: 1 | SX2: 3 | SY2: 1 | SZ2: 5 | TA2: 0 | TB2: 0 | TC2: 0 | TD2: 0 | TE2: 1 | TF2: 3 | TG2: 1 | TH2: 5 | TI2: 0 | TJ2: 0 | TK2: 0 | TL2: 0 | TM2: 1 | TN2: 2 | TO2: 0 | TP2: 3 | TQ2: 1 | TR2: 0 | TS2: 0 | TT2: 0 | TU2: 0 | TV2: 3 | TW2: 0 | TX2: 0 | TY2: 0 | TZ2: 0 | UA2: 1 | UB2: 0 | UC2: 1 | UD2: 3 | UE2: 1 | UF2: 0 | UG2: 0 | UH2: 2 | UI2: 0 | UJ2: 2 | UK2: 0 | UL2: 0 | UM2: 0 | UN2: 0 | UO2: 0 | UP2: 0 | UQ2: 0 | UR2: 0 | US2: 0 | UT2: 0 | UU2: 0 | UV2: 0 | UW2: 0 | UX2: 0 | UY2: 0 | UZ2: 0 | VA2: 0 | VB2: 0 | VC2: 0 | VD2: 0 | VE2: 0 | VF2: 0 | VG2: 0 | VH2: 0 | VI2: 0 | VJ2: 0 | VK2: 0 | VL2: 0 | VM2: 0 | VN2: 0 | VO2: 0 | VP2: 0 | VR2: 4 | VS2: 0 | VT2: 0 | VU2: 0 | VV2: 0 | VW2: 1 | VX2: 0 | VY2: 0 | VZ2: 5 | WA2: 5 | WB2: 0 | WC2: 0 | WD2: 0 | WE2: 5 | WF2: 0 | WG2: 1 | WH2: 3 | WI2: 1 | WJ2: 0 | WK2: 5 | WL2: 0 | WM2: 0 | WN2: 0 | WO2: 0 | WP2: 0 | WQ2: 0 | WR2: 5 | WS2: 0 | WT2: 3 | WU2: 0 | WV2: 0 | WW2: 0 | WX2: 0 | WY2: 0 | WZ2: 0 | XA2: 1 | XB2: 1 | XC2: 0 | XD2: 0 | XE2: 0 | XF2: 0 | XG2: 0 | XH2: 0 | XI2: 0 | XJ2: 1 | XK2: 3 | XL2: 1 | XM2: 2 | XN2: 2 | XO2: 0 | XP2: 0 | XQ2: 0 | XR2: 0 | XS2: 3 | XT2: 8 | XU2: 0 | XV2: 0 | XW2: 1 | XX2: 1 | XY2: 0 | XZ2: 0 | YA2: 4 | YB2: 10 | YC2: 5 | YD2: 18 | YF2: 0 | YG2: 0 | YH2: 0 | YI2: 0 | YJ2: 0 | YK2: 0 | YL2: 0 | YM2: 0 | YN2: 6 | YO2: 9 | YP2: 14 | YQ2: 0 | YR2: 0 | YS2: 0 | YT2: 0 | YU2: 0 | YV2: 0 | YW2: 0 | YX2: 0 | YY2: 0 | YZ2: 0 | ZA2: 0 | ZB2: 0 | ZC2: NO | ZD2: 0 | ZE2: 0 | ZF2: 0 | ZG2: 0 | ZH2: 0 | ZI2: 0 | ZJ2: 0 | ZK2: 0 | ZL2: 0 | ZM2: 0 | ZN2: 0 | ZO2: 0 | ZP2: 0 | ZQ2: 0 | ZR2: 0 | ZS2: 0 | ZT2: 0 | ZU2: 0 | ZV2: 0 | ZW2: 0 | ZY2: 0 | ZZ2: 0 | AAA2: 0 | AAB2: 0 | AAC2: 0 | AAD2: 0 | AAE2: 0 | AAF2: 0 | AAG2: 0 | AAH2: 0 | AAI2: 0 | AAJ2: 0 | AAK2: 0 | AAL2: 0 | AAM2: 0 | AAN2: 0 | AAO2: 0 | AAP2: 0 | AAQ2: 0 | AAR2: 0 | AAS2: 0 | AAT2: 0 | AAU2: 0 | AAV2: 0 | AAW2: 0 | AAX2: 0 | AAY2: 0 | AAZ2: 0 | ABA2: 0 | ABB2: 0 | ABC2: 0 | ABD2: 0 | ABE2: 0 | ABF2: 0 | ABG2: 0 | ABH2: 0 | ABI2: 0 | ABJ2: 0 | ABK2: 0 | ABL2: 0 | ABM2: 0 | ABN2: 0 | ABO2: 0 | ABP2: 0 | ABQ2: 0 | ABR2: 0 | ABS2: 0 | ABT2: 0 | ABU2: 0 | ABV2: 0 | ABW2: 0 | ABX2: 0 | ABY2: 0 | ABZ2: 0 | ACA2: 0 | ACB2: 0 | ACC2: 0 | ACD2: 0 | ACE2: 0 | ACF2: 0 | ACG2: 0 | ACH2: 0 | ACI2: 0 | ACJ2: 0 | ACK2: 0 | ACL2: 0 | ACM2: 0 | ACN2: 0 | ACO2: 0 | ACP2: 0 | ACQ2: 0 | ACR2: 0 | ACS2: 0 | ACT2: 0 | ACU2: 0 | ACV2: 0 | ACW2: 0 | ACX2: 0 | ACY2: 0 | ACZ2: 0 | ADA2: 0 | ADB2: 0 | ADC2: 0 | ADD2: 0 | ADE2: 0 | ADF2: 0 | ADG2: 0 | ADH2: 0 | ADI2: 0 | ADJ2: 0 | ADK2: 0 | ADL2: 0 | ADM2: 0 | ADN2: 0 | ADO2: 0 | ADP2: 0 | ADQ2: 0 | ADR2: 0 | ADS2: 0 | ADT2: 0 | ADU2: 0 | ADV2: 0 | ADW2: 0 | ADX2: 0 | ADY2: 0 | ADZ2: 0 | AEA2: 0 | AEB2: 0 | AEC2: 0 | AED2: 0 | AEE2: 0 | AEF2: 0 | AEG2: 0 | AEH2: 0 | AEI2: 0 | AEJ2: 0 | AEK2: 0 | AEL2: 0 | AEM2: 0 | AEN2: 0 | AEO2: 0 | AEP2: 0 | AEQ2: 0 | AER2: 0 | AES2: 0 | AET2: 0 | AEU2: 0 | AEV2: 0 | AEW2: 0 | AEX2: 0 | AEY2: 0 | AEZ2: 0 | AFA2: 0 | AFB2: 0 | AFC2: 0 | AFD2: 0 | AFE2: 0 | AFF2: 0 | AFG2: 0 | AFI2: 0 | AFJ2: 0 | AFK2: 0 | AFL2: 0 | AFM2: 0 | AFN2: 0 | AFO2: 0 | AFP2: 0 | AFQ2: NO | AFR2: 0 | AFS2: 0 | AFT2: 0 | AFU2: 0 | AFV2: 0 | AFW2: 0 | AFX2: 0 | AFY2: 0 | AFZ2: 0 | AGA2: 0 | AGB2: 0 | AGC2: 0 | AGD2: 0 | AGE2: 0 | AGF2: 0 | AGG2: 0 | AGH2: 0 | AGI2: 0 | AGJ2: 0 | AGK2: 0 | AGL2: 0 | AGM2: 0 | AGN2: 0 | AGO2: 0 | AGP2: 0 | AGQ2: 0 | AGR2: 0 | AGS2: 0 | AGT2: 0 | AGU2: 0 | AGV2: 0 | AGW2: 0 | AGX2: 0 | AGY2: 0 | AGZ2: 0 | AHA2: 0 | AHB2: 0 | AHC2: 0 | AHD2: 0 | AHE2: 0 | AHF2: 0 | AHG2: 0 | AHH2: 0 | AHI2: 0 | AHJ2: 0 | AHK2: 0 | AHL2: 0 | AHM2: 0 | AHN2: 0 | AHO2: 0 | AHP2: NO | AHQ2: 0 | AHR2: 0 | AHS2: 0 | AHT2: 0 | AHU2: 0 | AHV2: 0 | AHW2: 0 | AHX2: 0 | AHY2: 0 | AHZ2: 0 | AIA2: 0 | AIB2: 0 | AIC2: 0 | AID2: 0 | AIE2: 0 | AIF2: 0 | AIG2: 0 | AIH2: 0 | AII2: 0 | AIJ2: 0 | AIK2: 0 | AIL2: 0 | AIM2: 0 | AIN2: 0 | AIO2: 0 | AIQ2: 0 | AIR2: 0 | AIS2: 0 | AIT2: 0 | AIU2: 0 | AIV2: 0 | AIW2: 0 | AIX2: 0 | AIY2: 0 | AIZ2: 0 | AJA2: 0 | AJB2: 0 | AJC2: 0 | AJD2: 0 | AJE2: 0 | AJF2: 0 | AJG2: 0 | AJH2: 0 | AJI2: 0 | AJJ2: 0 | AJK2: 0 | AJL2: 0 | AJM2: 0 | AJN2: 0 | AJO2: 0 | AJP2: 0 | AJQ2: 0 | AJR2: 0 | AJS2: 0 | AJT2: 0 | AJU2: 0 | AJV2: 0 | AJW2: 0 | AJX2: 0 | AJY2: 0 | AJZ2: 0 | AKA2: 0 | AKB2: 0 | AKC2: 0 | AKD2: 0 | AKE2: 0 | AKF2: 0 | AKG2: 0 | AKH2: 0 | AKI2: 0 | AKJ2: 0 | AKK2: 0 | AKL2: 0 | AKM2: 0 | AKN2: 0 | AKO2: 0 | AKP2: 0 | AKQ2: 0 | AKR2: 0 | AKS2: 0 | AKT2: 0 | AKU2: 0 | AKV2: 0 | AKW2: 0 | AKX2: 0 | AKY2: 0 | AKZ2: 0 | ALA2: 0 | ALB2: 0 | ALC2: 0 | ALD2: 0 | ALE2: 0 | ALF2: 0 | ALG2: 0 | ALH2: 0 | ALI2: 0 | ALJ2: 0 | ALK2: 0 | ALL2: 0 | ALM2: 0 | ALN2: 0 | ALO2: 0 | ALP2: 0 | ALQ2: 0 | ALR2: 0 | ALS2: 0 | ALT2: 0 | ALU2: 0 | ALV2: 0 | ALW2: 0 | ALX2: 0 | ALY2: 0 | ALZ2: 0 | AMA2: 0 | AMB2: 0 | AMC2: 0 | AMD2: 0 | AME2: 0 | AMF2: 0 | AMG2: 0 | AMH2: 0 | AMI2: 0 | AMJ2: 0 | AMK2: 0 | AML2: 0 | AMM2: 0 | AMN2: 0 | AMO2: 0 | AMP2: 0 | AMQ2: 0 | AMR2: 0 | AMS2: 0 | AMT2: 0 | AMU2: 0 | AMV2: 0 | AMW2: 0 | AMX2: 0 | AMY2: 0 | AMZ2: 0 | ANA2: 0 | ANB2: 0 | ANC2: 0 | AND2: 0 | ANE2: 0 | ANF2: 0 | ANG2: 0 | ANH2: 0 | ANI2: 0 | ANJ2: 0 | ANK2: 0 | ANL2: 0 | ANM2: 0 | ANN2: 0 | ANO2: 0 | ANP2: 0 | ANQ2: 0 | ANR2: 0 | ANS2: 0 | ANT2: 0 | ANU2: 0 | ANV2: 0 | ANW2: 0 | ANX2: 0 | ANY2: 0 | ANZ2: 0 | AOA2: 0 | AOB2: 0 | AOC2: 0 | AOD2: 0 | AOE2: 0 | AOF2: 0 | AOG2: 0 | AOH2: 0 | AOI2: 0 | AOJ2: 0 | AOK2: 0 | AOL2: 0 | AOM2: 0 | AOO2: 0 | AOP2: 0 | AOQ2: 0 | AOR2: 0 | AOS2: 0 | AOT2: 0 | AOU2: 0 | AOV2: 0 | AOW2: 0 | AOX2: 0 | AOY2: 0 | AOZ2: 0 | APA2: 0 | APB2: 0 | APC2: 0 | APD2: 0 | APE2: 0 | APF2: 0 | APG2: 0 | APH2: 0 | API2: 0 | APJ2: 0 | APK2: 0 | APL2: 0 | APM2: 0 | APN2: 0 | APO2: 0 | APP2: 0 | APQ2: 0 | APR2: 0 | APS2: 0 | APT2: 0 | APU2: 0 | APV2: 0 | APW2: 0 | APX2: 0 | APY2: 0 | APZ2: NO | AQA2: 0 | AQB2: 0 | AQC2: 0 | AQD2: 0 | AQE2: 0 | AQF2: 0 | AQG2: 0 | AQH2: 0 | AQI2: 0 | AQJ2: 0 | AQK2: 0 | AQL2: 0 | AQM2: 0 | AQN2: 0 | AQO2: 0 | AQP2: 0 | AQQ2: 0 | AQR2: 0 | AQS2: 0 | AQT2: 0 | AQU2: 0 | AQV2: 0 | AQW2: 0 | AQX2: 0 | AQY2: 0 | AQZ2: 0 | ARA2: 0 | ARB2: 0 | ARC2: 0 | ARD2: 0 | ARE2: 0 | ARF2: 0 | ARG2: 0 | ARH2: 0 | ARI2: 0 | ARJ2: 0 | ARK2: 0 | ARL2: 0 | ARM2: 0 | ARN2: 0 | ARO2: 0 | ARP2: 0 | ARQ2: 0 | ARR2: 0 | ARS2: 0 | ART2: 0 | ARU2: 0 | ARV2: 0 | ARW2: 0 | ARX2: 0 | ARY2: 0 | ARZ2: 0 | ASA2: 0 | ASB2: 0 | ASC2: 0 | ASD2: 0 | ASE2: 0 | ASF2: 0 | ASG2: 0 | ASH2: 0 | ASI2: 0 | ASJ2: 0 | ASK2: 0 | ASL2: 0 | ASM2: 0 | ASN2: 0 | ASO2: 0 | ASP2: 0 | ASQ2: 0 | ASR2: 0 | ASS2: 0 | AST2: 0 | ASU2: 0 | ASV2: 0 | ASW2: 0 | ASX2: 0 | ASY2: 0 | ASZ2: 0 | ATA2: 0 | ATB2: 0 | ATC2: 0 | ATD2: 0 | ATE2: 0 | ATF2: 0 | ATG2: 0 | ATH2: 0 | ATI2: 0 | ATJ2: 0 | ATK2: 0 | ATL2: 0 | ATM2: 0 | ATN2: 0 | ATO2: 0 | ATP2: 0 | ATQ2: 0 | ATR2: 0 | ATS2: 0 | ATT2: 0 | ATU2: 0 | ATV2: 0 | ATW2: 0 | ATX2: 0 | ATY2: 0 | ATZ2: 0 | AUA2: 0 | AUB2: NO | AUC2: 0 | AUD2: 0 | AUE2: 0 | AUF2: 0 | AUG2: 0 | AUH2: 0 | AUI2: 0 | AUJ2: 0 | AUK2: 0 | AUL2: 0 | AUM2: 0 | AUN2: 0 | AUO2: 0 | AUP2: 0 | AUQ2: 0 | AUR2: 0 | AUS2: 0 | AUT2: 0 | AUU2: 0 | AUV2: 0 | AUW2: 0 | AUX2: 0 | AUY2: 0 | AUZ2: 0 | AVA2: 0 | AVB2: 0 | AVC2: 0 | AVD2: 0 | AVE2: 0 | AVF2: 0 | AVG2: 0 | AVH2: 0 | AVI2: 0 | AVJ2: 0 | AVK2: 0 | AVL2: 0 | AVM2: 0 | AVN2: 0 | AVO2: 0 | AVP2: 0 | AVQ2: 0 | AVR2: 0 | AVS2: 0 | AVT2: 0 | AVU2: 0 | AVV2: 0 | AVW2: 0 | AVX2: 0 | AVY2: 0 | AVZ2: 0 | AWA2: 0 | AWB2: 0 | AWC2: 0 | AWD2: 0 | AWE2: NO | AWF2: 0 | AWG2: 0 | AWH2: 0 | AWI2: 0 | AWJ2: 0 | AWL2: 0 | AWM2: 0 | AWN2: 0 | AWO2: 0 | AWQ2: The Burns Paiute Tribe Domestic Violence and Sexual Assault program is part of the monthly Harney County MDT and the quarterly SART. The program staff meets with the non-profit Domestic Violence/sexual Assault shelter as needed and monthly. | AWZ2: There are many barriers to service in our rural community, lack of resources, staff turn over, lack of trust in the systems and staff and the closet town(s) out of our county with a few more resource are 130 miles away. Another issue that has been long standing is the Jurisdictional piece, State side vs. Tribal. | AXB2: The funding allows the program staff to have an office on the reservation to provide victim services to the Tribal community and Tribal members. | AXF2: There was staff changes later in the year that was not productive for the Burns Paiute Tribe Domestic Violence/Sexual Assault Program. The staff that was the director/supervisor for the program did not believe in the program or program staff in which she made her views known in the community which caused distrust within the community and Tribal members. Also that staff did not work well with community partners and that caused some issues also.
A3: 40393 | B3: OR40393 | C3: 2020-01-13 | D3: 2019 | E3: Battered Persons' Advocacy | F3: Joint-2019-BPA-00003 | I3: Joint-2017-BPA-00001 | O3: GI5_OrgType_VicServ_Dual | Q3: NO | R3: NO | S3: Melanie | T3: M | U3: Taylor Prummer | V3: Battered Persons' Advocacy | W3: 1202 SE Douglas Ave | X3: Roseburg | Y3: OR | Z3: 97470 | AA3: (541) 957-0288 | AB3: (541) 627-8140 | AC3: melanie@peaceathome.com | AD3: NO | AF3: 3 | AG3: 84 | AH3: 13 | AI3: 100 | AJ3: YES | AK3: 1 | AL3: 0 | AM3: 0 | AN3: 0 | AO3: 0 | AP3: 0 | AQ3: 0 | AR3: 0 | AS3: 0.14 | AT3: 0 | AU3: 0 | AV3: 0 | AW3: 0 | AX3: 0 | AY3: 0 | AZ3: 0 | BA3: 0 | BB3: 0 | BC3: 0.45 | BD3: 0 | BF3: 0 | BG3: 0.59 | BH3: 0 | BI3: 0 | BJ3: 0 | BK3: 0 | BL3: 1 | BM3: 0 | BN3: 0 | BO3: 0 | BP3: 0 | BQ3: 0 | BR3: 0 | BS3: 0 | BT3: 0 | BU3: 0 | BV3: 0 | BW3: 0 | BX3: 0 | BY3: 0 | BZ3: 0 | CA3: 0 | CB3: NO | CC3: 0 | CD3: 0 | CE3: 0 | CF3: 0 | CG3: 0 | CH3: 0 | CI3: 0 | CJ3: 0 | CK3: 0 | CL3: 0 | CM3: 0 | CN3: 0 | CO3: 0 | CP3: 0 | CQ3: 0 | CR3: 0 | CS3: 0 | CT3: 0 | CU3: 0 | CV3: 0 | CW3: 0 | CX3: 0 | CY3: 0 | CZ3: 0 | DA3: 0 | DB3: 0 | DC3: 0 | DD3: 0 | DF3: 0 | DG3: 0 | DH3: 0 | DI3: 0 | DJ3: 0 | DK3: 0 | DL3: 0 | DM3: 0 | DN3: 0 | DO3: 0 | DP3: 0 | DQ3: 0 | DR3: 0 | DS3: 0 | DT3: 0 | DV3: 0 | DW3: 0 | DX3: 0 | DY3: 0 | DZ3: 0 | EA3: 0 | EB3: 0 | EC3: 0 | ED3: 0 | EE3: 0 | EF3: 0 | EG3: 0 | EH3: 0 | EI3: 0 | EJ3: 0 | EK3: 0 | EL3: 0 | EM3: 0 | EN3: 0 | EO3: 0 | EQ3: 0 | ER3: 0 | ES3: 0 | ET3: 0 | EU3: 0 | EV3: 0 | EW3: 0 | EX3: 0 | EY3: 0 | EZ3: 0 | FA3: 0 | FB3: 0 | FC3: 0 | FD3: 0 | FE3: 0 | FF3: 0 | FG3: 0 | FI3: 0 | FJ3: 0 | FK3: 0 | FL3: 0 | FM3: 0 | FO3: NO | FP3: 0 | FQ3: 0 | FR3: 0 | FS3: 0 | FT3: 0 | FU3: 0 | FV3: 0 | FW3: 0 | FX3: 0 | FY3: 0 | FZ3: 0 | GA3: 0 | GB3: 0 | GC3: 0 | GD3: 0 | GF3: 0 | GG3: 0 | GH3: 0 | GI3: 0 | GJ3: 0 | GK3: 0 | GL3: 0 | GM3: 0 | GN3: 0 | GO3: 0 | GP3: 0 | GQ3: 0 | GR3: 0 | GS3: 0 | GT3: 0 | GV3: 0 | GW3: 0 | GX3: 0 | GY3: 0 | GZ3: 0 | HA3: 0 | HB3: 0 | HC3: 0 | HD3: 0 | HE3: 0 | HF3: 0 | HG3: 0 | HH3: 0 | HI3: 0 | HJ3: 0 | HK3: 0 | HL3: 0 | HP3: Monthly | HQ3: Quarterly | HR3: Monthly | HS3: Quarterly | HT3: Daily | HU3: Quarterly | HZ3: Monthly | IA3: Quarterly | IB3: Daily | IC3: Weekly | ID3: Daily | IE3: Monthly | IF3: Daily | IG3: Quarterly | IH3: Daily | II3: Quarterly | IJ3: Daily | IK3: Quarterly | IN3: Daily | IO3: Monthly | IP3: Daily | IQ3: Weekly | IR3: Daily | IS3: Quarterly | IW3: NO | IX3: 0 | IY3: 0 | IZ3: 0 | JA3: 0 | JB3: 0 | JC3: 0 | JD3: 0 | JE3: 0 | JF3: 0 | JG3: 0 | JH3: 0 | JI3: 0 | JJ3: 0 | JK3: 0 | JM3: 0 | JN3: 0 | JO3: 0 | JP3: 0 | JQ3: 0 | JR3: 0 | JS3: 0 | JT3: 0 | JU3: 0 | JV3: 0 | JW3: 0 | JX3: 0 | JY3: 0 | JZ3: 0 | KA3: 0 | KB3: 0 | KC3: 0 | KD3: 0 | KE3: 0 | KF3: 0 | KG3: 0 | KI3: 0 | KJ3: 0 | KK3: 0 | KL3: 0 | KM3: 0 | KN3: 0 | KO3: 0 | KP3: 0 | KQ3: 0 | KR3: 0 | KS3: 0 | KT3: 0 | KU3: 0 | KV3: 0 | KX3: 0 | KY3: 0 | KZ3: 0 | LA3: 0 | LB3: 0 | LC3: 0 | LD3: 0 | LE3: 0 | LF3: 0 | LG3: 0 | LH3: 0 | LI3: 0 | LJ3: 0 | LK3: 0 | LL3: 0 | LM3: 0 | LN3: 0 | LP3: 0 | LQ3: 0 | LR3: 0 | LS3: 0 | LT3: 0 | LU3: 0 | LV3: 0 | LW3: 0 | LX3: 0 | LZ3: 0 | MA3: 0 | MB3: 0 | MC3: 0 | MD3: 0 | ME3: 0 | MF3: 0 | MG3: 0 | MH3: 0 | MI3: 0 | MJ3: 0 | ML3: NO | MM3: 0 | MN3: 0 | MR3: 0 | MV3: 0 | MZ3: 0 | ND3: 0 | NH3: 0 | NL3: 0 | NP3: 0 | NT3: 0 | NY3: 0 | OC3: 0 | OG3: 0 | OK3: NO | OL3: 0 | OM3: 0 | ON3: 0 | OO3: 0 | OP3: 0 | OQ3: 0 | OR3: 0 | OS3: 0 | OT3: 0 | OU3: 0 | OV3: 0 | OW3: 0 | OX3: 0 | OY3: 0 | OZ3: 0 | PA3: 0 | PB3: 0 | PC3: 0 | PD3: 0 | PE3: 0 | PF3: 0 | PG3: 0 | PH3: 0 | PI3: 0 | PJ3: 0 | PK3: 0 | PL3: 0 | PM3: 0 | PO3: NO | PP3: 0 | PQ3: 0 | PR3: 0 | PS3: 0 | PT3: 0 | PU3: 0 | PV3: 0 | PW3: 0 | PX3: 0 | PY3: 0 | PZ3: 0 | QA3: 0 | QB3: 0 | QD3: 0 | QE3: 0 | QF3: 0 | QG3: 0 | QH3: 0 | QI3: 0 | QJ3: 0 | QK3: 0 | QL3: 0 | QM3: 0 | QN3: 0 | QO3: 0 | QP3: 0 | QQ3: 0 | QR3: 0 | QS3: 0 | QT3: NO | QU3: 0 | QV3: 0 | QW3: 0 | QX3: 0 | QY3: 0 | QZ3: 0 | RA3: 0 | RB3: 0 | RC3: 0 | RD3: 0 | RE3: 0 | RF3: 0 | RG3: 0 | RH3: 0 | RI3: 0 | RJ3: 0 | RK3: 0 | RL3: 0 | RM3: 0 | RN3: 0 | RO3: 0 | RP3: 0 | RQ3: 0 | RR3: 0 | RS3: 0 | RT3: 0 | RU3: 0 | RV3: 0 | RW3: 0 | RX3: 0 | RY3: 0 | RZ3: 0 | SA3: 0 | SB3: 0 | SC3: 0 | SD3: 0 | SE3: 0 | SF3: 0 | SG3: 0 | SH3: 0 | SI3: 0 | SJ3: 0 | SK3: 0 | SL3: 0 | SM3: 0 | SN3: 0 | SP3: 0 | SQ3: 0 | SR3: 0 | SS3: 0 | ST3: 0 | SU3: YES | SV3: 1 | SW3: 6 | SX3: 167 | SY3: 26 | SZ3: 199 | TA3: 0 | TB3: 0 | TC3: 0 | TD3: 0 | TE3: 6 | TF3: 167 | TG3: 26 | TH3: 199 | TI3: 0 | TJ3: 0 | TK3: 0 | TL3: 0 | TM3: 6 | TN3: 167 | TO3: 26 | TP3: 199 | TQ3: 6 | TR3: 0 | TS3: 0 | TT3: 0 | TU3: 0 | TV3: 167 | TW3: 0 | TX3: 0 | TY3: 0 | TZ3: 0 | UA3: 26 | UB3: 0 | UC3: 6 | UD3: 167 | UE3: 26 | UF3: 0 | UG3: 0 | UH3: 72 | UI3: 0 | UJ3: 72 | UK3: 0 | UL3: 0 | UM3: 0 | UN3: 0 | UO3: 0 | UP3: 0 | UQ3: 0 | UR3: 0 | US3: 0 | UT3: 0 | UU3: 0 | UV3: 0 | UW3: 0 | UX3: 0 | UY3: 0 | UZ3: 0 | VA3: 0 | VB3: 0 | VC3: 0 | VD3: 0 | VE3: 0 | VF3: 0 | VG3: 0 | VH3: 0 | VI3: 0 | VJ3: 0 | VK3: 0 | VL3: 0 | VM3: 0 | VN3: 0 | VO3: 0 | VP3: 0 | VR3: 11 | VS3: 1 | VT3: 1 | VU3: 8 | VV3: 0 | VW3: 179 | VX3: 0 | VY3: 6 | VZ3: 206 | WA3: 158 | WB3: 38 | WC3: 1 | WD3: 2 | WE3: 199 | WF3: 9 | WG3: 17 | WH3: 137 | WI3: 36 | WJ3: 0 | WK3: 199 | WL3: 1 | WM3: 17 | WN3: 5 | WO3: 0 | WP3: 0 | WQ3: 0 | WR3: 0 | WS3: 2 | WT3: 89 | WU3: 3 | WV3: 1 | WW3: 34 | WX3: 7 | WY3: 0 | WZ3: 25 | XA3: 1 | XB3: 2 | XC3: 10 | XD3: 7 | XE3: 0 | XF3: 6 | XG3: 1 | XH3: 9 | XI3: 2 | XJ3: 6 | XK3: 167 | XL3: 26 | XM3: 135 | XN3: 135 | XO3: 0 | XP3: 84 | XQ3: 0 | XR3: 0 | XS3: 64 | XT3: 130 | XU3: 0 | XV3: 0 | XW3: 0 | XX3: 2 | XY3: 0 | XZ3: 0 | YA3: 0 | YB3: 24 | YC3: 0 | YD3: 73 | YF3: 0 | YG3: 0 | YH3: 95 | YI3: 0 | YJ3: 6439 | YK3: 2 | YL3: 0 | YM3: 1553 | YN3: 199 | YO3: 224 | YP3: 0 | YQ3: 7 | YR3: 0 | YS3: 2 | YT3: 0 | YU3: 252 | YV3: 0 | YW3: 203 | YX3: 0 | YY3: 26 | YZ3: 0 | ZA3: 13 | ZB3: 0 | ZC3: NO | ZD3: 0 | ZE3: 0 | ZF3: 0 | ZG3: 0 | ZH3: 0 | ZI3: 0 | ZJ3: 0 | ZK3: 0 | ZL3: 0 | ZM3: 0 | ZN3: 0 | ZO3: 0 | ZP3: 0 | ZQ3: 0 | ZR3: 0 | ZS3: 0 | ZT3: 0 | ZU3: 0 | ZV3: 0 | ZW3: 0 | ZY3: 0 | ZZ3: 0 | AAA3: 0 | AAB3: 0 | AAC3: 0 | AAD3: 0 | AAE3: 0 | AAF3: 0 | AAG3: 0 | AAH3: 0 | AAI3: 0 | AAJ3: 0 | AAK3: 0 | AAL3: 0 | AAM3: 0 | AAN3: 0 | AAO3: 0 | AAP3: 0 | AAQ3: 0 | AAR3: 0 | AAS3: 0 | AAT3: 0 | AAU3: 0 | AAV3: 0 | AAW3: 0 | AAX3: 0 | AAY3: 0 | AAZ3: 0 | ABA3: 0 | ABB3: 0 | ABC3: 0 | ABD3: 0 | ABE3: 0 | ABF3: 0 | ABG3: 0 | ABH3: 0 | ABI3: 0 | ABJ3: 0 | ABK3: 0 | ABL3: 0 | ABM3: 0 | ABN3: 0 | ABO3: 0 | ABP3: 0 | ABQ3: 0 | ABR3: 0 | ABS3: 0 | ABT3: 0 | ABU3: 0 | ABV3: 0 | ABW3: 0 | ABX3: 0 | ABY3: 0 | ABZ3: 0 | ACA3: 0 | ACB3: 0 | ACC3: 0 | ACD3: 0 | ACE3: 0 | ACF3: 0 | ACG3: 0 | ACH3: 0 | ACI3: 0 | ACJ3: 0 | ACK3: 0 | ACL3: 0 | ACM3: 0 | ACN3: 0 | ACO3: 0 | ACP3: 0 | ACQ3: 0 | ACR3: 0 | ACS3: 0 | ACT3: 0 | ACU3: 0 | ACV3: 0 | ACW3: 0 | ACX3: 0 | ACY3: 0 | ACZ3: 0 | ADA3: 0 | ADB3: 0 | ADC3: 0 | ADD3: 0 | ADE3: 0 | ADF3: 0 | ADG3: 0 | ADH3: 0 | ADI3: 0 | ADJ3: 0 | ADK3: 0 | ADL3: 0 | ADM3: 0 | ADN3: 0 | ADO3: 0 | ADP3: 0 | ADQ3: 0 | ADR3: 0 | ADS3: 0 | ADT3: 0 | ADU3: 0 | ADV3: 0 | ADW3: 0 | ADX3: 0 | ADY3: 0 | ADZ3: 0 | AEA3: 0 | AEB3: 0 | AEC3: 0 | AED3: 0 | AEE3: 0 | AEF3: 0 | AEG3: 0 | AEH3: 0 | AEI3: 0 | AEJ3: 0 | AEK3: 0 | AEL3: 0 | AEM3: 0 | AEN3: 0 | AEO3: 0 | AEP3: 0 | AEQ3: 0 | AER3: 0 | AES3: 0 | AET3: 0 | AEU3: 0 | AEV3: 0 | AEW3: 0 | AEX3: 0 | AEY3: 0 | AEZ3: 0 | AFA3: 0 | AFB3: 0 | AFC3: 0 | AFD3: 0 | AFE3: 0 | AFF3: 0 | AFG3: 0 | AFI3: 0 | AFJ3: 0 | AFK3: 0 | AFL3: 0 | AFM3: 0 | AFN3: 0 | AFO3: 0 | AFP3: 0 | AFQ3: NO | AFR3: 0 | AFS3: 0 | AFT3: 0 | AFU3: 0 | AFV3: 0 | AFW3: 0 | AFX3: 0 | AFY3: 0 | AFZ3: 0 | AGA3: 0 | AGB3: 0 | AGC3: 0 | AGD3: 0 | AGE3: 0 | AGF3: 0 | AGG3: 0 | AGH3: 0 | AGI3: 0 | AGJ3: 0 | AGK3: 0 | AGL3: 0 | AGM3: 0 | AGN3: 0 | AGO3: 0 | AGP3: 0 | AGQ3: 0 | AGR3: 0 | AGS3: 0 | AGT3: 0 | AGU3: 0 | AGV3: 0 | AGW3: 0 | AGX3: 0 | AGY3: 0 | AGZ3: 0 | AHA3: 0 | AHB3: 0 | AHC3: 0 | AHD3: 0 | AHE3: 0 | AHF3: 0 | AHG3: 0 | AHH3: 0 | AHI3: 0 | AHJ3: 0 | AHK3: 0 | AHL3: 0 | AHM3: 0 | AHN3: 0 | AHO3: 0 | AHP3: NO | AHQ3: 0 | AHR3: 0 | AHS3: 0 | AHT3: 0 | AHU3: 0 | AHV3: 0 | AHW3: 0 | AHX3: 0 | AHY3: 0 | AHZ3: 0 | AIA3: 0 | AIB3: 0 | AIC3: 0 | AID3: 0 | AIE3: 0 | AIF3: 0 | AIG3: 0 | AIH3: 0 | AII3: 0 | AIJ3: 0 | AIK3: 0 | AIL3: 0 | AIM3: 0 | AIN3: 0 | AIO3: 0 | AIQ3: 0 | AIR3: 0 | AIS3: 0 | AIT3: 0 | AIU3: 0 | AIV3: 0 | AIW3: 0 | AIX3: 0 | AIY3: 0 | AIZ3: 0 | AJA3: 0 | AJB3: 0 | AJC3: 0 | AJD3: 0 | AJE3: 0 | AJF3: 0 | AJG3: 0 | AJH3: 0 | AJI3: 0 | AJJ3: 0 | AJK3: 0 | AJL3: 0 | AJM3: 0 | AJN3: 0 | AJO3: 0 | AJP3: 0 | AJQ3: 0 | AJR3: 0 | AJS3: 0 | AJT3: 0 | AJU3: 0 | AJV3: 0 | AJW3: 0 | AJX3: 0 | AJY3: 0 | AJZ3: 0 | AKA3: 0 | AKB3: 0 | AKC3: 0 | AKD3: 0 | AKE3: 0 | AKF3: 0 | AKG3: 0 | AKH3: 0 | AKI3: 0 | AKJ3: 0 | AKK3: 0 | AKL3: 0 | AKM3: 0 | AKN3: 0 | AKO3: 0 | AKP3: 0 | AKQ3: 0 | AKR3: 0 | AKS3: 0 | AKT3: 0 | AKU3: 0 | AKV3: 0 | AKW3: 0 | AKX3: 0 | AKY3: 0 | AKZ3: 0 | ALA3: 0 | ALB3: 0 | ALC3: 0 | ALD3: 0 | ALE3: 0 | ALF3: 0 | ALG3: 0 | ALH3: 0 | ALI3: 0 | ALJ3: 0 | ALK3: 0 | ALL3: 0 | ALM3: 0 | ALN3: 0 | ALO3: 0 | ALP3: 0 | ALQ3: 0 | ALR3: 0 | ALS3: 0 | ALT3: 0 | ALU3: 0 | ALV3: 0 | ALW3: 0 | ALX3: 0 | ALY3: 0 | ALZ3: 0 | AMA3: 0 | AMB3: 0 | AMC3: 0 | AMD3: 0 | AME3: 0 | AMF3: 0 | AMG3: 0 | AMH3: 0 | AMI3: 0 | AMJ3: 0 | AMK3: 0 | AML3: 0 | AMM3: 0 | AMN3: 0 | AMO3: 0 | AMP3: 0 | AMQ3: 0 | AMR3: 0 | AMS3: 0 | AMT3: 0 | AMU3: 0 | AMV3: 0 | AMW3: 0 | AMX3: 0 | AMY3: 0 | AMZ3: 0 | ANA3: 0 | ANB3: 0 | ANC3: 0 | AND3: 0 | ANE3: 0 | ANF3: 0 | ANG3: 0 | ANH3: 0 | ANI3: 0 | ANJ3: 0 | ANK3: 0 | ANL3: 0 | ANM3: 0 | ANN3: 0 | ANO3: 0 | ANP3: 0 | ANQ3: 0 | ANR3: 0 | ANS3: 0 | ANT3: 0 | ANU3: 0 | ANV3: 0 | ANW3: 0 | ANX3: 0 | ANY3: 0 | ANZ3: 0 | AOA3: 0 | AOB3: 0 | AOC3: 0 | AOD3: 0 | AOE3: 0 | AOF3: 0 | AOG3: 0 | AOH3: 0 | AOI3: 0 | AOJ3: 0 | AOK3: 0 | AOL3: 0 | AOM3: 0 | AOO3: 0 | AOP3: 0 | AOQ3: 0 | AOR3: 0 | AOS3: 0 | AOT3: 0 | AOU3: 0 | AOV3: 0 | AOW3: 0 | AOX3: 0 | AOY3: 0 | AOZ3: 0 | APA3: 0 | APB3: 0 | APC3: 0 | APD3: 0 | APE3: 0 | APF3: 0 | APG3: 0 | APH3: 0 | API3: 0 | APJ3: 0 | APK3: 0 | APL3: 0 | APM3: 0 | APN3: 0 | APO3: 0 | APP3: 0 | APQ3: 0 | APR3: 0 | APS3: 0 | APT3: 0 | APU3: 0 | APV3: 0 | APW3: 0 | APX3: 0 | APY3: 0 | APZ3: NO | AQA3: 0 | AQB3: 0 | AQC3: 0 | AQD3: 0 | AQE3: 0 | AQF3: 0 | AQG3: 0 | AQH3: 0 | AQI3: 0 | AQJ3: 0 | AQK3: 0 | AQL3: 0 | AQM3: 0 | AQN3: 0 | AQO3: 0 | AQP3: 0 | AQQ3: 0 | AQR3: 0 | AQS3: 0 | AQT3: 0 | AQU3: 0 | AQV3: 0 | AQW3: 0 | AQX3: 0 | AQY3: 0 | AQZ3: 0 | ARA3: 0 | ARB3: 0 | ARC3: 0 | ARD3: 0 | ARE3: 0 | ARF3: 0 | ARG3: 0 | ARH3: 0 | ARI3: 0 | ARJ3: 0 | ARK3: 0 | ARL3: 0 | ARM3: 0 | ARN3: 0 | ARO3: 0 | ARP3: 0 | ARQ3: 0 | ARR3: 0 | ARS3: 0 | ART3: 0 | ARU3: 0 | ARV3: 0 | ARW3: 0 | ARX3: 0 | ARY3: 0 | ARZ3: 0 | ASA3: 0 | ASB3: 0 | ASC3: 0 | ASD3: 0 | ASE3: 0 | ASF3: 0 | ASG3: 0 | ASH3: 0 | ASI3: 0 | ASJ3: 0 | ASK3: 0 | ASL3: 0 | ASM3: 0 | ASN3: 0 | ASO3: 0 | ASP3: 0 | ASQ3: 0 | ASR3: 0 | ASS3: 0 | AST3: 0 | ASU3: 0 | ASV3: 0 | ASW3: 0 | ASX3: 0 | ASY3: 0 | ASZ3: 0 | ATA3: 0 | ATB3: 0 | ATC3: 0 | ATD3: 0 | ATE3: 0 | ATF3: 0 | ATG3: 0 | ATH3: 0 | ATI3: 0 | ATJ3: 0 | ATK3: 0 | ATL3: 0 | ATM3: 0 | ATN3: 0 | ATO3: 0 | ATP3: 0 | ATQ3: 0 | ATR3: 0 | ATS3: 0 | ATT3: 0 | ATU3: 0 | ATV3: 0 | ATW3: 0 | ATX3: 0 | ATY3: 0 | ATZ3: 0 | AUA3: 0 | AUB3: NO | AUC3: 0 | AUD3: 0 | AUE3: 0 | AUF3: 0 | AUG3: 0 | AUH3: 0 | AUI3: 0 | AUJ3: 0 | AUK3: 0 | AUL3: 0 | AUM3: 0 | AUN3: 0 | AUO3: 0 | AUP3: 0 | AUQ3: 0 | AUR3: 0 | AUS3: 0 | AUT3: 0 | AUU3: 0 | AUV3: 0 | AUW3: 0 | AUX3: 0 | AUY3: 0 | AUZ3: 0 | AVA3: 0 | AVB3: 0 | AVC3: 0 | AVD3: 0 | AVE3: 0 | AVF3: 0 | AVG3: 0 | AVH3: 0 | AVI3: 0 | AVJ3: 0 | AVK3: 0 | AVL3: 0 | AVM3: 0 | AVN3: 0 | AVO3: 0 | AVP3: 0 | AVQ3: 0 | AVR3: 0 | AVS3: 0 | AVT3: 0 | AVU3: 0 | AVV3: 0 | AVW3: 0 | AVX3: 0 | AVY3: 0 | AVZ3: 0 | AWA3: 0 | AWB3: 0 | AWC3: 0 | AWD3: 0 | AWE3: NO | AWF3: 0 | AWG3: 0 | AWH3: 0 | AWI3: 0 | AWJ3: 0 | AWL3: 0 | AWM3: 0 | AWN3: 0 | AWO3: 0 | AWZ3: The Douglas County Task Force on Family Violence has created a Batterers Intervention Program (BIP) Review Committee in collaboration with the Domestic Violence Court. Throughout the process the committee has noted several concerns with the current OARs definitions that seem to be outdated. During the grant period a new BIP was established which provided another option in our community for batterers', as we only had one BIP previously for decades. While the majority of the Task Force feels that choices are important the BIP whom were the only services provider felt that they could not complete and closed their doors a few months later. There is a need for multiple BIPs and for support groups for survivors in our community. Local agencies working with survivors have also requested that Support Group Facilitators report back on the progress of survivors, this presents a challenge for survivors who choose to complete a program with their local DV agency if they decline to sign a release of information which cannot be a condition of services. We are having ongoing conversations with providers about the necessity if any really exists for reporting back.The county Sheriff's Office has experienced a decrease in funding and has shared that they are at capacity and are unable to attend SA Response Team or DV Task Force meetings. This presents as a significant gap in our community as all five other city police departments are developing training and protocols for identifying domestic violence and making a warm referral to the local DV agency. Rather than just providing a Hotline number which leaves the onus in the victim/survivors to reach out for services when they may already be experiencing significant stress/trauma. Without the participation of the of the Sheriffs Office we believe that the coordinated response is at a deficit for victims/survivors living in remote areas of our rural county. As the DV/SA agency we have discussed the challenges with potentially helping a batterer and the victim/survivors file a restraining order. This year, two victims/survivors reported that they felt they could not work with advocates if they were not determining who the abuser/aggressor is in the relationship. We are trying to find balance between being accessible at the courthouse to all people to address barriers to access while supporting survivors. There is a need to determine what would be the best practice or innovative ways to remedy the problem of assisting both parties. | AXB3: 1. Emergency ServicesAnswer 24-hour Hotline and provide in-person crisis responseProvide office hours for walk-in’s and follow-up appointmentsOffer emergency assistance (e.g. door locks, transportation, clothing, food, phones)Provide resources and referrals (e.g. food stamps, housing, counseling, legal aid)Offer safety planning and danger assessmentsProvide peer support/counselingAssistance applying for Crime Victims Compensation 2. Shelter ServicesProvide emergency shelter including hotel stays Provide case managementDirect Assistance e.g. food, clothing, hygiene productsOffer support groups for adults and childrenProvide urgent transportation (e.g. medical appointments, job and housing searches)Pet friendly facilities/homes3. Legal Advocacy Team: Advocates assist victims with filing temporary protective orders including the Family Abuse Prevention Act (FAPA), Elderly Persons and Persons with Disabilities Abuse Prevention Act (EPPDAPA), Sexual Abuse Protection Order (SAPO) and Stalking Protective Orders (SPO)Assist with preparing for and providing emotional support at contested protective order hearings Provide emotional support during trial or family court hearingsOffer other advocacy and referrals to law enforcement, Legal Aid Services of Oregon and Modest Means Attorneys
A4: 40394 | B4: OR40394 | C4: 2020-03-03 | D4: 2019 | E4: Bradley Angle House | F4: Joint-2017-00002 | O4: GI5_OrgType_VicServ_DV | Q4: NO | R4: YES | S4: Alexxis | T4: M | U4: Robinson-Woods | V4: Bradley Angle House | W4: 5432 N Killingsworth | X4: Portland | Y4: OR | Z4: 97217 | AA4: 503-595-9591 | AC4: alexxisw@bradleyangle.org | AD4: NO | AF4: 0 | AG4: 100 | AH4: 0 | AI4: 100 | AJ4: YES | AK4: 1 | AL4: 0 | AM4: 0 | AN4: 0 | AO4: 0 | AP4: 0 | AQ4: 0 | AR4: 0 | AS4: 0 | AT4: 0 | AU4: 0 | AV4: 0 | AW4: 0.16 | AX4: 0 | AY4: 0 | AZ4: 0 | BA4: 0 | BB4: 0 | BC4: 0 | BD4: 0 | BF4: 0 | BG4: 0.16 | BH4: 0 | BI4: 0 | BJ4: 0 | BK4: 0 | BL4: 1 | BM4: 0 | BN4: 0 | BO4: 0 | BP4: 0 | BQ4: 0 | BR4: 0 | BS4: 0 | BT4: 0 | BU4: 0 | BV4: 0 | BW4: 0 | BX4: 0 | BY4: 0 | BZ4: 0 | CA4: 0 | CB4: NO | CC4: 0 | CD4: 0 | CE4: 0 | CF4: 0 | CG4: 0 | CH4: 0 | CI4: 0 | CJ4: 0 | CK4: 0 | CL4: 0 | CM4: 0 | CN4: 0 | CO4: 0 | CP4: 0 | CQ4: 0 | CR4: 0 | CS4: 0 | CT4: 0 | CU4: 0 | CV4: 0 | CW4: 0 | CX4: 0 | CY4: 0 | CZ4: 0 | DA4: 0 | DB4: 0 | DC4: 0 | DD4: 0 | DF4: 0 | DG4: 0 | DH4: 0 | DI4: 0 | DJ4: 0 | DK4: 0 | DL4: 0 | DM4: 0 | DN4: 0 | DO4: 0 | DP4: 0 | DQ4: 0 | DR4: 0 | DS4: 0 | DT4: 0 | DV4: 0 | DW4: 0 | DX4: 0 | DY4: 0 | DZ4: 0 | EA4: 0 | EB4: 0 | EC4: 0 | ED4: 0 | EE4: 0 | EF4: 0 | EG4: 0 | EH4: 0 | EI4: 0 | EJ4: 0 | EK4: 0 | EL4: 0 | EM4: 0 | EN4: 0 | EO4: 0 | EQ4: 0 | ER4: 0 | ES4: 0 | ET4: 0 | EU4: 0 | EV4: 0 | EW4: 0 | EX4: 0 | EY4: 0 | EZ4: 0 | FA4: 0 | FB4: 0 | FC4: 0 | FD4: 0 | FE4: 0 | FF4: 0 | FG4: 0 | FI4: 0 | FJ4: 0 | FK4: 0 | FL4: 0 | FM4: 0 | FO4: NO | FP4: 0 | FQ4: 0 | FR4: 0 | FS4: 0 | FT4: 0 | FU4: 0 | FV4: 0 | FW4: 0 | FX4: 0 | FY4: 0 | FZ4: 0 | GA4: 0 | GB4: 0 | GC4: 0 | GD4: 0 | GF4: 0 | GG4: 0 | GH4: 0 | GI4: 0 | GJ4: 0 | GK4: 0 | GL4: 0 | GM4: 0 | GN4: 0 | GO4: 0 | GP4: 0 | GQ4: 0 | GR4: 0 | GS4: 0 | GT4: 0 | GV4: 0 | GW4: 0 | GX4: 0 | GY4: 0 | GZ4: 0 | HA4: 0 | HB4: 0 | HC4: 0 | HD4: 0 | HE4: 0 | HF4: 0 | HG4: 0 | HH4: 0 | HI4: 0 | HJ4: 0 | HK4: 0 | HL4: 0 | HV4: Daily | HW4: Monthly | ID4: Weekly | IP4: Daily | IQ4: Monthly | IW4: NO | IX4: 0 | IY4: 0 | IZ4: 0 | JA4: 0 | JB4: 0 | JC4: 0 | JD4: 0 | JE4: 0 | JF4: 0 | JG4: 0 | JH4: 0 | JI4: 0 | JJ4: 0 | JK4: 0 | JM4: 0 | JN4: 0 | JO4: 0 | JP4: 0 | JQ4: 0 | JR4: 0 | JS4: 0 | JT4: 0 | JU4: 0 | JV4: 0 | JW4: 0 | JX4: 0 | JY4: 0 | JZ4: 0 | KA4: 0 | KB4: 0 | KC4: 0 | KD4: 0 | KE4: 0 | KF4: 0 | KG4: 0 | KI4: 0 | KJ4: 0 | KK4: 0 | KL4: 0 | KM4: 0 | KN4: 0 | KO4: 0 | KP4: 0 | KQ4: 0 | KR4: 0 | KS4: 0 | KT4: 0 | KU4: 0 | KV4: 0 | KX4: 0 | KY4: 0 | KZ4: 0 | LA4: 0 | LB4: 0 | LC4: 0 | LD4: 0 | LE4: 0 | LF4: 0 | LG4: 0 | LH4: 0 | LI4: 0 | LJ4: 0 | LK4: 0 | LL4: 0 | LM4: 0 | LN4: 0 | LP4: 0 | LQ4: 0 | LR4: 0 | LS4: 0 | LT4: 0 | LU4: 0 | LV4: 0 | LW4: 0 | LX4: 0 | LZ4: 0 | MA4: 0 | MB4: 0 | MC4: 0 | MD4: 0 | ME4: 0 | MF4: 0 | MG4: 0 | MH4: 0 | MI4: 0 | MJ4: 0 | ML4: NO | MM4: 0 | MN4: 0 | MR4: 0 | MV4: 0 | MZ4: 0 | ND4: 0 | NH4: 0 | NL4: 0 | NP4: 0 | NT4: 0 | NY4: 0 | OC4: 0 | OG4: 0 | OK4: NO | OL4: 0 | OM4: 0 | ON4: 0 | OO4: 0 | OP4: 0 | OQ4: 0 | OR4: 0 | OS4: 0 | OT4: 0 | OU4: 0 | OV4: 0 | OW4: 0 | OX4: 0 | OY4: 0 | OZ4: 0 | PA4: 0 | PB4: 0 | PC4: 0 | PD4: 0 | PE4: 0 | PF4: 0 | PG4: 0 | PH4: 0 | PI4: 0 | PJ4: 0 | PK4: 0 | PL4: 0 | PM4: 0 | PO4: NO | PP4: 0 | PQ4: 0 | PR4: 0 | PS4: 0 | PT4: 0 | PU4: 0 | PV4: 0 | PW4: 0 | PX4: 0 | PY4: 0 | PZ4: 0 | QA4: 0 | QB4: 0 | QD4: 0 | QE4: 0 | QF4: 0 | QG4: 0 | QH4: 0 | QI4: 0 | QJ4: 0 | QK4: 0 | QL4: 0 | QM4: 0 | QN4: 0 | QO4: 0 | QP4: 0 | QQ4: 0 | QR4: 0 | QS4: 0 | QT4: NO | QU4: 0 | QV4: 0 | QW4: 0 | QX4: 0 | QY4: 0 | QZ4: 0 | RA4: 0 | RB4: 0 | RC4: 0 | RD4: 0 | RE4: 0 | RF4: 0 | RG4: 0 | RH4: 0 | RI4: 0 | RJ4: 0 | RK4: 0 | RL4: 0 | RM4: 0 | RN4: 0 | RO4: 0 | RP4: 0 | RQ4: 0 | RR4: 0 | RS4: 0 | RT4: 0 | RU4: 0 | RV4: 0 | RW4: 0 | RX4: 0 | RY4: 0 | RZ4: 0 | SA4: 0 | SB4: 0 | SC4: 0 | SD4: 0 | SE4: 0 | SF4: 0 | SG4: 0 | SH4: 0 | SI4: 0 | SJ4: 0 | SK4: 0 | SL4: 0 | SM4: 0 | SN4: 0 | SP4: 0 | SQ4: 0 | SR4: 0 | SS4: 0 | ST4: 0 | SU4: YES | SV4: 1 | SW4: 0 | SX4: 53 | SY4: 0 | SZ4: 53 | TA4: 0 | TB4: 0 | TC4: 0 | TD4: 0 | TE4: 0 | TF4: 53 | TG4: 0 | TH4: 53 | TI4: 0 | TJ4: 0 | TK4: 0 | TL4: 0 | TM4: 0 | TN4: 53 | TO4: 0 | TP4: 53 | TQ4: 0 | TR4: 0 | TS4: 0 | TT4: 0 | TU4: 0 | TV4: 53 | TW4: 0 | TX4: 0 | TY4: 0 | TZ4: 0 | UA4: 0 | UB4: 0 | UC4: 0 | UD4: 53 | UE4: 0 | UF4: 0 | UG4: 0 | UH4: 0 | UI4: 0 | UJ4: 0 | UK4: 0 | UL4: 0 | UM4: 0 | UN4: 0 | UO4: 0 | UP4: 0 | UQ4: 0 | UR4: 0 | US4: 0 | UT4: 0 | UU4: 0 | UV4: 0 | UW4: 0 | UX4: 0 | UY4: 0 | UZ4: 0 | VA4: 0 | VB4: 0 | VC4: 0 | VD4: 0 | VE4: 0 | VF4: 0 | VG4: 0 | VH4: 0 | VI4: 0 | VJ4: 0 | VK4: 0 | VL4: 0 | VM4: 0 | VN4: 0 | VO4: 0 | VP4: 0 | VR4: 1 | VS4: 1 | VT4: 22 | VU4: 2 | VV4: 1 | VW4: 12 | VX4: 14 | VY4: 0 | VZ4: 53 | WA4: 32 | WB4: 16 | WC4: 2 | WD4: 3 | WE4: 53 | WF4: 4 | WG4: 4 | WH4: 44 | WI4: 1 | WJ4: 0 | WK4: 53 | WL4: 0 | WM4: 13 | WN4: 2 | WO4: 0 | WP4: 0 | WQ4: 0 | WR4: 0 | WS4: 0 | WT4: 0 | WU4: 0 | WV4: 0 | WW4: 0 | WX4: 0 | WY4: 0 | WZ4: 0 | XA4: 0 | XB4: 0 | XC4: 0 | XD4: 0 | XE4: 0 | XF4: 0 | XG4: 0 | XH4: 53 | XI4: 0 | XJ4: 0 | XK4: 53 | XL4: 0 | XM4: 0 | XN4: 0 | XO4: 0 | XP4: 0 | XQ4: 0 | XR4: 0 | XS4: 0 | XT4: 0 | XU4: 0 | XV4: 0 | XW4: 0 | XX4: 0 | XY4: 0 | XZ4: 0 | YA4: 0 | YB4: 0 | YC4: 53 | YD4: 53 | YF4: 0 | YG4: 0 | YH4: 0 | YI4: 0 | YJ4: 0 | YK4: 0 | YL4: 0 | YM4: 0 | YN4: 0 | YO4: 0 | YP4: 0 | YQ4: 0 | YR4: 0 | YS4: 0 | YT4: 0 | YU4: 0 | YV4: 0 | YW4: 0 | YX4: 0 | YY4: 0 | YZ4: 0 | ZA4: 0 | ZB4: 0 | ZC4: NO | ZD4: 0 | ZE4: 0 | ZF4: 0 | ZG4: 0 | ZH4: 0 | ZI4: 0 | ZJ4: 0 | ZK4: 0 | ZL4: 0 | ZM4: 0 | ZN4: 0 | ZO4: 0 | ZP4: 0 | ZQ4: 0 | ZR4: 0 | ZS4: 0 | ZT4: 0 | ZU4: 0 | ZV4: 0 | ZW4: 0 | ZY4: 0 | ZZ4: 0 | AAA4: 0 | AAB4: 0 | AAC4: 0 | AAD4: 0 | AAE4: 0 | AAF4: 0 | AAG4: 0 | AAH4: 0 | AAI4: 0 | AAJ4: 0 | AAK4: 0 | AAL4: 0 | AAM4: 0 | AAN4: 0 | AAO4: 0 | AAP4: 0 | AAQ4: 0 | AAR4: 0 | AAS4: 0 | AAT4: 0 | AAU4: 0 | AAV4: 0 | AAW4: 0 | AAX4: 0 | AAY4: 0 | AAZ4: 0 | ABA4: 0 | ABB4: 0 | ABC4: 0 | ABD4: 0 | ABE4: 0 | ABF4: 0 | ABG4: 0 | ABH4: 0 | ABI4: 0 | ABJ4: 0 | ABK4: 0 | ABL4: 0 | ABM4: 0 | ABN4: 0 | ABO4: 0 | ABP4: 0 | ABQ4: 0 | ABR4: 0 | ABS4: 0 | ABT4: 0 | ABU4: 0 | ABV4: 0 | ABW4: 0 | ABX4: 0 | ABY4: 0 | ABZ4: 0 | ACA4: 0 | ACB4: 0 | ACC4: 0 | ACD4: 0 | ACE4: 0 | ACF4: 0 | ACG4: 0 | ACH4: 0 | ACI4: 0 | ACJ4: 0 | ACK4: 0 | ACL4: 0 | ACM4: 0 | ACN4: 0 | ACO4: 0 | ACP4: 0 | ACQ4: 0 | ACR4: 0 | ACS4: 0 | ACT4: 0 | ACU4: 0 | ACV4: 0 | ACW4: 0 | ACX4: 0 | ACY4: 0 | ACZ4: 0 | ADA4: 0 | ADB4: 0 | ADC4: 0 | ADD4: 0 | ADE4: 0 | ADF4: 0 | ADG4: 0 | ADH4: 0 | ADI4: 0 | ADJ4: 0 | ADK4: 0 | ADL4: 0 | ADM4: 0 | ADN4: 0 | ADO4: 0 | ADP4: 0 | ADQ4: 0 | ADR4: 0 | ADS4: 0 | ADT4: 0 | ADU4: 0 | ADV4: 0 | ADW4: 0 | ADX4: 0 | ADY4: 0 | ADZ4: 0 | AEA4: 0 | AEB4: 0 | AEC4: 0 | AED4: 0 | AEE4: 0 | AEF4: 0 | AEG4: 0 | AEH4: 0 | AEI4: 0 | AEJ4: 0 | AEK4: 0 | AEL4: 0 | AEM4: 0 | AEN4: 0 | AEO4: 0 | AEP4: 0 | AEQ4: 0 | AER4: 0 | AES4: 0 | AET4: 0 | AEU4: 0 | AEV4: 0 | AEW4: 0 | AEX4: 0 | AEY4: 0 | AEZ4: 0 | AFA4: 0 | AFB4: 0 | AFC4: 0 | AFD4: 0 | AFE4: 0 | AFF4: 0 | AFG4: 0 | AFI4: 0 | AFJ4: 0 | AFK4: 0 | AFL4: 0 | AFM4: 0 | AFN4: 0 | AFO4: 0 | AFP4: 0 | AFQ4: NO | AFR4: 0 | AFS4: 0 | AFT4: 0 | AFU4: 0 | AFV4: 0 | AFW4: 0 | AFX4: 0 | AFY4: 0 | AFZ4: 0 | AGA4: 0 | AGB4: 0 | AGC4: 0 | AGD4: 0 | AGE4: 0 | AGF4: 0 | AGG4: 0 | AGH4: 0 | AGI4: 0 | AGJ4: 0 | AGK4: 0 | AGL4: 0 | AGM4: 0 | AGN4: 0 | AGO4: 0 | AGP4: 0 | AGQ4: 0 | AGR4: 0 | AGS4: 0 | AGT4: 0 | AGU4: 0 | AGV4: 0 | AGW4: 0 | AGX4: 0 | AGY4: 0 | AGZ4: 0 | AHA4: 0 | AHB4: 0 | AHC4: 0 | AHD4: 0 | AHE4: 0 | AHF4: 0 | AHG4: 0 | AHH4: 0 | AHI4: 0 | AHJ4: 0 | AHK4: 0 | AHL4: 0 | AHM4: 0 | AHN4: 0 | AHO4: 0 | AHP4: NO | AHQ4: 0 | AHR4: 0 | AHS4: 0 | AHT4: 0 | AHU4: 0 | AHV4: 0 | AHW4: 0 | AHX4: 0 | AHY4: 0 | AHZ4: 0 | AIA4: 0 | AIB4: 0 | AIC4: 0 | AID4: 0 | AIE4: 0 | AIF4: 0 | AIG4: 0 | AIH4: 0 | AII4: 0 | AIJ4: 0 | AIK4: 0 | AIL4: 0 | AIM4: 0 | AIN4: 0 | AIO4: 0 | AIQ4: 0 | AIR4: 0 | AIS4: 0 | AIT4: 0 | AIU4: 0 | AIV4: 0 | AIW4: 0 | AIX4: 0 | AIY4: 0 | AIZ4: 0 | AJA4: 0 | AJB4: 0 | AJC4: 0 | AJD4: 0 | AJE4: 0 | AJF4: 0 | AJG4: 0 | AJH4: 0 | AJI4: 0 | AJJ4: 0 | AJK4: 0 | AJL4: 0 | AJM4: 0 | AJN4: 0 | AJO4: 0 | AJP4: 0 | AJQ4: 0 | AJR4: 0 | AJS4: 0 | AJT4: 0 | AJU4: 0 | AJV4: 0 | AJW4: 0 | AJX4: 0 | AJY4: 0 | AJZ4: 0 | AKA4: 0 | AKB4: 0 | AKC4: 0 | AKD4: 0 | AKE4: 0 | AKF4: 0 | AKG4: 0 | AKH4: 0 | AKI4: 0 | AKJ4: 0 | AKK4: 0 | AKL4: 0 | AKM4: 0 | AKN4: 0 | AKO4: 0 | AKP4: 0 | AKQ4: 0 | AKR4: 0 | AKS4: 0 | AKT4: 0 | AKU4: 0 | AKV4: 0 | AKW4: 0 | AKX4: 0 | AKY4: 0 | AKZ4: 0 | ALA4: 0 | ALB4: 0 | ALC4: 0 | ALD4: 0 | ALE4: 0 | ALF4: 0 | ALG4: 0 | ALH4: 0 | ALI4: 0 | ALJ4: 0 | ALK4: 0 | ALL4: 0 | ALM4: 0 | ALN4: 0 | ALO4: 0 | ALP4: 0 | ALQ4: 0 | ALR4: 0 | ALS4: 0 | ALT4: 0 | ALU4: 0 | ALV4: 0 | ALW4: 0 | ALX4: 0 | ALY4: 0 | ALZ4: 0 | AMA4: 0 | AMB4: 0 | AMC4: 0 | AMD4: 0 | AME4: 0 | AMF4: 0 | AMG4: 0 | AMH4: 0 | AMI4: 0 | AMJ4: 0 | AMK4: 0 | AML4: 0 | AMM4: 0 | AMN4: 0 | AMO4: 0 | AMP4: 0 | AMQ4: 0 | AMR4: 0 | AMS4: 0 | AMT4: 0 | AMU4: 0 | AMV4: 0 | AMW4: 0 | AMX4: 0 | AMY4: 0 | AMZ4: 0 | ANA4: 0 | ANB4: 0 | ANC4: 0 | AND4: 0 | ANE4: 0 | ANF4: 0 | ANG4: 0 | ANH4: 0 | ANI4: 0 | ANJ4: 0 | ANK4: 0 | ANL4: 0 | ANM4: 0 | ANN4: 0 | ANO4: 0 | ANP4: 0 | ANQ4: 0 | ANR4: 0 | ANS4: 0 | ANT4: 0 | ANU4: 0 | ANV4: 0 | ANW4: 0 | ANX4: 0 | ANY4: 0 | ANZ4: 0 | AOA4: 0 | AOB4: 0 | AOC4: 0 | AOD4: 0 | AOE4: 0 | AOF4: 0 | AOG4: 0 | AOH4: 0 | AOI4: 0 | AOJ4: 0 | AOK4: 0 | AOL4: 0 | AOM4: 0 | AOO4: 0 | AOP4: 0 | AOQ4: 0 | AOR4: 0 | AOS4: 0 | AOT4: 0 | AOU4: 0 | AOV4: 0 | AOW4: 0 | AOX4: 0 | AOY4: 0 | AOZ4: 0 | APA4: 0 | APB4: 0 | APC4: 0 | APD4: 0 | APE4: 0 | APF4: 0 | APG4: 0 | APH4: 0 | API4: 0 | APJ4: 0 | APK4: 0 | APL4: 0 | APM4: 0 | APN4: 0 | APO4: 0 | APP4: 0 | APQ4: 0 | APR4: 0 | APS4: 0 | APT4: 0 | APU4: 0 | APV4: 0 | APW4: 0 | APX4: 0 | APY4: 0 | APZ4: NO | AQA4: 0 | AQB4: 0 | AQC4: 0 | AQD4: 0 | AQE4: 0 | AQF4: 0 | AQG4: 0 | AQH4: 0 | AQI4: 0 | AQJ4: 0 | AQK4: 0 | AQL4: 0 | AQM4: 0 | AQN4: 0 | AQO4: 0 | AQP4: 0 | AQQ4: 0 | AQR4: 0 | AQS4: 0 | AQT4: 0 | AQU4: 0 | AQV4: 0 | AQW4: 0 | AQX4: 0 | AQY4: 0 | AQZ4: 0 | ARA4: 0 | ARB4: 0 | ARC4: 0 | ARD4: 0 | ARE4: 0 | ARF4: 0 | ARG4: 0 | ARH4: 0 | ARI4: 0 | ARJ4: 0 | ARK4: 0 | ARL4: 0 | ARM4: 0 | ARN4: 0 | ARO4: 0 | ARP4: 0 | ARQ4: 0 | ARR4: 0 | ARS4: 0 | ART4: 0 | ARU4: 0 | ARV4: 0 | ARW4: 0 | ARX4: 0 | ARY4: 0 | ARZ4: 0 | ASA4: 0 | ASB4: 0 | ASC4: 0 | ASD4: 0 | ASE4: 0 | ASF4: 0 | ASG4: 0 | ASH4: 0 | ASI4: 0 | ASJ4: 0 | ASK4: 0 | ASL4: 0 | ASM4: 0 | ASN4: 0 | ASO4: 0 | ASP4: 0 | ASQ4: 0 | ASR4: 0 | ASS4: 0 | AST4: 0 | ASU4: 0 | ASV4: 0 | ASW4: 0 | ASX4: 0 | ASY4: 0 | ASZ4: 0 | ATA4: 0 | ATB4: 0 | ATC4: 0 | ATD4: 0 | ATE4: 0 | ATF4: 0 | ATG4: 0 | ATH4: 0 | ATI4: 0 | ATJ4: 0 | ATK4: 0 | ATL4: 0 | ATM4: 0 | ATN4: 0 | ATO4: 0 | ATP4: 0 | ATQ4: 0 | ATR4: 0 | ATS4: 0 | ATT4: 0 | ATU4: 0 | ATV4: 0 | ATW4: 0 | ATX4: 0 | ATY4: 0 | ATZ4: 0 | AUA4: 0 | AUB4: NO | AUC4: 0 | AUD4: 0 | AUE4: 0 | AUF4: 0 | AUG4: 0 | AUH4: 0 | AUI4: 0 | AUJ4: 0 | AUK4: 0 | AUL4: 0 | AUM4: 0 | AUN4: 0 | AUO4: 0 | AUP4: 0 | AUQ4: 0 | AUR4: 0 | AUS4: 0 | AUT4: 0 | AUU4: 0 | AUV4: 0 | AUW4: 0 | AUX4: 0 | AUY4: 0 | AUZ4: 0 | AVA4: 0 | AVB4: 0 | AVC4: 0 | AVD4: 0 | AVE4: 0 | AVF4: 0 | AVG4: 0 | AVH4: 0 | AVI4: 0 | AVJ4: 0 | AVK4: 0 | AVL4: 0 | AVM4: 0 | AVN4: 0 | AVO4: 0 | AVP4: 0 | AVQ4: 0 | AVR4: 0 | AVS4: 0 | AVT4: 0 | AVU4: 0 | AVV4: 0 | AVW4: 0 | AVX4: 0 | AVY4: 0 | AVZ4: 0 | AWA4: 0 | AWB4: 0 | AWC4: 0 | AWD4: 0 | AWE4: NO | AWF4: 0 | AWG4: 0 | AWH4: 0 | AWI4: 0 | AWJ4: 0 | AWL4: 0 | AWM4: 0 | AWN4: 0 | AWO4: 0 | AWQ4: N/A | AWZ4: The most significant area of remaining need is the need for cultural specific services and funding for these services. Bradley Angle has on the the only designated IPV Programs specifically for LGBTQIA participants. Several services in the area claim to be inclusive but do not specify what that means to them. This city is known for being LGBTQIA friendly but the services are lacking for survivors and culturally specific advocates. | AXB4: STOP program funding provided the funding for additional Emergency Shelter staffing. | AXF4: Nothing to add | AXH4: The data submitted is form our "scattered site" shelter.
A5: 40395 | B5: OR40395 | C5: 2020-02-13 | D5: 2019 | E5: Call to Safety | F5: Joint-2019-CTS-0005 | G5: Joint-2017-CTS-0068 | O5: GI5_OrgType_Community | Q5: NO | R5: NO | S5: Fay | T5: A | U5: Schuler | V5: Call to Safety | W5: P.O. Box 42610 | X5: Portland | Y5: OR | Z5: 97242 | AA5: 503-872-8627 | AB5: 503-234-3749 | AC5: fay@calltosafety.org | AD5: NO | AF5: 100 | AG5: 0 | AH5: 0 | AI5: 100 | AJ5: YES | AK5: 1 | AL5: 0 | AM5: 0 | AN5: 0 | AO5: 0 | AP5: 0 | AQ5: 0 | AR5: 0 | AS5: 0 | AT5: 0 | AU5: 0 | AV5: 0 | AW5: 0 | AX5: 0 | AY5: 0 | AZ5: 0 | BA5: 0.02 | BB5: 0 | BC5: 0.25 | BD5: 0 | BF5: 0 | BG5: 0.27 | BH5: 0 | BI5: 0 | BJ5: 0 | BK5: 0 | BL5: 1 | BM5: 0 | BN5: 0 | BO5: 0 | BP5: 0 | BQ5: 0 | BR5: 0 | BS5: 0 | BT5: 0 | BU5: 0 | BV5: 0 | BW5: 0 | BX5: 0 | BY5: 0 | BZ5: 0 | CA5: 0 | CB5: YES | CC5: 1 | CD5: 2 | CE5: 0 | CF5: 0 | CG5: 0 | CH5: 0 | CI5: 0 | CJ5: 0 | CK5: 0 | CL5: 0 | CM5: 0 | CN5: 0 | CO5: 0 | CP5: 0 | CQ5: 0 | CR5: 0 | CS5: 0 | CT5: 0 | CU5: 0 | CV5: 0 | CW5: 0 | CX5: 0 | CY5: 0 | CZ5: 0 | DA5: 0 | DB5: 0 | DC5: 0 | DD5: 22 | DF5: 0 | DG5: 22 | DH5: 0 | DI5: 0 | DJ5: 0 | DK5: 0 | DL5: 0 | DM5: 0 | DN5: 0 | DO5: 0 | DP5: 1 | DQ5: 0 | DR5: 0 | DS5: 0 | DT5: 0 | DV5: 0 | DW5: 0 | DX5: 0 | DY5: 0 | DZ5: 0 | EA5: 0 | EB5: 0 | EC5: 0 | ED5: 0 | EE5: 0 | EF5: 0 | EG5: 0 | EH5: 0 | EI5: 0 | EJ5: 0 | EK5: 0 | EL5: 0 | EM5: 0 | EN5: 0 | EO5: 0 | EQ5: 0 | ER5: 0 | ES5: 0 | ET5: 0 | EU5: 0 | EV5: 0 | EW5: 0 | EX5: 0 | EY5: 1 | EZ5: 0 | FA5: 0 | FB5: 0 | FC5: 0 | FD5: 0 | FE5: 0 | FF5: 0 | FG5: 0 | FI5: 1 | FJ5: 0 | FK5: 0 | FL5: 0 | FM5: 0 | FO5: NO | FP5: 0 | FQ5: 0 | FR5: 0 | FS5: 0 | FT5: 0 | FU5: 0 | FV5: 0 | FW5: 0 | FX5: 0 | FY5: 0 | FZ5: 0 | GA5: 0 | GB5: 0 | GC5: 0 | GD5: 0 | GF5: 0 | GG5: 0 | GH5: 0 | GI5: 0 | GJ5: 0 | GK5: 0 | GL5: 0 | GM5: 0 | GN5: 0 | GO5: 0 | GP5: 0 | GQ5: 0 | GR5: 0 | GS5: 0 | GT5: 0 | GV5: 0 | GW5: 0 | GX5: 0 | GY5: 0 | GZ5: 0 | HA5: 0 | HB5: 0 | HC5: 0 | HD5: 0 | HE5: 0 | HF5: 0 | HG5: 0 | HH5: 0 | HI5: 0 | HJ5: 0 | HK5: 0 | HL5: 0 | HN5: Monthly | HP5: Monthly | HR5: Weekly | HT5: Daily | HV5: Daily | HX5: Weekly | HZ5: Weekly | IB5: Daily | ID5: Daily | IF5: Daily | IH5: Daily | IJ5: Weekly | IL5: Monthly | IN5: Daily | IP5: Daily | IR5: Weekly | IW5: NO | IX5: 0 | IY5: 0 | IZ5: 0 | JA5: 0 | JB5: 0 | JC5: 0 | JD5: 0 | JE5: 0 | JF5: 0 | JG5: 0 | JH5: 0 | JI5: 0 | JJ5: 0 | JK5: 0 | JM5: 0 | JN5: 0 | JO5: 0 | JP5: 0 | JQ5: 0 | JR5: 0 | JS5: 0 | JT5: 0 | JU5: 0 | JV5: 0 | JW5: 0 | JX5: 0 | JY5: 0 | JZ5: 0 | KA5: 0 | KB5: 0 | KC5: 0 | KD5: 0 | KE5: 0 | KF5: 0 | KG5: 0 | KI5: 0 | KJ5: 0 | KK5: 0 | KL5: 0 | KM5: 0 | KN5: 0 | KO5: 0 | KP5: 0 | KQ5: 0 | KR5: 0 | KS5: 0 | KT5: 0 | KU5: 0 | KV5: 0 | KX5: 0 | KY5: 0 | KZ5: 0 | LA5: 0 | LB5: 0 | LC5: 0 | LD5: 0 | LE5: 0 | LF5: 0 | LG5: 0 | LH5: 0 | LI5: 0 | LJ5: 0 | LK5: 0 | LL5: 0 | LM5: 0 | LN5: 0 | LP5: 0 | LQ5: 0 | LR5: 0 | LS5: 0 | LT5: 0 | LU5: 0 | LV5: 0 | LW5: 0 | LX5: 0 | LZ5: 0 | MA5: 0 | MB5: 0 | MC5: 0 | MD5: 0 | ME5: 0 | MF5: 0 | MG5: 0 | MH5: 0 | MI5: 0 | MJ5: 0 | ML5: NO | MM5: 0 | MN5: 0 | MR5: 0 | MV5: 0 | MZ5: 0 | ND5: 0 | NH5: 0 | NL5: 0 | NP5: 0 | NT5: 0 | NY5: 0 | OC5: 0 | OG5: 0 | OK5: NO | OL5: 0 | OM5: 0 | ON5: 0 | OO5: 0 | OP5: 0 | OQ5: 0 | OR5: 0 | OS5: 0 | OT5: 0 | OU5: 0 | OV5: 0 | OW5: 0 | OX5: 0 | OY5: 0 | OZ5: 0 | PA5: 0 | PB5: 0 | PC5: 0 | PD5: 0 | PE5: 0 | PF5: 0 | PG5: 0 | PH5: 0 | PI5: 0 | PJ5: 0 | PK5: 0 | PL5: 0 | PM5: 0 | PO5: NO | PP5: 0 | PQ5: 0 | PR5: 0 | PS5: 0 | PT5: 0 | PU5: 0 | PV5: 0 | PW5: 0 | PX5: 0 | PY5: 0 | PZ5: 0 | QA5: 0 | QB5: 0 | QD5: 0 | QE5: 0 | QF5: 0 | QG5: 0 | QH5: 0 | QI5: 0 | QJ5: 0 | QK5: 0 | QL5: 0 | QM5: 0 | QN5: 0 | QO5: 0 | QP5: 0 | QQ5: 0 | QR5: 0 | QS5: 0 | QT5: NO | QU5: 0 | QV5: 0 | QW5: 0 | QX5: 0 | QY5: 0 | QZ5: 0 | RA5: 0 | RB5: 0 | RC5: 0 | RD5: 0 | RE5: 0 | RF5: 0 | RG5: 0 | RH5: 0 | RI5: 0 | RJ5: 0 | RK5: 0 | RL5: 0 | RM5: 0 | RN5: 0 | RO5: 0 | RP5: 0 | RQ5: 0 | RR5: 0 | RS5: 0 | RT5: 0 | RU5: 0 | RV5: 0 | RW5: 0 | RX5: 0 | RY5: 0 | RZ5: 0 | SA5: 0 | SB5: 0 | SC5: 0 | SD5: 0 | SE5: 0 | SF5: 0 | SG5: 0 | SH5: 0 | SI5: 0 | SJ5: 0 | SK5: 0 | SL5: 0 | SM5: 0 | SN5: 0 | SP5: 0 | SQ5: 0 | SR5: 0 | SS5: 0 | ST5: 0 | SU5: YES | SV5: 1 | SW5: 83 | SX5: 0 | SY5: 0 | SZ5: 83 | TA5: 0 | TB5: 0 | TC5: 0 | TD5: 0 | TE5: 83 | TF5: 0 | TG5: 0 | TH5: 83 | TI5: 0 | TJ5: 0 | TK5: 0 | TL5: 0 | TM5: 83 | TN5: 0 | TO5: 0 | TP5: 83 | TQ5: 83 | TR5: 0 | TS5: 0 | TT5: 0 | TU5: 0 | TV5: 0 | TW5: 0 | TX5: 0 | TY5: 0 | TZ5: 0 | UA5: 0 | UB5: 0 | UC5: 83 | UD5: 0 | UE5: 0 | UF5: 0 | UG5: 0 | UH5: 0 | UI5: 0 | UJ5: 0 | UK5: 0 | UL5: 0 | UM5: 0 | UN5: 0 | UO5: 0 | UP5: 0 | UQ5: 0 | UR5: 0 | US5: 0 | UT5: 0 | UU5: 0 | UV5: 0 | UW5: 0 | UX5: 0 | UY5: 0 | UZ5: 0 | VA5: 0 | VB5: 0 | VC5: 0 | VD5: 0 | VE5: 0 | VF5: 0 | VG5: 0 | VH5: 0 | VI5: 0 | VJ5: 0 | VK5: 0 | VL5: 0 | VM5: 0 | VN5: 0 | VO5: 0 | VP5: 0 | VR5: 4 | VS5: 2 | VT5: 14 | VU5: 6 | VV5: 3 | VW5: 23 | VX5: 31 | VY5: 0 | VZ5: 83 | WA5: 73 | WB5: 9 | WC5: 1 | WD5: 0 | WE5: 83 | WF5: 5 | WG5: 16 | WH5: 42 | WI5: 20 | WJ5: 0 | WK5: 83 | WL5: 0 | WM5: 15 | WN5: 0 | WO5: 0 | WP5: 2 | WQ5: 0 | WR5: 0 | WS5: 0 | WT5: 0 | WU5: 0 | WV5: 5 | WW5: 0 | WX5: 0 | WY5: 4 | WZ5: 0 | XA5: 0 | XB5: 22 | XC5: 0 | XD5: 0 | XE5: 10 | XF5: 0 | XG5: 42 | XH5: 0 | XI5: 0 | XJ5: 83 | XK5: 0 | XL5: 0 | XM5: 0 | XN5: 0 | XO5: 10 | XP5: 10 | XQ5: 0 | XR5: 0 | XS5: 70 | XT5: 70 | XU5: 0 | XV5: 0 | XW5: 3 | XX5: 3 | XY5: 0 | XZ5: 0 | YA5: 0 | YB5: 0 | YC5: 0 | YD5: 0 | YF5: 0 | YG5: 0 | YH5: 0 | YI5: 0 | YJ5: 0 | YK5: 0 | YL5: 0 | YM5: 0 | YN5: 442 | YO5: 442 | YP5: 0 | YQ5: 0 | YR5: 0 | YS5: 0 | YT5: 0 | YU5: 0 | YV5: 0 | YW5: 0 | YX5: 0 | YY5: 0 | YZ5: 0 | ZA5: 0 | ZB5: 0 | ZC5: NO | ZD5: 0 | ZE5: 0 | ZF5: 0 | ZG5: 0 | ZH5: 0 | ZI5: 0 | ZJ5: 0 | ZK5: 0 | ZL5: 0 | ZM5: 0 | ZN5: 0 | ZO5: 0 | ZP5: 0 | ZQ5: 0 | ZR5: 0 | ZS5: 0 | ZT5: 0 | ZU5: 0 | ZV5: 0 | ZW5: 0 | ZY5: 0 | ZZ5: 0 | AAA5: 0 | AAB5: 0 | AAC5: 0 | AAD5: 0 | AAE5: 0 | AAF5: 0 | AAG5: 0 | AAH5: 0 | AAI5: 0 | AAJ5: 0 | AAK5: 0 | AAL5: 0 | AAM5: 0 | AAN5: 0 | AAO5: 0 | AAP5: 0 | AAQ5: 0 | AAR5: 0 | AAS5: 0 | AAT5: 0 | AAU5: 0 | AAV5: 0 | AAW5: 0 | AAX5: 0 | AAY5: 0 | AAZ5: 0 | ABA5: 0 | ABB5: 0 | ABC5: 0 | ABD5: 0 | ABE5: 0 | ABF5: 0 | ABG5: 0 | ABH5: 0 | ABI5: 0 | ABJ5: 0 | ABK5: 0 | ABL5: 0 | ABM5: 0 | ABN5: 0 | ABO5: 0 | ABP5: 0 | ABQ5: 0 | ABR5: 0 | ABS5: 0 | ABT5: 0 | ABU5: 0 | ABV5: 0 | ABW5: 0 | ABX5: 0 | ABY5: 0 | ABZ5: 0 | ACA5: 0 | ACB5: 0 | ACC5: 0 | ACD5: 0 | ACE5: 0 | ACF5: 0 | ACG5: 0 | ACH5: 0 | ACI5: 0 | ACJ5: 0 | ACK5: 0 | ACL5: 0 | ACM5: 0 | ACN5: 0 | ACO5: 0 | ACP5: 0 | ACQ5: 0 | ACR5: 0 | ACS5: 0 | ACT5: 0 | ACU5: 0 | ACV5: 0 | ACW5: 0 | ACX5: 0 | ACY5: 0 | ACZ5: 0 | ADA5: 0 | ADB5: 0 | ADC5: 0 | ADD5: 0 | ADE5: 0 | ADF5: 0 | ADG5: 0 | ADH5: 0 | ADI5: 0 | ADJ5: 0 | ADK5: 0 | ADL5: 0 | ADM5: 0 | ADN5: 0 | ADO5: 0 | ADP5: 0 | ADQ5: 0 | ADR5: 0 | ADS5: 0 | ADT5: 0 | ADU5: 0 | ADV5: 0 | ADW5: 0 | ADX5: 0 | ADY5: 0 | ADZ5: 0 | AEA5: 0 | AEB5: 0 | AEC5: 0 | AED5: 0 | AEE5: 0 | AEF5: 0 | AEG5: 0 | AEH5: 0 | AEI5: 0 | AEJ5: 0 | AEK5: 0 | AEL5: 0 | AEM5: 0 | AEN5: 0 | AEO5: 0 | AEP5: 0 | AEQ5: 0 | AER5: 0 | AES5: 0 | AET5: 0 | AEU5: 0 | AEV5: 0 | AEW5: 0 | AEX5: 0 | AEY5: 0 | AEZ5: 0 | AFA5: 0 | AFB5: 0 | AFC5: 0 | AFD5: 0 | AFE5: 0 | AFF5: 0 | AFG5: 0 | AFI5: 0 | AFJ5: 0 | AFK5: 0 | AFL5: 0 | AFM5: 0 | AFN5: 0 | AFO5: 0 | AFP5: 0 | AFQ5: NO | AFR5: 0 | AFS5: 0 | AFT5: 0 | AFU5: 0 | AFV5: 0 | AFW5: 0 | AFX5: 0 | AFY5: 0 | AFZ5: 0 | AGA5: 0 | AGB5: 0 | AGC5: 0 | AGD5: 0 | AGE5: 0 | AGF5: 0 | AGG5: 0 | AGH5: 0 | AGI5: 0 | AGJ5: 0 | AGK5: 0 | AGL5: 0 | AGM5: 0 | AGN5: 0 | AGO5: 0 | AGP5: 0 | AGQ5: 0 | AGR5: 0 | AGS5: 0 | AGT5: 0 | AGU5: 0 | AGV5: 0 | AGW5: 0 | AGX5: 0 | AGY5: 0 | AGZ5: 0 | AHA5: 0 | AHB5: 0 | AHC5: 0 | AHD5: 0 | AHE5: 0 | AHF5: 0 | AHG5: 0 | AHH5: 0 | AHI5: 0 | AHJ5: 0 | AHK5: 0 | AHL5: 0 | AHM5: 0 | AHN5: 0 | AHO5: 0 | AHP5: NO | AHQ5: 0 | AHR5: 0 | AHS5: 0 | AHT5: 0 | AHU5: 0 | AHV5: 0 | AHW5: 0 | AHX5: 0 | AHY5: 0 | AHZ5: 0 | AIA5: 0 | AIB5: 0 | AIC5: 0 | AID5: 0 | AIE5: 0 | AIF5: 0 | AIG5: 0 | AIH5: 0 | AII5: 0 | AIJ5: 0 | AIK5: 0 | AIL5: 0 | AIM5: 0 | AIN5: 0 | AIO5: 0 | AIQ5: 0 | AIR5: 0 | AIS5: 0 | AIT5: 0 | AIU5: 0 | AIV5: 0 | AIW5: 0 | AIX5: 0 | AIY5: 0 | AIZ5: 0 | AJA5: 0 | AJB5: 0 | AJC5: 0 | AJD5: 0 | AJE5: 0 | AJF5: 0 | AJG5: 0 | AJH5: 0 | AJI5: 0 | AJJ5: 0 | AJK5: 0 | AJL5: 0 | AJM5: 0 | AJN5: 0 | AJO5: 0 | AJP5: 0 | AJQ5: 0 | AJR5: 0 | AJS5: 0 | AJT5: 0 | AJU5: 0 | AJV5: 0 | AJW5: 0 | AJX5: 0 | AJY5: 0 | AJZ5: 0 | AKA5: 0 | AKB5: 0 | AKC5: 0 | AKD5: 0 | AKE5: 0 | AKF5: 0 | AKG5: 0 | AKH5: 0 | AKI5: 0 | AKJ5: 0 | AKK5: 0 | AKL5: 0 | AKM5: 0 | AKN5: 0 | AKO5: 0 | AKP5: 0 | AKQ5: 0 | AKR5: 0 | AKS5: 0 | AKT5: 0 | AKU5: 0 | AKV5: 0 | AKW5: 0 | AKX5: 0 | AKY5: 0 | AKZ5: 0 | ALA5: 0 | ALB5: 0 | ALC5: 0 | ALD5: 0 | ALE5: 0 | ALF5: 0 | ALG5: 0 | ALH5: 0 | ALI5: 0 | ALJ5: 0 | ALK5: 0 | ALL5: 0 | ALM5: 0 | ALN5: 0 | ALO5: 0 | ALP5: 0 | ALQ5: 0 | ALR5: 0 | ALS5: 0 | ALT5: 0 | ALU5: 0 | ALV5: 0 | ALW5: 0 | ALX5: 0 | ALY5: 0 | ALZ5: 0 | AMA5: 0 | AMB5: 0 | AMC5: 0 | AMD5: 0 | AME5: 0 | AMF5: 0 | AMG5: 0 | AMH5: 0 | AMI5: 0 | AMJ5: 0 | AMK5: 0 | AML5: 0 | AMM5: 0 | AMN5: 0 | AMO5: 0 | AMP5: 0 | AMQ5: 0 | AMR5: 0 | AMS5: 0 | AMT5: 0 | AMU5: 0 | AMV5: 0 | AMW5: 0 | AMX5: 0 | AMY5: 0 | AMZ5: 0 | ANA5: 0 | ANB5: 0 | ANC5: 0 | AND5: 0 | ANE5: 0 | ANF5: 0 | ANG5: 0 | ANH5: 0 | ANI5: 0 | ANJ5: 0 | ANK5: 0 | ANL5: 0 | ANM5: 0 | ANN5: 0 | ANO5: 0 | ANP5: 0 | ANQ5: 0 | ANR5: 0 | ANS5: 0 | ANT5: 0 | ANU5: 0 | ANV5: 0 | ANW5: 0 | ANX5: 0 | ANY5: 0 | ANZ5: 0 | AOA5: 0 | AOB5: 0 | AOC5: 0 | AOD5: 0 | AOE5: 0 | AOF5: 0 | AOG5: 0 | AOH5: 0 | AOI5: 0 | AOJ5: 0 | AOK5: 0 | AOL5: 0 | AOM5: 0 | AOO5: 0 | AOP5: 0 | AOQ5: 0 | AOR5: 0 | AOS5: 0 | AOT5: 0 | AOU5: 0 | AOV5: 0 | AOW5: 0 | AOX5: 0 | AOY5: 0 | AOZ5: 0 | APA5: 0 | APB5: 0 | APC5: 0 | APD5: 0 | APE5: 0 | APF5: 0 | APG5: 0 | APH5: 0 | API5: 0 | APJ5: 0 | APK5: 0 | APL5: 0 | APM5: 0 | APN5: 0 | APO5: 0 | APP5: 0 | APQ5: 0 | APR5: 0 | APS5: 0 | APT5: 0 | APU5: 0 | APV5: 0 | APW5: 0 | APX5: 0 | APY5: 0 | APZ5: NO | AQA5: 0 | AQB5: 0 | AQC5: 0 | AQD5: 0 | AQE5: 0 | AQF5: 0 | AQG5: 0 | AQH5: 0 | AQI5: 0 | AQJ5: 0 | AQK5: 0 | AQL5: 0 | AQM5: 0 | AQN5: 0 | AQO5: 0 | AQP5: 0 | AQQ5: 0 | AQR5: 0 | AQS5: 0 | AQT5: 0 | AQU5: 0 | AQV5: 0 | AQW5: 0 | AQX5: 0 | AQY5: 0 | AQZ5: 0 | ARA5: 0 | ARB5: 0 | ARC5: 0 | ARD5: 0 | ARE5: 0 | ARF5: 0 | ARG5: 0 | ARH5: 0 | ARI5: 0 | ARJ5: 0 | ARK5: 0 | ARL5: 0 | ARM5: 0 | ARN5: 0 | ARO5: 0 | ARP5: 0 | ARQ5: 0 | ARR5: 0 | ARS5: 0 | ART5: 0 | ARU5: 0 | ARV5: 0 | ARW5: 0 | ARX5: 0 | ARY5: 0 | ARZ5: 0 | ASA5: 0 | ASB5: 0 | ASC5: 0 | ASD5: 0 | ASE5: 0 | ASF5: 0 | ASG5: 0 | ASH5: 0 | ASI5: 0 | ASJ5: 0 | ASK5: 0 | ASL5: 0 | ASM5: 0 | ASN5: 0 | ASO5: 0 | ASP5: 0 | ASQ5: 0 | ASR5: 0 | ASS5: 0 | AST5: 0 | ASU5: 0 | ASV5: 0 | ASW5: 0 | ASX5: 0 | ASY5: 0 | ASZ5: 0 | ATA5: 0 | ATB5: 0 | ATC5: 0 | ATD5: 0 | ATE5: 0 | ATF5: 0 | ATG5: 0 | ATH5: 0 | ATI5: 0 | ATJ5: 0 | ATK5: 0 | ATL5: 0 | ATM5: 0 | ATN5: 0 | ATO5: 0 | ATP5: 0 | ATQ5: 0 | ATR5: 0 | ATS5: 0 | ATT5: 0 | ATU5: 0 | ATV5: 0 | ATW5: 0 | ATX5: 0 | ATY5: 0 | ATZ5: 0 | AUA5: 0 | AUB5: NO | AUC5: 0 | AUD5: 0 | AUE5: 0 | AUF5: 0 | AUG5: 0 | AUH5: 0 | AUI5: 0 | AUJ5: 0 | AUK5: 0 | AUL5: 0 | AUM5: 0 | AUN5: 0 | AUO5: 0 | AUP5: 0 | AUQ5: 0 | AUR5: 0 | AUS5: 0 | AUT5: 0 | AUU5: 0 | AUV5: 0 | AUW5: 0 | AUX5: 0 | AUY5: 0 | AUZ5: 0 | AVA5: 0 | AVB5: 0 | AVC5: 0 | AVD5: 0 | AVE5: 0 | AVF5: 0 | AVG5: 0 | AVH5: 0 | AVI5: 0 | AVJ5: 0 | AVK5: 0 | AVL5: 0 | AVM5: 0 | AVN5: 0 | AVO5: 0 | AVP5: 0 | AVQ5: 0 | AVR5: 0 | AVS5: 0 | AVT5: 0 | AVU5: 0 | AVV5: 0 | AVW5: 0 | AVX5: 0 | AVY5: 0 | AVZ5: 0 | AWA5: 0 | AWB5: 0 | AWC5: 0 | AWD5: 0 | AWE5: NO | AWF5: 0 | AWG5: 0 | AWH5: 0 | AWI5: 0 | AWJ5: 0 | AWL5: 0 | AWM5: 0 | AWN5: 0 | AWO5: 0 | AWP5: This VAWA funded Advocate facilitated training sessions for our Basic Advocacy training during our Fall 2019 session under Safety, Systems and Lethality. This training helped 20 new volunteers complete training to assist callers on the crisis line. | AWT5: Please note the staff completing the VAWA reporting has changed and we have corrected our reporting and understanding based on a conversation with our grant monitor. These numbers for 7/1/19-12/31/19 might differ from previous reporting due to corrective | AWZ5: Recognizing the majority of survivors do not report domestic or sexual violence due to the systematic failure of the systems which are supposed to offer survivor's justice and safety we have dire need to center survivors in our community response. We have invested heavily in system based response yet primarily survivors are accessing confidential community based services and when they ask for what they need; shelter access, flexible financial assistance, 24/7 crisis response, permanent subsidized housing, and reprieve from child welfare involvement which prevent survivors from accessing law enforcement for fear their children will be removed we are unable to respond. Investing in confidential community based services which are more frequently sought out by survivors and creating a justice system response which centers survivors needs and input are vital to improving outcomes for survivors. Asking questions about who are we leaving out when we center criminal justice as a community based response? Survivors of color, immigrant survivors, those previously engaged with child welfare, gang involved families, etc. do not safely or primarily engage with the criminal justice system and yet they are at the highest risk for multiple victimizations. | AXB5: Call to Safety receives limited VAWA Sexual Assault funds which provides .25 fte for our weekend swing shift Crisis Line Specialist. This position has remained stable and with increased knowledge and expertise of the VAWA funded Crisis Line Specialist to support sexual violence survivors. This VAWA funded staff covers shifts which have the highest volume of dispatch for our 24/7 in person hospital response for sexual violence survivors. The VAWA funded staff also covered a regular overnight back up shift for in person hospital response over the last reporting period providing expertise and stability for our 24/7 coverage and survivors. Having consistent coverage for in person hospital response has been a huge success of the VAWA funded SA services ensuring we have staff available who has the training and skills to be there survivors during a time of immediate crisis and trauma. VAWA funding is limited so it requires additional funding to cover this direct service staff complicating reporting, budgeting and service delivery.
A6: 40396 | B6: OR40396 | C6: 2020-03-03 | D6: 2019 | E6: Canyon Crisis and Resource Center | F6: 2017 CanyonCRC-00004 | O6: GI5_OrgType_VicServ_Dual | Q6: NO | R6: NO | S6: Cherie | T6: L | U6: Girod | V6: Canyon Crisis and Resource Center | W6: P.O.Box 500/ 825 N.W. San | X6: Mill City | Y6: OR | Z6: 97360 | AA6: 503-897-2327 | AB6: 503-897-5060 | AC6: ccrisisc@gmail.com | AD6: NO | AF6: 3 | AG6: 94 | AH6: 3 | AI6: 100 | AJ6: YES | AK6: 1 | AL6: 0 | AM6: 0 | AN6: 0 | AO6: 0 | AP6: 0 | AQ6: 0 | AR6: 0 | AS6: 0 | AT6: 0 | AU6: 0 | AV6: 0 | AW6: 0.08 | AX6: 0 | AY6: 0 | AZ6: 0 | BA6: 0 | BB6: 0 | BC6: 0.12 | BD6: 0 | BF6: 0 | BG6: 0.2 | BH6: 0 | BI6: 0 | BJ6: 0 | BK6: 0 | BL6: 1 | BM6: 0 | BN6: 0 | BO6: 0 | BP6: 0 | BQ6: 1 | BR6: 1 | BS6: 0 | BT6: 0 | BU6: 0 | BV6: 0 | BW6: 0 | BX6: 0 | BY6: 0 | BZ6: 1 | CA6: 1 | CB6: NO | CC6: 0 | CD6: 0 | CE6: 0 | CF6: 0 | CG6: 0 | CH6: 0 | CI6: 0 | CJ6: 0 | CK6: 0 | CL6: 0 | CM6: 0 | CN6: 0 | CO6: 0 | CP6: 0 | CQ6: 0 | CR6: 0 | CS6: 0 | CT6: 0 | CU6: 0 | CV6: 0 | CW6: 0 | CX6: 0 | CY6: 0 | CZ6: 0 | DA6: 0 | DB6: 0 | DC6: 0 | DD6: 0 | DF6: 0 | DG6: 0 | DH6: 0 | DI6: 0 | DJ6: 0 | DK6: 0 | DL6: 0 | DM6: 0 | DN6: 0 | DO6: 0 | DP6: 0 | DQ6: 0 | DR6: 0 | DS6: 0 | DT6: 0 | DV6: 0 | DW6: 0 | DX6: 0 | DY6: 0 | DZ6: 0 | EA6: 0 | EB6: 0 | EC6: 0 | ED6: 0 | EE6: 0 | EF6: 0 | EG6: 0 | EH6: 0 | EI6: 0 | EJ6: 0 | EK6: 0 | EL6: 0 | EM6: 0 | EN6: 0 | EO6: 0 | EQ6: 0 | ER6: 0 | ES6: 0 | ET6: 0 | EU6: 0 | EV6: 0 | EW6: 0 | EX6: 0 | EY6: 0 | EZ6: 0 | FA6: 0 | FB6: 0 | FC6: 0 | FD6: 0 | FE6: 0 | FF6: 0 | FG6: 0 | FI6: 0 | FJ6: 0 | FK6: 0 | FL6: 0 | FM6: 0 | FO6: NO | FP6: 0 | FQ6: 0 | FR6: 0 | FS6: 0 | FT6: 0 | FU6: 0 | FV6: 0 | FW6: 0 | FX6: 0 | FY6: 0 | FZ6: 0 | GA6: 0 | GB6: 0 | GC6: 0 | GD6: 0 | GF6: 0 | GG6: 0 | GH6: 0 | GI6: 0 | GJ6: 0 | GK6: 0 | GL6: 0 | GM6: 0 | GN6: 0 | GO6: 0 | GP6: 0 | GQ6: 0 | GR6: 0 | GS6: 0 | GT6: 0 | GV6: 0 | GW6: 0 | GX6: 0 | GY6: 0 | GZ6: 0 | HA6: 0 | HB6: 0 | HC6: 0 | HD6: 0 | HE6: 0 | HF6: 0 | HG6: 0 | HH6: 0 | HI6: 0 | HJ6: 0 | HK6: 0 | HL6: 0 | HN6: Weekly | HO6: Monthly | HP6: Monthly | HR6: Weekly | HT6: Weekly | HV6: Daily | HX6: Daily | HY6: Monthly | HZ6: Daily | IA6: Monthly | IB6: Weekly | IC6: Monthly | ID6: Weekly | IE6: Monthly | IF6: Daily | IG6: Monthly | IH6: Weekly | IN6: Weekly | IO6: Monthly | IP6: Daily | IQ6: Monthly | IW6: NO | IX6: 0 | IY6: 0 | IZ6: 0 | JA6: 0 | JB6: 0 | JC6: 0 | JD6: 0 | JE6: 0 | JF6: 0 | JG6: 0 | JH6: 0 | JI6: 0 | JJ6: 0 | JK6: 0 | JM6: 0 | JN6: 0 | JO6: 0 | JP6: 0 | JQ6: 0 | JR6: 0 | JS6: 0 | JT6: 0 | JU6: 0 | JV6: 0 | JW6: 0 | JX6: 0 | JY6: 0 | JZ6: 0 | KA6: 0 | KB6: 0 | KC6: 0 | KD6: 0 | KE6: 0 | KF6: 0 | KG6: 0 | KI6: 0 | KJ6: 0 | KK6: 0 | KL6: 0 | KM6: 0 | KN6: 0 | KO6: 0 | KP6: 0 | KQ6: 0 | KR6: 0 | KS6: 0 | KT6: 0 | KU6: 0 | KV6: 0 | KX6: 0 | KY6: 0 | KZ6: 0 | LA6: 0 | LB6: 0 | LC6: 0 | LD6: 0 | LE6: 0 | LF6: 0 | LG6: 0 | LH6: 0 | LI6: 0 | LJ6: 0 | LK6: 0 | LL6: 0 | LM6: 0 | LN6: 0 | LP6: 0 | LQ6: 0 | LR6: 0 | LS6: 0 | LT6: 0 | LU6: 0 | LV6: 0 | LW6: 0 | LX6: 0 | LZ6: 0 | MA6: 0 | MB6: 0 | MC6: 0 | MD6: 0 | ME6: 0 | MF6: 0 | MG6: 0 | MH6: 0 | MI6: 0 | MJ6: 0 | ML6: NO | MM6: 0 | MN6: 0 | MR6: 0 | MV6: 0 | MZ6: 0 | ND6: 0 | NH6: 0 | NL6: 0 | NP6: 0 | NT6: 0 | NY6: 0 | OC6: 0 | OG6: 0 | OK6: NO | OL6: 0 | OM6: 0 | ON6: 0 | OO6: 0 | OP6: 0 | OQ6: 0 | OR6: 0 | OS6: 0 | OT6: 0 | OU6: 0 | OV6: 0 | OW6: 0 | OX6: 0 | OY6: 0 | OZ6: 0 | PA6: 0 | PB6: 0 | PC6: 0 | PD6: 0 | PE6: 0 | PF6: 0 | PG6: 0 | PH6: 0 | PI6: 0 | PJ6: 0 | PK6: 0 | PL6: 0 | PM6: 0 | PO6: NO | PP6: 0 | PQ6: 0 | PR6: 0 | PS6: 0 | PT6: 0 | PU6: 0 | PV6: 0 | PW6: 0 | PX6: 0 | PY6: 0 | PZ6: 0 | QA6: 0 | QB6: 0 | QD6: 0 | QE6: 0 | QF6: 0 | QG6: 0 | QH6: 0 | QI6: 0 | QJ6: 0 | QK6: 0 | QL6: 0 | QM6: 0 | QN6: 0 | QO6: 0 | QP6: 0 | QQ6: 0 | QR6: 0 | QS6: 0 | QT6: NO | QU6: 0 | QV6: 0 | QW6: 0 | QX6: 0 | QY6: 0 | QZ6: 0 | RA6: 0 | RB6: 0 | RC6: 0 | RD6: 0 | RE6: 0 | RF6: 0 | RG6: 0 | RH6: 0 | RI6: 0 | RJ6: 0 | RK6: 0 | RL6: 0 | RM6: 0 | RN6: 0 | RO6: 0 | RP6: 0 | RQ6: 0 | RR6: 0 | RS6: 0 | RT6: 0 | RU6: 0 | RV6: 0 | RW6: 0 | RX6: 0 | RY6: 0 | RZ6: 0 | SA6: 0 | SB6: 0 | SC6: 0 | SD6: 0 | SE6: 0 | SF6: 0 | SG6: 0 | SH6: 0 | SI6: 0 | SJ6: 0 | SK6: 0 | SL6: 0 | SM6: 0 | SN6: 0 | SP6: 0 | SQ6: 0 | SR6: 0 | SS6: 0 | ST6: 0 | SU6: YES | SV6: 1 | SW6: 5 | SX6: 268 | SY6: 8 | SZ6: 281 | TA6: 0 | TB6: 0 | TC6: 0 | TD6: 0 | TE6: 5 | TF6: 268 | TG6: 8 | TH6: 281 | TI6: 0 | TJ6: 0 | TK6: 0 | TL6: 0 | TM6: 5 | TN6: 268 | TO6: 8 | TP6: 281 | TQ6: 5 | TR6: 0 | TS6: 0 | TT6: 0 | TU6: 0 | TV6: 268 | TW6: 0 | TX6: 0 | TY6: 0 | TZ6: 0 | UA6: 8 | UB6: 1 | UC6: 5 | UD6: 268 | UE6: 8 | UF6: 1 | UG6: 17 | UH6: 166 | UI6: 22 | UJ6: 205 | UK6: 0 | UL6: 0 | UM6: 0 | UN6: 0 | UO6: 0 | UP6: 0 | UQ6: 0 | UR6: 0 | US6: 0 | UT6: 0 | UU6: 0 | UV6: 0 | UW6: 0 | UX6: 0 | UY6: 0 | UZ6: 0 | VA6: 0 | VB6: 0 | VC6: 0 | VD6: 0 | VE6: 0 | VF6: 0 | VG6: 0 | VH6: 0 | VI6: 0 | VJ6: 0 | VK6: 0 | VL6: 0 | VM6: 0 | VN6: 0 | VO6: 0 | VP6: 0 | VR6: 28 | VS6: 0 | VT6: 4 | VU6: 17 | VV6: 26 | VW6: 158 | VX6: 48 | VY6: 0 | VZ6: 281 | WA6: 266 | WB6: 6 | WC6: 9 | WD6: 0 | WE6: 281 | WF6: 0 | WG6: 121 | WH6: 135 | WI6: 18 | WJ6: 7 | WK6: 281 | WL6: 9 | WM6: 143 | WN6: 4 | WO6: 2 | WP6: 0 | WQ6: 0 | WR6: 281 | WS6: 3 | WT6: 190 | WU6: 7 | WV6: 0 | WW6: 5 | WX6: 0 | WY6: 1 | WZ6: 62 | XA6: 1 | XB6: 0 | XC6: 0 | XD6: 0 | XE6: 0 | XF6: 0 | XG6: 1 | XH6: 11 | XI6: 0 | XJ6: 5 | XK6: 268 | XL6: 8 | XM6: 72 | XN6: 105 | XO6: 230 | XP6: 312 | XQ6: 55 | XR6: 77 | XS6: 281 | XT6: 344 | XU6: 0 | XV6: 0 | XW6: 72 | XX6: 76 | XY6: 0 | XZ6: 0 | YA6: 88 | YB6: 115 | YC6: 281 | YD6: 381 | YF6: 0 | YG6: 0 | YH6: 1 | YI6: 1 | YJ6: 2 | YK6: 0 | YL6: 0 | YM6: 0 | YN6: 281 | YO6: 389 | YP6: 144 | YQ6: 2 | YR6: 2 | YS6: 2 | YT6: 2 | YU6: 72 | YV6: 59 | YW6: 63 | YX6: 59 | YY6: 5 | YZ6: 2 | ZA6: 2 | ZB6: 2 | ZC6: NO | ZD6: 0 | ZE6: 0 | ZF6: 0 | ZG6: 0 | ZH6: 0 | ZI6: 0 | ZJ6: 0 | ZK6: 0 | ZL6: 0 | ZM6: 0 | ZN6: 0 | ZO6: 0 | ZP6: 0 | ZQ6: 0 | ZR6: 0 | ZS6: 0 | ZT6: 0 | ZU6: 0 | ZV6: 0 | ZW6: 0 | ZY6: 0 | ZZ6: 0 | AAA6: 0 | AAB6: 0 | AAC6: 0 | AAD6: 0 | AAE6: 0 | AAF6: 0 | AAG6: 0 | AAH6: 0 | AAI6: 0 | AAJ6: 0 | AAK6: 0 | AAL6: 0 | AAM6: 0 | AAN6: 0 | AAO6: 0 | AAP6: 0 | AAQ6: 0 | AAR6: 0 | AAS6: 0 | AAT6: 0 | AAU6: 0 | AAV6: 0 | AAW6: 0 | AAX6: 0 | AAY6: 0 | AAZ6: 0 | ABA6: 0 | ABB6: 0 | ABC6: 0 | ABD6: 0 | ABE6: 0 | ABF6: 0 | ABG6: 0 | ABH6: 0 | ABI6: 0 | ABJ6: 0 | ABK6: 0 | ABL6: 0 | ABM6: 0 | ABN6: 0 | ABO6: 0 | ABP6: 0 | ABQ6: 0 | ABR6: 0 | ABS6: 0 | ABT6: 0 | ABU6: 0 | ABV6: 0 | ABW6: 0 | ABX6: 0 | ABY6: 0 | ABZ6: 0 | ACA6: 0 | ACB6: 0 | ACC6: 0 | ACD6: 0 | ACE6: 0 | ACF6: 0 | ACG6: 0 | ACH6: 0 | ACI6: 0 | ACJ6: 0 | ACK6: 0 | ACL6: 0 | ACM6: 0 | ACN6: 0 | ACO6: 0 | ACP6: 0 | ACQ6: 0 | ACR6: 0 | ACS6: 0 | ACT6: 0 | ACU6: 0 | ACV6: 0 | ACW6: 0 | ACX6: 0 | ACY6: 0 | ACZ6: 0 | ADA6: 0 | ADB6: 0 | ADC6: 0 | ADD6: 0 | ADE6: 0 | ADF6: 0 | ADG6: 0 | ADH6: 0 | ADI6: 0 | ADJ6: 0 | ADK6: 0 | ADL6: 0 | ADM6: 0 | ADN6: 0 | ADO6: 0 | ADP6: 0 | ADQ6: 0 | ADR6: 0 | ADS6: 0 | ADT6: 0 | ADU6: 0 | ADV6: 0 | ADW6: 0 | ADX6: 0 | ADY6: 0 | ADZ6: 0 | AEA6: 0 | AEB6: 0 | AEC6: 0 | AED6: 0 | AEE6: 0 | AEF6: 0 | AEG6: 0 | AEH6: 0 | AEI6: 0 | AEJ6: 0 | AEK6: 0 | AEL6: 0 | AEM6: 0 | AEN6: 0 | AEO6: 0 | AEP6: 0 | AEQ6: 0 | AER6: 0 | AES6: 0 | AET6: 0 | AEU6: 0 | AEV6: 0 | AEW6: 0 | AEX6: 0 | AEY6: 0 | AEZ6: 0 | AFA6: 0 | AFB6: 0 | AFC6: 0 | AFD6: 0 | AFE6: 0 | AFF6: 0 | AFG6: 0 | AFI6: 0 | AFJ6: 0 | AFK6: 0 | AFL6: 0 | AFM6: 0 | AFN6: 0 | AFO6: 0 | AFP6: 0 | AFQ6: NO | AFR6: 0 | AFS6: 0 | AFT6: 0 | AFU6: 0 | AFV6: 0 | AFW6: 0 | AFX6: 0 | AFY6: 0 | AFZ6: 0 | AGA6: 0 | AGB6: 0 | AGC6: 0 | AGD6: 0 | AGE6: 0 | AGF6: 0 | AGG6: 0 | AGH6: 0 | AGI6: 0 | AGJ6: 0 | AGK6: 0 | AGL6: 0 | AGM6: 0 | AGN6: 0 | AGO6: 0 | AGP6: 0 | AGQ6: 0 | AGR6: 0 | AGS6: 0 | AGT6: 0 | AGU6: 0 | AGV6: 0 | AGW6: 0 | AGX6: 0 | AGY6: 0 | AGZ6: 0 | AHA6: 0 | AHB6: 0 | AHC6: 0 | AHD6: 0 | AHE6: 0 | AHF6: 0 | AHG6: 0 | AHH6: 0 | AHI6: 0 | AHJ6: 0 | AHK6: 0 | AHL6: 0 | AHM6: 0 | AHN6: 0 | AHO6: 0 | AHP6: NO | AHQ6: 0 | AHR6: 0 | AHS6: 0 | AHT6: 0 | AHU6: 0 | AHV6: 0 | AHW6: 0 | AHX6: 0 | AHY6: 0 | AHZ6: 0 | AIA6: 0 | AIB6: 0 | AIC6: 0 | AID6: 0 | AIE6: 0 | AIF6: 0 | AIG6: 0 | AIH6: 0 | AII6: 0 | AIJ6: 0 | AIK6: 0 | AIL6: 0 | AIM6: 0 | AIN6: 0 | AIO6: 0 | AIQ6: 0 | AIR6: 0 | AIS6: 0 | AIT6: 0 | AIU6: 0 | AIV6: 0 | AIW6: 0 | AIX6: 0 | AIY6: 0 | AIZ6: 0 | AJA6: 0 | AJB6: 0 | AJC6: 0 | AJD6: 0 | AJE6: 0 | AJF6: 0 | AJG6: 0 | AJH6: 0 | AJI6: 0 | AJJ6: 0 | AJK6: 0 | AJL6: 0 | AJM6: 0 | AJN6: 0 | AJO6: 0 | AJP6: 0 | AJQ6: 0 | AJR6: 0 | AJS6: 0 | AJT6: 0 | AJU6: 0 | AJV6: 0 | AJW6: 0 | AJX6: 0 | AJY6: 0 | AJZ6: 0 | AKA6: 0 | AKB6: 0 | AKC6: 0 | AKD6: 0 | AKE6: 0 | AKF6: 0 | AKG6: 0 | AKH6: 0 | AKI6: 0 | AKJ6: 0 | AKK6: 0 | AKL6: 0 | AKM6: 0 | AKN6: 0 | AKO6: 0 | AKP6: 0 | AKQ6: 0 | AKR6: 0 | AKS6: 0 | AKT6: 0 | AKU6: 0 | AKV6: 0 | AKW6: 0 | AKX6: 0 | AKY6: 0 | AKZ6: 0 | ALA6: 0 | ALB6: 0 | ALC6: 0 | ALD6: 0 | ALE6: 0 | ALF6: 0 | ALG6: 0 | ALH6: 0 | ALI6: 0 | ALJ6: 0 | ALK6: 0 | ALL6: 0 | ALM6: 0 | ALN6: 0 | ALO6: 0 | ALP6: 0 | ALQ6: 0 | ALR6: 0 | ALS6: 0 | ALT6: 0 | ALU6: 0 | ALV6: 0 | ALW6: 0 | ALX6: 0 | ALY6: 0 | ALZ6: 0 | AMA6: 0 | AMB6: 0 | AMC6: 0 | AMD6: 0 | AME6: 0 | AMF6: 0 | AMG6: 0 | AMH6: 0 | AMI6: 0 | AMJ6: 0 | AMK6: 0 | AML6: 0 | AMM6: 0 | AMN6: 0 | AMO6: 0 | AMP6: 0 | AMQ6: 0 | AMR6: 0 | AMS6: 0 | AMT6: 0 | AMU6: 0 | AMV6: 0 | AMW6: 0 | AMX6: 0 | AMY6: 0 | AMZ6: 0 | ANA6: 0 | ANB6: 0 | ANC6: 0 | AND6: 0 | ANE6: 0 | ANF6: 0 | ANG6: 0 | ANH6: 0 | ANI6: 0 | ANJ6: 0 | ANK6: 0 | ANL6: 0 | ANM6: 0 | ANN6: 0 | ANO6: 0 | ANP6: 0 | ANQ6: 0 | ANR6: 0 | ANS6: 0 | ANT6: 0 | ANU6: 0 | ANV6: 0 | ANW6: 0 | ANX6: 0 | ANY6: 0 | ANZ6: 0 | AOA6: 0 | AOB6: 0 | AOC6: 0 | AOD6: 0 | AOE6: 0 | AOF6: 0 | AOG6: 0 | AOH6: 0 | AOI6: 0 | AOJ6: 0 | AOK6: 0 | AOL6: 0 | AOM6: 0 | AOO6: 0 | AOP6: 0 | AOQ6: 0 | AOR6: 0 | AOS6: 0 | AOT6: 0 | AOU6: 0 | AOV6: 0 | AOW6: 0 | AOX6: 0 | AOY6: 0 | AOZ6: 0 | APA6: 0 | APB6: 0 | APC6: 0 | APD6: 0 | APE6: 0 | APF6: 0 | APG6: 0 | APH6: 0 | API6: 0 | APJ6: 0 | APK6: 0 | APL6: 0 | APM6: 0 | APN6: 0 | APO6: 0 | APP6: 0 | APQ6: 0 | APR6: 0 | APS6: 0 | APT6: 0 | APU6: 0 | APV6: 0 | APW6: 0 | APX6: 0 | APY6: 0 | APZ6: NO | AQA6: 0 | AQB6: 0 | AQC6: 0 | AQD6: 0 | AQE6: 0 | AQF6: 0 | AQG6: 0 | AQH6: 0 | AQI6: 0 | AQJ6: 0 | AQK6: 0 | AQL6: 0 | AQM6: 0 | AQN6: 0 | AQO6: 0 | AQP6: 0 | AQQ6: 0 | AQR6: 0 | AQS6: 0 | AQT6: 0 | AQU6: 0 | AQV6: 0 | AQW6: 0 | AQX6: 0 | AQY6: 0 | AQZ6: 0 | ARA6: 0 | ARB6: 0 | ARC6: 0 | ARD6: 0 | ARE6: 0 | ARF6: 0 | ARG6: 0 | ARH6: 0 | ARI6: 0 | ARJ6: 0 | ARK6: 0 | ARL6: 0 | ARM6: 0 | ARN6: 0 | ARO6: 0 | ARP6: 0 | ARQ6: 0 | ARR6: 0 | ARS6: 0 | ART6: 0 | ARU6: 0 | ARV6: 0 | ARW6: 0 | ARX6: 0 | ARY6: 0 | ARZ6: 0 | ASA6: 0 | ASB6: 0 | ASC6: 0 | ASD6: 0 | ASE6: 0 | ASF6: 0 | ASG6: 0 | ASH6: 0 | ASI6: 0 | ASJ6: 0 | ASK6: 0 | ASL6: 0 | ASM6: 0 | ASN6: 0 | ASO6: 0 | ASP6: 0 | ASQ6: 0 | ASR6: 0 | ASS6: 0 | AST6: 0 | ASU6: 0 | ASV6: 0 | ASW6: 0 | ASX6: 0 | ASY6: 0 | ASZ6: 0 | ATA6: 0 | ATB6: 0 | ATC6: 0 | ATD6: 0 | ATE6: 0 | ATF6: 0 | ATG6: 0 | ATH6: 0 | ATI6: 0 | ATJ6: 0 | ATK6: 0 | ATL6: 0 | ATM6: 0 | ATN6: 0 | ATO6: 0 | ATP6: 0 | ATQ6: 0 | ATR6: 0 | ATS6: 0 | ATT6: 0 | ATU6: 0 | ATV6: 0 | ATW6: 0 | ATX6: 0 | ATY6: 0 | ATZ6: 0 | AUA6: 0 | AUB6: NO | AUC6: 0 | AUD6: 0 | AUE6: 0 | AUF6: 0 | AUG6: 0 | AUH6: 0 | AUI6: 0 | AUJ6: 0 | AUK6: 0 | AUL6: 0 | AUM6: 0 | AUN6: 0 | AUO6: 0 | AUP6: 0 | AUQ6: 0 | AUR6: 0 | AUS6: 0 | AUT6: 0 | AUU6: 0 | AUV6: 0 | AUW6: 0 | AUX6: 0 | AUY6: 0 | AUZ6: 0 | AVA6: 0 | AVB6: 0 | AVC6: 0 | AVD6: 0 | AVE6: 0 | AVF6: 0 | AVG6: 0 | AVH6: 0 | AVI6: 0 | AVJ6: 0 | AVK6: 0 | AVL6: 0 | AVM6: 0 | AVN6: 0 | AVO6: 0 | AVP6: 0 | AVQ6: 0 | AVR6: 0 | AVS6: 0 | AVT6: 0 | AVU6: 0 | AVV6: 0 | AVW6: 0 | AVX6: 0 | AVY6: 0 | AVZ6: 0 | AWA6: 0 | AWB6: 0 | AWC6: 0 | AWD6: 0 | AWE6: NO | AWF6: 0 | AWG6: 0 | AWH6: 0 | AWI6: 0 | AWJ6: 0 | AWL6: 0 | AWM6: 0 | AWN6: 0 | AWO6: 0 | AWT6: #34 lists 143 w/disabilities. Many of the victims/survivors served have cognitive disabilities along with other disabilities. Many of the survivors/victims served are also homeless teens. | AWZ6: Still the need for improved Law enforcement access in this rural isolated area would be very helpful too many of the abusers know to well when the Sheriffs will be in the local area and how long they will be there. Due to the rural remoteness of the area and the timbered and moutainous areas are perfect for those wanting to stay away from Law Enforcement to go and hide out therefore, it makes it very hard to serve them with Restraining Orders,or if they have a Warrent for their arrest to even be found. Linn County Sheriffs are only in the Santiam Canyon twelve hours a day and only one lives within the Santiam Canyon area. Many of those being victimized are homeless, have mostly lost custody of their children, live very dangerous lives that put them vulnerable to all sorts of victimizations and abuse and very hard to gain their confidence and trust but with our Outreach programs and services staff and volunteers have been able to gain trust with many within that community. Another main and distressing issues are the lack and unwillingness of other County and social services from outside the rural local area to come into the Santiam Canyon to provide one on one inperson programs and services that would provide the main programs and services these vunerable survivors need. Everything that these women need is any where from 76 miles away one way at the least 36 miles away and that is just going to Salem for Marion County services and for those needing to go to Albany -Linn County is even further and more problemmatic,getting to these needed services is not easy because most do not have a drivers license or a way for transportation to those services and most likely they have to go several days during the week so many do not follow through or finish the needed programs that are required to get the help they need. Lack of affordable housing is a major issue in the local area,even if a survivor has housing there is very little to rent or the rent is very high and they cannot afford it, some of the women have found if they have a felony most landlords will not rent to them no matter if they have a job and can prove they can pay the rent without issues. Crisis Center staff has been able to engage the entire Santiam Canyon to discuss the dangerous lives many of these women and their families are living with their and how do we address this situation?The local School Superintendent was very adamant about the children and the conditions in which they live,Church pastors all up and down the Canyon are involved, business owners, chambers, local organizations, individuals, the local medical center,school personnel all have become involved in helping to provide support and safety for survivors and their families. United Way of the Mid-Willamette Valley, Stayton Hospital,Recovery Outreach, Arches Domestic Violence/Homeless and Community Action agency are now helping to provide and are partners with on site programs and services for survivors and their famililes in the Santiam Canyon. | AXB6: Without VAWA funds staff would not be able to provide outreach to women, children, gay-lesbian,and transgendered that are homeless or too afraid to come into the Crisis Center for support servieces, program information, information and referral into other needed services for their own and families safety. Help getting into shelter services for themselves and pets that they will not leave and are not available in this rural area. Many do not want to leave the area they are familiar with or are afraid to go into a situation they do not know, as well as the lack of available of shelter beds, are told that if they have a son of a particular age that he cannot stay with them and a mother will not be seperated from her children no matter their age, or will not take their pets. Many of the women have drug/alcohol issues as well as diagnosed mental health issues that have gone untreated that has also led to their homelessness and abusive lifestyles. Crisis Center staff, advocates and board of directors have focused on this dangerous problem that many women and their families are experiencing in this local area of the Santiam Canyon and Upper SantiamCanyon, the Crisis Center has mobile outreach staff and advocates that have come together in the past months and have organized themselves into helping these families with safety planning information/referrals,found shelter services, helped getting them signed up for housing,helped them with job search, informational brochures of programs and services provided by the Crisis Center, clothing, food,transportation to the Crisis Center and other areas of need as long as it is safe for all concerned. Local Churches allowed women and their children to come in and spend some nights in a "warming" area and then help them get to other needed services, as well as provide laundry services. One group is also providing transportation for survivors that need drug and alcohol counseling to their meetings that are out of the local area.The local medical center and hospital has partnered on several situations of domestic violence and sexual assault,where services were needed. Stayton Hospital, the Crisis Center, Local Police and emervency room staff have provided information/education program open to the entire local communities on Sexual Human Trafficking to bring awareness to this growing issue especially in remote locations of the homeless camps where criminals do not think they are being watched. The Crisis Center has been working with ARCHES Homeless program for domestic violence of women that do not qualify for DV funds and helping them to get rent assistance or set up on Housing Programs. All of these efforts have helped the Crisis Center to get these homeless survivors signed up into other programs and services to help them make better and significant choices in not returning to a life of violence and hopelessness. Through this co-ordination of programs and services and local volunteers many more have been contacted and received help than would normally be helped. Crisis Center staff, advocates and board of directors have been able to provide services to many more women and children that are homeless due to victimization and abuse,or lack of financial resources and have become homeless and then ended up living in unsafe abusive lifestyles.
A7: 40397 | B7: OR40397 | C7: 2020-01-31 | D7: 2019 | E7: Center Against Rape and Domestic Violence | F7: 2019-CARDV-00007 | I7: 2017-Joint-00005 | O7: GI5_OrgType_VicServ_Dual | Q7: NO | R7: NO | S7: Letetia | U7: Wilson | V7: Center Against Rape and Domestic Violence | W7: P.O. Box 914 | X7: Corvallis | Y7: OR | Z7: 97339 | AA7: (541) 758-0219 | AB7: (541) 758-8458 | AC7: letetia.wilson@cardv.org | AD7: NO | AF7: 5 | AG7: 82 | AH7: 13 | AI7: 100 | AJ7: YES | AK7: 1 | AL7: 0 | AM7: 0 | AN7: 0 | AO7: 0 | AP7: 0 | AQ7: 0 | AR7: 0 | AS7: 0.41 | AT7: 0 | AU7: 0 | AV7: 0 | AW7: 0 | AX7: 0 | AY7: 0 | AZ7: 0 | BA7: 0 | BB7: 0 | BC7: 0 | BD7: 0 | BF7: 0 | BG7: 0.41 | BH7: 0 | BI7: 0 | BJ7: 0 | BK7: 0 | BL7: 1 | BM7: 0 | BN7: 0 | BO7: 0 | BP7: 0 | BQ7: 0 | BR7: 0 | BS7: 0 | BT7: 0 | BU7: 0 | BV7: 0 | BW7: 0 | BX7: 0 | BY7: 0 | BZ7: 0 | CA7: 0 | CB7: NO | CC7: 0 | CD7: 0 | CE7: 0 | CF7: 0 | CG7: 0 | CH7: 0 | CI7: 0 | CJ7: 0 | CK7: 0 | CL7: 0 | CM7: 0 | CN7: 0 | CO7: 0 | CP7: 0 | CQ7: 0 | CR7: 0 | CS7: 0 | CT7: 0 | CU7: 0 | CV7: 0 | CW7: 0 | CX7: 0 | CY7: 0 | CZ7: 0 | DA7: 0 | DB7: 0 | DC7: 0 | DD7: 0 | DF7: 0 | DG7: 0 | DH7: 0 | DI7: 0 | DJ7: 0 | DK7: 0 | DL7: 0 | DM7: 0 | DN7: 0 | DO7: 0 | DP7: 0 | DQ7: 0 | DR7: 0 | DS7: 0 | DT7: 0 | DV7: 0 | DW7: 0 | DX7: 0 | DY7: 0 | DZ7: 0 | EA7: 0 | EB7: 0 | EC7: 0 | ED7: 0 | EE7: 0 | EF7: 0 | EG7: 0 | EH7: 0 | EI7: 0 | EJ7: 0 | EK7: 0 | EL7: 0 | EM7: 0 | EN7: 0 | EO7: 0 | EQ7: 0 | ER7: 0 | ES7: 0 | ET7: 0 | EU7: 0 | EV7: 0 | EW7: 0 | EX7: 0 | EY7: 0 | EZ7: 0 | FA7: 0 | FB7: 0 | FC7: 0 | FD7: 0 | FE7: 0 | FF7: 0 | FG7: 0 | FI7: 0 | FJ7: 0 | FK7: 0 | FL7: 0 | FM7: 0 | FO7: NO | FP7: 0 | FQ7: 0 | FR7: 0 | FS7: 0 | FT7: 0 | FU7: 0 | FV7: 0 | FW7: 0 | FX7: 0 | FY7: 0 | FZ7: 0 | GA7: 0 | GB7: 0 | GC7: 0 | GD7: 0 | GF7: 0 | GG7: 0 | GH7: 0 | GI7: 0 | GJ7: 0 | GK7: 0 | GL7: 0 | GM7: 0 | GN7: 0 | GO7: 0 | GP7: 0 | GQ7: 0 | GR7: 0 | GS7: 0 | GT7: 0 | GV7: 0 | GW7: 0 | GX7: 0 | GY7: 0 | GZ7: 0 | HA7: 0 | HB7: 0 | HC7: 0 | HD7: 0 | HE7: 0 | HF7: 0 | HG7: 0 | HH7: 0 | HI7: 0 | HJ7: 0 | HK7: 0 | HL7: 0 | HR7: Weekly | HS7: Monthly | HT7: Daily | HU7: Monthly | HV7: Daily | HX7: Weekly | HY7: Monthly | HZ7: Daily | IA7: Quarterly | IB7: Daily | IC7: Quarterly | ID7: Daily | IF7: Daily | IG7: Monthly | IH7: Daily | II7: Quarterly | IJ7: Weekly | IK7: Monthly | IN7: Monthly | IP7: Daily | IQ7: Quarterly | IW7: NO | IX7: 0 | IY7: 0 | IZ7: 0 | JA7: 0 | JB7: 0 | JC7: 0 | JD7: 0 | JE7: 0 | JF7: 0 | JG7: 0 | JH7: 0 | JI7: 0 | JJ7: 0 | JK7: 0 | JM7: 0 | JN7: 0 | JO7: 0 | JP7: 0 | JQ7: 0 | JR7: 0 | JS7: 0 | JT7: 0 | JU7: 0 | JV7: 0 | JW7: 0 | JX7: 0 | JY7: 0 | JZ7: 0 | KA7: 0 | KB7: 0 | KC7: 0 | KD7: 0 | KE7: 0 | KF7: 0 | KG7: 0 | KI7: 0 | KJ7: 0 | KK7: 0 | KL7: 0 | KM7: 0 | KN7: 0 | KO7: 0 | KP7: 0 | KQ7: 0 | KR7: 0 | KS7: 0 | KT7: 0 | KU7: 0 | KV7: 0 | KX7: 0 | KY7: 0 | KZ7: 0 | LA7: 0 | LB7: 0 | LC7: 0 | LD7: 0 | LE7: 0 | LF7: 0 | LG7: 0 | LH7: 0 | LI7: 0 | LJ7: 0 | LK7: 0 | LL7: 0 | LM7: 0 | LN7: 0 | LP7: 0 | LQ7: 0 | LR7: 0 | LS7: 0 | LT7: 0 | LU7: 0 | LV7: 0 | LW7: 0 | LX7: 0 | LZ7: 0 | MA7: 0 | MB7: 0 | MC7: 0 | MD7: 0 | ME7: 0 | MF7: 0 | MG7: 0 | MH7: 0 | MI7: 0 | MJ7: 0 | ML7: NO | MM7: 0 | MN7: 0 | MR7: 0 | MV7: 0 | MZ7: 0 | ND7: 0 | NH7: 0 | NL7: 0 | NP7: 0 | NT7: 0 | NY7: 0 | OC7: 0 | OG7: 0 | OK7: NO | OL7: 0 | OM7: 0 | ON7: 0 | OO7: 0 | OP7: 0 | OQ7: 0 | OR7: 0 | OS7: 0 | OT7: 0 | OU7: 0 | OV7: 0 | OW7: 0 | OX7: 0 | OY7: 0 | OZ7: 0 | PA7: 0 | PB7: 0 | PC7: 0 | PD7: 0 | PE7: 0 | PF7: 0 | PG7: 0 | PH7: 0 | PI7: 0 | PJ7: 0 | PK7: 0 | PL7: 0 | PM7: 0 | PO7: NO | PP7: 0 | PQ7: 0 | PR7: 0 | PS7: 0 | PT7: 0 | PU7: 0 | PV7: 0 | PW7: 0 | PX7: 0 | PY7: 0 | PZ7: 0 | QA7: 0 | QB7: 0 | QD7: 0 | QE7: 0 | QF7: 0 | QG7: 0 | QH7: 0 | QI7: 0 | QJ7: 0 | QK7: 0 | QL7: 0 | QM7: 0 | QN7: 0 | QO7: 0 | QP7: 0 | QQ7: 0 | QR7: 0 | QS7: 0 | QT7: NO | QU7: 0 | QV7: 0 | QW7: 0 | QX7: 0 | QY7: 0 | QZ7: 0 | RA7: 0 | RB7: 0 | RC7: 0 | RD7: 0 | RE7: 0 | RF7: 0 | RG7: 0 | RH7: 0 | RI7: 0 | RJ7: 0 | RK7: 0 | RL7: 0 | RM7: 0 | RN7: 0 | RO7: 0 | RP7: 0 | RQ7: 0 | RR7: 0 | RS7: 0 | RT7: 0 | RU7: 0 | RV7: 0 | RW7: 0 | RX7: 0 | RY7: 0 | RZ7: 0 | SA7: 0 | SB7: 0 | SC7: 0 | SD7: 0 | SE7: 0 | SF7: 0 | SG7: 0 | SH7: 0 | SI7: 0 | SJ7: 0 | SK7: 0 | SL7: 0 | SM7: 0 | SN7: 0 | SP7: 0 | SQ7: 0 | SR7: 0 | SS7: 0 | ST7: 0 | SU7: YES | SV7: 1 | SW7: 4 | SX7: 56 | SY7: 9 | SZ7: 69 | TA7: 0 | TB7: 3 | TC7: 0 | TD7: 3 | TE7: 4 | TF7: 59 | TG7: 9 | TH7: 72 | TI7: 0 | TJ7: 0 | TK7: 0 | TL7: 0 | TM7: 4 | TN7: 59 | TO7: 9 | TP7: 72 | TQ7: 4 | TR7: 0 | TS7: 0 | TT7: 0 | TU7: 0 | TV7: 59 | TW7: 0 | TX7: 0 | TY7: 0 | TZ7: 0 | UA7: 9 | UB7: 0 | UC7: 4 | UD7: 59 | UE7: 9 | UF7: 0 | UG7: 2 | UH7: 3 | UI7: 2 | UJ7: 7 | UK7: 0 | UL7: 0 | UM7: 0 | UN7: 0 | UO7: 0 | UP7: 0 | UQ7: 0 | UR7: 0 | US7: 0 | UT7: 0 | UU7: 0 | UV7: 0 | UW7: 0 | UX7: 0 | UY7: 1 | UZ7: 0 | VA7: 0 | VB7: 0 | VC7: 0 | VD7: 0 | VE7: 0 | VF7: 0 | VG7: 0 | VH7: 0 | VI7: 0 | VJ7: 0 | VK7: 0 | VL7: 0 | VM7: 0 | VN7: 0 | VO7: 0 | VP7: 0 | VR7: 2 | VS7: 3 | VT7: 3 | VU7: 2 | VV7: 3 | VW7: 55 | VX7: 4 | VY7: 0 | VZ7: 72 | WA7: 63 | WB7: 9 | WC7: 0 | WD7: 0 | WE7: 72 | WF7: 2 | WG7: 9 | WH7: 53 | WI7: 8 | WJ7: 0 | WK7: 72 | WL7: 0 | WM7: 4 | WN7: 3 | WO7: 0 | WP7: 2 | WQ7: 0 | WR7: 72 | WS7: 1 | WT7: 51 | WU7: 2 | WV7: 0 | WW7: 7 | WX7: 2 | WY7: 1 | WZ7: 0 | XA7: 0 | XB7: 2 | XC7: 1 | XD7: 4 | XE7: 0 | XF7: 1 | XG7: 0 | XH7: 0 | XI7: 0 | XJ7: 4 | XK7: 59 | XL7: 9 | XM7: 25 | XN7: 45 | XO7: 26 | XP7: 53 | XQ7: 3 | XR7: 10 | XS7: 23 | XT7: 49 | XU7: 0 | XV7: 0 | XW7: 2 | XX7: 2 | XY7: 0 | XZ7: 0 | YA7: 7 | YB7: 7 | YC7: 10 | YD7: 36 | YF7: 0 | YG7: 0 | YH7: 37 | YI7: 1 | YJ7: 1219 | YK7: 0 | YL7: 0 | YM7: 0 | YN7: 144 | YO7: 146 | YP7: 8 | YQ7: 1 | YR7: 0 | YS7: 0 | YT7: 0 | YU7: 132 | YV7: 0 | YW7: 105 | YX7: 0 | YY7: 20 | YZ7: 4 | ZA7: 12 | ZB7: 2 | ZC7: NO | ZD7: 0 | ZE7: 0 | ZF7: 0 | ZG7: 0 | ZH7: 0 | ZI7: 0 | ZJ7: 0 | ZK7: 0 | ZL7: 0 | ZM7: 0 | ZN7: 0 | ZO7: 0 | ZP7: 0 | ZQ7: 0 | ZR7: 0 | ZS7: 0 | ZT7: 0 | ZU7: 0 | ZV7: 0 | ZW7: 0 | ZY7: 0 | ZZ7: 0 | AAA7: 0 | AAB7: 0 | AAC7: 0 | AAD7: 0 | AAE7: 0 | AAF7: 0 | AAG7: 0 | AAH7: 0 | AAI7: 0 | AAJ7: 0 | AAK7: 0 | AAL7: 0 | AAM7: 0 | AAN7: 0 | AAO7: 0 | AAP7: 0 | AAQ7: 0 | AAR7: 0 | AAS7: 0 | AAT7: 0 | AAU7: 0 | AAV7: 0 | AAW7: 0 | AAX7: 0 | AAY7: 0 | AAZ7: 0 | ABA7: 0 | ABB7: 0 | ABC7: 0 | ABD7: 0 | ABE7: 0 | ABF7: 0 | ABG7: 0 | ABH7: 0 | ABI7: 0 | ABJ7: 0 | ABK7: 0 | ABL7: 0 | ABM7: 0 | ABN7: 0 | ABO7: 0 | ABP7: 0 | ABQ7: 0 | ABR7: 0 | ABS7: 0 | ABT7: 0 | ABU7: 0 | ABV7: 0 | ABW7: 0 | ABX7: 0 | ABY7: 0 | ABZ7: 0 | ACA7: 0 | ACB7: 0 | ACC7: 0 | ACD7: 0 | ACE7: 0 | ACF7: 0 | ACG7: 0 | ACH7: 0 | ACI7: 0 | ACJ7: 0 | ACK7: 0 | ACL7: 0 | ACM7: 0 | ACN7: 0 | ACO7: 0 | ACP7: 0 | ACQ7: 0 | ACR7: 0 | ACS7: 0 | ACT7: 0 | ACU7: 0 | ACV7: 0 | ACW7: 0 | ACX7: 0 | ACY7: 0 | ACZ7: 0 | ADA7: 0 | ADB7: 0 | ADC7: 0 | ADD7: 0 | ADE7: 0 | ADF7: 0 | ADG7: 0 | ADH7: 0 | ADI7: 0 | ADJ7: 0 | ADK7: 0 | ADL7: 0 | ADM7: 0 | ADN7: 0 | ADO7: 0 | ADP7: 0 | ADQ7: 0 | ADR7: 0 | ADS7: 0 | ADT7: 0 | ADU7: 0 | ADV7: 0 | ADW7: 0 | ADX7: 0 | ADY7: 0 | ADZ7: 0 | AEA7: 0 | AEB7: 0 | AEC7: 0 | AED7: 0 | AEE7: 0 | AEF7: 0 | AEG7: 0 | AEH7: 0 | AEI7: 0 | AEJ7: 0 | AEK7: 0 | AEL7: 0 | AEM7: 0 | AEN7: 0 | AEO7: 0 | AEP7: 0 | AEQ7: 0 | AER7: 0 | AES7: 0 | AET7: 0 | AEU7: 0 | AEV7: 0 | AEW7: 0 | AEX7: 0 | AEY7: 0 | AEZ7: 0 | AFA7: 0 | AFB7: 0 | AFC7: 0 | AFD7: 0 | AFE7: 0 | AFF7: 0 | AFG7: 0 | AFI7: 0 | AFJ7: 0 | AFK7: 0 | AFL7: 0 | AFM7: 0 | AFN7: 0 | AFO7: 0 | AFP7: 0 | AFQ7: NO | AFR7: 0 | AFS7: 0 | AFT7: 0 | AFU7: 0 | AFV7: 0 | AFW7: 0 | AFX7: 0 | AFY7: 0 | AFZ7: 0 | AGA7: 0 | AGB7: 0 | AGC7: 0 | AGD7: 0 | AGE7: 0 | AGF7: 0 | AGG7: 0 | AGH7: 0 | AGI7: 0 | AGJ7: 0 | AGK7: 0 | AGL7: 0 | AGM7: 0 | AGN7: 0 | AGO7: 0 | AGP7: 0 | AGQ7: 0 | AGR7: 0 | AGS7: 0 | AGT7: 0 | AGU7: 0 | AGV7: 0 | AGW7: 0 | AGX7: 0 | AGY7: 0 | AGZ7: 0 | AHA7: 0 | AHB7: 0 | AHC7: 0 | AHD7: 0 | AHE7: 0 | AHF7: 0 | AHG7: 0 | AHH7: 0 | AHI7: 0 | AHJ7: 0 | AHK7: 0 | AHL7: 0 | AHM7: 0 | AHN7: 0 | AHO7: 0 | AHP7: NO | AHQ7: 0 | AHR7: 0 | AHS7: 0 | AHT7: 0 | AHU7: 0 | AHV7: 0 | AHW7: 0 | AHX7: 0 | AHY7: 0 | AHZ7: 0 | AIA7: 0 | AIB7: 0 | AIC7: 0 | AID7: 0 | AIE7: 0 | AIF7: 0 | AIG7: 0 | AIH7: 0 | AII7: 0 | AIJ7: 0 | AIK7: 0 | AIL7: 0 | AIM7: 0 | AIN7: 0 | AIO7: 0 | AIQ7: 0 | AIR7: 0 | AIS7: 0 | AIT7: 0 | AIU7: 0 | AIV7: 0 | AIW7: 0 | AIX7: 0 | AIY7: 0 | AIZ7: 0 | AJA7: 0 | AJB7: 0 | AJC7: 0 | AJD7: 0 | AJE7: 0 | AJF7: 0 | AJG7: 0 | AJH7: 0 | AJI7: 0 | AJJ7: 0 | AJK7: 0 | AJL7: 0 | AJM7: 0 | AJN7: 0 | AJO7: 0 | AJP7: 0 | AJQ7: 0 | AJR7: 0 | AJS7: 0 | AJT7: 0 | AJU7: 0 | AJV7: 0 | AJW7: 0 | AJX7: 0 | AJY7: 0 | AJZ7: 0 | AKA7: 0 | AKB7: 0 | AKC7: 0 | AKD7: 0 | AKE7: 0 | AKF7: 0 | AKG7: 0 | AKH7: 0 | AKI7: 0 | AKJ7: 0 | AKK7: 0 | AKL7: 0 | AKM7: 0 | AKN7: 0 | AKO7: 0 | AKP7: 0 | AKQ7: 0 | AKR7: 0 | AKS7: 0 | AKT7: 0 | AKU7: 0 | AKV7: 0 | AKW7: 0 | AKX7: 0 | AKY7: 0 | AKZ7: 0 | ALA7: 0 | ALB7: 0 | ALC7: 0 | ALD7: 0 | ALE7: 0 | ALF7: 0 | ALG7: 0 | ALH7: 0 | ALI7: 0 | ALJ7: 0 | ALK7: 0 | ALL7: 0 | ALM7: 0 | ALN7: 0 | ALO7: 0 | ALP7: 0 | ALQ7: 0 | ALR7: 0 | ALS7: 0 | ALT7: 0 | ALU7: 0 | ALV7: 0 | ALW7: 0 | ALX7: 0 | ALY7: 0 | ALZ7: 0 | AMA7: 0 | AMB7: 0 | AMC7: 0 | AMD7: 0 | AME7: 0 | AMF7: 0 | AMG7: 0 | AMH7: 0 | AMI7: 0 | AMJ7: 0 | AMK7: 0 | AML7: 0 | AMM7: 0 | AMN7: 0 | AMO7: 0 | AMP7: 0 | AMQ7: 0 | AMR7: 0 | AMS7: 0 | AMT7: 0 | AMU7: 0 | AMV7: 0 | AMW7: 0 | AMX7: 0 | AMY7: 0 | AMZ7: 0 | ANA7: 0 | ANB7: 0 | ANC7: 0 | AND7: 0 | ANE7: 0 | ANF7: 0 | ANG7: 0 | ANH7: 0 | ANI7: 0 | ANJ7: 0 | ANK7: 0 | ANL7: 0 | ANM7: 0 | ANN7: 0 | ANO7: 0 | ANP7: 0 | ANQ7: 0 | ANR7: 0 | ANS7: 0 | ANT7: 0 | ANU7: 0 | ANV7: 0 | ANW7: 0 | ANX7: 0 | ANY7: 0 | ANZ7: 0 | AOA7: 0 | AOB7: 0 | AOC7: 0 | AOD7: 0 | AOE7: 0 | AOF7: 0 | AOG7: 0 | AOH7: 0 | AOI7: 0 | AOJ7: 0 | AOK7: 0 | AOL7: 0 | AOM7: 0 | AOO7: 0 | AOP7: 0 | AOQ7: 0 | AOR7: 0 | AOS7: 0 | AOT7: 0 | AOU7: 0 | AOV7: 0 | AOW7: 0 | AOX7: 0 | AOY7: 0 | AOZ7: 0 | APA7: 0 | APB7: 0 | APC7: 0 | APD7: 0 | APE7: 0 | APF7: 0 | APG7: 0 | APH7: 0 | API7: 0 | APJ7: 0 | APK7: 0 | APL7: 0 | APM7: 0 | APN7: 0 | APO7: 0 | APP7: 0 | APQ7: 0 | APR7: 0 | APS7: 0 | APT7: 0 | APU7: 0 | APV7: 0 | APW7: 0 | APX7: 0 | APY7: 0 | APZ7: NO | AQA7: 0 | AQB7: 0 | AQC7: 0 | AQD7: 0 | AQE7: 0 | AQF7: 0 | AQG7: 0 | AQH7: 0 | AQI7: 0 | AQJ7: 0 | AQK7: 0 | AQL7: 0 | AQM7: 0 | AQN7: 0 | AQO7: 0 | AQP7: 0 | AQQ7: 0 | AQR7: 0 | AQS7: 0 | AQT7: 0 | AQU7: 0 | AQV7: 0 | AQW7: 0 | AQX7: 0 | AQY7: 0 | AQZ7: 0 | ARA7: 0 | ARB7: 0 | ARC7: 0 | ARD7: 0 | ARE7: 0 | ARF7: 0 | ARG7: 0 | ARH7: 0 | ARI7: 0 | ARJ7: 0 | ARK7: 0 | ARL7: 0 | ARM7: 0 | ARN7: 0 | ARO7: 0 | ARP7: 0 | ARQ7: 0 | ARR7: 0 | ARS7: 0 | ART7: 0 | ARU7: 0 | ARV7: 0 | ARW7: 0 | ARX7: 0 | ARY7: 0 | ARZ7: 0 | ASA7: 0 | ASB7: 0 | ASC7: 0 | ASD7: 0 | ASE7: 0 | ASF7: 0 | ASG7: 0 | ASH7: 0 | ASI7: 0 | ASJ7: 0 | ASK7: 0 | ASL7: 0 | ASM7: 0 | ASN7: 0 | ASO7: 0 | ASP7: 0 | ASQ7: 0 | ASR7: 0 | ASS7: 0 | AST7: 0 | ASU7: 0 | ASV7: 0 | ASW7: 0 | ASX7: 0 | ASY7: 0 | ASZ7: 0 | ATA7: 0 | ATB7: 0 | ATC7: 0 | ATD7: 0 | ATE7: 0 | ATF7: 0 | ATG7: 0 | ATH7: 0 | ATI7: 0 | ATJ7: 0 | ATK7: 0 | ATL7: 0 | ATM7: 0 | ATN7: 0 | ATO7: 0 | ATP7: 0 | ATQ7: 0 | ATR7: 0 | ATS7: 0 | ATT7: 0 | ATU7: 0 | ATV7: 0 | ATW7: 0 | ATX7: 0 | ATY7: 0 | ATZ7: 0 | AUA7: 0 | AUB7: NO | AUC7: 0 | AUD7: 0 | AUE7: 0 | AUF7: 0 | AUG7: 0 | AUH7: 0 | AUI7: 0 | AUJ7: 0 | AUK7: 0 | AUL7: 0 | AUM7: 0 | AUN7: 0 | AUO7: 0 | AUP7: 0 | AUQ7: 0 | AUR7: 0 | AUS7: 0 | AUT7: 0 | AUU7: 0 | AUV7: 0 | AUW7: 0 | AUX7: 0 | AUY7: 0 | AUZ7: 0 | AVA7: 0 | AVB7: 0 | AVC7: 0 | AVD7: 0 | AVE7: 0 | AVF7: 0 | AVG7: 0 | AVH7: 0 | AVI7: 0 | AVJ7: 0 | AVK7: 0 | AVL7: 0 | AVM7: 0 | AVN7: 0 | AVO7: 0 | AVP7: 0 | AVQ7: 0 | AVR7: 0 | AVS7: 0 | AVT7: 0 | AVU7: 0 | AVV7: 0 | AVW7: 0 | AVX7: 0 | AVY7: 0 | AVZ7: 0 | AWA7: 0 | AWB7: 0 | AWC7: 0 | AWD7: 0 | AWE7: NO | AWF7: 0 | AWG7: 0 | AWH7: 0 | AWI7: 0 | AWJ7: 0 | AWL7: 0 | AWM7: 0 | AWN7: 0 | AWO7: 0 | AWZ7: The most significant areas of need to improve services to victims/survivors is to increase the family law attorneys in the counties we serve. We have a lawyer referral program to connect survivors with attorneys. The list of attorneys has diminished over the years. This depleted our options and we are waiting for more attorneys to fill the gap. In the meantime, it limits resources for survivors who need legal representation. | AXB7: STOP funding has allowed us to be able to be at the local courthouses each day to assist survivors with the process to complete and file a protection order. Without this funding, victims would not receive the support that is needed when they are in crisis and filing a protection order.
A8: 40398 | B8: OR40398 | C8: 2020-01-10 | D8: 2019 | E8: Center for Hope & Safety | F8: Joint-2019-CHS-00008 | I8: Joint-2017-CHS-00006 | O8: GI5_OrgType_VicServ_Dual | Q8: NO | R8: NO | S8: Sara | T8: L | U8: Brennan | V8: Center for Hope & Safety | W8: 605 Center St NE | X8: Salem | Y8: OR | Z8: 97301 | AA8: 503-378-1572 | AB8: 503-364-7998 | AC8: sara@hopeandsafety.org | AD8: NO | AF8: 15 | AG8: 81 | AH8: 4 | AI8: 100 | AJ8: YES | AK8: 1 | AL8: 0 | AM8: 0 | AN8: 0 | AO8: 0 | AP8: 0 | AQ8: 0 | AR8: 0 | AS8: 0 | AT8: 0 | AU8: 0 | AV8: 0 | AW8: 0 | AX8: 0 | AY8: 0 | AZ8: 0 | BA8: 0 | BB8: 0 | BC8: 0.49 | BD8: 0 | BF8: 0 | BG8: 0.49 | BH8: 0 | BI8: 0 | BJ8: 0 | BK8: 0 | BL8: 1 | BM8: 0 | BN8: 0 | BO8: 0 | BP8: 0 | BQ8: 0 | BR8: 0 | BS8: 0 | BT8: 0 | BU8: 0 | BV8: 0 | BW8: 0 | BX8: 0 | BY8: 0 | BZ8: 0 | CA8: 0 | CB8: NO | CC8: 0 | CD8: 0 | CE8: 0 | CF8: 0 | CG8: 0 | CH8: 0 | CI8: 0 | CJ8: 0 | CK8: 0 | CL8: 0 | CM8: 0 | CN8: 0 | CO8: 0 | CP8: 0 | CQ8: 0 | CR8: 0 | CS8: 0 | CT8: 0 | CU8: 0 | CV8: 0 | CW8: 0 | CX8: 0 | CY8: 0 | CZ8: 0 | DA8: 0 | DB8: 0 | DC8: 0 | DD8: 0 | DF8: 0 | DG8: 0 | DH8: 0 | DI8: 0 | DJ8: 0 | DK8: 0 | DL8: 0 | DM8: 0 | DN8: 0 | DO8: 0 | DP8: 0 | DQ8: 0 | DR8: 0 | DS8: 0 | DT8: 0 | DV8: 0 | DW8: 0 | DX8: 0 | DY8: 0 | DZ8: 0 | EA8: 0 | EB8: 0 | EC8: 0 | ED8: 0 | EE8: 0 | EF8: 0 | EG8: 0 | EH8: 0 | EI8: 0 | EJ8: 0 | EK8: 0 | EL8: 0 | EM8: 0 | EN8: 0 | EO8: 0 | EQ8: 0 | ER8: 0 | ES8: 0 | ET8: 0 | EU8: 0 | EV8: 0 | EW8: 0 | EX8: 0 | EY8: 0 | EZ8: 0 | FA8: 0 | FB8: 0 | FC8: 0 | FD8: 0 | FE8: 0 | FF8: 0 | FG8: 0 | FI8: 0 | FJ8: 0 | FK8: 0 | FL8: 0 | FM8: 0 | FO8: NO | FP8: 0 | FQ8: 0 | FR8: 0 | FS8: 0 | FT8: 0 | FU8: 0 | FV8: 0 | FW8: 0 | FX8: 0 | FY8: 0 | FZ8: 0 | GA8: 0 | GB8: 0 | GC8: 0 | GD8: 0 | GF8: 0 | GG8: 0 | GH8: 0 | GI8: 0 | GJ8: 0 | GK8: 0 | GL8: 0 | GM8: 0 | GN8: 0 | GO8: 0 | GP8: 0 | GQ8: 0 | GR8: 0 | GS8: 0 | GT8: 0 | GV8: 0 | GW8: 0 | GX8: 0 | GY8: 0 | GZ8: 0 | HA8: 0 | HB8: 0 | HC8: 0 | HD8: 0 | HE8: 0 | HF8: 0 | HG8: 0 | HH8: 0 | HI8: 0 | HJ8: 0 | HK8: 0 | HL8: 0 | HP8: Weekly | HQ8: Monthly | HR8: Weekly | HS8: Monthly | HT8: Daily | HU8: Monthly | HV8: Daily | HW8: Monthly | HX8: Monthly | HY8: Quarterly | HZ8: Weekly | IA8: Monthly | IB8: Daily | IC8: Monthly | ID8: Daily | IE8: Monthly | IF8: Daily | IG8: Monthly | IH8: Daily | II8: Monthly | IJ8: Weekly | IK8: Monthly | IL8: Monthly | IM8: Quarterly | IN8: Daily | IO8: Monthly | IP8: Daily | IR8: Monthly | IW8: NO | IX8: 0 | IY8: 0 | IZ8: 0 | JA8: 0 | JB8: 0 | JC8: 0 | JD8: 0 | JE8: 0 | JF8: 0 | JG8: 0 | JH8: 0 | JI8: 0 | JJ8: 0 | JK8: 0 | JM8: 0 | JN8: 0 | JO8: 0 | JP8: 0 | JQ8: 0 | JR8: 0 | JS8: 0 | JT8: 0 | JU8: 0 | JV8: 0 | JW8: 0 | JX8: 0 | JY8: 0 | JZ8: 0 | KA8: 0 | KB8: 0 | KC8: 0 | KD8: 0 | KE8: 0 | KF8: 0 | KG8: 0 | KI8: 0 | KJ8: 0 | KK8: 0 | KL8: 0 | KM8: 0 | KN8: 0 | KO8: 0 | KP8: 0 | KQ8: 0 | KR8: 0 | KS8: 0 | KT8: 0 | KU8: 0 | KV8: 0 | KX8: 0 | KY8: 0 | KZ8: 0 | LA8: 0 | LB8: 0 | LC8: 0 | LD8: 0 | LE8: 0 | LF8: 0 | LG8: 0 | LH8: 0 | LI8: 0 | LJ8: 0 | LK8: 0 | LL8: 0 | LM8: 0 | LN8: 0 | LP8: 0 | LQ8: 0 | LR8: 0 | LS8: 0 | LT8: 0 | LU8: 0 | LV8: 0 | LW8: 0 | LX8: 0 | LZ8: 0 | MA8: 0 | MB8: 0 | MC8: 0 | MD8: 0 | ME8: 0 | MF8: 0 | MG8: 0 | MH8: 0 | MI8: 0 | MJ8: 0 | ML8: NO | MM8: 0 | MN8: 0 | MR8: 0 | MV8: 0 | MZ8: 0 | ND8: 0 | NH8: 0 | NL8: 0 | NP8: 0 | NT8: 0 | NY8: 0 | OC8: 0 | OG8: 0 | OK8: NO | OL8: 0 | OM8: 0 | ON8: 0 | OO8: 0 | OP8: 0 | OQ8: 0 | OR8: 0 | OS8: 0 | OT8: 0 | OU8: 0 | OV8: 0 | OW8: 0 | OX8: 0 | OY8: 0 | OZ8: 0 | PA8: 0 | PB8: 0 | PC8: 0 | PD8: 0 | PE8: 0 | PF8: 0 | PG8: 0 | PH8: 0 | PI8: 0 | PJ8: 0 | PK8: 0 | PL8: 0 | PM8: 0 | PO8: NO | PP8: 0 | PQ8: 0 | PR8: 0 | PS8: 0 | PT8: 0 | PU8: 0 | PV8: 0 | PW8: 0 | PX8: 0 | PY8: 0 | PZ8: 0 | QA8: 0 | QB8: 0 | QD8: 0 | QE8: 0 | QF8: 0 | QG8: 0 | QH8: 0 | QI8: 0 | QJ8: 0 | QK8: 0 | QL8: 0 | QM8: 0 | QN8: 0 | QO8: 0 | QP8: 0 | QQ8: 0 | QR8: 0 | QS8: 0 | QT8: NO | QU8: 0 | QV8: 0 | QW8: 0 | QX8: 0 | QY8: 0 | QZ8: 0 | RA8: 0 | RB8: 0 | RC8: 0 | RD8: 0 | RE8: 0 | RF8: 0 | RG8: 0 | RH8: 0 | RI8: 0 | RJ8: 0 | RK8: 0 | RL8: 0 | RM8: 0 | RN8: 0 | RO8: 0 | RP8: 0 | RQ8: 0 | RR8: 0 | RS8: 0 | RT8: 0 | RU8: 0 | RV8: 0 | RW8: 0 | RX8: 0 | RY8: 0 | RZ8: 0 | SA8: 0 | SB8: 0 | SC8: 0 | SD8: 0 | SE8: 0 | SF8: 0 | SG8: 0 | SH8: 0 | SI8: 0 | SJ8: 0 | SK8: 0 | SL8: 0 | SM8: 0 | SN8: 0 | SP8: 0 | SQ8: 0 | SR8: 0 | SS8: 0 | ST8: 0 | SU8: YES | SV8: 1 | SW8: 69 | SX8: 377 | SY8: 19 | SZ8: 465 | TA8: 0 | TB8: 0 | TC8: 0 | TD8: 0 | TE8: 69 | TF8: 377 | TG8: 19 | TH8: 465 | TI8: 0 | TJ8: 0 | TK8: 0 | TL8: 0 | TM8: 69 | TN8: 377 | TO8: 19 | TP8: 465 | TQ8: 69 | TR8: 0 | TS8: 0 | TT8: 0 | TU8: 0 | TV8: 377 | TW8: 0 | TX8: 0 | TY8: 0 | TZ8: 0 | UA8: 19 | UB8: 0 | UC8: 69 | UD8: 377 | UE8: 19 | UF8: 0 | UG8: 15 | UH8: 83 | UI8: 4 | UJ8: 102 | UK8: 0 | UL8: 0 | UM8: 0 | UN8: 0 | UO8: 0 | UP8: 0 | UQ8: 0 | UR8: 0 | US8: 0 | UT8: 0 | UU8: 0 | UV8: 0 | UW8: 0 | UX8: 0 | UY8: 0 | UZ8: 0 | VA8: 0 | VB8: 0 | VC8: 0 | VD8: 0 | VE8: 0 | VF8: 0 | VG8: 0 | VH8: 0 | VI8: 0 | VJ8: 0 | VK8: 0 | VL8: 0 | VM8: 0 | VN8: 0 | VO8: 0 | VP8: 0 | VR8: 9 | VS8: 14 | VT8: 23 | VU8: 93 | VV8: 3 | VW8: 272 | VX8: 15 | VY8: 36 | VZ8: 465 | WA8: 437 | WB8: 21 | WC8: 5 | WD8: 2 | WE8: 465 | WF8: 21 | WG8: 60 | WH8: 353 | WI8: 29 | WJ8: 2 | WK8: 465 | WL8: 43 | WM8: 19 | WN8: 14 | WO8: 2 | WP8: 11 | WQ8: 10 | WR8: 24 | WS8: 47 | WT8: 350 | WU8: 16 | WV8: 6 | WW8: 19 | WX8: 0 | WY8: 2 | WZ8: 8 | XA8: 1 | XB8: 9 | XC8: 0 | XD8: 1 | XE8: 2 | XF8: 1 | XG8: 3 | XH8: 0 | XI8: 0 | XJ8: 69 | XK8: 377 | XL8: 19 | XM8: 73 | XN8: 73 | XO8: 429 | XP8: 429 | XQ8: 21 | XR8: 21 | XS8: 465 | XT8: 465 | XU8: 2 | XV8: 2 | XW8: 3 | XX8: 3 | XY8: 15 | XZ8: 15 | YA8: 95 | YB8: 95 | YC8: 465 | YD8: 465 | YF8: 0 | YG8: 0 | YH8: 122 | YI8: 102 | YJ8: 5934 | YK8: 0 | YL8: 0 | YM8: 0 | YN8: 2123 | YO8: 4544 | YP8: 0 | YQ8: 0 | YR8: 0 | YS8: 0 | YT8: 0 | YU8: 5 | YV8: 1 | YW8: 4 | YX8: 1 | YY8: 0 | YZ8: 0 | ZA8: 0 | ZB8: 0 | ZC8: NO | ZD8: 0 | ZE8: 0 | ZF8: 0 | ZG8: 0 | ZH8: 0 | ZI8: 0 | ZJ8: 0 | ZK8: 0 | ZL8: 0 | ZM8: 0 | ZN8: 0 | ZO8: 0 | ZP8: 0 | ZQ8: 0 | ZR8: 0 | ZS8: 0 | ZT8: 0 | ZU8: 0 | ZV8: 0 | ZW8: 0 | ZY8: 0 | ZZ8: 0 | AAA8: 0 | AAB8: 0 | AAC8: 0 | AAD8: 0 | AAE8: 0 | AAF8: 0 | AAG8: 0 | AAH8: 0 | AAI8: 0 | AAJ8: 0 | AAK8: 0 | AAL8: 0 | AAM8: 0 | AAN8: 0 | AAO8: 0 | AAP8: 0 | AAQ8: 0 | AAR8: 0 | AAS8: 0 | AAT8: 0 | AAU8: 0 | AAV8: 0 | AAW8: 0 | AAX8: 0 | AAY8: 0 | AAZ8: 0 | ABA8: 0 | ABB8: 0 | ABC8: 0 | ABD8: 0 | ABE8: 0 | ABF8: 0 | ABG8: 0 | ABH8: 0 | ABI8: 0 | ABJ8: 0 | ABK8: 0 | ABL8: 0 | ABM8: 0 | ABN8: 0 | ABO8: 0 | ABP8: 0 | ABQ8: 0 | ABR8: 0 | ABS8: 0 | ABT8: 0 | ABU8: 0 | ABV8: 0 | ABW8: 0 | ABX8: 0 | ABY8: 0 | ABZ8: 0 | ACA8: 0 | ACB8: 0 | ACC8: 0 | ACD8: 0 | ACE8: 0 | ACF8: 0 | ACG8: 0 | ACH8: 0 | ACI8: 0 | ACJ8: 0 | ACK8: 0 | ACL8: 0 | ACM8: 0 | ACN8: 0 | ACO8: 0 | ACP8: 0 | ACQ8: 0 | ACR8: 0 | ACS8: 0 | ACT8: 0 | ACU8: 0 | ACV8: 0 | ACW8: 0 | ACX8: 0 | ACY8: 0 | ACZ8: 0 | ADA8: 0 | ADB8: 0 | ADC8: 0 | ADD8: 0 | ADE8: 0 | ADF8: 0 | ADG8: 0 | ADH8: 0 | ADI8: 0 | ADJ8: 0 | ADK8: 0 | ADL8: 0 | ADM8: 0 | ADN8: 0 | ADO8: 0 | ADP8: 0 | ADQ8: 0 | ADR8: 0 | ADS8: 0 | ADT8: 0 | ADU8: 0 | ADV8: 0 | ADW8: 0 | ADX8: 0 | ADY8: 0 | ADZ8: 0 | AEA8: 0 | AEB8: 0 | AEC8: 0 | AED8: 0 | AEE8: 0 | AEF8: 0 | AEG8: 0 | AEH8: 0 | AEI8: 0 | AEJ8: 0 | AEK8: 0 | AEL8: 0 | AEM8: 0 | AEN8: 0 | AEO8: 0 | AEP8: 0 | AEQ8: 0 | AER8: 0 | AES8: 0 | AET8: 0 | AEU8: 0 | AEV8: 0 | AEW8: 0 | AEX8: 0 | AEY8: 0 | AEZ8: 0 | AFA8: 0 | AFB8: 0 | AFC8: 0 | AFD8: 0 | AFE8: 0 | AFF8: 0 | AFG8: 0 | AFI8: 0 | AFJ8: 0 | AFK8: 0 | AFL8: 0 | AFM8: 0 | AFN8: 0 | AFO8: 0 | AFP8: 0 | AFQ8: NO | AFR8: 0 | AFS8: 0 | AFT8: 0 | AFU8: 0 | AFV8: 0 | AFW8: 0 | AFX8: 0 | AFY8: 0 | AFZ8: 0 | AGA8: 0 | AGB8: 0 | AGC8: 0 | AGD8: 0 | AGE8: 0 | AGF8: 0 | AGG8: 0 | AGH8: 0 | AGI8: 0 | AGJ8: 0 | AGK8: 0 | AGL8: 0 | AGM8: 0 | AGN8: 0 | AGO8: 0 | AGP8: 0 | AGQ8: 0 | AGR8: 0 | AGS8: 0 | AGT8: 0 | AGU8: 0 | AGV8: 0 | AGW8: 0 | AGX8: 0 | AGY8: 0 | AGZ8: 0 | AHA8: 0 | AHB8: 0 | AHC8: 0 | AHD8: 0 | AHE8: 0 | AHF8: 0 | AHG8: 0 | AHH8: 0 | AHI8: 0 | AHJ8: 0 | AHK8: 0 | AHL8: 0 | AHM8: 0 | AHN8: 0 | AHO8: 0 | AHP8: NO | AHQ8: 0 | AHR8: 0 | AHS8: 0 | AHT8: 0 | AHU8: 0 | AHV8: 0 | AHW8: 0 | AHX8: 0 | AHY8: 0 | AHZ8: 0 | AIA8: 0 | AIB8: 0 | AIC8: 0 | AID8: 0 | AIE8: 0 | AIF8: 0 | AIG8: 0 | AIH8: 0 | AII8: 0 | AIJ8: 0 | AIK8: 0 | AIL8: 0 | AIM8: 0 | AIN8: 0 | AIO8: 0 | AIQ8: 0 | AIR8: 0 | AIS8: 0 | AIT8: 0 | AIU8: 0 | AIV8: 0 | AIW8: 0 | AIX8: 0 | AIY8: 0 | AIZ8: 0 | AJA8: 0 | AJB8: 0 | AJC8: 0 | AJD8: 0 | AJE8: 0 | AJF8: 0 | AJG8: 0 | AJH8: 0 | AJI8: 0 | AJJ8: 0 | AJK8: 0 | AJL8: 0 | AJM8: 0 | AJN8: 0 | AJO8: 0 | AJP8: 0 | AJQ8: 0 | AJR8: 0 | AJS8: 0 | AJT8: 0 | AJU8: 0 | AJV8: 0 | AJW8: 0 | AJX8: 0 | AJY8: 0 | AJZ8: 0 | AKA8: 0 | AKB8: 0 | AKC8: 0 | AKD8: 0 | AKE8: 0 | AKF8: 0 | AKG8: 0 | AKH8: 0 | AKI8: 0 | AKJ8: 0 | AKK8: 0 | AKL8: 0 | AKM8: 0 | AKN8: 0 | AKO8: 0 | AKP8: 0 | AKQ8: 0 | AKR8: 0 | AKS8: 0 | AKT8: 0 | AKU8: 0 | AKV8: 0 | AKW8: 0 | AKX8: 0 | AKY8: 0 | AKZ8: 0 | ALA8: 0 | ALB8: 0 | ALC8: 0 | ALD8: 0 | ALE8: 0 | ALF8: 0 | ALG8: 0 | ALH8: 0 | ALI8: 0 | ALJ8: 0 | ALK8: 0 | ALL8: 0 | ALM8: 0 | ALN8: 0 | ALO8: 0 | ALP8: 0 | ALQ8: 0 | ALR8: 0 | ALS8: 0 | ALT8: 0 | ALU8: 0 | ALV8: 0 | ALW8: 0 | ALX8: 0 | ALY8: 0 | ALZ8: 0 | AMA8: 0 | AMB8: 0 | AMC8: 0 | AMD8: 0 | AME8: 0 | AMF8: 0 | AMG8: 0 | AMH8: 0 | AMI8: 0 | AMJ8: 0 | AMK8: 0 | AML8: 0 | AMM8: 0 | AMN8: 0 | AMO8: 0 | AMP8: 0 | AMQ8: 0 | AMR8: 0 | AMS8: 0 | AMT8: 0 | AMU8: 0 | AMV8: 0 | AMW8: 0 | AMX8: 0 | AMY8: 0 | AMZ8: 0 | ANA8: 0 | ANB8: 0 | ANC8: 0 | AND8: 0 | ANE8: 0 | ANF8: 0 | ANG8: 0 | ANH8: 0 | ANI8: 0 | ANJ8: 0 | ANK8: 0 | ANL8: 0 | ANM8: 0 | ANN8: 0 | ANO8: 0 | ANP8: 0 | ANQ8: 0 | ANR8: 0 | ANS8: 0 | ANT8: 0 | ANU8: 0 | ANV8: 0 | ANW8: 0 | ANX8: 0 | ANY8: 0 | ANZ8: 0 | AOA8: 0 | AOB8: 0 | AOC8: 0 | AOD8: 0 | AOE8: 0 | AOF8: 0 | AOG8: 0 | AOH8: 0 | AOI8: 0 | AOJ8: 0 | AOK8: 0 | AOL8: 0 | AOM8: 0 | AOO8: 0 | AOP8: 0 | AOQ8: 0 | AOR8: 0 | AOS8: 0 | AOT8: 0 | AOU8: 0 | AOV8: 0 | AOW8: 0 | AOX8: 0 | AOY8: 0 | AOZ8: 0 | APA8: 0 | APB8: 0 | APC8: 0 | APD8: 0 | APE8: 0 | APF8: 0 | APG8: 0 | APH8: 0 | API8: 0 | APJ8: 0 | APK8: 0 | APL8: 0 | APM8: 0 | APN8: 0 | APO8: 0 | APP8: 0 | APQ8: 0 | APR8: 0 | APS8: 0 | APT8: 0 | APU8: 0 | APV8: 0 | APW8: 0 | APX8: 0 | APY8: 0 | APZ8: NO | AQA8: 0 | AQB8: 0 | AQC8: 0 | AQD8: 0 | AQE8: 0 | AQF8: 0 | AQG8: 0 | AQH8: 0 | AQI8: 0 | AQJ8: 0 | AQK8: 0 | AQL8: 0 | AQM8: 0 | AQN8: 0 | AQO8: 0 | AQP8: 0 | AQQ8: 0 | AQR8: 0 | AQS8: 0 | AQT8: 0 | AQU8: 0 | AQV8: 0 | AQW8: 0 | AQX8: 0 | AQY8: 0 | AQZ8: 0 | ARA8: 0 | ARB8: 0 | ARC8: 0 | ARD8: 0 | ARE8: 0 | ARF8: 0 | ARG8: 0 | ARH8: 0 | ARI8: 0 | ARJ8: 0 | ARK8: 0 | ARL8: 0 | ARM8: 0 | ARN8: 0 | ARO8: 0 | ARP8: 0 | ARQ8: 0 | ARR8: 0 | ARS8: 0 | ART8: 0 | ARU8: 0 | ARV8: 0 | ARW8: 0 | ARX8: 0 | ARY8: 0 | ARZ8: 0 | ASA8: 0 | ASB8: 0 | ASC8: 0 | ASD8: 0 | ASE8: 0 | ASF8: 0 | ASG8: 0 | ASH8: 0 | ASI8: 0 | ASJ8: 0 | ASK8: 0 | ASL8: 0 | ASM8: 0 | ASN8: 0 | ASO8: 0 | ASP8: 0 | ASQ8: 0 | ASR8: 0 | ASS8: 0 | AST8: 0 | ASU8: 0 | ASV8: 0 | ASW8: 0 | ASX8: 0 | ASY8: 0 | ASZ8: 0 | ATA8: 0 | ATB8: 0 | ATC8: 0 | ATD8: 0 | ATE8: 0 | ATF8: 0 | ATG8: 0 | ATH8: 0 | ATI8: 0 | ATJ8: 0 | ATK8: 0 | ATL8: 0 | ATM8: 0 | ATN8: 0 | ATO8: 0 | ATP8: 0 | ATQ8: 0 | ATR8: 0 | ATS8: 0 | ATT8: 0 | ATU8: 0 | ATV8: 0 | ATW8: 0 | ATX8: 0 | ATY8: 0 | ATZ8: 0 | AUA8: 0 | AUB8: NO | AUC8: 0 | AUD8: 0 | AUE8: 0 | AUF8: 0 | AUG8: 0 | AUH8: 0 | AUI8: 0 | AUJ8: 0 | AUK8: 0 | AUL8: 0 | AUM8: 0 | AUN8: 0 | AUO8: 0 | AUP8: 0 | AUQ8: 0 | AUR8: 0 | AUS8: 0 | AUT8: 0 | AUU8: 0 | AUV8: 0 | AUW8: 0 | AUX8: 0 | AUY8: 0 | AUZ8: 0 | AVA8: 0 | AVB8: 0 | AVC8: 0 | AVD8: 0 | AVE8: 0 | AVF8: 0 | AVG8: 0 | AVH8: 0 | AVI8: 0 | AVJ8: 0 | AVK8: 0 | AVL8: 0 | AVM8: 0 | AVN8: 0 | AVO8: 0 | AVP8: 0 | AVQ8: 0 | AVR8: 0 | AVS8: 0 | AVT8: 0 | AVU8: 0 | AVV8: 0 | AVW8: 0 | AVX8: 0 | AVY8: 0 | AVZ8: 0 | AWA8: 0 | AWB8: 0 | AWC8: 0 | AWD8: 0 | AWE8: NO | AWF8: 0 | AWG8: 0 | AWH8: 0 | AWI8: 0 | AWJ8: 0 | AWL8: 0 | AWM8: 0 | AWN8: 0 | AWO8: 0 | AWZ8: Survivors continue to have extreme difficulty finding and securing affordable housing. We are thankful for Oregon’s Survivor Housing Funds which allow us help with applications, deposits, moving expenses, and rent assistance. These flexible funds have made an immediate positive impact, helping survivors overcome a few of the hurdles they face. | AXB8: Every piece of our funding is vital to maintaining program stability. The number of full-time advocates at our program has literally doubled in less than 5 years, and yet we still feel the strain for high demand for our services. Our safe house shelter is a vital part of our services and we are thankful for STOP VAWA funds that help us provide services and advocacy.
A9: 40399 | B9: OR40399 | C9: 2020-02-06 | D9: 2019 | E9: City of Hillsboro Police Department | F9: None | O9: GI5_OrgType_LawEnforce | Q9: NO | R9: NO | S9: Rohn | U9: Richards | V9: Hillsboro Police Department | W9: 250 SE 10th Avenue | X9: Hillsboro | Y9: OR | Z9: 97123 | AA9: 503-615-6762 | AC9: rohn.richards@hillsboro-oregon.gov | AD9: NO | AF9: 2 | AG9: 96 | AH9: 2 | AI9: 100 | AJ9: YES | AK9: 1 | AL9: 0 | AM9: 0 | AN9: 0 | AO9: 0 | AP9: 0 | AQ9: 0 | AR9: 0 | AS9: 0 | AT9: 0 | AU9: 0 | AV9: 0 | AW9: 0 | AX9: 0 | AY9: 0 | AZ9: 0 | BA9: 0.05 | BB9: 0 | BC9: 0.8 | BD9: 0 | BF9: 0 | BG9: 0.85 | BH9: 1 | BI9: 0 | BJ9: 0 | BK9: 0 | BL9: 1 | BM9: 0 | BN9: 0 | BO9: 0 | BP9: 0 | BQ9: 0 | BR9: 1 | BS9: 1 | BT9: 0 | BU9: 0 | BV9: 0 | BW9: 0 | BX9: 0 | BY9: 0 | BZ9: 0 | CA9: 0 | CB9: YES | CC9: 1 | CD9: 19 | CE9: 5 | CF9: 0 | CG9: 0 | CH9: 0 | CI9: 0 | CJ9: 0 | CK9: 0 | CL9: 0 | CM9: 0 | CN9: 0 | CO9: 0 | CP9: 0 | CQ9: 60 | CR9: 0 | CS9: 0 | CT9: 0 | CU9: 0 | CV9: 0 | CW9: 0 | CX9: 0 | CY9: 0 | CZ9: 0 | DA9: 0 | DB9: 75 | DC9: 0 | DD9: 0 | DF9: 0 | DG9: 140 | DH9: 1 | DI9: 1 | DJ9: 1 | DK9: 1 | DL9: 1 | DM9: 1 | DN9: 0 | DO9: 0 | DP9: 1 | DQ9: 1 | DR9: 1 | DS9: 0 | DT9: 0 | DV9: 1 | DW9: 1 | DX9: 0 | DY9: 1 | DZ9: 0 | EA9: 1 | EB9: 0 | EC9: 0 | ED9: 1 | EE9: 1 | EF9: 0 | EG9: 0 | EH9: 0 | EI9: 1 | EJ9: 0 | EK9: 0 | EL9: 0 | EM9: 0 | EN9: 0 | EO9: 0 | EQ9: 0 | ER9: 0 | ES9: 0 | ET9: 0 | EU9: 0 | EV9: 0 | EW9: 0 | EX9: 0 | EY9: 0 | EZ9: 0 | FA9: 0 | FB9: 0 | FC9: 0 | FD9: 0 | FE9: 0 | FF9: 0 | FG9: 0 | FI9: 0 | FJ9: 1 | FK9: 1 | FL9: 0 | FM9: 0 | FO9: YES | FP9: 1 | FQ9: 5 | FR9: 0 | FS9: 0 | FT9: 1 | FU9: 0 | FV9: 1 | FW9: 0 | FX9: 0 | FY9: 0 | FZ9: 1 | GA9: 0 | GB9: 0 | GC9: 0 | GD9: 0 | GF9: 1 | GG9: 1 | GH9: 1 | GI9: 1 | GJ9: 1 | GK9: 1 | GL9: 0 | GM9: 0 | GN9: 1 | GO9: 0 | GP9: 0 | GQ9: 0 | GR9: 0 | GS9: 1 | GT9: 0 | GV9: 0 | GW9: 0 | GX9: 0 | GY9: 0 | GZ9: 0 | HA9: 0 | HB9: 0 | HC9: 0 | HD9: 0 | HE9: 0 | HF9: 0 | HG9: 0 | HH9: 0 | HI9: 0 | HJ9: 0 | HK9: 0 | HL9: 0 | HO9: Quarterly | HS9: Quarterly | HV9: Weekly | HW9: Monthly | HY9: Quarterly | IE9: Quarterly | IG9: Monthly | II9: Quarterly | IK9: Monthly | IO9: Quarterly | IQ9: Monthly | IW9: NO | IX9: 0 | IY9: 0 | IZ9: 0 | JA9: 0 | JB9: 0 | JC9: 0 | JD9: 0 | JE9: 0 | JF9: 0 | JG9: 0 | JH9: 0 | JI9: 0 | JJ9: 0 | JK9: 0 | JM9: 0 | JN9: 0 | JO9: 0 | JP9: 0 | JQ9: 0 | JR9: 0 | JS9: 0 | JT9: 0 | JU9: 0 | JV9: 0 | JW9: 0 | JX9: 0 | JY9: 0 | JZ9: 0 | KA9: 0 | KB9: 0 | KC9: 0 | KD9: 0 | KE9: 0 | KF9: 0 | KG9: 0 | KI9: 0 | KJ9: 0 | KK9: 0 | KL9: 0 | KM9: 0 | KN9: 0 | KO9: 0 | KP9: 0 | KQ9: 0 | KR9: 0 | KS9: 0 | KT9: 0 | KU9: 0 | KV9: 0 | KX9: 0 | KY9: 0 | KZ9: 0 | LA9: 0 | LB9: 0 | LC9: 0 | LD9: 0 | LE9: 0 | LF9: 0 | LG9: 0 | LH9: 0 | LI9: 0 | LJ9: 0 | LK9: 0 | LL9: 0 | LM9: 0 | LN9: 0 | LP9: 0 | LQ9: 0 | LR9: 0 | LS9: 0 | LT9: 0 | LU9: 0 | LV9: 0 | LW9: 0 | LX9: 0 | LZ9: 0 | MA9: 0 | MB9: 0 | MC9: 0 | MD9: 0 | ME9: 0 | MF9: 0 | MG9: 0 | MH9: 0 | MI9: 0 | MJ9: 0 | ML9: YES | MM9: 1 | MN9: 0 | MR9: 0 | MV9: 0 | MZ9: 1 | NA9: Guia De Recursos | NB9: Victims/Survivors | NC9: Spanish | ND9: 0 | NH9: 0 | NL9: 0 | NP9: 0 | NT9: 0 | NY9: 0 | OC9: 0 | OG9: 0 | OK9: NO | OL9: 0 | OM9: 0 | ON9: 0 | OO9: 0 | OP9: 0 | OQ9: 0 | OR9: 0 | OS9: 0 | OT9: 0 | OU9: 0 | OV9: 0 | OW9: 0 | OX9: 0 | OY9: 0 | OZ9: 0 | PA9: 0 | PB9: 0 | PC9: 0 | PD9: 0 | PE9: 0 | PF9: 0 | PG9: 0 | PH9: 0 | PI9: 0 | PJ9: 0 | PK9: 0 | PL9: 0 | PM9: 0 | PO9: NO | PP9: 0 | PQ9: 0 | PR9: 0 | PS9: 0 | PT9: 0 | PU9: 0 | PV9: 0 | PW9: 0 | PX9: 0 | PY9: 0 | PZ9: 0 | QA9: 0 | QB9: 0 | QD9: 0 | QE9: 0 | QF9: 0 | QG9: 0 | QH9: 0 | QI9: 0 | QJ9: 0 | QK9: 0 | QL9: 0 | QM9: 0 | QN9: 0 | QO9: 0 | QP9: 0 | QQ9: 0 | QR9: 0 | QS9: 0 | QT9: NO | QU9: 0 | QV9: 0 | QW9: 0 | QX9: 0 | QY9: 0 | QZ9: 0 | RA9: 0 | RB9: 0 | RC9: 0 | RD9: 0 | RE9: 0 | RF9: 0 | RG9: 0 | RH9: 0 | RI9: 0 | RJ9: 0 | RK9: 0 | RL9: 0 | RM9: 0 | RN9: 0 | RO9: 0 | RP9: 0 | RQ9: 0 | RR9: 0 | RS9: 0 | RT9: 0 | RU9: 0 | RV9: 0 | RW9: 0 | RX9: 0 | RY9: 0 | RZ9: 0 | SA9: 0 | SB9: 0 | SC9: 0 | SD9: 0 | SE9: 0 | SF9: 0 | SG9: 0 | SH9: 0 | SI9: 0 | SJ9: 0 | SK9: 0 | SL9: 0 | SM9: 0 | SN9: 0 | SP9: 0 | SQ9: 0 | SR9: 0 | SS9: 0 | ST9: 0 | SU9: YES | SV9: 1 | SW9: 3 | SX9: 198 | SY9: 5 | SZ9: 206 | TA9: 0 | TB9: 0 | TC9: 0 | TD9: 0 | TE9: 3 | TF9: 198 | TG9: 5 | TH9: 206 | TI9: 0 | TJ9: 0 | TK9: 0 | TL9: 0 | TM9: 3 | TN9: 198 | TO9: 5 | TP9: 206 | TQ9: 3 | TR9: 0 | TS9: 0 | TT9: 0 | TU9: 0 | TV9: 198 | TW9: 0 | TX9: 0 | TY9: 0 | TZ9: 0 | UA9: 5 | UB9: 0 | UC9: 3 | UD9: 198 | UE9: 5 | UF9: 0 | UG9: 0 | UH9: 2 | UI9: 0 | UJ9: 2 | UK9: 0 | UL9: 0 | UM9: 0 | UN9: 0 | UO9: 0 | UP9: 0 | UQ9: 0 | UR9: 0 | US9: 0 | UT9: 0 | UU9: 0 | UV9: 0 | UW9: 0 | UX9: 0 | UY9: 0 | UZ9: 0 | VA9: 0 | VB9: 0 | VC9: 0 | VD9: 0 | VE9: 0 | VF9: 0 | VG9: 0 | VH9: 0 | VI9: 0 | VJ9: 0 | VK9: 0 | VL9: 0 | VM9: 0 | VN9: 0 | VO9: 0 | VP9: 0 | VR9: 3 | VS9: 8 | VT9: 7 | VU9: 63 | VV9: 1 | VW9: 119 | VX9: 0 | VY9: 5 | VZ9: 206 | WA9: 164 | WB9: 42 | WC9: 0 | WD9: 0 | WE9: 206 | WF9: 5 | WG9: 42 | WH9: 143 | WI9: 16 | WJ9: 0 | WK9: 206 | WL9: 1 | WM9: 2 | WN9: 9 | WO9: 0 | WP9: 0 | WQ9: 0 | WR9: 0 | WS9: 0 | WT9: 155 | WU9: 0 | WV9: 0 | WW9: 43 | WX9: 0 | WY9: 2 | WZ9: 0 | XA9: 5 | XB9: 0 | XC9: 0 | XD9: 0 | XE9: 1 | XF9: 0 | XG9: 0 | XH9: 0 | XI9: 0 | XJ9: 3 | XK9: 198 | XL9: 5 | XM9: 7 | XN9: 7 | XO9: 170 | XP9: 170 | XQ9: 23 | XR9: 23 | XS9: 0 | XT9: 0 | XU9: 0 | XV9: 0 | XW9: 9 | XX9: 9 | XY9: 0 | XZ9: 0 | YA9: 0 | YB9: 0 | YC9: 1 | YD9: 1 | YF9: 0 | YG9: 0 | YH9: 10 | YI9: 2 | YJ9: 12 | YK9: 0 | YL9: 0 | YM9: 0 | YN9: 0 | YO9: 0 | YP9: 0 | YQ9: 0 | YR9: 0 | YS9: 0 | YT9: 0 | YU9: 0 | YV9: 0 | YW9: 0 | YX9: 0 | YY9: 0 | YZ9: 0 | ZA9: 0 | ZB9: 0 | ZC9: NO | ZD9: 0 | ZE9: 0 | ZF9: 0 | ZG9: 0 | ZH9: 0 | ZI9: 0 | ZJ9: 0 | ZK9: 0 | ZL9: 0 | ZM9: 0 | ZN9: 0 | ZO9: 0 | ZP9: 0 | ZQ9: 0 | ZR9: 0 | ZS9: 0 | ZT9: 0 | ZU9: 0 | ZV9: 0 | ZW9: 0 | ZY9: 0 | ZZ9: 0 | AAA9: 0 | AAB9: 0 | AAC9: 0 | AAD9: 0 | AAE9: 0 | AAF9: 0 | AAG9: 0 | AAH9: 0 | AAI9: 0 | AAJ9: 0 | AAK9: 0 | AAL9: 0 | AAM9: 0 | AAN9: 0 | AAO9: 0 | AAP9: 0 | AAQ9: 0 | AAR9: 0 | AAS9: 0 | AAT9: 0 | AAU9: 0 | AAV9: 0 | AAW9: 0 | AAX9: 0 | AAY9: 0 | AAZ9: 0 | ABA9: 0 | ABB9: 0 | ABC9: 0 | ABD9: 0 | ABE9: 0 | ABF9: 0 | ABG9: 0 | ABH9: 0 | ABI9: 0 | ABJ9: 0 | ABK9: 0 | ABL9: 0 | ABM9: 0 | ABN9: 0 | ABO9: 0 | ABP9: 0 | ABQ9: 0 | ABR9: 0 | ABS9: 0 | ABT9: 0 | ABU9: 0 | ABV9: 0 | ABW9: 0 | ABX9: 0 | ABY9: 0 | ABZ9: 0 | ACA9: 0 | ACB9: 0 | ACC9: 0 | ACD9: 0 | ACE9: 0 | ACF9: 0 | ACG9: 0 | ACH9: 0 | ACI9: 0 | ACJ9: 0 | ACK9: 0 | ACL9: 0 | ACM9: 0 | ACN9: 0 | ACO9: 0 | ACP9: 0 | ACQ9: 0 | ACR9: 0 | ACS9: 0 | ACT9: 0 | ACU9: 0 | ACV9: 0 | ACW9: 0 | ACX9: 0 | ACY9: 0 | ACZ9: 0 | ADA9: 0 | ADB9: 0 | ADC9: 0 | ADD9: 0 | ADE9: 0 | ADF9: 0 | ADG9: 0 | ADH9: 0 | ADI9: 0 | ADJ9: 0 | ADK9: 0 | ADL9: 0 | ADM9: 0 | ADN9: 0 | ADO9: 0 | ADP9: 0 | ADQ9: 0 | ADR9: 0 | ADS9: 0 | ADT9: 0 | ADU9: 0 | ADV9: 0 | ADW9: 0 | ADX9: 0 | ADY9: 0 | ADZ9: 0 | AEA9: 0 | AEB9: 0 | AEC9: 0 | AED9: 0 | AEE9: 0 | AEF9: 0 | AEG9: 0 | AEH9: 0 | AEI9: 0 | AEJ9: 0 | AEK9: 0 | AEL9: 0 | AEM9: 0 | AEN9: 0 | AEO9: 0 | AEP9: 0 | AEQ9: 0 | AER9: 0 | AES9: 0 | AET9: 0 | AEU9: 0 | AEV9: 0 | AEW9: 0 | AEX9: 0 | AEY9: 0 | AEZ9: 0 | AFA9: 0 | AFB9: 0 | AFC9: 0 | AFD9: 0 | AFE9: 0 | AFF9: 0 | AFG9: 0 | AFI9: 0 | AFJ9: 0 | AFK9: 0 | AFL9: 0 | AFM9: 0 | AFN9: 0 | AFO9: 0 | AFP9: 0 | AFQ9: NO | AFR9: 0 | AFS9: 0 | AFT9: 0 | AFU9: 0 | AFV9: 0 | AFW9: 0 | AFX9: 0 | AFY9: 0 | AFZ9: 0 | AGA9: 0 | AGB9: 0 | AGC9: 0 | AGD9: 0 | AGE9: 0 | AGF9: 0 | AGG9: 0 | AGH9: 0 | AGI9: 0 | AGJ9: 0 | AGK9: 0 | AGL9: 0 | AGM9: 0 | AGN9: 0 | AGO9: 0 | AGP9: 0 | AGQ9: 0 | AGR9: 0 | AGS9: 0 | AGT9: 0 | AGU9: 0 | AGV9: 0 | AGW9: 0 | AGX9: 0 | AGY9: 0 | AGZ9: 0 | AHA9: 0 | AHB9: 0 | AHC9: 0 | AHD9: 0 | AHE9: 0 | AHF9: 0 | AHG9: 0 | AHH9: 0 | AHI9: 0 | AHJ9: 0 | AHK9: 0 | AHL9: 0 | AHM9: 0 | AHN9: 0 | AHO9: 0 | AHP9: NO | AHQ9: 0 | AHR9: 0 | AHS9: 0 | AHT9: 0 | AHU9: 0 | AHV9: 0 | AHW9: 0 | AHX9: 0 | AHY9: 0 | AHZ9: 0 | AIA9: 0 | AIB9: 0 | AIC9: 0 | AID9: 0 | AIE9: 0 | AIF9: 0 | AIG9: 0 | AIH9: 0 | AII9: 0 | AIJ9: 0 | AIK9: 0 | AIL9: 0 | AIM9: 0 | AIN9: 0 | AIO9: 0 | AIQ9: 0 | AIR9: 0 | AIS9: 0 | AIT9: 0 | AIU9: 0 | AIV9: 0 | AIW9: 0 | AIX9: 0 | AIY9: 0 | AIZ9: 0 | AJA9: 0 | AJB9: 0 | AJC9: 0 | AJD9: 0 | AJE9: 0 | AJF9: 0 | AJG9: 0 | AJH9: 0 | AJI9: 0 | AJJ9: 0 | AJK9: 0 | AJL9: 0 | AJM9: 0 | AJN9: 0 | AJO9: 0 | AJP9: 0 | AJQ9: 0 | AJR9: 0 | AJS9: 0 | AJT9: 0 | AJU9: 0 | AJV9: 0 | AJW9: 0 | AJX9: 0 | AJY9: 0 | AJZ9: 0 | AKA9: 0 | AKB9: 0 | AKC9: 0 | AKD9: 0 | AKE9: 0 | AKF9: 0 | AKG9: 0 | AKH9: 0 | AKI9: 0 | AKJ9: 0 | AKK9: 0 | AKL9: 0 | AKM9: 0 | AKN9: 0 | AKO9: 0 | AKP9: 0 | AKQ9: 0 | AKR9: 0 | AKS9: 0 | AKT9: 0 | AKU9: 0 | AKV9: 0 | AKW9: 0 | AKX9: 0 | AKY9: 0 | AKZ9: 0 | ALA9: 0 | ALB9: 0 | ALC9: 0 | ALD9: 0 | ALE9: 0 | ALF9: 0 | ALG9: 0 | ALH9: 0 | ALI9: 0 | ALJ9: 0 | ALK9: 0 | ALL9: 0 | ALM9: 0 | ALN9: 0 | ALO9: 0 | ALP9: 0 | ALQ9: 0 | ALR9: 0 | ALS9: 0 | ALT9: 0 | ALU9: 0 | ALV9: 0 | ALW9: 0 | ALX9: 0 | ALY9: 0 | ALZ9: 0 | AMA9: 0 | AMB9: 0 | AMC9: 0 | AMD9: 0 | AME9: 0 | AMF9: 0 | AMG9: 0 | AMH9: 0 | AMI9: 0 | AMJ9: 0 | AMK9: 0 | AML9: 0 | AMM9: 0 | AMN9: 0 | AMO9: 0 | AMP9: 0 | AMQ9: 0 | AMR9: 0 | AMS9: 0 | AMT9: 0 | AMU9: 0 | AMV9: 0 | AMW9: 0 | AMX9: 0 | AMY9: 0 | AMZ9: 0 | ANA9: 0 | ANB9: 0 | ANC9: 0 | AND9: 0 | ANE9: 0 | ANF9: 0 | ANG9: 0 | ANH9: 0 | ANI9: 0 | ANJ9: 0 | ANK9: 0 | ANL9: 0 | ANM9: 0 | ANN9: 0 | ANO9: 0 | ANP9: 0 | ANQ9: 0 | ANR9: 0 | ANS9: 0 | ANT9: 0 | ANU9: 0 | ANV9: 0 | ANW9: 0 | ANX9: 0 | ANY9: 0 | ANZ9: 0 | AOA9: 0 | AOB9: 0 | AOC9: 0 | AOD9: 0 | AOE9: 0 | AOF9: 0 | AOG9: 0 | AOH9: 0 | AOI9: 0 | AOJ9: 0 | AOK9: 0 | AOL9: 0 | AOM9: 0 | AOO9: 0 | AOP9: 0 | AOQ9: 0 | AOR9: 0 | AOS9: 0 | AOT9: 0 | AOU9: 0 | AOV9: 0 | AOW9: 0 | AOX9: 0 | AOY9: 0 | AOZ9: 0 | APA9: 0 | APB9: 0 | APC9: 0 | APD9: 0 | APE9: 0 | APF9: 0 | APG9: 0 | APH9: 0 | API9: 0 | APJ9: 0 | APK9: 0 | APL9: 0 | APM9: 0 | APN9: 0 | APO9: 0 | APP9: 0 | APQ9: 0 | APR9: 0 | APS9: 0 | APT9: 0 | APU9: 0 | APV9: 0 | APW9: 0 | APX9: 0 | APY9: 0 | APZ9: NO | AQA9: 0 | AQB9: 0 | AQC9: 0 | AQD9: 0 | AQE9: 0 | AQF9: 0 | AQG9: 0 | AQH9: 0 | AQI9: 0 | AQJ9: 0 | AQK9: 0 | AQL9: 0 | AQM9: 0 | AQN9: 0 | AQO9: 0 | AQP9: 0 | AQQ9: 0 | AQR9: 0 | AQS9: 0 | AQT9: 0 | AQU9: 0 | AQV9: 0 | AQW9: 0 | AQX9: 0 | AQY9: 0 | AQZ9: 0 | ARA9: 0 | ARB9: 0 | ARC9: 0 | ARD9: 0 | ARE9: 0 | ARF9: 0 | ARG9: 0 | ARH9: 0 | ARI9: 0 | ARJ9: 0 | ARK9: 0 | ARL9: 0 | ARM9: 0 | ARN9: 0 | ARO9: 0 | ARP9: 0 | ARQ9: 0 | ARR9: 0 | ARS9: 0 | ART9: 0 | ARU9: 0 | ARV9: 0 | ARW9: 0 | ARX9: 0 | ARY9: 0 | ARZ9: 0 | ASA9: 0 | ASB9: 0 | ASC9: 0 | ASD9: 0 | ASE9: 0 | ASF9: 0 | ASG9: 0 | ASH9: 0 | ASI9: 0 | ASJ9: 0 | ASK9: 0 | ASL9: 0 | ASM9: 0 | ASN9: 0 | ASO9: 0 | ASP9: 0 | ASQ9: 0 | ASR9: 0 | ASS9: 0 | AST9: 0 | ASU9: 0 | ASV9: 0 | ASW9: 0 | ASX9: 0 | ASY9: 0 | ASZ9: 0 | ATA9: 0 | ATB9: 0 | ATC9: 0 | ATD9: 0 | ATE9: 0 | ATF9: 0 | ATG9: 0 | ATH9: 0 | ATI9: 0 | ATJ9: 0 | ATK9: 0 | ATL9: 0 | ATM9: 0 | ATN9: 0 | ATO9: 0 | ATP9: 0 | ATQ9: 0 | ATR9: 0 | ATS9: 0 | ATT9: 0 | ATU9: 0 | ATV9: 0 | ATW9: 0 | ATX9: 0 | ATY9: 0 | ATZ9: 0 | AUA9: 0 | AUB9: NO | AUC9: 0 | AUD9: 0 | AUE9: 0 | AUF9: 0 | AUG9: 0 | AUH9: 0 | AUI9: 0 | AUJ9: 0 | AUK9: 0 | AUL9: 0 | AUM9: 0 | AUN9: 0 | AUO9: 0 | AUP9: 0 | AUQ9: 0 | AUR9: 0 | AUS9: 0 | AUT9: 0 | AUU9: 0 | AUV9: 0 | AUW9: 0 | AUX9: 0 | AUY9: 0 | AUZ9: 0 | AVA9: 0 | AVB9: 0 | AVC9: 0 | AVD9: 0 | AVE9: 0 | AVF9: 0 | AVG9: 0 | AVH9: 0 | AVI9: 0 | AVJ9: 0 | AVK9: 0 | AVL9: 0 | AVM9: 0 | AVN9: 0 | AVO9: 0 | AVP9: 0 | AVQ9: 0 | AVR9: 0 | AVS9: 0 | AVT9: 0 | AVU9: 0 | AVV9: 0 | AVW9: 0 | AVX9: 0 | AVY9: 0 | AVZ9: 0 | AWA9: 0 | AWB9: 0 | AWC9: 0 | AWD9: 0 | AWE9: NO | AWF9: 0 | AWG9: 0 | AWH9: 0 | AWI9: 0 | AWJ9: 0 | AWL9: 0 | AWM9: 0 | AWN9: 0 | AWO9: 0 | AWP9: HPD was able to provide training to law enforcement during this reporting period , far exceeding our training and education goals. Victims benefit when officers and advocates better understand the nature of complex trauma, the cycle of violence and the dy | AWT9: Regarding the higher percentage of male victims/survivors, the cases with male victims are not prosecuted as often, due to a fair amount of the cases being domestic violence harassment, which isn’t prosecuted at as high a rate in general. Our domestic vio | AWZ9: Short-term and long-term affordable housing for victims of domestic violence continues to be one of the top unmet needs in Washington County. Abusers are often either the only source of family income or have long been in control of the finances; leaving victims/survivors struggling to figure out sustainable options for future independence. The options are even more limited for those individuals without children, as DHS does offer victims with children a small grant for moving costs, however in this community, it does not stretch very far. HPD has made many strides in being able to provide emergency services to our victims as; such as temporary hotel stay, but we are extremely limited to a 1 to 2 night temporary stay. According to the 13th Annual Domestic Violence Counts National Summary (2018, Sep-13), nationally there were 74,823 victims that received services in one day with an additional 9,183 unmet requests for domestic violence services, of which 74% (6,972) were for housing. The Oregon Summary shows: 1,152 victims served in one day and 179 unmet requests for services in one day, of which 79% (142) were for housing. A victims inability to become financial independent and stable is a strong mechanism for power and control held over victims by their abusers. Offenders use this reality as a means to further their position and make it much harder to victims to break free from the cycle of abuse. Hillsboro is in the beginning stages of a significant South expansion and with the increasing popularity of the area and its surrounding attractive industries, housing costs will continue to remain high. Another area of need continually remains surrounding the area of mental heath services and follow up counseling. Local resources experience full wait-lists, under-staffing and unstable funding sources that create gaps in service for victims of domestic violence. Those that have experience complex trauma and are seeking supportive in order to create change, need reasonable access to mental health services. Prevention is also the best prevention and if these services were more readily available to community members experiencing trauma and acute stressors, the potential to lesson incidents of violence exists. Reduction of harm being the primary goal, but also providing stable, accessible mental health options to victims/suvivors would be a natural benefit to this gap being addressed. Significant gaps in services still remain for youth victims of interpersonal violence. All to often advocates and officers respond to domestic violence calls for teenagers that are in need of assistance leaving their relationship with abusers. Not only are their extreme limitations for what law enforcement officers and prosecutors can do with youth perpetrators of domestic violence, there are equally as many community services missing for youth victims. This ties back into the gaps that exist for all victims of domestic violence regarding safe housing, mental heath supportive services and long term, sustainable options for remaining independent beyond the controlling relationships they've experienced. | AXB9: STOP funding has allowed HPDs Domestic Violence Response Program to grow and expand services to the community in way sthat would otherwise not have been possible. The funding of full-time and part-time Jessica Gonzales program assistants have made it possible to continue working along-side officers, in response to victims of domestic violence, sexual assault, stalking and teen dating violence. Having the staff to maintain efficient follow-up communication with victims after the initial incident, we've been able to score the risk assessments (ODARA), identify high lethality cases and communicate the importance of short-term and long-term safety to victims through-out the criminal process. Funding allowed HPD to get an Emergency Services Program rolled out to patrol, detectives and advocates for victims of domestic violence. HPD now has the ability to assist victims with a variety of basic needs on-scene, such as quick food, grocery, fuel gift cards, pre-paid cell phones and short-term hotel stay access. HPD has been able to equip each of our domestic violence advocates with these gift card emergency services, as well as establish a lock box for officers and detectives to access for use with victims as needed. Funding also allowed the program to aid victims with transportation cost to family and friends for longer term stay, purchase diapers, clothing or pay for damaged tires, as examples, in order to get to and from court dates and maintain independence from their abuser. Although these funds are a small amount of assistance, being able to offer a tangible basic necessity to someone experiencing a personal crisis can go a very long way in supporting their efforts to break free from dependence of their abuser. HPD has also been able to expand and redevelop its DVRT training program and volunteer team as a whole. Not only was HPD able to grow its advocacy team from 6 advocates a year ago to a team of 21 but are currently in the process of training another 10 advocates; working towards meeting our goal of maintaining 40 DVRT advocates year round. In order to meet this goal, we reformatted our 40 hour advocate training into a 50% in-house and 50% self-paced online training program. We felt it necessary to honor volunteers time and also provide the required amount of training to be a successful advocate. With the newer format, we believe we're able to do both. HPD strives to hold three training sessions a year to combat the natural attrition associated with volunteer-ism and understanding that volunteers will come and go. We do not want that constant to effect the services and standards that we provide to our community. STOP funding has also made HPDs goal of both receiving and providing continual education and training possible by funding training opportunities for law enforcement officers, detectives, staff and advocates. HPD was able to send three new advocates and one staff member to the State Victims Assistance Academy in Salem, one advocate to the Advanced Academy, two detectives and one advocate to an international conference on DV/SA in San Diego and the two family violence detectives to a DV summit in Texas. HPD also provided specialized training on trauma and resilience for officers, detectives, staff and advocates. An important goal of the advocacy program is to continually offer current, relevant training and education to not only law enforcement, but advocates that are the first responders working with victims of domestic violence and sexual assault. It's crucial that HPD is trauma informed and has a working knowledge when it comes to assisting individuals affected by complex trauma. As an advocacy program, HPD strives to provide education and training surrounding the topics of domestic violence, sexual assault, stalking and teen dating violence to community members, schools, community partners and agencies.
A10: 40400 | B10: OR40400 | C10: 2020-01-30 | D10: 2019 | E10: Clackamas Women's Services | F10: Joint-2019-CWS-00009 | O10: GI5_OrgType_VicServ_Dual | Q10: NO | R10: NO | S10: Erin | T10: K | U10: Henkelman | V10: Clackamas Women's Services | W10: 256 Warner Milne Rd. | X10: Oregon City | Y10: OR | Z10: 97045 | AA10: 503.655.8600 | AB10: 503.557.5808 | AC10: erinh@cwsor.org | AD10: NO | AF10: 7 | AG10: 92 | AH10: 1 | AI10: 100 | AJ10: YES | AK10: 1 | AL10: 0 | AM10: 0 | AN10: 0 | AO10: 0 | AP10: 0 | AQ10: 0 | AR10: 0 | AS10: 0 | AT10: 0 | AU10: 0 | AV10: 0 | AW10: 0 | AX10: 0 | AY10: 0 | AZ10: 0 | BA10: 0 | BB10: 0 | BC10: 0.5 | BD10: 0 | BF10: 0 | BG10: 0.5 | BH10: 0 | BI10: 0 | BJ10: 0 | BK10: 0 | BL10: 1 | BM10: 0 | BN10: 0 | BO10: 0 | BP10: 0 | BQ10: 0 | BR10: 0 | BS10: 0 | BT10: 0 | BU10: 0 | BV10: 0 | BW10: 0 | BX10: 0 | BY10: 0 | BZ10: 0 | CA10: 0 | CB10: NO | CC10: 0 | CD10: 0 | CE10: 0 | CF10: 0 | CG10: 0 | CH10: 0 | CI10: 0 | CJ10: 0 | CK10: 0 | CL10: 0 | CM10: 0 | CN10: 0 | CO10: 0 | CP10: 0 | CQ10: 0 | CR10: 0 | CS10: 0 | CT10: 0 | CU10: 0 | CV10: 0 | CW10: 0 | CX10: 0 | CY10: 0 | CZ10: 0 | DA10: 0 | DB10: 0 | DC10: 0 | DD10: 0 | DF10: 0 | DG10: 0 | DH10: 0 | DI10: 0 | DJ10: 0 | DK10: 0 | DL10: 0 | DM10: 0 | DN10: 0 | DO10: 0 | DP10: 0 | DQ10: 0 | DR10: 0 | DS10: 0 | DT10: 0 | DV10: 0 | DW10: 0 | DX10: 0 | DY10: 0 | DZ10: 0 | EA10: 0 | EB10: 0 | EC10: 0 | ED10: 0 | EE10: 0 | EF10: 0 | EG10: 0 | EH10: 0 | EI10: 0 | EJ10: 0 | EK10: 0 | EL10: 0 | EM10: 0 | EN10: 0 | EO10: 0 | EQ10: 0 | ER10: 0 | ES10: 0 | ET10: 0 | EU10: 0 | EV10: 0 | EW10: 0 | EX10: 0 | EY10: 0 | EZ10: 0 | FA10: 0 | FB10: 0 | FC10: 0 | FD10: 0 | FE10: 0 | FF10: 0 | FG10: 0 | FI10: 0 | FJ10: 0 | FK10: 0 | FL10: 0 | FM10: 0 | FO10: NO | FP10: 0 | FQ10: 0 | FR10: 0 | FS10: 0 | FT10: 0 | FU10: 0 | FV10: 0 | FW10: 0 | FX10: 0 | FY10: 0 | FZ10: 0 | GA10: 0 | GB10: 0 | GC10: 0 | GD10: 0 | GF10: 0 | GG10: 0 | GH10: 0 | GI10: 0 | GJ10: 0 | GK10: 0 | GL10: 0 | GM10: 0 | GN10: 0 | GO10: 0 | GP10: 0 | GQ10: 0 | GR10: 0 | GS10: 0 | GT10: 0 | GV10: 0 | GW10: 0 | GX10: 0 | GY10: 0 | GZ10: 0 | HA10: 0 | HB10: 0 | HC10: 0 | HD10: 0 | HE10: 0 | HF10: 0 | HG10: 0 | HH10: 0 | HI10: 0 | HJ10: 0 | HK10: 0 | HL10: 0 | HN10: Monthly | HP10: Monthly | HQ10: Monthly | HR10: Monthly | HS10: Monthly | HT10: Daily | HU10: Monthly | HV10: Daily | HW10: Monthly | HX10: Weekly | HY10: Monthly | HZ10: Weekly | IA10: Monthly | IB10: Daily | IC10: Monthly | ID10: Daily | IE10: Monthly | IF10: Daily | IG10: Weekly | IH10: Weekly | II10: Monthly | IJ10: Daily | IN10: Monthly | IP10: Weekly | IQ10: Monthly | IW10: NO | IX10: 0 | IY10: 0 | IZ10: 0 | JA10: 0 | JB10: 0 | JC10: 0 | JD10: 0 | JE10: 0 | JF10: 0 | JG10: 0 | JH10: 0 | JI10: 0 | JJ10: 0 | JK10: 0 | JM10: 0 | JN10: 0 | JO10: 0 | JP10: 0 | JQ10: 0 | JR10: 0 | JS10: 0 | JT10: 0 | JU10: 0 | JV10: 0 | JW10: 0 | JX10: 0 | JY10: 0 | JZ10: 0 | KA10: 0 | KB10: 0 | KC10: 0 | KD10: 0 | KE10: 0 | KF10: 0 | KG10: 0 | KI10: 0 | KJ10: 0 | KK10: 0 | KL10: 0 | KM10: 0 | KN10: 0 | KO10: 0 | KP10: 0 | KQ10: 0 | KR10: 0 | KS10: 0 | KT10: 0 | KU10: 0 | KV10: 0 | KX10: 0 | KY10: 0 | KZ10: 0 | LA10: 0 | LB10: 0 | LC10: 0 | LD10: 0 | LE10: 0 | LF10: 0 | LG10: 0 | LH10: 0 | LI10: 0 | LJ10: 0 | LK10: 0 | LL10: 0 | LM10: 0 | LN10: 0 | LP10: 0 | LQ10: 0 | LR10: 0 | LS10: 0 | LT10: 0 | LU10: 0 | LV10: 0 | LW10: 0 | LX10: 0 | LZ10: 0 | MA10: 0 | MB10: 0 | MC10: 0 | MD10: 0 | ME10: 0 | MF10: 0 | MG10: 0 | MH10: 0 | MI10: 0 | MJ10: 0 | ML10: NO | MM10: 0 | MN10: 0 | MR10: 0 | MV10: 0 | MZ10: 0 | ND10: 0 | NH10: 0 | NL10: 0 | NP10: 0 | NT10: 0 | NY10: 0 | OC10: 0 | OG10: 0 | OK10: NO | OL10: 0 | OM10: 0 | ON10: 0 | OO10: 0 | OP10: 0 | OQ10: 0 | OR10: 0 | OS10: 0 | OT10: 0 | OU10: 0 | OV10: 0 | OW10: 0 | OX10: 0 | OY10: 0 | OZ10: 0 | PA10: 0 | PB10: 0 | PC10: 0 | PD10: 0 | PE10: 0 | PF10: 0 | PG10: 0 | PH10: 0 | PI10: 0 | PJ10: 0 | PK10: 0 | PL10: 0 | PM10: 0 | PO10: NO | PP10: 0 | PQ10: 0 | PR10: 0 | PS10: 0 | PT10: 0 | PU10: 0 | PV10: 0 | PW10: 0 | PX10: 0 | PY10: 0 | PZ10: 0 | QA10: 0 | QB10: 0 | QD10: 0 | QE10: 0 | QF10: 0 | QG10: 0 | QH10: 0 | QI10: 0 | QJ10: 0 | QK10: 0 | QL10: 0 | QM10: 0 | QN10: 0 | QO10: 0 | QP10: 0 | QQ10: 0 | QR10: 0 | QS10: 0 | QT10: NO | QU10: 0 | QV10: 0 | QW10: 0 | QX10: 0 | QY10: 0 | QZ10: 0 | RA10: 0 | RB10: 0 | RC10: 0 | RD10: 0 | RE10: 0 | RF10: 0 | RG10: 0 | RH10: 0 | RI10: 0 | RJ10: 0 | RK10: 0 | RL10: 0 | RM10: 0 | RN10: 0 | RO10: 0 | RP10: 0 | RQ10: 0 | RR10: 0 | RS10: 0 | RT10: 0 | RU10: 0 | RV10: 0 | RW10: 0 | RX10: 0 | RY10: 0 | RZ10: 0 | SA10: 0 | SB10: 0 | SC10: 0 | SD10: 0 | SE10: 0 | SF10: 0 | SG10: 0 | SH10: 0 | SI10: 0 | SJ10: 0 | SK10: 0 | SL10: 0 | SM10: 0 | SN10: 0 | SP10: 0 | SQ10: 0 | SR10: 0 | SS10: 0 | ST10: 0 | SU10: YES | SV10: 1 | SW10: 5 | SX10: 64 | SY10: 1 | SZ10: 70 | TA10: 0 | TB10: 0 | TC10: 0 | TD10: 0 | TE10: 5 | TF10: 64 | TG10: 1 | TH10: 70 | TI10: 0 | TJ10: 0 | TK10: 0 | TL10: 0 | TM10: 5 | TN10: 64 | TO10: 1 | TP10: 70 | TQ10: 5 | TR10: 0 | TS10: 0 | TT10: 0 | TU10: 0 | TV10: 64 | TW10: 0 | TX10: 0 | TY10: 0 | TZ10: 0 | UA10: 1 | UB10: 0 | UC10: 5 | UD10: 64 | UE10: 1 | UF10: 0 | UG10: 0 | UH10: 0 | UI10: 0 | UJ10: 0 | UK10: 0 | UL10: 0 | UM10: 0 | UN10: 0 | UO10: 0 | UP10: 0 | UQ10: 0 | UR10: 0 | US10: 0 | UT10: 0 | UU10: 0 | UV10: 0 | UW10: 0 | UX10: 0 | UY10: 0 | UZ10: 0 | VA10: 0 | VB10: 0 | VC10: 0 | VD10: 0 | VE10: 0 | VF10: 0 | VG10: 0 | VH10: 0 | VI10: 0 | VJ10: 0 | VK10: 0 | VL10: 0 | VM10: 0 | VN10: 0 | VO10: 0 | VP10: 0 | VR10: 0 | VS10: 2 | VT10: 5 | VU10: 9 | VV10: 0 | VW10: 54 | VX10: 0 | VY10: 0 | VZ10: 70 | WA10: 65 | WB10: 4 | WC10: 1 | WD10: 0 | WE10: 70 | WF10: 2 | WG10: 5 | WH10: 56 | WI10: 7 | WJ10: 0 | WK10: 70 | WL10: 1 | WM10: 22 | WN10: 1 | WO10: 0 | WP10: 1 | WQ10: 0 | WR10: 21 | WS10: 1 | WT10: 52 | WU10: 0 | WV10: 0 | WW10: 7 | WX10: 0 | WY10: 2 | WZ10: 5 | XA10: 0 | XB10: 1 | XC10: 0 | XD10: 1 | XE10: 1 | XF10: 0 | XG10: 0 | XH10: 0 | XI10: 0 | XJ10: 5 | XK10: 64 | XL10: 1 | XM10: 16 | XN10: 18 | XO10: 0 | XP10: 0 | XQ10: 0 | XR10: 0 | XS10: 24 | XT10: 24 | XU10: 0 | XV10: 0 | XW10: 0 | XX10: 0 | XY10: 1 | XZ10: 1 | YA10: 5 | YB10: 10 | YC10: 70 | YD10: 163 | YF10: 0 | YG10: 0 | YH10: 0 | YI10: 0 | YJ10: 0 | YK10: 0 | YL10: 0 | YM10: 0 | YN10: 0 | YO10: 0 | YP10: 0 | YQ10: 0 | YR10: 0 | YS10: 0 | YT10: 0 | YU10: 8 | YV10: 0 | YW10: 6 | YX10: 0 | YY10: 0 | YZ10: 0 | ZA10: 0 | ZB10: 0 | ZC10: NO | ZD10: 0 | ZE10: 0 | ZF10: 0 | ZG10: 0 | ZH10: 0 | ZI10: 0 | ZJ10: 0 | ZK10: 0 | ZL10: 0 | ZM10: 0 | ZN10: 0 | ZO10: 0 | ZP10: 0 | ZQ10: 0 | ZR10: 0 | ZS10: 0 | ZT10: 0 | ZU10: 0 | ZV10: 0 | ZW10: 0 | ZY10: 0 | ZZ10: 0 | AAA10: 0 | AAB10: 0 | AAC10: 0 | AAD10: 0 | AAE10: 0 | AAF10: 0 | AAG10: 0 | AAH10: 0 | AAI10: 0 | AAJ10: 0 | AAK10: 0 | AAL10: 0 | AAM10: 0 | AAN10: 0 | AAO10: 0 | AAP10: 0 | AAQ10: 0 | AAR10: 0 | AAS10: 0 | AAT10: 0 | AAU10: 0 | AAV10: 0 | AAW10: 0 | AAX10: 0 | AAY10: 0 | AAZ10: 0 | ABA10: 0 | ABB10: 0 | ABC10: 0 | ABD10: 0 | ABE10: 0 | ABF10: 0 | ABG10: 0 | ABH10: 0 | ABI10: 0 | ABJ10: 0 | ABK10: 0 | ABL10: 0 | ABM10: 0 | ABN10: 0 | ABO10: 0 | ABP10: 0 | ABQ10: 0 | ABR10: 0 | ABS10: 0 | ABT10: 0 | ABU10: 0 | ABV10: 0 | ABW10: 0 | ABX10: 0 | ABY10: 0 | ABZ10: 0 | ACA10: 0 | ACB10: 0 | ACC10: 0 | ACD10: 0 | ACE10: 0 | ACF10: 0 | ACG10: 0 | ACH10: 0 | ACI10: 0 | ACJ10: 0 | ACK10: 0 | ACL10: 0 | ACM10: 0 | ACN10: 0 | ACO10: 0 | ACP10: 0 | ACQ10: 0 | ACR10: 0 | ACS10: 0 | ACT10: 0 | ACU10: 0 | ACV10: 0 | ACW10: 0 | ACX10: 0 | ACY10: 0 | ACZ10: 0 | ADA10: 0 | ADB10: 0 | ADC10: 0 | ADD10: 0 | ADE10: 0 | ADF10: 0 | ADG10: 0 | ADH10: 0 | ADI10: 0 | ADJ10: 0 | ADK10: 0 | ADL10: 0 | ADM10: 0 | ADN10: 0 | ADO10: 0 | ADP10: 0 | ADQ10: 0 | ADR10: 0 | ADS10: 0 | ADT10: 0 | ADU10: 0 | ADV10: 0 | ADW10: 0 | ADX10: 0 | ADY10: 0 | ADZ10: 0 | AEA10: 0 | AEB10: 0 | AEC10: 0 | AED10: 0 | AEE10: 0 | AEF10: 0 | AEG10: 0 | AEH10: 0 | AEI10: 0 | AEJ10: 0 | AEK10: 0 | AEL10: 0 | AEM10: 0 | AEN10: 0 | AEO10: 0 | AEP10: 0 | AEQ10: 0 | AER10: 0 | AES10: 0 | AET10: 0 | AEU10: 0 | AEV10: 0 | AEW10: 0 | AEX10: 0 | AEY10: 0 | AEZ10: 0 | AFA10: 0 | AFB10: 0 | AFC10: 0 | AFD10: 0 | AFE10: 0 | AFF10: 0 | AFG10: 0 | AFI10: 0 | AFJ10: 0 | AFK10: 0 | AFL10: 0 | AFM10: 0 | AFN10: 0 | AFO10: 0 | AFP10: 0 | AFQ10: NO | AFR10: 0 | AFS10: 0 | AFT10: 0 | AFU10: 0 | AFV10: 0 | AFW10: 0 | AFX10: 0 | AFY10: 0 | AFZ10: 0 | AGA10: 0 | AGB10: 0 | AGC10: 0 | AGD10: 0 | AGE10: 0 | AGF10: 0 | AGG10: 0 | AGH10: 0 | AGI10: 0 | AGJ10: 0 | AGK10: 0 | AGL10: 0 | AGM10: 0 | AGN10: 0 | AGO10: 0 | AGP10: 0 | AGQ10: 0 | AGR10: 0 | AGS10: 0 | AGT10: 0 | AGU10: 0 | AGV10: 0 | AGW10: 0 | AGX10: 0 | AGY10: 0 | AGZ10: 0 | AHA10: 0 | AHB10: 0 | AHC10: 0 | AHD10: 0 | AHE10: 0 | AHF10: 0 | AHG10: 0 | AHH10: 0 | AHI10: 0 | AHJ10: 0 | AHK10: 0 | AHL10: 0 | AHM10: 0 | AHN10: 0 | AHO10: 0 | AHP10: NO | AHQ10: 0 | AHR10: 0 | AHS10: 0 | AHT10: 0 | AHU10: 0 | AHV10: 0 | AHW10: 0 | AHX10: 0 | AHY10: 0 | AHZ10: 0 | AIA10: 0 | AIB10: 0 | AIC10: 0 | AID10: 0 | AIE10: 0 | AIF10: 0 | AIG10: 0 | AIH10: 0 | AII10: 0 | AIJ10: 0 | AIK10: 0 | AIL10: 0 | AIM10: 0 | AIN10: 0 | AIO10: 0 | AIQ10: 0 | AIR10: 0 | AIS10: 0 | AIT10: 0 | AIU10: 0 | AIV10: 0 | AIW10: 0 | AIX10: 0 | AIY10: 0 | AIZ10: 0 | AJA10: 0 | AJB10: 0 | AJC10: 0 | AJD10: 0 | AJE10: 0 | AJF10: 0 | AJG10: 0 | AJH10: 0 | AJI10: 0 | AJJ10: 0 | AJK10: 0 | AJL10: 0 | AJM10: 0 | AJN10: 0 | AJO10: 0 | AJP10: 0 | AJQ10: 0 | AJR10: 0 | AJS10: 0 | AJT10: 0 | AJU10: 0 | AJV10: 0 | AJW10: 0 | AJX10: 0 | AJY10: 0 | AJZ10: 0 | AKA10: 0 | AKB10: 0 | AKC10: 0 | AKD10: 0 | AKE10: 0 | AKF10: 0 | AKG10: 0 | AKH10: 0 | AKI10: 0 | AKJ10: 0 | AKK10: 0 | AKL10: 0 | AKM10: 0 | AKN10: 0 | AKO10: 0 | AKP10: 0 | AKQ10: 0 | AKR10: 0 | AKS10: 0 | AKT10: 0 | AKU10: 0 | AKV10: 0 | AKW10: 0 | AKX10: 0 | AKY10: 0 | AKZ10: 0 | ALA10: 0 | ALB10: 0 | ALC10: 0 | ALD10: 0 | ALE10: 0 | ALF10: 0 | ALG10: 0 | ALH10: 0 | ALI10: 0 | ALJ10: 0 | ALK10: 0 | ALL10: 0 | ALM10: 0 | ALN10: 0 | ALO10: 0 | ALP10: 0 | ALQ10: 0 | ALR10: 0 | ALS10: 0 | ALT10: 0 | ALU10: 0 | ALV10: 0 | ALW10: 0 | ALX10: 0 | ALY10: 0 | ALZ10: 0 | AMA10: 0 | AMB10: 0 | AMC10: 0 | AMD10: 0 | AME10: 0 | AMF10: 0 | AMG10: 0 | AMH10: 0 | AMI10: 0 | AMJ10: 0 | AMK10: 0 | AML10: 0 | AMM10: 0 | AMN10: 0 | AMO10: 0 | AMP10: 0 | AMQ10: 0 | AMR10: 0 | AMS10: 0 | AMT10: 0 | AMU10: 0 | AMV10: 0 | AMW10: 0 | AMX10: 0 | AMY10: 0 | AMZ10: 0 | ANA10: 0 | ANB10: 0 | ANC10: 0 | AND10: 0 | ANE10: 0 | ANF10: 0 | ANG10: 0 | ANH10: 0 | ANI10: 0 | ANJ10: 0 | ANK10: 0 | ANL10: 0 | ANM10: 0 | ANN10: 0 | ANO10: 0 | ANP10: 0 | ANQ10: 0 | ANR10: 0 | ANS10: 0 | ANT10: 0 | ANU10: 0 | ANV10: 0 | ANW10: 0 | ANX10: 0 | ANY10: 0 | ANZ10: 0 | AOA10: 0 | AOB10: 0 | AOC10: 0 | AOD10: 0 | AOE10: 0 | AOF10: 0 | AOG10: 0 | AOH10: 0 | AOI10: 0 | AOJ10: 0 | AOK10: 0 | AOL10: 0 | AOM10: 0 | AOO10: 0 | AOP10: 0 | AOQ10: 0 | AOR10: 0 | AOS10: 0 | AOT10: 0 | AOU10: 0 | AOV10: 0 | AOW10: 0 | AOX10: 0 | AOY10: 0 | AOZ10: 0 | APA10: 0 | APB10: 0 | APC10: 0 | APD10: 0 | APE10: 0 | APF10: 0 | APG10: 0 | APH10: 0 | API10: 0 | APJ10: 0 | APK10: 0 | APL10: 0 | APM10: 0 | APN10: 0 | APO10: 0 | APP10: 0 | APQ10: 0 | APR10: 0 | APS10: 0 | APT10: 0 | APU10: 0 | APV10: 0 | APW10: 0 | APX10: 0 | APY10: 0 | APZ10: NO | AQA10: 0 | AQB10: 0 | AQC10: 0 | AQD10: 0 | AQE10: 0 | AQF10: 0 | AQG10: 0 | AQH10: 0 | AQI10: 0 | AQJ10: 0 | AQK10: 0 | AQL10: 0 | AQM10: 0 | AQN10: 0 | AQO10: 0 | AQP10: 0 | AQQ10: 0 | AQR10: 0 | AQS10: 0 | AQT10: 0 | AQU10: 0 | AQV10: 0 | AQW10: 0 | AQX10: 0 | AQY10: 0 | AQZ10: 0 | ARA10: 0 | ARB10: 0 | ARC10: 0 | ARD10: 0 | ARE10: 0 | ARF10: 0 | ARG10: 0 | ARH10: 0 | ARI10: 0 | ARJ10: 0 | ARK10: 0 | ARL10: 0 | ARM10: 0 | ARN10: 0 | ARO10: 0 | ARP10: 0 | ARQ10: 0 | ARR10: 0 | ARS10: 0 | ART10: 0 | ARU10: 0 | ARV10: 0 | ARW10: 0 | ARX10: 0 | ARY10: 0 | ARZ10: 0 | ASA10: 0 | ASB10: 0 | ASC10: 0 | ASD10: 0 | ASE10: 0 | ASF10: 0 | ASG10: 0 | ASH10: 0 | ASI10: 0 | ASJ10: 0 | ASK10: 0 | ASL10: 0 | ASM10: 0 | ASN10: 0 | ASO10: 0 | ASP10: 0 | ASQ10: 0 | ASR10: 0 | ASS10: 0 | AST10: 0 | ASU10: 0 | ASV10: 0 | ASW10: 0 | ASX10: 0 | ASY10: 0 | ASZ10: 0 | ATA10: 0 | ATB10: 0 | ATC10: 0 | ATD10: 0 | ATE10: 0 | ATF10: 0 | ATG10: 0 | ATH10: 0 | ATI10: 0 | ATJ10: 0 | ATK10: 0 | ATL10: 0 | ATM10: 0 | ATN10: 0 | ATO10: 0 | ATP10: 0 | ATQ10: 0 | ATR10: 0 | ATS10: 0 | ATT10: 0 | ATU10: 0 | ATV10: 0 | ATW10: 0 | ATX10: 0 | ATY10: 0 | ATZ10: 0 | AUA10: 0 | AUB10: NO | AUC10: 0 | AUD10: 0 | AUE10: 0 | AUF10: 0 | AUG10: 0 | AUH10: 0 | AUI10: 0 | AUJ10: 0 | AUK10: 0 | AUL10: 0 | AUM10: 0 | AUN10: 0 | AUO10: 0 | AUP10: 0 | AUQ10: 0 | AUR10: 0 | AUS10: 0 | AUT10: 0 | AUU10: 0 | AUV10: 0 | AUW10: 0 | AUX10: 0 | AUY10: 0 | AUZ10: 0 | AVA10: 0 | AVB10: 0 | AVC10: 0 | AVD10: 0 | AVE10: 0 | AVF10: 0 | AVG10: 0 | AVH10: 0 | AVI10: 0 | AVJ10: 0 | AVK10: 0 | AVL10: 0 | AVM10: 0 | AVN10: 0 | AVO10: 0 | AVP10: 0 | AVQ10: 0 | AVR10: 0 | AVS10: 0 | AVT10: 0 | AVU10: 0 | AVV10: 0 | AVW10: 0 | AVX10: 0 | AVY10: 0 | AVZ10: 0 | AWA10: 0 | AWB10: 0 | AWC10: 0 | AWD10: 0 | AWE10: NO | AWF10: 0 | AWG10: 0 | AWH10: 0 | AWI10: 0 | AWJ10: 0 | AWL10: 0 | AWM10: 0 | AWN10: 0 | AWO10: 0 | AWT10: Victim/Survivor services are self-reported. | AWZ10: The area of most significant need continues to be building capacity for the Video Court Program at A Safe Place Family Justice Center (ASP-FJC). Since the development of the program in 2014, restraining orders filed at ASP-FJC have increased significantly from 20% to nearly 60% county-wide and we anticipate this number will only continue to increase as awareness of the valuable resource spreads throughout the community. ASP-FJC is committed to providing individual assistance to every victim filing a protective order at the center from filling out the paperwork, providing court accompaniment, to legal representation for contested restraining order hearings and long-term support and advocacy. This commitment often draws multiple advocates from community and systems based programs to assist with the lengthy process while balancing the needs of victims accessing the center for the multitude of other services. ASP-FJC has worked diligently with the court to add a part-time court clerk to review, file and process protective orders and provide training to all new staff working in the Video Court Program. On average about 84% of protective orders filed at ASP-FJC have been granted, a number significantly higher than those filed at the courthouse. ASP-FJC partners continue to meet regularly to find solutions to the increase requests for assistance and opportunities to increase staff to meet the demand. | AXB10: The STOP Program funding allows the agency to provide short and long-term support and advocacy to victims experiencing domestic and sexual violence, and stalking. The Advocate is stationed at A Safe Place Family Justice Center (ASP-FJC) as well as provides mobile advocacy in the community including meeting with victims in Sandy at the rural satellite office. The Advocate assists victims seeking protective orders, provides court accompaniment and assists victims navigating systems with ASP-FJC and throughout the county. About one-third of participants seeking services supported by the funding identify living in a rural area of Clackamas County and often experiencing additional barriers to connecting to services such as lack of transportation. The advocate is able to provide transportation in the agency vehicle and assists victims in searching for safe housing, getting connected to mental health services and medical care. Overall, the funding allows us to continue our commitment to the community by providing crisis support and advocacy to anyone impacted by domestic and sexual violence and/or stalking. | AXH10: The data for section D. Victim Services is reflective of 1 FTE for July through December 2019 while the grant funding provides support for .5 FTE.
A11: 40401 | B11: OR40401 | C11: 2020-02-14 | D11: 2019 | E11: Community Works, Inc. | F11: Joint 2017-2019 | I11: Joint 2019-2021 | O11: GI5_OrgType_VicServ_Dual | Q11: NO | R11: NO | S11: Barbara | T11: C | U11: Johnson | V11: Community Works, Inc. | W11: 2594 E. Barnett Rd., Ste. | X11: Medford | Y11: OR | Z11: 97504 | AA11: 541-779-2393 | AB11: 541-779-3317 | AC11: bjohnson@community-works.org | AD11: NO | AF11: 100 | AG11: 0 | AH11: 0 | AI11: 100 | AJ11: YES | AK11: 1 | AL11: 0 | AM11: 0 | AN11: 0 | AO11: 0 | AP11: 0 | AQ11: 0 | AR11: 0 | AS11: 0 | AT11: 0 | AU11: 0 | AV11: 0 | AW11: 0 | AX11: 0 | AY11: 0 | AZ11: 0 | BA11: 0 | BB11: 0 | BC11: 0.57 | BD11: 0 | BF11: 0 | BG11: 0.57 | BH11: 0 | BI11: 0 | BJ11: 0 | BK11: 0 | BL11: 0 | BM11: 0 | BN11: 0 | BO11: 0 | BP11: 0 | BQ11: 1 | BR11: 0 | BS11: 0 | BT11: 0 | BU11: 0 | BV11: 0 | BW11: 0 | BX11: 0 | BY11: 0 | BZ11: 0 | CA11: 0 | CB11: NO | CC11: 0 | CD11: 0 | CE11: 0 | CF11: 0 | CG11: 0 | CH11: 0 | CI11: 0 | CJ11: 0 | CK11: 0 | CL11: 0 | CM11: 0 | CN11: 0 | CO11: 0 | CP11: 0 | CQ11: 0 | CR11: 0 | CS11: 0 | CT11: 0 | CU11: 0 | CV11: 0 | CW11: 0 | CX11: 0 | CY11: 0 | CZ11: 0 | DA11: 0 | DB11: 0 | DC11: 0 | DD11: 0 | DF11: 0 | DG11: 0 | DH11: 0 | DI11: 0 | DJ11: 0 | DK11: 0 | DL11: 0 | DM11: 0 | DN11: 0 | DO11: 0 | DP11: 0 | DQ11: 0 | DR11: 0 | DS11: 0 | DT11: 0 | DV11: 0 | DW11: 0 | DX11: 0 | DY11: 0 | DZ11: 0 | EA11: 0 | EB11: 0 | EC11: 0 | ED11: 0 | EE11: 0 | EF11: 0 | EG11: 0 | EH11: 0 | EI11: 0 | EJ11: 0 | EK11: 0 | EL11: 0 | EM11: 0 | EN11: 0 | EO11: 0 | EQ11: 0 | ER11: 0 | ES11: 0 | ET11: 0 | EU11: 0 | EV11: 0 | EW11: 0 | EX11: 0 | EY11: 0 | EZ11: 0 | FA11: 0 | FB11: 0 | FC11: 0 | FD11: 0 | FE11: 0 | FF11: 0 | FG11: 0 | FI11: 0 | FJ11: 0 | FK11: 0 | FL11: 0 | FM11: 0 | FO11: NO | FP11: 0 | FQ11: 0 | FR11: 0 | FS11: 0 | FT11: 0 | FU11: 0 | FV11: 0 | FW11: 0 | FX11: 0 | FY11: 0 | FZ11: 0 | GA11: 0 | GB11: 0 | GC11: 0 | GD11: 0 | GF11: 0 | GG11: 0 | GH11: 0 | GI11: 0 | GJ11: 0 | GK11: 0 | GL11: 0 | GM11: 0 | GN11: 0 | GO11: 0 | GP11: 0 | GQ11: 0 | GR11: 0 | GS11: 0 | GT11: 0 | GV11: 0 | GW11: 0 | GX11: 0 | GY11: 0 | GZ11: 0 | HA11: 0 | HB11: 0 | HC11: 0 | HD11: 0 | HE11: 0 | HF11: 0 | HG11: 0 | HH11: 0 | HI11: 0 | HJ11: 0 | HK11: 0 | HL11: 0 | HN11: Daily | HO11: Weekly | HQ11: Monthly | HS11: Monthly | HT11: Weekly | HU11: Monthly | HV11: Daily | HW11: Weekly | HY11: Monthly | IB11: Monthly | IC11: Monthly | ID11: Monthly | IE11: Monthly | IF11: Monthly | IG11: Monthly | IH11: Monthly | IJ11: Monthly | IK11: Monthly | IN11: Daily | IO11: Weekly | IQ11: Monthly | IW11: NO | IX11: 0 | IY11: 0 | IZ11: 0 | JA11: 0 | JB11: 0 | JC11: 0 | JD11: 0 | JE11: 0 | JF11: 0 | JG11: 0 | JH11: 0 | JI11: 0 | JJ11: 0 | JK11: 0 | JM11: 0 | JN11: 0 | JO11: 0 | JP11: 0 | JQ11: 0 | JR11: 0 | JS11: 0 | JT11: 0 | JU11: 0 | JV11: 0 | JW11: 0 | JX11: 0 | JY11: 0 | JZ11: 0 | KA11: 0 | KB11: 0 | KC11: 0 | KD11: 0 | KE11: 0 | KF11: 0 | KG11: 0 | KI11: 0 | KJ11: 0 | KK11: 0 | KL11: 0 | KM11: 0 | KN11: 0 | KO11: 0 | KP11: 0 | KQ11: 0 | KR11: 0 | KS11: 0 | KT11: 0 | KU11: 0 | KV11: 0 | KX11: 0 | KY11: 0 | KZ11: 0 | LA11: 0 | LB11: 0 | LC11: 0 | LD11: 0 | LE11: 0 | LF11: 0 | LG11: 0 | LH11: 0 | LI11: 0 | LJ11: 0 | LK11: 0 | LL11: 0 | LM11: 0 | LN11: 0 | LP11: 0 | LQ11: 0 | LR11: 0 | LS11: 0 | LT11: 0 | LU11: 0 | LV11: 0 | LW11: 0 | LX11: 0 | LZ11: 0 | MA11: 0 | MB11: 0 | MC11: 0 | MD11: 0 | ME11: 0 | MF11: 0 | MG11: 0 | MH11: 0 | MI11: 0 | MJ11: 0 | ML11: NO | MM11: 0 | MN11: 0 | MR11: 0 | MV11: 0 | MZ11: 0 | ND11: 0 | NH11: 0 | NL11: 0 | NP11: 0 | NT11: 0 | NY11: 0 | OC11: 0 | OG11: 0 | OK11: NO | OL11: 0 | OM11: 0 | ON11: 0 | OO11: 0 | OP11: 0 | OQ11: 0 | OR11: 0 | OS11: 0 | OT11: 0 | OU11: 0 | OV11: 0 | OW11: 0 | OX11: 0 | OY11: 0 | OZ11: 0 | PA11: 0 | PB11: 0 | PC11: 0 | PD11: 0 | PE11: 0 | PF11: 0 | PG11: 0 | PH11: 0 | PI11: 0 | PJ11: 0 | PK11: 0 | PL11: 0 | PM11: 0 | PO11: NO | PP11: 0 | PQ11: 0 | PR11: 0 | PS11: 0 | PT11: 0 | PU11: 0 | PV11: 0 | PW11: 0 | PX11: 0 | PY11: 0 | PZ11: 0 | QA11: 0 | QB11: 0 | QD11: 0 | QE11: 0 | QF11: 0 | QG11: 0 | QH11: 0 | QI11: 0 | QJ11: 0 | QK11: 0 | QL11: 0 | QM11: 0 | QN11: 0 | QO11: 0 | QP11: 0 | QQ11: 0 | QR11: 0 | QS11: 0 | QT11: NO | QU11: 0 | QV11: 0 | QW11: 0 | QX11: 0 | QY11: 0 | QZ11: 0 | RA11: 0 | RB11: 0 | RC11: 0 | RD11: 0 | RE11: 0 | RF11: 0 | RG11: 0 | RH11: 0 | RI11: 0 | RJ11: 0 | RK11: 0 | RL11: 0 | RM11: 0 | RN11: 0 | RO11: 0 | RP11: 0 | RQ11: 0 | RR11: 0 | RS11: 0 | RT11: 0 | RU11: 0 | RV11: 0 | RW11: 0 | RX11: 0 | RY11: 0 | RZ11: 0 | SA11: 0 | SB11: 0 | SC11: 0 | SD11: 0 | SE11: 0 | SF11: 0 | SG11: 0 | SH11: 0 | SI11: 0 | SJ11: 0 | SK11: 0 | SL11: 0 | SM11: 0 | SN11: 0 | SP11: 0 | SQ11: 0 | SR11: 0 | SS11: 0 | ST11: 0 | SU11: YES | SV11: 1 | SW11: 61 | SX11: 0 | SY11: 0 | SZ11: 61 | TA11: 0 | TB11: 0 | TC11: 0 | TD11: 0 | TE11: 61 | TF11: 0 | TG11: 0 | TH11: 61 | TI11: 0 | TJ11: 0 | TK11: 0 | TL11: 0 | TM11: 61 | TN11: 0 | TO11: 0 | TP11: 61 | TQ11: 61 | TR11: 0 | TS11: 0 | TT11: 0 | TU11: 0 | TV11: 0 | TW11: 0 | TX11: 0 | TY11: 0 | TZ11: 0 | UA11: 0 | UB11: 0 | UC11: 61 | UD11: 0 | UE11: 0 | UF11: 0 | UG11: 0 | UH11: 0 | UI11: 0 | UJ11: 0 | UK11: 0 | UL11: 0 | UM11: 0 | UN11: 0 | UO11: 0 | UP11: 0 | UQ11: 0 | UR11: 0 | US11: 0 | UT11: 0 | UU11: 0 | UV11: 0 | UW11: 0 | UX11: 0 | UY11: 0 | UZ11: 0 | VA11: 0 | VB11: 0 | VC11: 0 | VD11: 0 | VE11: 0 | VF11: 0 | VG11: 0 | VH11: 0 | VI11: 0 | VJ11: 0 | VK11: 0 | VL11: 0 | VM11: 0 | VN11: 0 | VO11: 0 | VP11: 0 | VR11: 3 | VS11: 0 | VT11: 2 | VU11: 39 | VV11: 0 | VW11: 17 | VX11: 0 | VY11: 0 | VZ11: 61 | WA11: 55 | WB11: 6 | WC11: 0 | WD11: 0 | WE11: 61 | WF11: 3 | WG11: 21 | WH11: 33 | WI11: 4 | WJ11: 0 | WK11: 61 | WL11: 0 | WM11: 12 | WN11: 32 | WO11: 0 | WP11: 26 | WQ11: 0 | WR11: 0 | WS11: 50 | WT11: 0 | WU11: 0 | WV11: 3 | WW11: 0 | WX11: 0 | WY11: 0 | WZ11: 0 | XA11: 0 | XB11: 0 | XC11: 0 | XD11: 0 | XE11: 5 | XF11: 0 | XG11: 3 | XH11: 0 | XI11: 0 | XJ11: 61 | XK11: 0 | XL11: 0 | XM11: 20 | XN11: 20 | XO11: 0 | XP11: 0 | XQ11: 20 | XR11: 20 | XS11: 40 | XT11: 40 | XU11: 0 | XV11: 0 | XW11: 0 | XX11: 0 | XY11: 12 | XZ11: 12 | YA11: 0 | YB11: 0 | YC11: 44 | YD11: 44 | YF11: 0 | YG11: 0 | YH11: 0 | YI11: 0 | YJ11: 0 | YK11: 0 | YL11: 0 | YM11: 0 | YN11: 0 | YO11: 0 | YP11: 0 | YQ11: 0 | YR11: 0 | YS11: 0 | YT11: 0 | YU11: 0 | YV11: 0 | YW11: 0 | YX11: 0 | YY11: 0 | YZ11: 0 | ZA11: 0 | ZB11: 0 | ZC11: NO | ZD11: 0 | ZE11: 0 | ZF11: 0 | ZG11: 0 | ZH11: 0 | ZI11: 0 | ZJ11: 0 | ZK11: 0 | ZL11: 0 | ZM11: 0 | ZN11: 0 | ZO11: 0 | ZP11: 0 | ZQ11: 0 | ZR11: 0 | ZS11: 0 | ZT11: 0 | ZU11: 0 | ZV11: 0 | ZW11: 0 | ZY11: 0 | ZZ11: 0 | AAA11: 0 | AAB11: 0 | AAC11: 0 | AAD11: 0 | AAE11: 0 | AAF11: 0 | AAG11: 0 | AAH11: 0 | AAI11: 0 | AAJ11: 0 | AAK11: 0 | AAL11: 0 | AAM11: 0 | AAN11: 0 | AAO11: 0 | AAP11: 0 | AAQ11: 0 | AAR11: 0 | AAS11: 0 | AAT11: 0 | AAU11: 0 | AAV11: 0 | AAW11: 0 | AAX11: 0 | AAY11: 0 | AAZ11: 0 | ABA11: 0 | ABB11: 0 | ABC11: 0 | ABD11: 0 | ABE11: 0 | ABF11: 0 | ABG11: 0 | ABH11: 0 | ABI11: 0 | ABJ11: 0 | ABK11: 0 | ABL11: 0 | ABM11: 0 | ABN11: 0 | ABO11: 0 | ABP11: 0 | ABQ11: 0 | ABR11: 0 | ABS11: 0 | ABT11: 0 | ABU11: 0 | ABV11: 0 | ABW11: 0 | ABX11: 0 | ABY11: 0 | ABZ11: 0 | ACA11: 0 | ACB11: 0 | ACC11: 0 | ACD11: 0 | ACE11: 0 | ACF11: 0 | ACG11: 0 | ACH11: 0 | ACI11: 0 | ACJ11: 0 | ACK11: 0 | ACL11: 0 | ACM11: 0 | ACN11: 0 | ACO11: 0 | ACP11: 0 | ACQ11: 0 | ACR11: 0 | ACS11: 0 | ACT11: 0 | ACU11: 0 | ACV11: 0 | ACW11: 0 | ACX11: 0 | ACY11: 0 | ACZ11: 0 | ADA11: 0 | ADB11: 0 | ADC11: 0 | ADD11: 0 | ADE11: 0 | ADF11: 0 | ADG11: 0 | ADH11: 0 | ADI11: 0 | ADJ11: 0 | ADK11: 0 | ADL11: 0 | ADM11: 0 | ADN11: 0 | ADO11: 0 | ADP11: 0 | ADQ11: 0 | ADR11: 0 | ADS11: 0 | ADT11: 0 | ADU11: 0 | ADV11: 0 | ADW11: 0 | ADX11: 0 | ADY11: 0 | ADZ11: 0 | AEA11: 0 | AEB11: 0 | AEC11: 0 | AED11: 0 | AEE11: 0 | AEF11: 0 | AEG11: 0 | AEH11: 0 | AEI11: 0 | AEJ11: 0 | AEK11: 0 | AEL11: 0 | AEM11: 0 | AEN11: 0 | AEO11: 0 | AEP11: 0 | AEQ11: 0 | AER11: 0 | AES11: 0 | AET11: 0 | AEU11: 0 | AEV11: 0 | AEW11: 0 | AEX11: 0 | AEY11: 0 | AEZ11: 0 | AFA11: 0 | AFB11: 0 | AFC11: 0 | AFD11: 0 | AFE11: 0 | AFF11: 0 | AFG11: 0 | AFI11: 0 | AFJ11: 0 | AFK11: 0 | AFL11: 0 | AFM11: 0 | AFN11: 0 | AFO11: 0 | AFP11: 0 | AFQ11: NO | AFR11: 0 | AFS11: 0 | AFT11: 0 | AFU11: 0 | AFV11: 0 | AFW11: 0 | AFX11: 0 | AFY11: 0 | AFZ11: 0 | AGA11: 0 | AGB11: 0 | AGC11: 0 | AGD11: 0 | AGE11: 0 | AGF11: 0 | AGG11: 0 | AGH11: 0 | AGI11: 0 | AGJ11: 0 | AGK11: 0 | AGL11: 0 | AGM11: 0 | AGN11: 0 | AGO11: 0 | AGP11: 0 | AGQ11: 0 | AGR11: 0 | AGS11: 0 | AGT11: 0 | AGU11: 0 | AGV11: 0 | AGW11: 0 | AGX11: 0 | AGY11: 0 | AGZ11: 0 | AHA11: 0 | AHB11: 0 | AHC11: 0 | AHD11: 0 | AHE11: 0 | AHF11: 0 | AHG11: 0 | AHH11: 0 | AHI11: 0 | AHJ11: 0 | AHK11: 0 | AHL11: 0 | AHM11: 0 | AHN11: 0 | AHO11: 0 | AHP11: NO | AHQ11: 0 | AHR11: 0 | AHS11: 0 | AHT11: 0 | AHU11: 0 | AHV11: 0 | AHW11: 0 | AHX11: 0 | AHY11: 0 | AHZ11: 0 | AIA11: 0 | AIB11: 0 | AIC11: 0 | AID11: 0 | AIE11: 0 | AIF11: 0 | AIG11: 0 | AIH11: 0 | AII11: 0 | AIJ11: 0 | AIK11: 0 | AIL11: 0 | AIM11: 0 | AIN11: 0 | AIO11: 0 | AIQ11: 0 | AIR11: 0 | AIS11: 0 | AIT11: 0 | AIU11: 0 | AIV11: 0 | AIW11: 0 | AIX11: 0 | AIY11: 0 | AIZ11: 0 | AJA11: 0 | AJB11: 0 | AJC11: 0 | AJD11: 0 | AJE11: 0 | AJF11: 0 | AJG11: 0 | AJH11: 0 | AJI11: 0 | AJJ11: 0 | AJK11: 0 | AJL11: 0 | AJM11: 0 | AJN11: 0 | AJO11: 0 | AJP11: 0 | AJQ11: 0 | AJR11: 0 | AJS11: 0 | AJT11: 0 | AJU11: 0 | AJV11: 0 | AJW11: 0 | AJX11: 0 | AJY11: 0 | AJZ11: 0 | AKA11: 0 | AKB11: 0 | AKC11: 0 | AKD11: 0 | AKE11: 0 | AKF11: 0 | AKG11: 0 | AKH11: 0 | AKI11: 0 | AKJ11: 0 | AKK11: 0 | AKL11: 0 | AKM11: 0 | AKN11: 0 | AKO11: 0 | AKP11: 0 | AKQ11: 0 | AKR11: 0 | AKS11: 0 | AKT11: 0 | AKU11: 0 | AKV11: 0 | AKW11: 0 | AKX11: 0 | AKY11: 0 | AKZ11: 0 | ALA11: 0 | ALB11: 0 | ALC11: 0 | ALD11: 0 | ALE11: 0 | ALF11: 0 | ALG11: 0 | ALH11: 0 | ALI11: 0 | ALJ11: 0 | ALK11: 0 | ALL11: 0 | ALM11: 0 | ALN11: 0 | ALO11: 0 | ALP11: 0 | ALQ11: 0 | ALR11: 0 | ALS11: 0 | ALT11: 0 | ALU11: 0 | ALV11: 0 | ALW11: 0 | ALX11: 0 | ALY11: 0 | ALZ11: 0 | AMA11: 0 | AMB11: 0 | AMC11: 0 | AMD11: 0 | AME11: 0 | AMF11: 0 | AMG11: 0 | AMH11: 0 | AMI11: 0 | AMJ11: 0 | AMK11: 0 | AML11: 0 | AMM11: 0 | AMN11: 0 | AMO11: 0 | AMP11: 0 | AMQ11: 0 | AMR11: 0 | AMS11: 0 | AMT11: 0 | AMU11: 0 | AMV11: 0 | AMW11: 0 | AMX11: 0 | AMY11: 0 | AMZ11: 0 | ANA11: 0 | ANB11: 0 | ANC11: 0 | AND11: 0 | ANE11: 0 | ANF11: 0 | ANG11: 0 | ANH11: 0 | ANI11: 0 | ANJ11: 0 | ANK11: 0 | ANL11: 0 | ANM11: 0 | ANN11: 0 | ANO11: 0 | ANP11: 0 | ANQ11: 0 | ANR11: 0 | ANS11: 0 | ANT11: 0 | ANU11: 0 | ANV11: 0 | ANW11: 0 | ANX11: 0 | ANY11: 0 | ANZ11: 0 | AOA11: 0 | AOB11: 0 | AOC11: 0 | AOD11: 0 | AOE11: 0 | AOF11: 0 | AOG11: 0 | AOH11: 0 | AOI11: 0 | AOJ11: 0 | AOK11: 0 | AOL11: 0 | AOM11: 0 | AOO11: 0 | AOP11: 0 | AOQ11: 0 | AOR11: 0 | AOS11: 0 | AOT11: 0 | AOU11: 0 | AOV11: 0 | AOW11: 0 | AOX11: 0 | AOY11: 0 | AOZ11: 0 | APA11: 0 | APB11: 0 | APC11: 0 | APD11: 0 | APE11: 0 | APF11: 0 | APG11: 0 | APH11: 0 | API11: 0 | APJ11: 0 | APK11: 0 | APL11: 0 | APM11: 0 | APN11: 0 | APO11: 0 | APP11: 0 | APQ11: 0 | APR11: 0 | APS11: 0 | APT11: 0 | APU11: 0 | APV11: 0 | APW11: 0 | APX11: 0 | APY11: 0 | APZ11: NO | AQA11: 0 | AQB11: 0 | AQC11: 0 | AQD11: 0 | AQE11: 0 | AQF11: 0 | AQG11: 0 | AQH11: 0 | AQI11: 0 | AQJ11: 0 | AQK11: 0 | AQL11: 0 | AQM11: 0 | AQN11: 0 | AQO11: 0 | AQP11: 0 | AQQ11: 0 | AQR11: 0 | AQS11: 0 | AQT11: 0 | AQU11: 0 | AQV11: 0 | AQW11: 0 | AQX11: 0 | AQY11: 0 | AQZ11: 0 | ARA11: 0 | ARB11: 0 | ARC11: 0 | ARD11: 0 | ARE11: 0 | ARF11: 0 | ARG11: 0 | ARH11: 0 | ARI11: 0 | ARJ11: 0 | ARK11: 0 | ARL11: 0 | ARM11: 0 | ARN11: 0 | ARO11: 0 | ARP11: 0 | ARQ11: 0 | ARR11: 0 | ARS11: 0 | ART11: 0 | ARU11: 0 | ARV11: 0 | ARW11: 0 | ARX11: 0 | ARY11: 0 | ARZ11: 0 | ASA11: 0 | ASB11: 0 | ASC11: 0 | ASD11: 0 | ASE11: 0 | ASF11: 0 | ASG11: 0 | ASH11: 0 | ASI11: 0 | ASJ11: 0 | ASK11: 0 | ASL11: 0 | ASM11: 0 | ASN11: 0 | ASO11: 0 | ASP11: 0 | ASQ11: 0 | ASR11: 0 | ASS11: 0 | AST11: 0 | ASU11: 0 | ASV11: 0 | ASW11: 0 | ASX11: 0 | ASY11: 0 | ASZ11: 0 | ATA11: 0 | ATB11: 0 | ATC11: 0 | ATD11: 0 | ATE11: 0 | ATF11: 0 | ATG11: 0 | ATH11: 0 | ATI11: 0 | ATJ11: 0 | ATK11: 0 | ATL11: 0 | ATM11: 0 | ATN11: 0 | ATO11: 0 | ATP11: 0 | ATQ11: 0 | ATR11: 0 | ATS11: 0 | ATT11: 0 | ATU11: 0 | ATV11: 0 | ATW11: 0 | ATX11: 0 | ATY11: 0 | ATZ11: 0 | AUA11: 0 | AUB11: NO | AUC11: 0 | AUD11: 0 | AUE11: 0 | AUF11: 0 | AUG11: 0 | AUH11: 0 | AUI11: 0 | AUJ11: 0 | AUK11: 0 | AUL11: 0 | AUM11: 0 | AUN11: 0 | AUO11: 0 | AUP11: 0 | AUQ11: 0 | AUR11: 0 | AUS11: 0 | AUT11: 0 | AUU11: 0 | AUV11: 0 | AUW11: 0 | AUX11: 0 | AUY11: 0 | AUZ11: 0 | AVA11: 0 | AVB11: 0 | AVC11: 0 | AVD11: 0 | AVE11: 0 | AVF11: 0 | AVG11: 0 | AVH11: 0 | AVI11: 0 | AVJ11: 0 | AVK11: 0 | AVL11: 0 | AVM11: 0 | AVN11: 0 | AVO11: 0 | AVP11: 0 | AVQ11: 0 | AVR11: 0 | AVS11: 0 | AVT11: 0 | AVU11: 0 | AVV11: 0 | AVW11: 0 | AVX11: 0 | AVY11: 0 | AVZ11: 0 | AWA11: 0 | AWB11: 0 | AWC11: 0 | AWD11: 0 | AWE11: NO | AWF11: 0 | AWG11: 0 | AWH11: 0 | AWI11: 0 | AWJ11: 0 | AWL11: 0 | AWM11: 0 | AWN11: 0 | AWO11: 0 | AWZ11: Survivors who are undocumented and/or who speak a language other than English are at a serious disadvantage when they try to navigate systems of support. Interpreters are few and far between, and the current conversations regarding deportation and the Public Charge have many survivors fearful of being deported and being sent away from their children and being without the basic necessities to survive. These barriers force survivors to feel that they have no options but to stay with an abusive person so that they are not separated from their children if they report abuse and so that they can have their basic needs met for themselves and their children. And, if they get the courage to explore civil or criminal justice proceedings, the number of bilingual staff members within systems available are very limited in number. All of this means that advocates have to provide much advocacy on behalf of and with survivors so that they can lessen their anxiety, get their basic needs met, and be able to navigate systems with more ease. This takes much time for the survivor and advocate to meet these needs.Community Works provides services to Jackson County, Oregon. Our county has urban and rural areas. The areas that are rural have no public transportation and are often very isolated from safety net services. This permits an abusive person to isolate a survivor from any supports. This continues to be a barrier when we are working with survivors because we must consider survivor and staff safety in supporting an individual or family in fleeing violence. Having a coordinated, safe response to transport those fleeing abuse is a need for those in rural areas. And, having a coordinated, safe way to provide outreach and connect with survivors in rural areas so that they may access safety services is another area of need in our community. | AXB11: One of the staff people who is funded with ODSVS Sexual Assault funds is both bilingual and bicultural. She provides services in both English and Spanish. Having the capacity to provide sexual assault specific services in both of these languages and in culturally responsive ways is very beneficial to survivors in our community. She recognizes the appropriate ways to traverse conversations and language that is trauma-informed in both languages. She is also able to support our other staff members when someone who is Spanish-speaking and/or from the Latinx community needs more culturally responsive supportive services than what someone not in this population is able to provide. She is stationed at our main office, and she spends much time out in the community and field supporting survivors in various systems so that they can get their needs met. She provides supportive services in two languages that includes: empathic listening and validation, protective order assistance, family law resources and connections, walking someone through and supporting them throughout a criminal justice process, and supporting survivors in the immigration process. She is also part of our staff who provide 24/7 on-call support to the hospital during a SANE forensic exam. After the exam, she provides ongoing support. All of our services are offered to survivors for as long as they need them. The challenge for the advocate this reporting period have been that we lost VOCA Competitive funding for two additional full-time sexual assault advocates.The other staff person who is partially funded by VAWA Sexual Assault funds is this advocate's manager. The manager provides critical, supportive services to the community-based advocates. She provides formal twice monthly supervisory sessions with all of her staff, and she also regularly connects with her staff, including this advocate. She practices the model of reflective supervision with her staff so that they can recognize and counteract the impact the trauma is having on their own lives; this model benefits both staff person and survivor. She offers support on safety planning, resources, and she is the person her staff go through when a survivor is in need of emergency assistance. She provides support in a timely manner so that survivors' safety and emergency needs are met quickly. The manager is part of the on-call rotation that supports staff who respond to SANE exams, and she provides follow up support, debriefing, and staffing about every single sexual assault exam for which advocates respond in the hospital. There are about 100 SANE exams each year in our county. In addition, she supports our main office by providing direct service when someone walks in and is in need of support.
A12: 40402 | B12: OR40402 | C12: 2020-01-13 | D12: 2019 | E12: Confederated Tribes of Coos, Lower Umpqua and Siuslaw Indians | F12: Joint-2017-CTCLUSI-0 | O12: GI5_OrgType_TribGovt | Q12: NO | R12: YES | S12: Melinda | U12: Radford | V12: Confederated Tribes of Coos, Lower Umpqua and Siuslaw Indians | W12: 1245 Fulton Avenue | X12: Coos Bay | Y12: OR | Z12: 97420 | AA12: 541-808-8450 | AC12: mradford@ctclusi.org | AD12: YES | AE12: Confederated Tribes of Coos, Lower Umpqua and Siuslaw Indians | AF12: 0 | AG12: 100 | AH12: 0 | AI12: 100 | AJ12: YES | AK12: 1 | AL12: 0 | AM12: 0 | AN12: 0 | AO12: 0 | AP12: 0 | AQ12: 0 | AR12: 0 | AS12: 0 | AT12: 0 | AU12: 0 | AV12: 0 | AW12: 0 | AX12: 0 | AY12: 0 | AZ12: 0 | BA12: 0 | BB12: 0 | BC12: 0.1 | BD12: 0 | BF12: 0 | BG12: 0.1 | BH12: 0 | BI12: 0 | BJ12: 0 | BK12: 0 | BL12: 1 | BM12: 1 | BN12: 0 | BO12: 0 | BP12: 0 | BQ12: 0 | BR12: 1 | BS12: 0 | BT12: 0 | BU12: 0 | BV12: 0 | BW12: 0 | BX12: 0 | BY12: 0 | BZ12: 0 | CA12: 1 | CB12: YES | CC12: 1 | CD12: 1 | CE12: 0 | CF12: 0 | CG12: 0 | CH12: 0 | CI12: 0 | CJ12: 0 | CK12: 0 | CL12: 0 | CM12: 0 | CN12: 5 | CO12: 0 | CP12: 0 | CQ12: 0 | CR12: 0 | CS12: 0 | CT12: 0 | CU12: 0 | CV12: 0 | CW12: 0 | CX12: 0 | CY12: 0 | CZ12: 0 | DA12: 3 | DB12: 0 | DC12: 0 | DD12: 0 | DF12: 0 | DG12: 8 | DH12: 0 | DI12: 0 | DJ12: 1 | DK12: 0 | DL12: 1 | DM12: 0 | DN12: 0 | DO12: 0 | DP12: 0 | DQ12: 0 | DR12: 0 | DS12: 0 | DT12: 0 | DV12: 0 | DW12: 0 | DX12: 0 | DY12: 0 | DZ12: 0 | EA12: 0 | EB12: 0 | EC12: 0 | ED12: 0 | EE12: 0 | EF12: 0 | EG12: 0 | EH12: 0 | EI12: 0 | EJ12: 0 | EK12: 0 | EL12: 0 | EM12: 0 | EN12: 0 | EO12: 0 | EQ12: 0 | ER12: 0 | ES12: 0 | ET12: 0 | EU12: 0 | EV12: 0 | EW12: 0 | EX12: 0 | EY12: 0 | EZ12: 0 | FA12: 0 | FB12: 0 | FC12: 0 | FD12: 0 | FE12: 0 | FF12: 0 | FG12: 0 | FI12: 0 | FJ12: 0 | FK12: 0 | FL12: 0 | FM12: 0 | FO12: YES | FP12: 1 | FQ12: 1 | FR12: 0 | FS12: 0 | FT12: 0 | FU12: 0 | FV12: 0 | FW12: 0 | FX12: 1 | FY12: 0 | FZ12: 1 | GA12: 0 | GB12: 0 | GC12: 0 | GD12: 0 | GF12: 0 | GG12: 0 | GH12: 0 | GI12: 1 | GJ12: 1 | GK12: 0 | GL12: 0 | GM12: 0 | GN12: 1 | GO12: 0 | GP12: 0 | GQ12: 0 | GR12: 0 | GS12: 0 | GT12: 1 | GU12: Personal Safety-Age Appropriate | GV12: 1 | GW12: 0 | GX12: 0 | GY12: 0 | GZ12: 0 | HA12: 0 | HB12: 0 | HC12: 0 | HD12: 0 | HE12: 0 | HF12: 0 | HG12: 0 | HH12: 0 | HI12: 0 | HJ12: 1 | HK12: 1 | HL12: 1 | HM12: Have safety issues in their immediate family | HN12: Monthly | HO12: Quarterly | HQ12: Quarterly | HR12: Monthly | HS12: Quarterly | HT12: Monthly | HU12: Monthly | HV12: Weekly | HW12: Monthly | HX12: Monthly | HY12: Quarterly | IB12: Weekly | IC12: Quarterly | ID12: Monthly | IE12: Quarterly | IF12: Weekly | IG12: Quarterly | IH12: Weekly | II12: Quarterly | IN12: Daily | IO12: Weekly | IR12: Daily | IS12: Weekly | IW12: NO | IX12: 0 | IY12: 0 | IZ12: 0 | JA12: 0 | JB12: 0 | JC12: 0 | JD12: 0 | JE12: 0 | JF12: 0 | JG12: 0 | JH12: 0 | JI12: 0 | JJ12: 0 | JK12: 0 | JM12: 0 | JN12: 0 | JO12: 0 | JP12: 0 | JQ12: 0 | JR12: 0 | JS12: 0 | JT12: 0 | JU12: 0 | JV12: 0 | JW12: 0 | JX12: 0 | JY12: 0 | JZ12: 0 | KA12: 0 | KB12: 0 | KC12: 0 | KD12: 0 | KE12: 0 | KF12: 0 | KG12: 0 | KI12: 0 | KJ12: 0 | KK12: 0 | KL12: 0 | KM12: 0 | KN12: 0 | KO12: 0 | KP12: 0 | KQ12: 0 | KR12: 0 | KS12: 0 | KT12: 0 | KU12: 0 | KV12: 0 | KX12: 0 | KY12: 0 | KZ12: 0 | LA12: 0 | LB12: 0 | LC12: 0 | LD12: 0 | LE12: 0 | LF12: 0 | LG12: 0 | LH12: 0 | LI12: 0 | LJ12: 0 | LK12: 0 | LL12: 0 | LM12: 0 | LN12: 0 | LP12: 0 | LQ12: 0 | LR12: 0 | LS12: 0 | LT12: 0 | LU12: 0 | LV12: 0 | LW12: 0 | LX12: 0 | LZ12: 0 | MA12: 0 | MB12: 0 | MC12: 0 | MD12: 0 | ME12: 0 | MF12: 0 | MG12: 0 | MH12: 0 | MI12: 0 | MJ12: 0 | ML12: YES | MM12: 1 | MN12: 500 | MO12: Nine Tribes of Oregon Victim Service Provider Brochure | MP12: all/any oregon victims/programs | MR12: 0 | MV12: 0 | MZ12: 0 | ND12: 0 | NH12: 0 | NL12: 0 | NP12: 0 | NT12: 0 | NY12: 0 | OC12: 0 | OG12: 0 | OK12: NO | OL12: 0 | OM12: 0 | ON12: 0 | OO12: 0 | OP12: 0 | OQ12: 0 | OR12: 0 | OS12: 0 | OT12: 0 | OU12: 0 | OV12: 0 | OW12: 0 | OX12: 0 | OY12: 0 | OZ12: 0 | PA12: 0 | PB12: 0 | PC12: 0 | PD12: 0 | PE12: 0 | PF12: 0 | PG12: 0 | PH12: 0 | PI12: 0 | PJ12: 0 | PK12: 0 | PL12: 0 | PM12: 0 | PO12: NO | PP12: 0 | PQ12: 0 | PR12: 0 | PS12: 0 | PT12: 0 | PU12: 0 | PV12: 0 | PW12: 0 | PX12: 0 | PY12: 0 | PZ12: 0 | QA12: 0 | QB12: 0 | QD12: 0 | QE12: 0 | QF12: 0 | QG12: 0 | QH12: 0 | QI12: 0 | QJ12: 0 | QK12: 0 | QL12: 0 | QM12: 0 | QN12: 0 | QO12: 0 | QP12: 0 | QQ12: 0 | QR12: 0 | QS12: 0 | QT12: NO | QU12: 0 | QV12: 0 | QW12: 0 | QX12: 0 | QY12: 0 | QZ12: 0 | RA12: 0 | RB12: 0 | RC12: 0 | RD12: 0 | RE12: 0 | RF12: 0 | RG12: 0 | RH12: 0 | RI12: 0 | RJ12: 0 | RK12: 0 | RL12: 0 | RM12: 0 | RN12: 0 | RO12: 0 | RP12: 0 | RQ12: 0 | RR12: 0 | RS12: 0 | RT12: 0 | RU12: 0 | RV12: 0 | RW12: 0 | RX12: 0 | RY12: 0 | RZ12: 0 | SA12: 0 | SB12: 0 | SC12: 0 | SD12: 0 | SE12: 0 | SF12: 0 | SG12: 0 | SH12: 0 | SI12: 0 | SJ12: 0 | SK12: 0 | SL12: 0 | SM12: 0 | SN12: 0 | SP12: 0 | SQ12: 0 | SR12: 0 | SS12: 0 | ST12: 0 | SU12: NO | SV12: 0 | SW12: 0 | SX12: 0 | SY12: 0 | SZ12: 0 | TA12: 0 | TB12: 0 | TC12: 0 | TD12: 0 | TE12: 0 | TF12: 0 | TG12: 0 | TH12: 0 | TI12: 0 | TJ12: 0 | TK12: 0 | TL12: 0 | TM12: 0 | TN12: 0 | TO12: 0 | TP12: 0 | TQ12: 0 | TR12: 0 | TS12: 0 | TT12: 0 | TU12: 0 | TV12: 0 | TW12: 0 | TX12: 0 | TY12: 0 | TZ12: 0 | UA12: 0 | UB12: 0 | UC12: 0 | UD12: 0 | UE12: 0 | UF12: 0 | UG12: 0 | UH12: 0 | UI12: 0 | UJ12: 0 | UK12: 0 | UL12: 0 | UM12: 0 | UN12: 0 | UO12: 0 | UP12: 0 | UQ12: 0 | UR12: 0 | US12: 0 | UT12: 0 | UU12: 0 | UV12: 0 | UW12: 0 | UX12: 0 | UY12: 0 | UZ12: 0 | VA12: 0 | VB12: 0 | VC12: 0 | VD12: 0 | VE12: 0 | VF12: 0 | VG12: 0 | VH12: 0 | VI12: 0 | VJ12: 0 | VK12: 0 | VL12: 0 | VM12: 0 | VN12: 0 | VO12: 0 | VP12: 0 | VR12: 0 | VS12: 0 | VT12: 0 | VU12: 0 | VV12: 0 | VW12: 0 | VX12: 0 | VY12: 0 | VZ12: 0 | WA12: 0 | WB12: 0 | WC12: 0 | WD12: 0 | WE12: 0 | WF12: 0 | WG12: 0 | WH12: 0 | WI12: 0 | WJ12: 0 | WK12: 0 | WL12: 0 | WM12: 0 | WN12: 0 | WO12: 0 | WP12: 0 | WQ12: 0 | WR12: 0 | WS12: 0 | WT12: 0 | WU12: 0 | WV12: 0 | WW12: 0 | WX12: 0 | WY12: 0 | WZ12: 0 | XA12: 0 | XB12: 0 | XC12: 0 | XD12: 0 | XE12: 0 | XF12: 0 | XG12: 0 | XH12: 0 | XI12: 0 | XJ12: 0 | XK12: 0 | XL12: 0 | XM12: 0 | XN12: 0 | XO12: 0 | XP12: 0 | XQ12: 0 | XR12: 0 | XS12: 0 | XT12: 0 | XU12: 0 | XV12: 0 | XW12: 0 | XX12: 0 | XY12: 0 | XZ12: 0 | YA12: 0 | YB12: 0 | YC12: 0 | YD12: 0 | YF12: 0 | YG12: 0 | YH12: 0 | YI12: 0 | YJ12: 0 | YK12: 0 | YL12: 0 | YM12: 0 | YN12: 0 | YO12: 0 | YP12: 0 | YQ12: 0 | YR12: 0 | YS12: 0 | YT12: 0 | YU12: 0 | YV12: 0 | YW12: 0 | YX12: 0 | YY12: 0 | YZ12: 0 | ZA12: 0 | ZB12: 0 | ZC12: NO | ZD12: 0 | ZE12: 0 | ZF12: 0 | ZG12: 0 | ZH12: 0 | ZI12: 0 | ZJ12: 0 | ZK12: 0 | ZL12: 0 | ZM12: 0 | ZN12: 0 | ZO12: 0 | ZP12: 0 | ZQ12: 0 | ZR12: 0 | ZS12: 0 | ZT12: 0 | ZU12: 0 | ZV12: 0 | ZW12: 0 | ZY12: 0 | ZZ12: 0 | AAA12: 0 | AAB12: 0 | AAC12: 0 | AAD12: 0 | AAE12: 0 | AAF12: 0 | AAG12: 0 | AAH12: 0 | AAI12: 0 | AAJ12: 0 | AAK12: 0 | AAL12: 0 | AAM12: 0 | AAN12: 0 | AAO12: 0 | AAP12: 0 | AAQ12: 0 | AAR12: 0 | AAS12: 0 | AAT12: 0 | AAU12: 0 | AAV12: 0 | AAW12: 0 | AAX12: 0 | AAY12: 0 | AAZ12: 0 | ABA12: 0 | ABB12: 0 | ABC12: 0 | ABD12: 0 | ABE12: 0 | ABF12: 0 | ABG12: 0 | ABH12: 0 | ABI12: 0 | ABJ12: 0 | ABK12: 0 | ABL12: 0 | ABM12: 0 | ABN12: 0 | ABO12: 0 | ABP12: 0 | ABQ12: 0 | ABR12: 0 | ABS12: 0 | ABT12: 0 | ABU12: 0 | ABV12: 0 | ABW12: 0 | ABX12: 0 | ABY12: 0 | ABZ12: 0 | ACA12: 0 | ACB12: 0 | ACC12: 0 | ACD12: 0 | ACE12: 0 | ACF12: 0 | ACG12: 0 | ACH12: 0 | ACI12: 0 | ACJ12: 0 | ACK12: 0 | ACL12: 0 | ACM12: 0 | ACN12: 0 | ACO12: 0 | ACP12: 0 | ACQ12: 0 | ACR12: 0 | ACS12: 0 | ACT12: 0 | ACU12: 0 | ACV12: 0 | ACW12: 0 | ACX12: 0 | ACY12: 0 | ACZ12: 0 | ADA12: 0 | ADB12: 0 | ADC12: 0 | ADD12: 0 | ADE12: 0 | ADF12: 0 | ADG12: 0 | ADH12: 0 | ADI12: 0 | ADJ12: 0 | ADK12: 0 | ADL12: 0 | ADM12: 0 | ADN12: 0 | ADO12: 0 | ADP12: 0 | ADQ12: 0 | ADR12: 0 | ADS12: 0 | ADT12: 0 | ADU12: 0 | ADV12: 0 | ADW12: 0 | ADX12: 0 | ADY12: 0 | ADZ12: 0 | AEA12: 0 | AEB12: 0 | AEC12: 0 | AED12: 0 | AEE12: 0 | AEF12: 0 | AEG12: 0 | AEH12: 0 | AEI12: 0 | AEJ12: 0 | AEK12: 0 | AEL12: 0 | AEM12: 0 | AEN12: 0 | AEO12: 0 | AEP12: 0 | AEQ12: 0 | AER12: 0 | AES12: 0 | AET12: 0 | AEU12: 0 | AEV12: 0 | AEW12: 0 | AEX12: 0 | AEY12: 0 | AEZ12: 0 | AFA12: 0 | AFB12: 0 | AFC12: 0 | AFD12: 0 | AFE12: 0 | AFF12: 0 | AFG12: 0 | AFI12: 0 | AFJ12: 0 | AFK12: 0 | AFL12: 0 | AFM12: 0 | AFN12: 0 | AFO12: 0 | AFP12: 0 | AFQ12: NO | AFR12: 0 | AFS12: 0 | AFT12: 0 | AFU12: 0 | AFV12: 0 | AFW12: 0 | AFX12: 0 | AFY12: 0 | AFZ12: 0 | AGA12: 0 | AGB12: 0 | AGC12: 0 | AGD12: 0 | AGE12: 0 | AGF12: 0 | AGG12: 0 | AGH12: 0 | AGI12: 0 | AGJ12: 0 | AGK12: 0 | AGL12: 0 | AGM12: 0 | AGN12: 0 | AGO12: 0 | AGP12: 0 | AGQ12: 0 | AGR12: 0 | AGS12: 0 | AGT12: 0 | AGU12: 0 | AGV12: 0 | AGW12: 0 | AGX12: 0 | AGY12: 0 | AGZ12: 0 | AHA12: 0 | AHB12: 0 | AHC12: 0 | AHD12: 0 | AHE12: 0 | AHF12: 0 | AHG12: 0 | AHH12: 0 | AHI12: 0 | AHJ12: 0 | AHK12: 0 | AHL12: 0 | AHM12: 0 | AHN12: 0 | AHO12: 0 | AHP12: NO | AHQ12: 0 | AHR12: 0 | AHS12: 0 | AHT12: 0 | AHU12: 0 | AHV12: 0 | AHW12: 0 | AHX12: 0 | AHY12: 0 | AHZ12: 0 | AIA12: 0 | AIB12: 0 | AIC12: 0 | AID12: 0 | AIE12: 0 | AIF12: 0 | AIG12: 0 | AIH12: 0 | AII12: 0 | AIJ12: 0 | AIK12: 0 | AIL12: 0 | AIM12: 0 | AIN12: 0 | AIO12: 0 | AIQ12: 0 | AIR12: 0 | AIS12: 0 | AIT12: 0 | AIU12: 0 | AIV12: 0 | AIW12: 0 | AIX12: 0 | AIY12: 0 | AIZ12: 0 | AJA12: 0 | AJB12: 0 | AJC12: 0 | AJD12: 0 | AJE12: 0 | AJF12: 0 | AJG12: 0 | AJH12: 0 | AJI12: 0 | AJJ12: 0 | AJK12: 0 | AJL12: 0 | AJM12: 0 | AJN12: 0 | AJO12: 0 | AJP12: 0 | AJQ12: 0 | AJR12: 0 | AJS12: 0 | AJT12: 0 | AJU12: 0 | AJV12: 0 | AJW12: 0 | AJX12: 0 | AJY12: 0 | AJZ12: 0 | AKA12: 0 | AKB12: 0 | AKC12: 0 | AKD12: 0 | AKE12: 0 | AKF12: 0 | AKG12: 0 | AKH12: 0 | AKI12: 0 | AKJ12: 0 | AKK12: 0 | AKL12: 0 | AKM12: 0 | AKN12: 0 | AKO12: 0 | AKP12: 0 | AKQ12: 0 | AKR12: 0 | AKS12: 0 | AKT12: 0 | AKU12: 0 | AKV12: 0 | AKW12: 0 | AKX12: 0 | AKY12: 0 | AKZ12: 0 | ALA12: 0 | ALB12: 0 | ALC12: 0 | ALD12: 0 | ALE12: 0 | ALF12: 0 | ALG12: 0 | ALH12: 0 | ALI12: 0 | ALJ12: 0 | ALK12: 0 | ALL12: 0 | ALM12: 0 | ALN12: 0 | ALO12: 0 | ALP12: 0 | ALQ12: 0 | ALR12: 0 | ALS12: 0 | ALT12: 0 | ALU12: 0 | ALV12: 0 | ALW12: 0 | ALX12: 0 | ALY12: 0 | ALZ12: 0 | AMA12: 0 | AMB12: 0 | AMC12: 0 | AMD12: 0 | AME12: 0 | AMF12: 0 | AMG12: 0 | AMH12: 0 | AMI12: 0 | AMJ12: 0 | AMK12: 0 | AML12: 0 | AMM12: 0 | AMN12: 0 | AMO12: 0 | AMP12: 0 | AMQ12: 0 | AMR12: 0 | AMS12: 0 | AMT12: 0 | AMU12: 0 | AMV12: 0 | AMW12: 0 | AMX12: 0 | AMY12: 0 | AMZ12: 0 | ANA12: 0 | ANB12: 0 | ANC12: 0 | AND12: 0 | ANE12: 0 | ANF12: 0 | ANG12: 0 | ANH12: 0 | ANI12: 0 | ANJ12: 0 | ANK12: 0 | ANL12: 0 | ANM12: 0 | ANN12: 0 | ANO12: 0 | ANP12: 0 | ANQ12: 0 | ANR12: 0 | ANS12: 0 | ANT12: 0 | ANU12: 0 | ANV12: 0 | ANW12: 0 | ANX12: 0 | ANY12: 0 | ANZ12: 0 | AOA12: 0 | AOB12: 0 | AOC12: 0 | AOD12: 0 | AOE12: 0 | AOF12: 0 | AOG12: 0 | AOH12: 0 | AOI12: 0 | AOJ12: 0 | AOK12: 0 | AOL12: 0 | AOM12: 0 | AOO12: 0 | AOP12: 0 | AOQ12: 0 | AOR12: 0 | AOS12: 0 | AOT12: 0 | AOU12: 0 | AOV12: 0 | AOW12: 0 | AOX12: 0 | AOY12: 0 | AOZ12: 0 | APA12: 0 | APB12: 0 | APC12: 0 | APD12: 0 | APE12: 0 | APF12: 0 | APG12: 0 | APH12: 0 | API12: 0 | APJ12: 0 | APK12: 0 | APL12: 0 | APM12: 0 | APN12: 0 | APO12: 0 | APP12: 0 | APQ12: 0 | APR12: 0 | APS12: 0 | APT12: 0 | APU12: 0 | APV12: 0 | APW12: 0 | APX12: 0 | APY12: 0 | APZ12: NO | AQA12: 0 | AQB12: 0 | AQC12: 0 | AQD12: 0 | AQE12: 0 | AQF12: 0 | AQG12: 0 | AQH12: 0 | AQI12: 0 | AQJ12: 0 | AQK12: 0 | AQL12: 0 | AQM12: 0 | AQN12: 0 | AQO12: 0 | AQP12: 0 | AQQ12: 0 | AQR12: 0 | AQS12: 0 | AQT12: 0 | AQU12: 0 | AQV12: 0 | AQW12: 0 | AQX12: 0 | AQY12: 0 | AQZ12: 0 | ARA12: 0 | ARB12: 0 | ARC12: 0 | ARD12: 0 | ARE12: 0 | ARF12: 0 | ARG12: 0 | ARH12: 0 | ARI12: 0 | ARJ12: 0 | ARK12: 0 | ARL12: 0 | ARM12: 0 | ARN12: 0 | ARO12: 0 | ARP12: 0 | ARQ12: 0 | ARR12: 0 | ARS12: 0 | ART12: 0 | ARU12: 0 | ARV12: 0 | ARW12: 0 | ARX12: 0 | ARY12: 0 | ARZ12: 0 | ASA12: 0 | ASB12: 0 | ASC12: 0 | ASD12: 0 | ASE12: 0 | ASF12: 0 | ASG12: 0 | ASH12: 0 | ASI12: 0 | ASJ12: 0 | ASK12: 0 | ASL12: 0 | ASM12: 0 | ASN12: 0 | ASO12: 0 | ASP12: 0 | ASQ12: 0 | ASR12: 0 | ASS12: 0 | AST12: 0 | ASU12: 0 | ASV12: 0 | ASW12: 0 | ASX12: 0 | ASY12: 0 | ASZ12: 0 | ATA12: 0 | ATB12: 0 | ATC12: 0 | ATD12: 0 | ATE12: 0 | ATF12: 0 | ATG12: 0 | ATH12: 0 | ATI12: 0 | ATJ12: 0 | ATK12: 0 | ATL12: 0 | ATM12: 0 | ATN12: 0 | ATO12: 0 | ATP12: 0 | ATQ12: 0 | ATR12: 0 | ATS12: 0 | ATT12: 0 | ATU12: 0 | ATV12: 0 | ATW12: 0 | ATX12: 0 | ATY12: 0 | ATZ12: 0 | AUA12: 0 | AUB12: NO | AUC12: 0 | AUD12: 0 | AUE12: 0 | AUF12: 0 | AUG12: 0 | AUH12: 0 | AUI12: 0 | AUJ12: 0 | AUK12: 0 | AUL12: 0 | AUM12: 0 | AUN12: 0 | AUO12: 0 | AUP12: 0 | AUQ12: 0 | AUR12: 0 | AUS12: 0 | AUT12: 0 | AUU12: 0 | AUV12: 0 | AUW12: 0 | AUX12: 0 | AUY12: 0 | AUZ12: 0 | AVA12: 0 | AVB12: 0 | AVC12: 0 | AVD12: 0 | AVE12: 0 | AVF12: 0 | AVG12: 0 | AVH12: 0 | AVI12: 0 | AVJ12: 0 | AVK12: 0 | AVL12: 0 | AVM12: 0 | AVN12: 0 | AVO12: 0 | AVP12: 0 | AVQ12: 0 | AVR12: 0 | AVS12: 0 | AVT12: 0 | AVU12: 0 | AVV12: 0 | AVW12: 0 | AVX12: 0 | AVY12: 0 | AVZ12: 0 | AWA12: 0 | AWB12: 0 | AWC12: 0 | AWD12: 0 | AWE12: NO | AWF12: 0 | AWG12: 0 | AWH12: 0 | AWI12: 0 | AWJ12: 0 | AWL12: 0 | AWM12: 0 | AWN12: 0 | AWO12: 0 | AWP12: We provided training regarding victim services to a select few new tribal government staff as well as caseworkers we interfaced with from Oregon Department of Human Services. | AWQ12: We have built a strong relationship with our local Domestic Violence non-profit, The Safe Project. We often interface with them, at least weekly, to address issues. We have also been interfacing more frequently with tribal court and tribal police. | AWZ12: The most significant areas of remaining need for the clients we assist are affordable housing, more substance abuse treatment availability, and improved access to mental health. Affordable housing is a crisis all over Oregon, however with the majority of our populations served being located on the Oregon Coast, that is increased due to location. Additionally, many of our clients have co-occuring substance abuse and mental health issues and treatment resources for those issues are lacking, especially in Coos county and other rural areas. Currently the Oregon Health Plan funded mental health provider is scheduling intakes 2 months out in Coos County. CTCLUSI has been working to try and find alternative mental health treatment option, but they are extremely costly and some will not accept medicaid. | AXB12: The joint VAWA and ODSVS award funding from the STOP Program allowed us to create new publications for victim service providers and clients all over Oregon, as well as funded a large amount of training for our newest Circles of Healing Outreach Advocate during this period. Additionally, it allowed us to do prevention programming at our CTCLUSI Tribal Spring Break Camp, which consisted of an activity with kids K-12 regarding personal safety, safe touches, healthy relationships and cultural understandings of sacred personal space. It also allowed for purchase of materials for our monthly women's gatherings, which have grown from 1-3 participants to 25+ most months. All of these activities allow us to provide information and services to different parts of our community as well as continuing to educate ourselves to share information. During this time, we had an elder of the community come to us and thank us for the work that we are doing to change cultural norms of discussing domestic violence and sexual assault. She disclosed that she was a survivor of sexual assault and had never felt she was able to disclose before we started these community conversations. Being able to provide someone with an opportunity to heal 30 years later is just one example of the difference that continuing to facilitate these conversations, activities and services has had in our community. | AXF12: Tribal advocate conducted the training listed in section C.1. but all other activities that would have been listed under Section D. Victim Services/Legal Services were conducted by other staff funded through CTAS or other tribal funds.
A13: 40403 | B13: OR40403 | C13: 2020-02-10 | D13: 2019 | E13: Confederated Tribes of Grand Ronde | F13: 13 | O13: GI5_OrgType_TribProg | Q13: NO | R13: YES | S13: Danielle | U13: Murrell | V13: Confederated Tribes of Grand Ronde | W13: 9615 Grand Ronde Road | X13: Grand Ronde | Y13: OR | Z13: 97347 | AA13: 503 879-1660 | AB13: 503 879-5127 | AC13: Danielle.murrell@grandronde.org | AD13: YES | AE13: Confederated Tribes of Grand Ronde | AF13: 21 | AG13: 73 | AH13: 6 | AI13: 100 | AJ13: YES | AK13: 1 | AL13: 0 | AM13: 0 | AN13: 0 | AO13: 0 | AP13: 0 | AQ13: 0 | AR13: 0 | AS13: 0 | AT13: 0 | AU13: 0 | AV13: 0 | AW13: 0 | AX13: 0 | AY13: 0 | AZ13: 0 | BA13: 0 | BB13: 0 | BC13: 0.56 | BD13: 0 | BF13: 0 | BG13: 0.56 | BH13: 0 | BI13: 0 | BJ13: 0 | BK13: 0 | BL13: 1 | BM13: 1 | BN13: 1 | BO13: 0 | BP13: 0 | BQ13: 0 | BR13: 0 | BS13: 0 | BT13: 0 | BU13: 0 | BV13: 1 | BW13: 0 | BX13: 0 | BY13: 0 | BZ13: 0 | CA13: 1 | CB13: NO | CC13: 0 | CD13: 0 | CE13: 0 | CF13: 0 | CG13: 0 | CH13: 0 | CI13: 0 | CJ13: 0 | CK13: 0 | CL13: 0 | CM13: 0 | CN13: 0 | CO13: 0 | CP13: 0 | CQ13: 0 | CR13: 0 | CS13: 0 | CT13: 0 | CU13: 0 | CV13: 0 | CW13: 0 | CX13: 0 | CY13: 0 | CZ13: 0 | DA13: 0 | DB13: 0 | DC13: 0 | DD13: 0 | DF13: 0 | DG13: 0 | DH13: 0 | DI13: 0 | DJ13: 0 | DK13: 0 | DL13: 0 | DM13: 0 | DN13: 0 | DO13: 0 | DP13: 0 | DQ13: 0 | DR13: 0 | DS13: 0 | DT13: 0 | DV13: 0 | DW13: 0 | DX13: 0 | DY13: 0 | DZ13: 0 | EA13: 0 | EB13: 0 | EC13: 0 | ED13: 0 | EE13: 0 | EF13: 0 | EG13: 0 | EH13: 0 | EI13: 0 | EJ13: 0 | EK13: 0 | EL13: 0 | EM13: 0 | EN13: 0 | EO13: 0 | EQ13: 0 | ER13: 0 | ES13: 0 | ET13: 0 | EU13: 0 | EV13: 0 | EW13: 0 | EX13: 0 | EY13: 0 | EZ13: 0 | FA13: 0 | FB13: 0 | FC13: 0 | FD13: 0 | FE13: 0 | FF13: 0 | FG13: 0 | FI13: 0 | FJ13: 0 | FK13: 0 | FL13: 0 | FM13: 0 | FO13: YES | FP13: 1 | FQ13: 3 | FR13: 0 | FS13: 0 | FT13: 0 | FU13: 1 | FV13: 0 | FW13: 1 | FX13: 0 | FY13: 0 | FZ13: 0 | GA13: 1 | GB13: 0 | GC13: 1 | GD13: 0 | GF13: 1 | GG13: 0 | GH13: 1 | GI13: 0 | GJ13: 0 | GK13: 0 | GL13: 0 | GM13: 0 | GN13: 1 | GO13: 1 | GP13: 0 | GQ13: 0 | GR13: 0 | GS13: 0 | GT13: 0 | GV13: 1 | GW13: 0 | GX13: 0 | GY13: 0 | GZ13: 0 | HA13: 0 | HB13: 0 | HC13: 0 | HD13: 0 | HE13: 0 | HF13: 0 | HG13: 0 | HH13: 0 | HI13: 0 | HJ13: 0 | HK13: 0 | HL13: 0 | HP13: Monthly | HR13: Monthly | HT13: Monthly | HV13: Monthly | HX13: Monthly | HY13: Monthly | ID13: Weekly | IF13: Weekly | IH13: Weekly | II13: Quarterly | IN13: Weekly | IP13: Monthly | IW13: NO | IX13: 0 | IY13: 0 | IZ13: 0 | JA13: 0 | JB13: 0 | JC13: 0 | JD13: 0 | JE13: 0 | JF13: 0 | JG13: 0 | JH13: 0 | JI13: 0 | JJ13: 0 | JK13: 0 | JM13: 0 | JN13: 0 | JO13: 0 | JP13: 0 | JQ13: 0 | JR13: 0 | JS13: 0 | JT13: 0 | JU13: 0 | JV13: 0 | JW13: 0 | JX13: 0 | JY13: 0 | JZ13: 0 | KA13: 0 | KB13: 0 | KC13: 0 | KD13: 0 | KE13: 0 | KF13: 0 | KG13: 0 | KI13: 0 | KJ13: 0 | KK13: 0 | KL13: 0 | KM13: 0 | KN13: 0 | KO13: 0 | KP13: 0 | KQ13: 0 | KR13: 0 | KS13: 0 | KT13: 0 | KU13: 0 | KV13: 0 | KX13: 0 | KY13: 0 | KZ13: 0 | LA13: 0 | LB13: 0 | LC13: 0 | LD13: 0 | LE13: 0 | LF13: 0 | LG13: 0 | LH13: 0 | LI13: 0 | LJ13: 0 | LK13: 0 | LL13: 0 | LM13: 0 | LN13: 0 | LP13: 0 | LQ13: 0 | LR13: 0 | LS13: 0 | LT13: 0 | LU13: 0 | LV13: 0 | LW13: 0 | LX13: 0 | LZ13: 0 | MA13: 0 | MB13: 0 | MC13: 0 | MD13: 0 | ME13: 0 | MF13: 0 | MG13: 0 | MH13: 0 | MI13: 0 | MJ13: 0 | ML13: NO | MM13: 0 | MN13: 0 | MR13: 0 | MV13: 0 | MZ13: 0 | ND13: 0 | NH13: 0 | NL13: 0 | NP13: 0 | NT13: 0 | NY13: 0 | OC13: 0 | OG13: 0 | OK13: NO | OL13: 0 | OM13: 0 | ON13: 0 | OO13: 0 | OP13: 0 | OQ13: 0 | OR13: 0 | OS13: 0 | OT13: 0 | OU13: 0 | OV13: 0 | OW13: 0 | OX13: 0 | OY13: 0 | OZ13: 0 | PA13: 0 | PB13: 0 | PC13: 0 | PD13: 0 | PE13: 0 | PF13: 0 | PG13: 0 | PH13: 0 | PI13: 0 | PJ13: 0 | PK13: 0 | PL13: 0 | PM13: 0 | PO13: NO | PP13: 0 | PQ13: 0 | PR13: 0 | PS13: 0 | PT13: 0 | PU13: 0 | PV13: 0 | PW13: 0 | PX13: 0 | PY13: 0 | PZ13: 0 | QA13: 0 | QB13: 0 | QD13: 0 | QE13: 0 | QF13: 0 | QG13: 0 | QH13: 0 | QI13: 0 | QJ13: 0 | QK13: 0 | QL13: 0 | QM13: 0 | QN13: 0 | QO13: 0 | QP13: 0 | QQ13: 0 | QR13: 0 | QS13: 0 | QT13: NO | QU13: 0 | QV13: 0 | QW13: 0 | QX13: 0 | QY13: 0 | QZ13: 0 | RA13: 0 | RB13: 0 | RC13: 0 | RD13: 0 | RE13: 0 | RF13: 0 | RG13: 0 | RH13: 0 | RI13: 0 | RJ13: 0 | RK13: 0 | RL13: 0 | RM13: 0 | RN13: 0 | RO13: 0 | RP13: 0 | RQ13: 0 | RR13: 0 | RS13: 0 | RT13: 0 | RU13: 0 | RV13: 0 | RW13: 0 | RX13: 0 | RY13: 0 | RZ13: 0 | SA13: 0 | SB13: 0 | SC13: 0 | SD13: 0 | SE13: 0 | SF13: 0 | SG13: 0 | SH13: 0 | SI13: 0 | SJ13: 0 | SK13: 0 | SL13: 0 | SM13: 0 | SN13: 0 | SP13: 0 | SQ13: 0 | SR13: 0 | SS13: 0 | ST13: 0 | SU13: YES | SV13: 1 | SW13: 8 | SX13: 25 | SY13: 6 | SZ13: 39 | TA13: 0 | TB13: 0 | TC13: 0 | TD13: 0 | TE13: 8 | TF13: 25 | TG13: 6 | TH13: 39 | TI13: 0 | TJ13: 0 | TK13: 0 | TL13: 0 | TM13: 8 | TN13: 25 | TO13: 6 | TP13: 39 | TQ13: 8 | TR13: 6 | TS13: 0 | TT13: 3 | TU13: 21 | TV13: 25 | TW13: 0 | TX13: 0 | TY13: 0 | TZ13: 3 | UA13: 6 | UB13: 0 | UC13: 29 | UD13: 34 | UE13: 6 | UF13: 3 | UG13: 0 | UH13: 0 | UI13: 0 | UJ13: 0 | UK13: 0 | UL13: 0 | UM13: 0 | UN13: 0 | UO13: 0 | UP13: 0 | UQ13: 0 | UR13: 0 | US13: 0 | UT13: 0 | UU13: 0 | UV13: 0 | UW13: 0 | UX13: 0 | UY13: 0 | UZ13: 0 | VA13: 0 | VB13: 0 | VC13: 0 | VD13: 0 | VE13: 0 | VF13: 0 | VG13: 0 | VH13: 0 | VI13: 0 | VJ13: 0 | VK13: 0 | VL13: 0 | VM13: 0 | VN13: 0 | VO13: 0 | VP13: 0 | VR13: 36 | VS13: 0 | VT13: 0 | VU13: 0 | VV13: 3 | VW13: 0 | VX13: 0 | VY13: 0 | VZ13: 39 | WA13: 39 | WB13: 0 | WC13: 0 | WD13: 0 | WE13: 39 | WF13: 0 | WG13: 6 | WH13: 33 | WI13: 0 | WJ13: 0 | WK13: 39 | WL13: 0 | WM13: 2 | WN13: 0 | WO13: 0 | WP13: 0 | WQ13: 0 | WR13: 0 | WS13: 3 | WT13: 24 | WU13: 9 | WV13: 0 | WW13: 0 | WX13: 0 | WY13: 4 | WZ13: 2 | XA13: 1 | XB13: 0 | XC13: 0 | XD13: 0 | XE13: 0 | XF13: 0 | XG13: 1 | XH13: 1 | XI13: 0 | XJ13: 8 | XK13: 27 | XL13: 10 | XM13: 6 | XN13: 7 | XO13: 6 | XP13: 18 | XQ13: 0 | XR13: 0 | XS13: 7 | XT13: 15 | XU13: 0 | XV13: 0 | XW13: 0 | XX13: 0 | XY13: 0 | XZ13: 0 | YA13: 6 | YB13: 10 | YC13: 20 | YD13: 26 | YF13: 0 | YG13: 0 | YH13: 0 | YI13: 0 | YJ13: 0 | YK13: 0 | YL13: 0 | YM13: 0 | YN13: 2 | YO13: 2 | YP13: 0 | YQ13: 0 | YR13: 0 | YS13: 0 | YT13: 0 | YU13: 0 | YV13: 2 | YW13: 0 | YX13: 2 | YY13: 0 | YZ13: 0 | ZA13: 0 | ZB13: 0 | ZC13: NO | ZD13: 0 | ZE13: 0 | ZF13: 0 | ZG13: 0 | ZH13: 0 | ZI13: 0 | ZJ13: 0 | ZK13: 0 | ZL13: 0 | ZM13: 0 | ZN13: 0 | ZO13: 0 | ZP13: 0 | ZQ13: 0 | ZR13: 0 | ZS13: 0 | ZT13: 0 | ZU13: 0 | ZV13: 0 | ZW13: 0 | ZY13: 0 | ZZ13: 0 | AAA13: 0 | AAB13: 0 | AAC13: 0 | AAD13: 0 | AAE13: 0 | AAF13: 0 | AAG13: 0 | AAH13: 0 | AAI13: 0 | AAJ13: 0 | AAK13: 0 | AAL13: 0 | AAM13: 0 | AAN13: 0 | AAO13: 0 | AAP13: 0 | AAQ13: 0 | AAR13: 0 | AAS13: 0 | AAT13: 0 | AAU13: 0 | AAV13: 0 | AAW13: 0 | AAX13: 0 | AAY13: 0 | AAZ13: 0 | ABA13: 0 | ABB13: 0 | ABC13: 0 | ABD13: 0 | ABE13: 0 | ABF13: 0 | ABG13: 0 | ABH13: 0 | ABI13: 0 | ABJ13: 0 | ABK13: 0 | ABL13: 0 | ABM13: 0 | ABN13: 0 | ABO13: 0 | ABP13: 0 | ABQ13: 0 | ABR13: 0 | ABS13: 0 | ABT13: 0 | ABU13: 0 | ABV13: 0 | ABW13: 0 | ABX13: 0 | ABY13: 0 | ABZ13: 0 | ACA13: 0 | ACB13: 0 | ACC13: 0 | ACD13: 0 | ACE13: 0 | ACF13: 0 | ACG13: 0 | ACH13: 0 | ACI13: 0 | ACJ13: 0 | ACK13: 0 | ACL13: 0 | ACM13: 0 | ACN13: 0 | ACO13: 0 | ACP13: 0 | ACQ13: 0 | ACR13: 0 | ACS13: 0 | ACT13: 0 | ACU13: 0 | ACV13: 0 | ACW13: 0 | ACX13: 0 | ACY13: 0 | ACZ13: 0 | ADA13: 0 | ADB13: 0 | ADC13: 0 | ADD13: 0 | ADE13: 0 | ADF13: 0 | ADG13: 0 | ADH13: 0 | ADI13: 0 | ADJ13: 0 | ADK13: 0 | ADL13: 0 | ADM13: 0 | ADN13: 0 | ADO13: 0 | ADP13: 0 | ADQ13: 0 | ADR13: 0 | ADS13: 0 | ADT13: 0 | ADU13: 0 | ADV13: 0 | ADW13: 0 | ADX13: 0 | ADY13: 0 | ADZ13: 0 | AEA13: 0 | AEB13: 0 | AEC13: 0 | AED13: 0 | AEE13: 0 | AEF13: 0 | AEG13: 0 | AEH13: 0 | AEI13: 0 | AEJ13: 0 | AEK13: 0 | AEL13: 0 | AEM13: 0 | AEN13: 0 | AEO13: 0 | AEP13: 0 | AEQ13: 0 | AER13: 0 | AES13: 0 | AET13: 0 | AEU13: 0 | AEV13: 0 | AEW13: 0 | AEX13: 0 | AEY13: 0 | AEZ13: 0 | AFA13: 0 | AFB13: 0 | AFC13: 0 | AFD13: 0 | AFE13: 0 | AFF13: 0 | AFG13: 0 | AFI13: 0 | AFJ13: 0 | AFK13: 0 | AFL13: 0 | AFM13: 0 | AFN13: 0 | AFO13: 0 | AFP13: 0 | AFQ13: No | AFR13: 0 | AFS13: 0 | AFT13: 0 | AFU13: 0 | AFV13: 0 | AFW13: 0 | AFX13: 0 | AFY13: 0 | AFZ13: 0 | AGA13: 0 | AGB13: 0 | AGC13: 0 | AGD13: 0 | AGE13: 0 | AGF13: 0 | AGG13: 0 | AGH13: 0 | AGI13: 0 | AGJ13: 0 | AGK13: 0 | AGL13: 0 | AGM13: 0 | AGN13: 0 | AGO13: 0 | AGP13: 0 | AGQ13: 0 | AGR13: 0 | AGS13: 0 | AGT13: 0 | AGU13: 0 | AGV13: 0 | AGW13: 0 | AGX13: 0 | AGY13: 0 | AGZ13: 0 | AHA13: 0 | AHB13: 0 | AHC13: 0 | AHD13: 0 | AHE13: 0 | AHF13: 0 | AHG13: 0 | AHH13: 0 | AHI13: 0 | AHJ13: 0 | AHK13: 0 | AHL13: 0 | AHM13: 0 | AHN13: 0 | AHO13: 0 | AHP13: NO | AHQ13: 0 | AHR13: 0 | AHS13: 0 | AHT13: 0 | AHU13: 0 | AHV13: 0 | AHW13: 0 | AHX13: 0 | AHY13: 0 | AHZ13: 0 | AIA13: 0 | AIB13: 0 | AIC13: 0 | AID13: 0 | AIE13: 0 | AIF13: 0 | AIG13: 0 | AIH13: 0 | AII13: 0 | AIJ13: 0 | AIK13: 0 | AIL13: 0 | AIM13: 0 | AIN13: 0 | AIO13: 0 | AIQ13: 0 | AIR13: 0 | AIS13: 0 | AIT13: 0 | AIU13: 0 | AIV13: 0 | AIW13: 0 | AIX13: 0 | AIY13: 0 | AIZ13: 0 | AJA13: 0 | AJB13: 0 | AJC13: 0 | AJD13: 0 | AJE13: 0 | AJF13: 0 | AJG13: 0 | AJH13: 0 | AJI13: 0 | AJJ13: 0 | AJK13: 0 | AJL13: 0 | AJM13: 0 | AJN13: 0 | AJO13: 0 | AJP13: 0 | AJQ13: 0 | AJR13: 0 | AJS13: 0 | AJT13: 0 | AJU13: 0 | AJV13: 0 | AJW13: 0 | AJX13: 0 | AJY13: 0 | AJZ13: 0 | AKA13: 0 | AKB13: 0 | AKC13: 0 | AKD13: 0 | AKE13: 0 | AKF13: 0 | AKG13: 0 | AKH13: 0 | AKI13: 0 | AKJ13: 0 | AKK13: 0 | AKL13: 0 | AKM13: 0 | AKN13: 0 | AKO13: 0 | AKP13: 0 | AKQ13: 0 | AKR13: 0 | AKS13: 0 | AKT13: 0 | AKU13: 0 | AKV13: 0 | AKW13: 0 | AKX13: 0 | AKY13: 0 | AKZ13: 0 | ALA13: 0 | ALB13: 0 | ALC13: 0 | ALD13: 0 | ALE13: 0 | ALF13: 0 | ALG13: 0 | ALH13: 0 | ALI13: 0 | ALJ13: 0 | ALK13: 0 | ALL13: 0 | ALM13: 0 | ALN13: 0 | ALO13: 0 | ALP13: 0 | ALQ13: 0 | ALR13: 0 | ALS13: 0 | ALT13: 0 | ALU13: 0 | ALV13: 0 | ALW13: 0 | ALX13: 0 | ALY13: 0 | ALZ13: 0 | AMA13: 0 | AMB13: 0 | AMC13: 0 | AMD13: 0 | AME13: 0 | AMF13: 0 | AMG13: 0 | AMH13: 0 | AMI13: 0 | AMJ13: 0 | AMK13: 0 | AML13: 0 | AMM13: 0 | AMN13: 0 | AMO13: 0 | AMP13: 0 | AMQ13: 0 | AMR13: 0 | AMS13: 0 | AMT13: 0 | AMU13: 0 | AMV13: 0 | AMW13: 0 | AMX13: 0 | AMY13: 0 | AMZ13: 0 | ANA13: 0 | ANB13: 0 | ANC13: 0 | AND13: 0 | ANE13: 0 | ANF13: 0 | ANG13: 0 | ANH13: 0 | ANI13: 0 | ANJ13: 0 | ANK13: 0 | ANL13: 0 | ANM13: 0 | ANN13: 0 | ANO13: 0 | ANP13: 0 | ANQ13: 0 | ANR13: 0 | ANS13: 0 | ANT13: 0 | ANU13: 0 | ANV13: 0 | ANW13: 0 | ANX13: 0 | ANY13: 0 | ANZ13: 0 | AOA13: 0 | AOB13: 0 | AOC13: 0 | AOD13: 0 | AOE13: 0 | AOF13: 0 | AOG13: 0 | AOH13: 0 | AOI13: 0 | AOJ13: 0 | AOK13: 0 | AOL13: 0 | AOM13: 0 | AOO13: 0 | AOP13: 0 | AOQ13: 0 | AOR13: 0 | AOS13: 0 | AOT13: 0 | AOU13: 0 | AOV13: 0 | AOW13: 0 | AOX13: 0 | AOY13: 0 | AOZ13: 0 | APA13: 0 | APB13: 0 | APC13: 0 | APD13: 0 | APE13: 0 | APF13: 0 | APG13: 0 | APH13: 0 | API13: 0 | APJ13: 0 | APK13: 0 | APL13: 0 | APM13: 0 | APN13: 0 | APO13: 0 | APP13: 0 | APQ13: 0 | APR13: 0 | APS13: 0 | APT13: 0 | APU13: 0 | APV13: 0 | APW13: 0 | APX13: 0 | APY13: 0 | APZ13: NO | AQA13: 0 | AQB13: 0 | AQC13: 0 | AQD13: 0 | AQE13: 0 | AQF13: 0 | AQG13: 0 | AQH13: 0 | AQI13: 0 | AQJ13: 0 | AQK13: 0 | AQL13: 0 | AQM13: 0 | AQN13: 0 | AQO13: 0 | AQP13: 0 | AQQ13: 0 | AQR13: 0 | AQS13: 0 | AQT13: 0 | AQU13: 0 | AQV13: 0 | AQW13: 0 | AQX13: 0 | AQY13: 0 | AQZ13: 0 | ARA13: 0 | ARB13: 0 | ARC13: 0 | ARD13: 0 | ARE13: 0 | ARF13: 0 | ARG13: 0 | ARH13: 0 | ARI13: 0 | ARJ13: 0 | ARK13: 0 | ARL13: 0 | ARM13: 0 | ARN13: 0 | ARO13: 0 | ARP13: 0 | ARQ13: 0 | ARR13: 0 | ARS13: 0 | ART13: 0 | ARU13: 0 | ARV13: 0 | ARW13: 0 | ARX13: 0 | ARY13: 0 | ARZ13: 0 | ASA13: 0 | ASB13: 0 | ASC13: 0 | ASD13: 0 | ASE13: 0 | ASF13: 0 | ASG13: 0 | ASH13: 0 | ASI13: 0 | ASJ13: 0 | ASK13: 0 | ASL13: 0 | ASM13: 0 | ASN13: 0 | ASO13: 0 | ASP13: 0 | ASQ13: 0 | ASR13: 0 | ASS13: 0 | AST13: 0 | ASU13: 0 | ASV13: 0 | ASW13: 0 | ASX13: 0 | ASY13: 0 | ASZ13: 0 | ATA13: 0 | ATB13: 0 | ATC13: 0 | ATD13: 0 | ATE13: 0 | ATF13: 0 | ATG13: 0 | ATH13: 0 | ATI13: 0 | ATJ13: 0 | ATK13: 0 | ATL13: 0 | ATM13: 0 | ATN13: 0 | ATO13: 0 | ATP13: 0 | ATQ13: 0 | ATR13: 0 | ATS13: 0 | ATT13: 0 | ATU13: 0 | ATV13: 0 | ATW13: 0 | ATX13: 0 | ATY13: 0 | ATZ13: 0 | AUA13: 0 | AUB13: NO | AUC13: 0 | AUD13: 0 | AUE13: 0 | AUF13: 0 | AUG13: 0 | AUH13: 0 | AUI13: 0 | AUJ13: 0 | AUK13: 0 | AUL13: 0 | AUM13: 0 | AUN13: 0 | AUO13: 0 | AUP13: 0 | AUQ13: 0 | AUR13: 0 | AUS13: 0 | AUT13: 0 | AUU13: 0 | AUV13: 0 | AUW13: 0 | AUX13: 0 | AUY13: 0 | AUZ13: 0 | AVA13: 0 | AVB13: 0 | AVC13: 0 | AVD13: 0 | AVE13: 0 | AVF13: 0 | AVG13: 0 | AVH13: 0 | AVI13: 0 | AVJ13: 0 | AVK13: 0 | AVL13: 0 | AVM13: 0 | AVN13: 0 | AVO13: 0 | AVP13: 0 | AVQ13: 0 | AVR13: 0 | AVS13: 0 | AVT13: 0 | AVU13: 0 | AVV13: 0 | AVW13: 0 | AVX13: 0 | AVY13: 0 | AVZ13: 0 | AWA13: 0 | AWB13: 0 | AWC13: 0 | AWD13: 0 | AWE13: NO | AWF13: 0 | AWG13: 0 | AWH13: 0 | AWI13: 0 | AWJ13: 0 | AWL13: 0 | AWM13: 0 | AWN13: 0 | AWO13: 0 | AWQ13: Our collaboration with our Family Coordinator in our Education Department has been helpful in supporting a program participant in navigating the correct resources, having increased support and ability to obtain a copy a no contact order, which had been di | AWT13: Our victim services referrals have been steadily increasing; it took about a year to revitalize our program after staff turn over and a 9 month vacancy in all program positions. Our tribal community members have more awareness of our program/services and | AWU13: Working with our tribal police has been effective in them responding quickly to assisting us with 9-1-1 calls. They keep our DVSA staff and participants safe. | AWZ13: There are many significant areas of remaining need increasing survivor's safety. One of the essential need in our communities are funding for a licensed childcare facility. In our surrounding rural communities, there are very few options for childcare, let alone options that are both affordable and trustworthy. More than one client has expressed fear and frustration that they need to work, but have no good options for childcare. In one instance, a mother who fled her abuser was forced to reside with extended family, who was also emotionally abusive, controlling and used corporal punishment towards her young children but it was safer than staying with her former partner. She explained how difficult it was leaving her daughters when she went to work but she had no other options. On another occasion a women reported that after fleeing her abuser, she left her daughter with in- home childcare provider, whom she suspected was physically abusing her child but also had no other option and had to go to work. We could go on sharing many similar stories. When victims do get the courage to leave their abuser, they often struggle with the ability to financially support their family. Our mothers need to increase their works hours or return to the workforce to support their family. Questions such as, “how will I support my family by myself and where will we live? “How will I work and pay for childcare? These questions are huge factors in preventing women from leaving their abusers. Often our victims, do not have family support due to the abuser’s control and isolating them from friends and family for so long. If mothers are able leave, they are forced to either leave children alone, with siblings who are not much older or with unhealthy family members or friend/neighbors. Having a licensed childcare in our facility would greatly assist our victims. Not only would it remove an additional burden and the stress of locating stable and safe childcare, it would allow them to focus on rebuilding their life for themselves and their children.In addition, another area of remaining need in assisting victims is with emergency items such as car repair, often time when victims want to flee they do not have reliable transportation. Also, when victims re-locate, much of the time with children, they are not able to take all their belongings and need basic reasonable items such as a bed, sheets, table couch etc. Assisting victims with reasonable costs help with rebuilding their lives and feeling safe. Victims also need funding for security systems, typically survivors are victimized in the one place they should feel safe, their homes, so if they are able to leave the situation they want to feel safe, and a security systems assists with feeling safe. | AXB13: Prior to having our program a good majority of our community have issues trusting service providers due to historical trauma and may not have felt comfortable reaching out to dominant culture DVSA programs. With this funding we have been able to provide crisis and emotional support, transportation, safety planning, advocacy,support, information on retraining orders, facilitate weekly, cultural responsive women's group and referrals. Our STOP funded program staff have been able to assist a victim with paying her rent after her abuser left, allowing a safe place for her and her children after she was left with sole financially responsibility. We have been able to assist with emergency hotel stays and eventually transitional shelter. A woman and her child were able to flee an abusive boyfriend that was abusing victim and her daughter. Our last contact with this victim she and daughter are stable, thriving and seeking therapy and case management. Our STOP program staff were also able to assist a victim with 3 children in the home with emergency utility turn on, it had been snowing and her electricity was turned off. The victim's abuser whom was the financial provider left the house and would pay his portion of the bills. Prior to our program existence physical and sexual assault were normalized because it is so prevalent in our community, our program is providing our tribal community information, options and safety that they did not have prior to our program's existence.
A14: 40404 | B14: OR40404 | C14: 2020-02-10 | D14: 2019 | E14: Confederated Tribes of Siletz Indians | F14: Joint2019Siletz00012 | I14: Joint2017Siletz00011 | O14: GI5_OrgType_TribProg | Q14: NO | R14: YES | S14: Kimberly | T14: R | U14: Lane | V14: Confederated Tribes of Siletz Indians | W14: 200 Gwee Shut Road | X14: Siletz | Y14: OR | Z14: 97380 | AA14: 541-444-9679 | AB14: 541-444-9696 | AC14: Kimberlyl@ctsi.nsn.us | AD14: YES | AE14: Any federally recognized tribal member in 11 county service area. | AF14: 40 | AG14: 50 | AH14: 10 | AI14: 100 | AJ14: NO | AK14: 0 | AL14: 0 | AM14: 0 | AN14: 0 | AO14: 0 | AP14: 0 | AQ14: 0 | AR14: 0 | AS14: 0 | AT14: 0 | AU14: 0 | AV14: 0 | AW14: 0 | AX14: 0 | AY14: 0 | AZ14: 0 | BA14: 0 | BB14: 0 | BC14: 0 | BD14: 0 | BF14: 0 | BG14: 0 | BH14: 0 | BI14: 0 | BJ14: 0 | BK14: 0 | BL14: 0 | BM14: 1 | BN14: 0 | BO14: 0 | BP14: 0 | BQ14: 0 | BR14: 0 | BS14: 0 | BT14: 0 | BU14: 0 | BV14: 0 | BW14: 0 | BX14: 0 | BY14: 0 | BZ14: 1 | CA14: 1 | CB14: NO | CC14: 0 | CD14: 0 | CE14: 0 | CF14: 0 | CG14: 0 | CH14: 0 | CI14: 0 | CJ14: 0 | CK14: 0 | CL14: 0 | CM14: 0 | CN14: 0 | CO14: 0 | CP14: 0 | CQ14: 0 | CR14: 0 | CS14: 0 | CT14: 0 | CU14: 0 | CV14: 0 | CW14: 0 | CX14: 0 | CY14: 0 | CZ14: 0 | DA14: 0 | DB14: 0 | DC14: 0 | DD14: 0 | DF14: 0 | DG14: 0 | DH14: 0 | DI14: 0 | DJ14: 0 | DK14: 0 | DL14: 0 | DM14: 0 | DN14: 0 | DO14: 0 | DP14: 0 | DQ14: 0 | DR14: 0 | DS14: 0 | DT14: 0 | DV14: 0 | DW14: 0 | DX14: 0 | DY14: 0 | DZ14: 0 | EA14: 0 | EB14: 0 | EC14: 0 | ED14: 0 | EE14: 0 | EF14: 0 | EG14: 0 | EH14: 0 | EI14: 0 | EJ14: 0 | EK14: 0 | EL14: 0 | EM14: 0 | EN14: 0 | EO14: 0 | EQ14: 0 | ER14: 0 | ES14: 0 | ET14: 0 | EU14: 0 | EV14: 0 | EW14: 0 | EX14: 0 | EY14: 0 | EZ14: 0 | FA14: 0 | FB14: 0 | FC14: 0 | FD14: 0 | FE14: 0 | FF14: 0 | FG14: 0 | FI14: 0 | FJ14: 0 | FK14: 0 | FL14: 0 | FM14: 0 | FO14: NO | FP14: 0 | FQ14: 0 | FR14: 0 | FS14: 0 | FT14: 0 | FU14: 0 | FV14: 0 | FW14: 0 | FX14: 0 | FY14: 0 | FZ14: 0 | GA14: 0 | GB14: 0 | GC14: 0 | GD14: 0 | GF14: 0 | GG14: 0 | GH14: 0 | GI14: 0 | GJ14: 0 | GK14: 0 | GL14: 0 | GM14: 0 | GN14: 0 | GO14: 0 | GP14: 0 | GQ14: 0 | GR14: 0 | GS14: 0 | GT14: 0 | GV14: 0 | GW14: 0 | GX14: 0 | GY14: 0 | GZ14: 0 | HA14: 0 | HB14: 0 | HC14: 0 | HD14: 0 | HE14: 0 | HF14: 0 | HG14: 0 | HH14: 0 | HI14: 0 | HJ14: 0 | HK14: 0 | HL14: 0 | HV14: Weekly | HW14: Weekly | ID14: Weekly | IE14: Weekly | IW14: NO | IX14: 0 | IY14: 0 | IZ14: 0 | JA14: 0 | JB14: 0 | JC14: 0 | JD14: 0 | JE14: 0 | JF14: 0 | JG14: 0 | JH14: 0 | JI14: 0 | JJ14: 0 | JK14: 0 | JM14: 0 | JN14: 0 | JO14: 0 | JP14: 0 | JQ14: 0 | JR14: 0 | JS14: 0 | JT14: 0 | JU14: 0 | JV14: 0 | JW14: 0 | JX14: 0 | JY14: 0 | JZ14: 0 | KA14: 0 | KB14: 0 | KC14: 0 | KD14: 0 | KE14: 0 | KF14: 0 | KG14: 0 | KI14: 0 | KJ14: 0 | KK14: 0 | KL14: 0 | KM14: 0 | KN14: 0 | KO14: 0 | KP14: 0 | KQ14: 0 | KR14: 0 | KS14: 0 | KT14: 0 | KU14: 0 | KV14: 0 | KX14: 0 | KY14: 0 | KZ14: 0 | LA14: 0 | LB14: 0 | LC14: 0 | LD14: 0 | LE14: 0 | LF14: 0 | LG14: 0 | LH14: 0 | LI14: 0 | LJ14: 0 | LK14: 0 | LL14: 0 | LM14: 0 | LN14: 0 | LP14: 0 | LQ14: 0 | LR14: 0 | LS14: 0 | LT14: 0 | LU14: 0 | LV14: 0 | LW14: 0 | LX14: 0 | LZ14: 0 | MA14: 0 | MB14: 0 | MC14: 0 | MD14: 0 | ME14: 0 | MF14: 0 | MG14: 0 | MH14: 0 | MI14: 0 | MJ14: 0 | ML14: NO | MM14: 0 | MN14: 0 | MR14: 0 | MV14: 0 | MZ14: 0 | ND14: 0 | NH14: 0 | NL14: 0 | NP14: 0 | NT14: 0 | NY14: 0 | OC14: 0 | OG14: 0 | OK14: NO | OL14: 0 | OM14: 0 | ON14: 0 | OO14: 0 | OP14: 0 | OQ14: 0 | OR14: 0 | OS14: 0 | OT14: 0 | OU14: 0 | OV14: 0 | OW14: 0 | OX14: 0 | OY14: 0 | OZ14: 0 | PA14: 0 | PB14: 0 | PC14: 0 | PD14: 0 | PE14: 0 | PF14: 0 | PG14: 0 | PH14: 0 | PI14: 0 | PJ14: 0 | PK14: 0 | PL14: 0 | PM14: 0 | PO14: NO | PP14: 0 | PQ14: 0 | PR14: 0 | PS14: 0 | PT14: 0 | PU14: 0 | PV14: 0 | PW14: 0 | PX14: 0 | PY14: 0 | PZ14: 0 | QA14: 0 | QB14: 0 | QD14: 0 | QE14: 0 | QF14: 0 | QG14: 0 | QH14: 0 | QI14: 0 | QJ14: 0 | QK14: 0 | QL14: 0 | QM14: 0 | QN14: 0 | QO14: 0 | QP14: 0 | QQ14: 0 | QR14: 0 | QS14: 0 | QT14: NO | QU14: 0 | QV14: 0 | QW14: 0 | QX14: 0 | QY14: 0 | QZ14: 0 | RA14: 0 | RB14: 0 | RC14: 0 | RD14: 0 | RE14: 0 | RF14: 0 | RG14: 0 | RH14: 0 | RI14: 0 | RJ14: 0 | RK14: 0 | RL14: 0 | RM14: 0 | RN14: 0 | RO14: 0 | RP14: 0 | RQ14: 0 | RR14: 0 | RS14: 0 | RT14: 0 | RU14: 0 | RV14: 0 | RW14: 0 | RX14: 0 | RY14: 0 | RZ14: 0 | SA14: 0 | SB14: 0 | SC14: 0 | SD14: 0 | SE14: 0 | SF14: 0 | SG14: 0 | SH14: 0 | SI14: 0 | SJ14: 0 | SK14: 0 | SL14: 0 | SM14: 0 | SN14: 0 | SP14: 0 | SQ14: 0 | SR14: 0 | SS14: 0 | ST14: 0 | SU14: NO | SV14: 0 | SW14: 0 | SX14: 0 | SY14: 0 | SZ14: 0 | TA14: 0 | TB14: 0 | TC14: 0 | TD14: 0 | TE14: 0 | TF14: 0 | TG14: 0 | TH14: 0 | TI14: 0 | TJ14: 0 | TK14: 0 | TL14: 0 | TM14: 0 | TN14: 0 | TO14: 0 | TP14: 0 | TQ14: 0 | TR14: 0 | TS14: 0 | TT14: 0 | TU14: 0 | TV14: 0 | TW14: 0 | TX14: 0 | TY14: 0 | TZ14: 0 | UA14: 0 | UB14: 0 | UC14: 0 | UD14: 0 | UE14: 0 | UF14: 0 | UG14: 0 | UH14: 0 | UI14: 0 | UJ14: 0 | UK14: 0 | UL14: 0 | UM14: 0 | UN14: 0 | UO14: 0 | UP14: 0 | UQ14: 0 | UR14: 0 | US14: 0 | UT14: 0 | UU14: 0 | UV14: 0 | UW14: 0 | UX14: 0 | UY14: 0 | UZ14: 0 | VA14: 0 | VB14: 0 | VC14: 0 | VD14: 0 | VE14: 0 | VF14: 0 | VG14: 0 | VH14: 0 | VI14: 0 | VJ14: 0 | VK14: 0 | VL14: 0 | VM14: 0 | VN14: 0 | VO14: 0 | VP14: 0 | VR14: 0 | VS14: 0 | VT14: 0 | VU14: 0 | VV14: 0 | VW14: 0 | VX14: 0 | VY14: 0 | VZ14: 0 | WA14: 0 | WB14: 0 | WC14: 0 | WD14: 0 | WE14: 0 | WF14: 0 | WG14: 0 | WH14: 0 | WI14: 0 | WJ14: 0 | WK14: 0 | WL14: 0 | WM14: 0 | WN14: 0 | WO14: 0 | WP14: 0 | WQ14: 0 | WR14: 0 | WS14: 0 | WT14: 0 | WU14: 0 | WV14: 0 | WW14: 0 | WX14: 0 | WY14: 0 | WZ14: 0 | XA14: 0 | XB14: 0 | XC14: 0 | XD14: 0 | XE14: 0 | XF14: 0 | XG14: 0 | XH14: 0 | XI14: 0 | XJ14: 0 | XK14: 0 | XL14: 0 | XM14: 0 | XN14: 0 | XO14: 0 | XP14: 0 | XQ14: 0 | XR14: 0 | XS14: 0 | XT14: 0 | XU14: 0 | XV14: 0 | XW14: 0 | XX14: 0 | XY14: 0 | XZ14: 0 | YA14: 0 | YB14: 0 | YC14: 0 | YD14: 0 | YF14: 0 | YG14: 0 | YH14: 0 | YI14: 0 | YJ14: 0 | YK14: 0 | YL14: 0 | YM14: 0 | YN14: 0 | YO14: 0 | YP14: 0 | YQ14: 0 | YR14: 0 | YS14: 0 | YT14: 0 | YU14: 0 | YV14: 0 | YW14: 0 | YX14: 0 | YY14: 0 | YZ14: 0 | ZA14: 0 | ZB14: 0 | ZC14: NO | ZD14: 0 | ZE14: 0 | ZF14: 0 | ZG14: 0 | ZH14: 0 | ZI14: 0 | ZJ14: 0 | ZK14: 0 | ZL14: 0 | ZM14: 0 | ZN14: 0 | ZO14: 0 | ZP14: 0 | ZQ14: 0 | ZR14: 0 | ZS14: 0 | ZT14: 0 | ZU14: 0 | ZV14: 0 | ZW14: 0 | ZY14: 0 | ZZ14: 0 | AAA14: 0 | AAB14: 0 | AAC14: 0 | AAD14: 0 | AAE14: 0 | AAF14: 0 | AAG14: 0 | AAH14: 0 | AAI14: 0 | AAJ14: 0 | AAK14: 0 | AAL14: 0 | AAM14: 0 | AAN14: 0 | AAO14: 0 | AAP14: 0 | AAQ14: 0 | AAR14: 0 | AAS14: 0 | AAT14: 0 | AAU14: 0 | AAV14: 0 | AAW14: 0 | AAX14: 0 | AAY14: 0 | AAZ14: 0 | ABA14: 0 | ABB14: 0 | ABC14: 0 | ABD14: 0 | ABE14: 0 | ABF14: 0 | ABG14: 0 | ABH14: 0 | ABI14: 0 | ABJ14: 0 | ABK14: 0 | ABL14: 0 | ABM14: 0 | ABN14: 0 | ABO14: 0 | ABP14: 0 | ABQ14: 0 | ABR14: 0 | ABS14: 0 | ABT14: 0 | ABU14: 0 | ABV14: 0 | ABW14: 0 | ABX14: 0 | ABY14: 0 | ABZ14: 0 | ACA14: 0 | ACB14: 0 | ACC14: 0 | ACD14: 0 | ACE14: 0 | ACF14: 0 | ACG14: 0 | ACH14: 0 | ACI14: 0 | ACJ14: 0 | ACK14: 0 | ACL14: 0 | ACM14: 0 | ACN14: 0 | ACO14: 0 | ACP14: 0 | ACQ14: 0 | ACR14: 0 | ACS14: 0 | ACT14: 0 | ACU14: 0 | ACV14: 0 | ACW14: 0 | ACX14: 0 | ACY14: 0 | ACZ14: 0 | ADA14: 0 | ADB14: 0 | ADC14: 0 | ADD14: 0 | ADE14: 0 | ADF14: 0 | ADG14: 0 | ADH14: 0 | ADI14: 0 | ADJ14: 0 | ADK14: 0 | ADL14: 0 | ADM14: 0 | ADN14: 0 | ADO14: 0 | ADP14: 0 | ADQ14: 0 | ADR14: 0 | ADS14: 0 | ADT14: 0 | ADU14: 0 | ADV14: 0 | ADW14: 0 | ADX14: 0 | ADY14: 0 | ADZ14: 0 | AEA14: 0 | AEB14: 0 | AEC14: 0 | AED14: 0 | AEE14: 0 | AEF14: 0 | AEG14: 0 | AEH14: 0 | AEI14: 0 | AEJ14: 0 | AEK14: 0 | AEL14: 0 | AEM14: 0 | AEN14: 0 | AEO14: 0 | AEP14: 0 | AEQ14: 0 | AER14: 0 | AES14: 0 | AET14: 0 | AEU14: 0 | AEV14: 0 | AEW14: 0 | AEX14: 0 | AEY14: 0 | AEZ14: 0 | AFA14: 0 | AFB14: 0 | AFC14: 0 | AFD14: 0 | AFE14: 0 | AFF14: 0 | AFG14: 0 | AFI14: 0 | AFJ14: 0 | AFK14: 0 | AFL14: 0 | AFM14: 0 | AFN14: 0 | AFO14: 0 | AFP14: 0 | AFQ14: NO | AFR14: 0 | AFS14: 0 | AFT14: 0 | AFU14: 0 | AFV14: 0 | AFW14: 0 | AFX14: 0 | AFY14: 0 | AFZ14: 0 | AGA14: 0 | AGB14: 0 | AGC14: 0 | AGD14: 0 | AGE14: 0 | AGF14: 0 | AGG14: 0 | AGH14: 0 | AGI14: 0 | AGJ14: 0 | AGK14: 0 | AGL14: 0 | AGM14: 0 | AGN14: 0 | AGO14: 0 | AGP14: 0 | AGQ14: 0 | AGR14: 0 | AGS14: 0 | AGT14: 0 | AGU14: 0 | AGV14: 0 | AGW14: 0 | AGX14: 0 | AGY14: 0 | AGZ14: 0 | AHA14: 0 | AHB14: 0 | AHC14: 0 | AHD14: 0 | AHE14: 0 | AHF14: 0 | AHG14: 0 | AHH14: 0 | AHI14: 0 | AHJ14: 0 | AHK14: 0 | AHL14: 0 | AHM14: 0 | AHN14: 0 | AHO14: 0 | AHP14: NO | AHQ14: 0 | AHR14: 0 | AHS14: 0 | AHT14: 0 | AHU14: 0 | AHV14: 0 | AHW14: 0 | AHX14: 0 | AHY14: 0 | AHZ14: 0 | AIA14: 0 | AIB14: 0 | AIC14: 0 | AID14: 0 | AIE14: 0 | AIF14: 0 | AIG14: 0 | AIH14: 0 | AII14: 0 | AIJ14: 0 | AIK14: 0 | AIL14: 0 | AIM14: 0 | AIN14: 0 | AIO14: 0 | AIQ14: 0 | AIR14: 0 | AIS14: 0 | AIT14: 0 | AIU14: 0 | AIV14: 0 | AIW14: 0 | AIX14: 0 | AIY14: 0 | AIZ14: 0 | AJA14: 0 | AJB14: 0 | AJC14: 0 | AJD14: 0 | AJE14: 0 | AJF14: 0 | AJG14: 0 | AJH14: 0 | AJI14: 0 | AJJ14: 0 | AJK14: 0 | AJL14: 0 | AJM14: 0 | AJN14: 0 | AJO14: 0 | AJP14: 0 | AJQ14: 0 | AJR14: 0 | AJS14: 0 | AJT14: 0 | AJU14: 0 | AJV14: 0 | AJW14: 0 | AJX14: 0 | AJY14: 0 | AJZ14: 0 | AKA14: 0 | AKB14: 0 | AKC14: 0 | AKD14: 0 | AKE14: 0 | AKF14: 0 | AKG14: 0 | AKH14: 0 | AKI14: 0 | AKJ14: 0 | AKK14: 0 | AKL14: 0 | AKM14: 0 | AKN14: 0 | AKO14: 0 | AKP14: 0 | AKQ14: 0 | AKR14: 0 | AKS14: 0 | AKT14: 0 | AKU14: 0 | AKV14: 0 | AKW14: 0 | AKX14: 0 | AKY14: 0 | AKZ14: 0 | ALA14: 0 | ALB14: 0 | ALC14: 0 | ALD14: 0 | ALE14: 0 | ALF14: 0 | ALG14: 0 | ALH14: 0 | ALI14: 0 | ALJ14: 0 | ALK14: 0 | ALL14: 0 | ALM14: 0 | ALN14: 0 | ALO14: 0 | ALP14: 0 | ALQ14: 0 | ALR14: 0 | ALS14: 0 | ALT14: 0 | ALU14: 0 | ALV14: 0 | ALW14: 0 | ALX14: 0 | ALY14: 0 | ALZ14: 0 | AMA14: 0 | AMB14: 0 | AMC14: 0 | AMD14: 0 | AME14: 0 | AMF14: 0 | AMG14: 0 | AMH14: 0 | AMI14: 0 | AMJ14: 0 | AMK14: 0 | AML14: 0 | AMM14: 0 | AMN14: 0 | AMO14: 0 | AMP14: 0 | AMQ14: 0 | AMR14: 0 | AMS14: 0 | AMT14: 0 | AMU14: 0 | AMV14: 0 | AMW14: 0 | AMX14: 0 | AMY14: 0 | AMZ14: 0 | ANA14: 0 | ANB14: 0 | ANC14: 0 | AND14: 0 | ANE14: 0 | ANF14: 0 | ANG14: 0 | ANH14: 0 | ANI14: 0 | ANJ14: 0 | ANK14: 0 | ANL14: 0 | ANM14: 0 | ANN14: 0 | ANO14: 0 | ANP14: 0 | ANQ14: 0 | ANR14: 0 | ANS14: 0 | ANT14: 0 | ANU14: 0 | ANV14: 0 | ANW14: 0 | ANX14: 0 | ANY14: 0 | ANZ14: 0 | AOA14: 0 | AOB14: 0 | AOC14: 0 | AOD14: 0 | AOE14: 0 | AOF14: 0 | AOG14: 0 | AOH14: 0 | AOI14: 0 | AOJ14: 0 | AOK14: 0 | AOL14: 0 | AOM14: 0 | AOO14: 0 | AOP14: 0 | AOQ14: 0 | AOR14: 0 | AOS14: 0 | AOT14: 0 | AOU14: 0 | AOV14: 0 | AOW14: 0 | AOX14: 0 | AOY14: 0 | AOZ14: 0 | APA14: 0 | APB14: 0 | APC14: 0 | APD14: 0 | APE14: 0 | APF14: 0 | APG14: 0 | APH14: 0 | API14: 0 | APJ14: 0 | APK14: 0 | APL14: 0 | APM14: 0 | APN14: 0 | APO14: 0 | APP14: 0 | APQ14: 0 | APR14: 0 | APS14: 0 | APT14: 0 | APU14: 0 | APV14: 0 | APW14: 0 | APX14: 0 | APY14: 0 | APZ14: NO | AQA14: 0 | AQB14: 0 | AQC14: 0 | AQD14: 0 | AQE14: 0 | AQF14: 0 | AQG14: 0 | AQH14: 0 | AQI14: 0 | AQJ14: 0 | AQK14: 0 | AQL14: 0 | AQM14: 0 | AQN14: 0 | AQO14: 0 | AQP14: 0 | AQQ14: 0 | AQR14: 0 | AQS14: 0 | AQT14: 0 | AQU14: 0 | AQV14: 0 | AQW14: 0 | AQX14: 0 | AQY14: 0 | AQZ14: 0 | ARA14: 0 | ARB14: 0 | ARC14: 0 | ARD14: 0 | ARE14: 0 | ARF14: 0 | ARG14: 0 | ARH14: 0 | ARI14: 0 | ARJ14: 0 | ARK14: 0 | ARL14: 0 | ARM14: 0 | ARN14: 0 | ARO14: 0 | ARP14: 0 | ARQ14: 0 | ARR14: 0 | ARS14: 0 | ART14: 0 | ARU14: 0 | ARV14: 0 | ARW14: 0 | ARX14: 0 | ARY14: 0 | ARZ14: 0 | ASA14: 0 | ASB14: 0 | ASC14: 0 | ASD14: 0 | ASE14: 0 | ASF14: 0 | ASG14: 0 | ASH14: 0 | ASI14: 0 | ASJ14: 0 | ASK14: 0 | ASL14: 0 | ASM14: 0 | ASN14: 0 | ASO14: 0 | ASP14: 0 | ASQ14: 0 | ASR14: 0 | ASS14: 0 | AST14: 0 | ASU14: 0 | ASV14: 0 | ASW14: 0 | ASX14: 0 | ASY14: 0 | ASZ14: 0 | ATA14: 0 | ATB14: 0 | ATC14: 0 | ATD14: 0 | ATE14: 0 | ATF14: 0 | ATG14: 0 | ATH14: 0 | ATI14: 0 | ATJ14: 0 | ATK14: 0 | ATL14: 0 | ATM14: 0 | ATN14: 0 | ATO14: 0 | ATP14: 0 | ATQ14: 0 | ATR14: 0 | ATS14: 0 | ATT14: 0 | ATU14: 0 | ATV14: 0 | ATW14: 0 | ATX14: 0 | ATY14: 0 | ATZ14: 0 | AUA14: 0 | AUB14: NO | AUC14: 0 | AUD14: 0 | AUE14: 0 | AUF14: 0 | AUG14: 0 | AUH14: 0 | AUI14: 0 | AUJ14: 0 | AUK14: 0 | AUL14: 0 | AUM14: 0 | AUN14: 0 | AUO14: 0 | AUP14: 0 | AUQ14: 0 | AUR14: 0 | AUS14: 0 | AUT14: 0 | AUU14: 0 | AUV14: 0 | AUW14: 0 | AUX14: 0 | AUY14: 0 | AUZ14: 0 | AVA14: 0 | AVB14: 0 | AVC14: 0 | AVD14: 0 | AVE14: 0 | AVF14: 0 | AVG14: 0 | AVH14: 0 | AVI14: 0 | AVJ14: 0 | AVK14: 0 | AVL14: 0 | AVM14: 0 | AVN14: 0 | AVO14: 0 | AVP14: 0 | AVQ14: 0 | AVR14: 0 | AVS14: 0 | AVT14: 0 | AVU14: 0 | AVV14: 0 | AVW14: 0 | AVX14: 0 | AVY14: 0 | AVZ14: 0 | AWA14: 0 | AWB14: 0 | AWC14: 0 | AWD14: 0 | AWE14: NO | AWF14: 0 | AWG14: 0 | AWH14: 0 | AWI14: 0 | AWJ14: 0 | AWL14: 0 | AWM14: 0 | AWN14: 0 | AWO14: 0 | AWQ14: While we had used our grant funds up by January of 2019, our coordinated community response continued through partnerships with the local domestic violence council, sexual assault response team, Children's Advocacy Center, Milestones Family Recovery, Chan | AWZ14: The most significant areas of remaining need is low income housing for clients to transition into, co-occurring facilities for those with mental health, substance abuse, and who have experienced interpersonal violence and sex trafficking, and empowering domestic and sexual violence agencies to track how often they receive people who have needs that are crisis oriented but not necessarily interpersonal violence related. Housing costs continue to rise making transitional housing, while still an amazing resource, less effective for long term financial stability or even reducing trauma and stress. Enhancing coordinated community responses and increasing survivor safety means recognizing where the level of engagement falls with many individuals. For example, we have all the clients we serve in a year counted in our hotline calls and encounters, but not the countless calls of people looking for treatment, mental health, homelessness resources, and other tangential issues, and those people are not identifying as interpersonal violence survivors. Crisis programs are hot spots for people in trauma and crisis and what they provide the community is not as easily captured without a small section inquiring on how they handle situations that do not meet grant criteria but have to be dealt with even if its simply letting someone sit in a warm office with a telephone. By providing DV/SA agencies a way to report this data we can capture the pockets of statistics that sometimes go unseen because the agency wasn't necessarily the appropriate agency, but the individual found the organization to be a safe access point and staff still put effort into warm hand offs to the appropriate agency. | AXB14: Stop program funding has allowed the CTSI CARE program to help clients achieve safety, wellbeing, and genuine equitable chance at living abuse free. Having a program that can bridge the amount an individual falls behind financially because they are experiencing interpersonal violence is second only to the trauma reduction of having someone kind who believes and listens to them. Particularly for people who leave their abusers and having to incur all the bills without the other income, financial stability is a huge barrier individuals face. For our population, we also recognize that health can be a large barrier for elder clients. People are often unable to leave an area if their primary care provider has them in the middle of a transition, a waiting period for an essential surgery, or for some individuals, the only state or county or facility that they can get access to medically assisted treatment for substance abuse. Our STOP program funds give people the space they need to breathe and get an in depth plan for navigating post interpersonal violence. | AXF14: While this reporting year caught us as we spent the grant out and were awarded a new one, the STOP grant funds are a vital and important part of our program services. As a program we served 190 clients in 2019 and expect that to continue as a trend in 2020. STOP VAWA program funds change our clients lives, empower us to provide healing and essential programming for both direct and support services. Our support groups, client centered events, prevention, education and honoring (awareness) events all utilize our state joint grant. VAWA grant funds support emergency support services to victims of sexual assault, domestic violence, within the Siletz community. The Domestic Violence/Sexual Assault program for the CT of Siletz Indians receives other grant funds that provides services for victims and survivors along with this grant. These funds along with other tribal funds support DVSA staff.
A15: 40405 | B15: OR40405 | C15: 2020-03-09 | D15: 2019 | E15: Confederated Tribes of Warm Springs | F15: 2017-Joint-00014 | G15: 2019-Joint-00015 | O15: GI5_OrgType_TribProg | Q15: NO | R15: NO | S15: Nancy | U15: Seyler | V15: Confederated Tribes of Warm Springs Oregon | W15: P.O. Box C | X15: Warm Springs | Y15: OR | Z15: 97761 | AA15: 541-553-3300 | AC15: nancy.seyler@wstrtibes.org | AD15: YES | AE15: Confederated Tribes of Warm Springs Oregon - Warm Springs, Wasco, Paiute | AF15: 10 | AG15: 90 | AH15: 0 | AI15: 100 | AJ15: YES | AK15: 1 | AL15: 0 | AM15: 0 | AN15: 0 | AO15: 0 | AP15: 0 | AQ15: 0 | AR15: 0 | AS15: 0 | AT15: 0 | AU15: 0 | AV15: 0 | AW15: 0 | AX15: 0 | AY15: 0 | AZ15: 0 | BA15: 0 | BB15: 0 | BC15: 0.34 | BD15: 0 | BF15: 0 | BG15: 0.34 | BH15: 0 | BI15: 0 | BJ15: 0 | BK15: 0 | BL15: 0 | BM15: 1 | BN15: 0 | BO15: 0 | BP15: 0 | BQ15: 0 | BR15: 0 | BS15: 0 | BT15: 0 | BU15: 0 | BV15: 0 | BW15: 0 | BX15: 0 | BY15: 0 | BZ15: 0 | CA15: 0 | CB15: NO | CC15: 0 | CD15: 0 | CE15: 0 | CF15: 0 | CG15: 0 | CH15: 0 | CI15: 0 | CJ15: 0 | CK15: 0 | CL15: 0 | CM15: 0 | CN15: 0 | CO15: 0 | CP15: 0 | CQ15: 0 | CR15: 0 | CS15: 0 | CT15: 0 | CU15: 0 | CV15: 0 | CW15: 0 | CX15: 0 | CY15: 0 | CZ15: 0 | DA15: 0 | DB15: 0 | DC15: 0 | DD15: 0 | DF15: 0 | DG15: 0 | DH15: 0 | DI15: 0 | DJ15: 0 | DK15: 0 | DL15: 0 | DM15: 0 | DN15: 0 | DO15: 0 | DP15: 0 | DQ15: 0 | DR15: 0 | DS15: 0 | DT15: 0 | DV15: 0 | DW15: 0 | DX15: 0 | DY15: 0 | DZ15: 0 | EA15: 0 | EB15: 0 | EC15: 0 | ED15: 0 | EE15: 0 | EF15: 0 | EG15: 0 | EH15: 0 | EI15: 0 | EJ15: 0 | EK15: 0 | EL15: 0 | EM15: 0 | EN15: 0 | EO15: 0 | EQ15: 0 | ER15: 0 | ES15: 0 | ET15: 0 | EU15: 0 | EV15: 0 | EW15: 0 | EX15: 0 | EY15: 0 | EZ15: 0 | FA15: 0 | FB15: 0 | FC15: 0 | FD15: 0 | FE15: 0 | FF15: 0 | FG15: 0 | FI15: 0 | FJ15: 0 | FK15: 0 | FL15: 0 | FM15: 0 | FO15: NO | FP15: 0 | FQ15: 0 | FR15: 0 | FS15: 0 | FT15: 0 | FU15: 0 | FV15: 0 | FW15: 0 | FX15: 0 | FY15: 0 | FZ15: 0 | GA15: 0 | GB15: 0 | GC15: 0 | GD15: 0 | GF15: 0 | GG15: 0 | GH15: 0 | GI15: 0 | GJ15: 0 | GK15: 0 | GL15: 0 | GM15: 0 | GN15: 0 | GO15: 0 | GP15: 0 | GQ15: 0 | GR15: 0 | GS15: 0 | GT15: 0 | GV15: 0 | GW15: 0 | GX15: 0 | GY15: 0 | GZ15: 0 | HA15: 0 | HB15: 0 | HC15: 0 | HD15: 0 | HE15: 0 | HF15: 0 | HG15: 0 | HH15: 0 | HI15: 0 | HJ15: 0 | HK15: 0 | HL15: 0 | HT15: Weekly | HU15: Quarterly | HV15: Monthly | HW15: Monthly | IE15: Quarterly | IF15: Weekly | IG15: Monthly | IJ15: Weekly | IK15: Quarterly | IO15: Quarterly | IR15: Monthly | IS15: Quarterly | IW15: NO | IX15: 0 | IY15: 0 | IZ15: 0 | JA15: 0 | JB15: 0 | JC15: 0 | JD15: 0 | JE15: 0 | JF15: 0 | JG15: 0 | JH15: 0 | JI15: 0 | JJ15: 0 | JK15: 0 | JM15: 0 | JN15: 0 | JO15: 0 | JP15: 0 | JQ15: 0 | JR15: 0 | JS15: 0 | JT15: 0 | JU15: 0 | JV15: 0 | JW15: 0 | JX15: 0 | JY15: 0 | JZ15: 0 | KA15: 0 | KB15: 0 | KC15: 0 | KD15: 0 | KE15: 0 | KF15: 0 | KG15: 0 | KI15: 0 | KJ15: 0 | KK15: 0 | KL15: 0 | KM15: 0 | KN15: 0 | KO15: 0 | KP15: 0 | KQ15: 0 | KR15: 0 | KS15: 0 | KT15: 0 | KU15: 0 | KV15: 0 | KX15: 0 | KY15: 0 | KZ15: 0 | LA15: 0 | LB15: 0 | LC15: 0 | LD15: 0 | LE15: 0 | LF15: 0 | LG15: 0 | LH15: 0 | LI15: 0 | LJ15: 0 | LK15: 0 | LL15: 0 | LM15: 0 | LN15: 0 | LP15: 0 | LQ15: 0 | LR15: 0 | LS15: 0 | LT15: 0 | LU15: 0 | LV15: 0 | LW15: 0 | LX15: 0 | LZ15: 0 | MA15: 0 | MB15: 0 | MC15: 0 | MD15: 0 | ME15: 0 | MF15: 0 | MG15: 0 | MH15: 0 | MI15: 0 | MJ15: 0 | ML15: NO | MM15: 0 | MN15: 0 | MR15: 0 | MV15: 0 | MZ15: 0 | ND15: 0 | NH15: 0 | NL15: 0 | NP15: 0 | NT15: 0 | NY15: 0 | OC15: 0 | OG15: 0 | OK15: NO | OL15: 0 | OM15: 0 | ON15: 0 | OO15: 0 | OP15: 0 | OQ15: 0 | OR15: 0 | OS15: 0 | OT15: 0 | OU15: 0 | OV15: 0 | OW15: 0 | OX15: 0 | OY15: 0 | OZ15: 0 | PA15: 0 | PB15: 0 | PC15: 0 | PD15: 0 | PE15: 0 | PF15: 0 | PG15: 0 | PH15: 0 | PI15: 0 | PJ15: 0 | PK15: 0 | PL15: 0 | PM15: 0 | PO15: NO | PP15: 0 | PQ15: 0 | PR15: 0 | PS15: 0 | PT15: 0 | PU15: 0 | PV15: 0 | PW15: 0 | PX15: 0 | PY15: 0 | PZ15: 0 | QA15: 0 | QB15: 0 | QD15: 0 | QE15: 0 | QF15: 0 | QG15: 0 | QH15: 0 | QI15: 0 | QJ15: 0 | QK15: 0 | QL15: 0 | QM15: 0 | QN15: 0 | QO15: 0 | QP15: 0 | QQ15: 0 | QR15: 0 | QS15: 0 | QT15: NO | QU15: 0 | QV15: 0 | QW15: 0 | QX15: 0 | QY15: 0 | QZ15: 0 | RA15: 0 | RB15: 0 | RC15: 0 | RD15: 0 | RE15: 0 | RF15: 0 | RG15: 0 | RH15: 0 | RI15: 0 | RJ15: 0 | RK15: 0 | RL15: 0 | RM15: 0 | RN15: 0 | RO15: 0 | RP15: 0 | RQ15: 0 | RR15: 0 | RS15: 0 | RT15: 0 | RU15: 0 | RV15: 0 | RW15: 0 | RX15: 0 | RY15: 0 | RZ15: 0 | SA15: 0 | SB15: 0 | SC15: 0 | SD15: 0 | SE15: 0 | SF15: 0 | SG15: 0 | SH15: 0 | SI15: 0 | SJ15: 0 | SK15: 0 | SL15: 0 | SM15: 0 | SN15: 0 | SP15: 0 | SQ15: 0 | SR15: 0 | SS15: 0 | ST15: 0 | SU15: YES | SV15: 1 | SW15: 2 | SX15: 18 | SY15: 0 | SZ15: 20 | TA15: 0 | TB15: 0 | TC15: 0 | TD15: 0 | TE15: 2 | TF15: 18 | TG15: 0 | TH15: 20 | TI15: 0 | TJ15: 0 | TK15: 0 | TL15: 0 | TM15: 2 | TN15: 18 | TO15: 0 | TP15: 20 | TQ15: 2 | TR15: 0 | TS15: 0 | TT15: 0 | TU15: 0 | TV15: 18 | TW15: 0 | TX15: 0 | TY15: 0 | TZ15: 0 | UA15: 0 | UB15: 0 | UC15: 2 | UD15: 18 | UE15: 0 | UF15: 0 | UG15: 0 | UH15: 4 | UI15: 0 | UJ15: 4 | UK15: 0 | UL15: 0 | UM15: 0 | UN15: 0 | UO15: 0 | UP15: 0 | UQ15: 0 | UR15: 0 | US15: 0 | UT15: 0 | UU15: 0 | UV15: 0 | UW15: 0 | UX15: 0 | UY15: 0 | UZ15: 0 | VA15: 0 | VB15: 0 | VC15: 0 | VD15: 0 | VE15: 0 | VF15: 0 | VG15: 0 | VH15: 0 | VI15: 0 | VJ15: 0 | VK15: 0 | VL15: 0 | VM15: 0 | VN15: 0 | VO15: 0 | VP15: 0 | VR15: 20 | VS15: 0 | VT15: 0 | VU15: 0 | VV15: 0 | VW15: 0 | VX15: 0 | VY15: 0 | VZ15: 20 | WA15: 19 | WB15: 1 | WC15: 0 | WD15: 0 | WE15: 20 | WF15: 0 | WG15: 2 | WH15: 17 | WI15: 1 | WJ15: 0 | WK15: 20 | WL15: 0 | WM15: 2 | WN15: 0 | WO15: 0 | WP15: 0 | WQ15: 0 | WR15: 18 | WS15: 0 | WT15: 10 | WU15: 0 | WV15: 0 | WW15: 2 | WX15: 0 | WY15: 0 | WZ15: 0 | XA15: 0 | XB15: 0 | XC15: 5 | XD15: 0 | XE15: 0 | XF15: 0 | XG15: 2 | XH15: 1 | XI15: 0 | XJ15: 2 | XK15: 18 | XL15: 0 | XM15: 20 | XN15: 20 | XO15: 0 | XP15: 0 | XQ15: 5 | XR15: 15 | XS15: 20 | XT15: 20 | XU15: 0 | XV15: 0 | XW15: 0 | XX15: 0 | XY15: 0 | XZ15: 0 | YA15: 2 | YB15: 2 | YC15: 20 | YD15: 20 | YF15: 0 | YG15: 0 | YH15: 2 | YI15: 4 | YJ15: 6 | YK15: 0 | YL15: 0 | YM15: 0 | YN15: 0 | YO15: 0 | YP15: 0 | YQ15: 0 | YR15: 0 | YS15: 0 | YT15: 0 | YU15: 1 | YV15: 2 | YW15: 1 | YX15: 2 | YY15: 0 | YZ15: 0 | ZA15: 0 | ZB15: 0 | ZC15: NO | ZD15: 0 | ZE15: 0 | ZF15: 0 | ZG15: 0 | ZH15: 0 | ZI15: 0 | ZJ15: 0 | ZK15: 0 | ZL15: 0 | ZM15: 0 | ZN15: 0 | ZO15: 0 | ZP15: 0 | ZQ15: 0 | ZR15: 0 | ZS15: 0 | ZT15: 0 | ZU15: 0 | ZV15: 0 | ZW15: 0 | ZY15: 0 | ZZ15: 0 | AAA15: 0 | AAB15: 0 | AAC15: 0 | AAD15: 0 | AAE15: 0 | AAF15: 0 | AAG15: 0 | AAH15: 0 | AAI15: 0 | AAJ15: 0 | AAK15: 0 | AAL15: 0 | AAM15: 0 | AAN15: 0 | AAO15: 0 | AAP15: 0 | AAQ15: 0 | AAR15: 0 | AAS15: 0 | AAT15: 0 | AAU15: 0 | AAV15: 0 | AAW15: 0 | AAX15: 0 | AAY15: 0 | AAZ15: 0 | ABA15: 0 | ABB15: 0 | ABC15: 0 | ABD15: 0 | ABE15: 0 | ABF15: 0 | ABG15: 0 | ABH15: 0 | ABI15: 0 | ABJ15: 0 | ABK15: 0 | ABL15: 0 | ABM15: 0 | ABN15: 0 | ABO15: 0 | ABP15: 0 | ABQ15: 0 | ABR15: 0 | ABS15: 0 | ABT15: 0 | ABU15: 0 | ABV15: 0 | ABW15: 0 | ABX15: 0 | ABY15: 0 | ABZ15: 0 | ACA15: 0 | ACB15: 0 | ACC15: 0 | ACD15: 0 | ACE15: 0 | ACF15: 0 | ACG15: 0 | ACH15: 0 | ACI15: 0 | ACJ15: 0 | ACK15: 0 | ACL15: 0 | ACM15: 0 | ACN15: 0 | ACO15: 0 | ACP15: 0 | ACQ15: 0 | ACR15: 0 | ACS15: 0 | ACT15: 0 | ACU15: 0 | ACV15: 0 | ACW15: 0 | ACX15: 0 | ACY15: 0 | ACZ15: 0 | ADA15: 0 | ADB15: 0 | ADC15: 0 | ADD15: 0 | ADE15: 0 | ADF15: 0 | ADG15: 0 | ADH15: 0 | ADI15: 0 | ADJ15: 0 | ADK15: 0 | ADL15: 0 | ADM15: 0 | ADN15: 0 | ADO15: 0 | ADP15: 0 | ADQ15: 0 | ADR15: 0 | ADS15: 0 | ADT15: 0 | ADU15: 0 | ADV15: 0 | ADW15: 0 | ADX15: 0 | ADY15: 0 | ADZ15: 0 | AEA15: 0 | AEB15: 0 | AEC15: 0 | AED15: 0 | AEE15: 0 | AEF15: 0 | AEG15: 0 | AEH15: 0 | AEI15: 0 | AEJ15: 0 | AEK15: 0 | AEL15: 0 | AEM15: 0 | AEN15: 0 | AEO15: 0 | AEP15: 0 | AEQ15: 0 | AER15: 0 | AES15: 0 | AET15: 0 | AEU15: 0 | AEV15: 0 | AEW15: 0 | AEX15: 0 | AEY15: 0 | AEZ15: 0 | AFA15: 0 | AFB15: 0 | AFC15: 0 | AFD15: 0 | AFE15: 0 | AFF15: 0 | AFG15: 0 | AFI15: 0 | AFJ15: 0 | AFK15: 0 | AFL15: 0 | AFM15: 0 | AFN15: 0 | AFO15: 0 | AFP15: 0 | AFQ15: NO | AFR15: 0 | AFS15: 0 | AFT15: 0 | AFU15: 0 | AFV15: 0 | AFW15: 0 | AFX15: 0 | AFY15: 0 | AFZ15: 0 | AGA15: 0 | AGB15: 0 | AGC15: 0 | AGD15: 0 | AGE15: 0 | AGF15: 0 | AGG15: 0 | AGH15: 0 | AGI15: 0 | AGJ15: 0 | AGK15: 0 | AGL15: 0 | AGM15: 0 | AGN15: 0 | AGO15: 0 | AGP15: 0 | AGQ15: 0 | AGR15: 0 | AGS15: 0 | AGT15: 0 | AGU15: 0 | AGV15: 0 | AGW15: 0 | AGX15: 0 | AGY15: 0 | AGZ15: 0 | AHA15: 0 | AHB15: 0 | AHC15: 0 | AHD15: 0 | AHE15: 0 | AHF15: 0 | AHG15: 0 | AHH15: 0 | AHI15: 0 | AHJ15: 0 | AHK15: 0 | AHL15: 0 | AHM15: 0 | AHN15: 0 | AHO15: 0 | AHP15: NO | AHQ15: 0 | AHR15: 0 | AHS15: 0 | AHT15: 0 | AHU15: 0 | AHV15: 0 | AHW15: 0 | AHX15: 0 | AHY15: 0 | AHZ15: 0 | AIA15: 0 | AIB15: 0 | AIC15: 0 | AID15: 0 | AIE15: 0 | AIF15: 0 | AIG15: 0 | AIH15: 0 | AII15: 0 | AIJ15: 0 | AIK15: 0 | AIL15: 0 | AIM15: 0 | AIN15: 0 | AIO15: 0 | AIQ15: 0 | AIR15: 0 | AIS15: 0 | AIT15: 0 | AIU15: 0 | AIV15: 0 | AIW15: 0 | AIX15: 0 | AIY15: 0 | AIZ15: 0 | AJA15: 0 | AJB15: 0 | AJC15: 0 | AJD15: 0 | AJE15: 0 | AJF15: 0 | AJG15: 0 | AJH15: 0 | AJI15: 0 | AJJ15: 0 | AJK15: 0 | AJL15: 0 | AJM15: 0 | AJN15: 0 | AJO15: 0 | AJP15: 0 | AJQ15: 0 | AJR15: 0 | AJS15: 0 | AJT15: 0 | AJU15: 0 | AJV15: 0 | AJW15: 0 | AJX15: 0 | AJY15: 0 | AJZ15: 0 | AKA15: 0 | AKB15: 0 | AKC15: 0 | AKD15: 0 | AKE15: 0 | AKF15: 0 | AKG15: 0 | AKH15: 0 | AKI15: 0 | AKJ15: 0 | AKK15: 0 | AKL15: 0 | AKM15: 0 | AKN15: 0 | AKO15: 0 | AKP15: 0 | AKQ15: 0 | AKR15: 0 | AKS15: 0 | AKT15: 0 | AKU15: 0 | AKV15: 0 | AKW15: 0 | AKX15: 0 | AKY15: 0 | AKZ15: 0 | ALA15: 0 | ALB15: 0 | ALC15: 0 | ALD15: 0 | ALE15: 0 | ALF15: 0 | ALG15: 0 | ALH15: 0 | ALI15: 0 | ALJ15: 0 | ALK15: 0 | ALL15: 0 | ALM15: 0 | ALN15: 0 | ALO15: 0 | ALP15: 0 | ALQ15: 0 | ALR15: 0 | ALS15: 0 | ALT15: 0 | ALU15: 0 | ALV15: 0 | ALW15: 0 | ALX15: 0 | ALY15: 0 | ALZ15: 0 | AMA15: 0 | AMB15: 0 | AMC15: 0 | AMD15: 0 | AME15: 0 | AMF15: 0 | AMG15: 0 | AMH15: 0 | AMI15: 0 | AMJ15: 0 | AMK15: 0 | AML15: 0 | AMM15: 0 | AMN15: 0 | AMO15: 0 | AMP15: 0 | AMQ15: 0 | AMR15: 0 | AMS15: 0 | AMT15: 0 | AMU15: 0 | AMV15: 0 | AMW15: 0 | AMX15: 0 | AMY15: 0 | AMZ15: 0 | ANA15: 0 | ANB15: 0 | ANC15: 0 | AND15: 0 | ANE15: 0 | ANF15: 0 | ANG15: 0 | ANH15: 0 | ANI15: 0 | ANJ15: 0 | ANK15: 0 | ANL15: 0 | ANM15: 0 | ANN15: 0 | ANO15: 0 | ANP15: 0 | ANQ15: 0 | ANR15: 0 | ANS15: 0 | ANT15: 0 | ANU15: 0 | ANV15: 0 | ANW15: 0 | ANX15: 0 | ANY15: 0 | ANZ15: 0 | AOA15: 0 | AOB15: 0 | AOC15: 0 | AOD15: 0 | AOE15: 0 | AOF15: 0 | AOG15: 0 | AOH15: 0 | AOI15: 0 | AOJ15: 0 | AOK15: 0 | AOL15: 0 | AOM15: 0 | AOO15: 0 | AOP15: 0 | AOQ15: 0 | AOR15: 0 | AOS15: 0 | AOT15: 0 | AOU15: 0 | AOV15: 0 | AOW15: 0 | AOX15: 0 | AOY15: 0 | AOZ15: 0 | APA15: 0 | APB15: 0 | APC15: 0 | APD15: 0 | APE15: 0 | APF15: 0 | APG15: 0 | APH15: 0 | API15: 0 | APJ15: 0 | APK15: 0 | APL15: 0 | APM15: 0 | APN15: 0 | APO15: 0 | APP15: 0 | APQ15: 0 | APR15: 0 | APS15: 0 | APT15: 0 | APU15: 0 | APV15: 0 | APW15: 0 | APX15: 0 | APY15: 0 | APZ15: NO | AQA15: 0 | AQB15: 0 | AQC15: 0 | AQD15: 0 | AQE15: 0 | AQF15: 0 | AQG15: 0 | AQH15: 0 | AQI15: 0 | AQJ15: 0 | AQK15: 0 | AQL15: 0 | AQM15: 0 | AQN15: 0 | AQO15: 0 | AQP15: 0 | AQQ15: 0 | AQR15: 0 | AQS15: 0 | AQT15: 0 | AQU15: 0 | AQV15: 0 | AQW15: 0 | AQX15: 0 | AQY15: 0 | AQZ15: 0 | ARA15: 0 | ARB15: 0 | ARC15: 0 | ARD15: 0 | ARE15: 0 | ARF15: 0 | ARG15: 0 | ARH15: 0 | ARI15: 0 | ARJ15: 0 | ARK15: 0 | ARL15: 0 | ARM15: 0 | ARN15: 0 | ARO15: 0 | ARP15: 0 | ARQ15: 0 | ARR15: 0 | ARS15: 0 | ART15: 0 | ARU15: 0 | ARV15: 0 | ARW15: 0 | ARX15: 0 | ARY15: 0 | ARZ15: 0 | ASA15: 0 | ASB15: 0 | ASC15: 0 | ASD15: 0 | ASE15: 0 | ASF15: 0 | ASG15: 0 | ASH15: 0 | ASI15: 0 | ASJ15: 0 | ASK15: 0 | ASL15: 0 | ASM15: 0 | ASN15: 0 | ASO15: 0 | ASP15: 0 | ASQ15: 0 | ASR15: 0 | ASS15: 0 | AST15: 0 | ASU15: 0 | ASV15: 0 | ASW15: 0 | ASX15: 0 | ASY15: 0 | ASZ15: 0 | ATA15: 0 | ATB15: 0 | ATC15: 0 | ATD15: 0 | ATE15: 0 | ATF15: 0 | ATG15: 0 | ATH15: 0 | ATI15: 0 | ATJ15: 0 | ATK15: 0 | ATL15: 0 | ATM15: 0 | ATN15: 0 | ATO15: 0 | ATP15: 0 | ATQ15: 0 | ATR15: 0 | ATS15: 0 | ATT15: 0 | ATU15: 0 | ATV15: 0 | ATW15: 0 | ATX15: 0 | ATY15: 0 | ATZ15: 0 | AUA15: 0 | AUB15: NO | AUC15: 0 | AUD15: 0 | AUE15: 0 | AUF15: 0 | AUG15: 0 | AUH15: 0 | AUI15: 0 | AUJ15: 0 | AUK15: 0 | AUL15: 0 | AUM15: 0 | AUN15: 0 | AUO15: 0 | AUP15: 0 | AUQ15: 0 | AUR15: 0 | AUS15: 0 | AUT15: 0 | AUU15: 0 | AUV15: 0 | AUW15: 0 | AUX15: 0 | AUY15: 0 | AUZ15: 0 | AVA15: 0 | AVB15: 0 | AVC15: 0 | AVD15: 0 | AVE15: 0 | AVF15: 0 | AVG15: 0 | AVH15: 0 | AVI15: 0 | AVJ15: 0 | AVK15: 0 | AVL15: 0 | AVM15: 0 | AVN15: 0 | AVO15: 0 | AVP15: 0 | AVQ15: 0 | AVR15: 0 | AVS15: 0 | AVT15: 0 | AVU15: 0 | AVV15: 0 | AVW15: 0 | AVX15: 0 | AVY15: 0 | AVZ15: 0 | AWA15: 0 | AWB15: 0 | AWC15: 0 | AWD15: 0 | AWE15: NO | AWF15: 0 | AWG15: 0 | AWH15: 0 | AWI15: 0 | AWJ15: 0 | AWL15: 0 | AWM15: 0 | AWN15: 0 | AWO15: 0 | AWZ15: The most significant needs is going from 1 FTE to 2 FTE's and or 1 FTE Advocate Supervisor and offender accountability for both batterers and sex offenders. We are very appreciative that Oregon tribes received an increase that enabled us to move our part-time advocate position up to full-time, however she can use assistance with victim services of incoming clientele in introducing them to VAWA, victim services that are available, improving communication between our clientele and Law Enforcement (LE), completing restraining orders that are filed with our tribal court. An Advocate Supervisor is greatly needed to supervise the advocate and fellow advocates who are VOCA funded on site and manage the overall staff and program first hand. On site training, and possibly ongoing depending on the needs, for advocates, Prosecution, Judges, Parole & Probation and LE is required in understanding why sex offenders and batterer's is essential. Resources are limited here in Central Oregon to Best Care Madras located approximately 15 miles one way from Warm Springs, for batterer's; and our local Behavioral Health Center does not have the staff to train and provide such services, and have asked Victims of Crime Services (VOCS) to do this, however we find this to be a conflict of interest and offensive to victims who have and are receiving VOCS services. This holds true for sex offenders. There is no resource for sex offenders (adult, juvenile)here in Central Oregon, and if there is, it is unbeknown to us. Having been recently informed, the federal side struggles to locate offender accountability for youth. In addition to the above training, all programs can use DV/sexual assault/stalking training but overall, the advocates can use ongoing training in addition to OCADSV's annual training that, when they do, highlights information, but do not get in to the nitty gritty if you will. Webinars only provide general, broad information though it is a start and beneficial by way of additional resources being provided. There needs to be person to person training like it use to be, to have the trainers physically present, to have actual survivors heard in person.Community members are becoming aware of human/sex trafficking who are beginning to share of their knowledge of unnamed individuals who are victimized and is this possibly sexual assault, how do you define the difference between sex trafficking and sexual assault, etc. and this will be a challenge upon VOCS as this program will be the first site to visit for (emergency) victim services. The advocate will need to be prepared as well as her fellow advocates who are VOCA funded as we journey together in becoming a tribal community becoming more aware and informed of this area and developing policies and procedures. VOCS/Prosecution continues to develop their restraining order form as it relates to the Full Faith and Credit movement. | AXB15: The latter part of 2019, announcing and providing us with additional funds was very welcome! The part-time advocate position became a full-time position that gives her 40 hours per week to provide necessary emergency client services and follow-up. The additional funding is giving her the opportunity to provide additional emergency services and training, office equipment/supplies, and a lap top to take with her to do client intakes which is a first. | AXD15: Not applicable.
A16: 40406 | B16: OR40406 | C16: 2020-01-08 | D16: 2019 | E16: Cow Creek Government | F16: Joint-2019-00018 | I16: Joint-2017-00016 | O16: GI5_OrgType_TribGovt | Q16: NO | R16: YES | S16: Andrea | T16: L | U16: Davis | V16: Cow Creek Government | W16: 2371 NE Stephens | X16: Roseburg | Y16: OR | Z16: 97470 | AA16: 541-677-5575 | AB16: 541-677-5565 | AC16: adavis@cowcreek.com | AD16: YES | AE16: Any Tribal member or affiliate member in need of services and employees. | AF16: 0 | AG16: 100 | AH16: 0 | AI16: 100 | AJ16: YES | AK16: 1 | AL16: 0 | AM16: 0 | AN16: 0 | AO16: 0 | AP16: 0 | AQ16: 0 | AR16: 0 | AS16: 0 | AT16: 0.35 | AU16: 0 | AV16: 0 | AW16: 0 | AX16: 0 | AY16: 0 | AZ16: 0 | BA16: 0 | BB16: 0 | BC16: 0 | BD16: 0 | BF16: 0 | BG16: 0.35 | BH16: 0 | BI16: 0 | BJ16: 1 | BK16: 1 | BL16: 0 | BM16: 1 | BN16: 1 | BO16: 0 | BP16: 0 | BQ16: 0 | BR16: 0 | BS16: 1 | BT16: 0 | BU16: 0 | BV16: 0 | BW16: 0 | BX16: 0 | BY16: 0 | BZ16: 0 | CA16: 0 | CB16: NO | CC16: 0 | CD16: 0 | CE16: 0 | CF16: 0 | CG16: 0 | CH16: 0 | CI16: 0 | CJ16: 0 | CK16: 0 | CL16: 0 | CM16: 0 | CN16: 0 | CO16: 0 | CP16: 0 | CQ16: 0 | CR16: 0 | CS16: 0 | CT16: 0 | CU16: 0 | CV16: 0 | CW16: 0 | CX16: 0 | CY16: 0 | CZ16: 0 | DA16: 0 | DB16: 0 | DC16: 0 | DD16: 0 | DF16: 0 | DG16: 0 | DH16: 0 | DI16: 0 | DJ16: 0 | DK16: 0 | DL16: 0 | DM16: 0 | DN16: 0 | DO16: 0 | DP16: 0 | DQ16: 0 | DR16: 0 | DS16: 0 | DT16: 0 | DV16: 0 | DW16: 0 | DX16: 0 | DY16: 0 | DZ16: 0 | EA16: 0 | EB16: 0 | EC16: 0 | ED16: 0 | EE16: 0 | EF16: 0 | EG16: 0 | EH16: 0 | EI16: 0 | EJ16: 0 | EK16: 0 | EL16: 0 | EM16: 0 | EN16: 0 | EO16: 0 | EQ16: 0 | ER16: 0 | ES16: 0 | ET16: 0 | EU16: 0 | EV16: 0 | EW16: 0 | EX16: 0 | EY16: 0 | EZ16: 0 | FA16: 0 | FB16: 0 | FC16: 0 | FD16: 0 | FE16: 0 | FF16: 0 | FG16: 0 | FI16: 0 | FJ16: 0 | FK16: 0 | FL16: 0 | FM16: 0 | FO16: NO | FP16: 0 | FQ16: 0 | FR16: 0 | FS16: 0 | FT16: 0 | FU16: 0 | FV16: 0 | FW16: 0 | FX16: 0 | FY16: 0 | FZ16: 0 | GA16: 0 | GB16: 0 | GC16: 0 | GD16: 0 | GF16: 0 | GG16: 0 | GH16: 0 | GI16: 0 | GJ16: 0 | GK16: 0 | GL16: 0 | GM16: 0 | GN16: 0 | GO16: 0 | GP16: 0 | GQ16: 0 | GR16: 0 | GS16: 0 | GT16: 0 | GV16: 0 | GW16: 0 | GX16: 0 | GY16: 0 | GZ16: 0 | HA16: 0 | HB16: 0 | HC16: 0 | HD16: 0 | HE16: 0 | HF16: 0 | HG16: 0 | HH16: 0 | HI16: 0 | HJ16: 0 | HK16: 0 | HL16: 0 | HS16: Quarterly | IS16: Quarterly | IW16: YES | IX16: 1 | IY16: 1 | IZ16: 0 | JA16: 0 | JB16: 0 | JC16: 0 | JD16: 1 | JE16: 0 | JF16: 1 | JG16: 0 | JH16: 0 | JI16: 0 | JJ16: 0 | JK16: 0 | JM16: 1 | JN16: 0 | JO16: 0 | JP16: 0 | JQ16: 0 | JR16: 0 | JS16: 0 | JT16: 0 | JU16: 1 | JV16: 0 | JW16: 0 | JX16: 1 | JY16: 0 | JZ16: 0 | KA16: 0 | KB16: 0 | KC16: 0 | KD16: 1 | KE16: 0 | KF16: 0 | KG16: 0 | KI16: 0 | KJ16: 0 | KK16: 0 | KL16: 0 | KM16: 0 | KN16: 0 | KO16: 0 | KP16: 0 | KQ16: 0 | KR16: 0 | KS16: 0 | KT16: 0 | KU16: 0 | KV16: 0 | KX16: 0 | KY16: 0 | KZ16: 0 | LA16: 0 | LB16: 0 | LC16: 0 | LD16: 0 | LE16: 0 | LF16: 0 | LG16: 0 | LH16: 0 | LI16: 0 | LJ16: 0 | LK16: 0 | LL16: 0 | LM16: 0 | LN16: 0 | LP16: 0 | LQ16: 0 | LR16: 0 | LS16: 0 | LT16: 0 | LU16: 0 | LV16: 0 | LW16: 0 | LX16: 0 | LZ16: 0 | MA16: 0 | MB16: 0 | MC16: 0 | MD16: 0 | ME16: 0 | MF16: 0 | MG16: 0 | MH16: 0 | MI16: 0 | MJ16: 0 | ML16: YES | MM16: 1 | MN16: 20 | MO16: Abuse is not traditional flyer's | MP16: All who have need | MR16: 0 | MV16: 0 | MZ16: 20 | NA16: Healing the trauma of abuse | NB16: womens empowerment | ND16: 1 | NE16: instructor manual | NH16: 0 | NL16: 0 | NP16: 0 | NT16: 0 | NY16: 0 | OC16: 0 | OG16: 0 | OK16: NO | OL16: 0 | OM16: 0 | ON16: 0 | OO16: 0 | OP16: 0 | OQ16: 0 | OR16: 0 | OS16: 0 | OT16: 0 | OU16: 0 | OV16: 0 | OW16: 0 | OX16: 0 | OY16: 0 | OZ16: 0 | PA16: 0 | PB16: 0 | PC16: 0 | PD16: 0 | PE16: 0 | PF16: 0 | PG16: 0 | PH16: 0 | PI16: 0 | PJ16: 0 | PK16: 0 | PL16: 0 | PM16: 0 | PO16: NO | PP16: 0 | PQ16: 0 | PR16: 0 | PS16: 0 | PT16: 0 | PU16: 0 | PV16: 0 | PW16: 0 | PX16: 0 | PY16: 0 | PZ16: 0 | QA16: 0 | QB16: 0 | QD16: 0 | QE16: 0 | QF16: 0 | QG16: 0 | QH16: 0 | QI16: 0 | QJ16: 0 | QK16: 0 | QL16: 0 | QM16: 0 | QN16: 0 | QO16: 0 | QP16: 0 | QQ16: 0 | QR16: 0 | QS16: 0 | QT16: YES | QU16: 1 | QV16: 0 | QW16: 0 | QX16: 0 | QY16: 0 | QZ16: 0 | RA16: 0 | RB16: 0 | RC16: 0 | RD16: 0 | RE16: 0 | RF16: 0 | RG16: 0 | RH16: 0 | RI16: 0 | RJ16: 0 | RK16: 0 | RL16: 0 | RM16: 0 | RN16: 0 | RO16: 0 | RP16: 0 | RQ16: 0 | RR16: 0 | RS16: 0 | RT16: 0 | RU16: 1 | RV16: 1 | RW16: 0 | RX16: 1 | RY16: 0 | RZ16: 0 | SA16: 0 | SB16: 0 | SC16: 0 | SD16: 0 | SE16: 0 | SF16: 0 | SG16: 0 | SH16: 0 | SI16: 0 | SJ16: 0 | SK16: 0 | SL16: 0 | SM16: 0 | SN16: 0 | SP16: 0 | SQ16: 0 | SR16: 0 | SS16: 0 | ST16: 0 | SU16: YES | SV16: 1 | SW16: 0 | SX16: 5 | SY16: 0 | SZ16: 5 | TA16: 0 | TB16: 0 | TC16: 0 | TD16: 0 | TE16: 0 | TF16: 5 | TG16: 0 | TH16: 5 | TI16: 0 | TJ16: 0 | TK16: 0 | TL16: 0 | TM16: 0 | TN16: 1 | TO16: 0 | TP16: 1 | TQ16: 0 | TR16: 0 | TS16: 0 | TT16: 0 | TU16: 0 | TV16: 5 | TW16: 0 | TX16: 0 | TY16: 0 | TZ16: 0 | UA16: 0 | UB16: 0 | UC16: 0 | UD16: 5 | UE16: 0 | UF16: 0 | UG16: 0 | UH16: 0 | UI16: 0 | UJ16: 0 | UK16: 0 | UL16: 0 | UM16: 0 | UN16: 0 | UO16: 0 | UP16: 0 | UQ16: 0 | UR16: 0 | US16: 0 | UT16: 0 | UU16: 0 | UV16: 0 | UW16: 0 | UX16: 0 | UY16: 0 | UZ16: 0 | VA16: 0 | VB16: 0 | VC16: 0 | VD16: 0 | VE16: 0 | VF16: 0 | VG16: 0 | VH16: 0 | VI16: 0 | VJ16: 0 | VK16: 0 | VL16: 0 | VM16: 0 | VN16: 0 | VO16: 0 | VP16: 0 | VR16: 5 | VS16: 0 | VT16: 0 | VU16: 0 | VV16: 0 | VW16: 0 | VX16: 0 | VY16: 0 | VZ16: 5 | WA16: 5 | WB16: 0 | WC16: 0 | WD16: 0 | WE16: 5 | WF16: 0 | WG16: 0 | WH16: 3 | WI16: 2 | WJ16: 0 | WK16: 5 | WL16: 0 | WM16: 0 | WN16: 0 | WO16: 0 | WP16: 0 | WQ16: 0 | WR16: 0 | WS16: 0 | WT16: 4 | WU16: 0 | WV16: 0 | WW16: 1 | WX16: 0 | WY16: 0 | WZ16: 0 | XA16: 0 | XB16: 0 | XC16: 0 | XD16: 0 | XE16: 0 | XF16: 0 | XG16: 0 | XH16: 0 | XI16: 0 | XJ16: 0 | XK16: 5 | XL16: 0 | XM16: 2 | XN16: 3 | XO16: 0 | XP16: 0 | XQ16: 0 | XR16: 0 | XS16: 0 | XT16: 0 | XU16: 0 | XV16: 0 | XW16: 0 | XX16: 0 | XY16: 0 | XZ16: 0 | YA16: 0 | YB16: 0 | YC16: 2 | YD16: 4 | YF16: 0 | YG16: 0 | YH16: 2 | YI16: 0 | YJ16: 6 | YK16: 0 | YL16: 0 | YM16: 0 | YN16: 0 | YO16: 0 | YP16: 0 | YQ16: 0 | YR16: 0 | YS16: 0 | YT16: 0 | YU16: 2 | YV16: 2 | YW16: 0 | YX16: 0 | YY16: 0 | YZ16: 0 | ZA16: 0 | ZB16: 0 | ZC16: NO | ZD16: 0 | ZE16: 0 | ZF16: 0 | ZG16: 0 | ZH16: 0 | ZI16: 0 | ZJ16: 0 | ZK16: 0 | ZL16: 0 | ZM16: 0 | ZN16: 0 | ZO16: 0 | ZP16: 0 | ZQ16: 0 | ZR16: 0 | ZS16: 0 | ZT16: 0 | ZU16: 0 | ZV16: 0 | ZW16: 0 | ZY16: 0 | ZZ16: 0 | AAA16: 0 | AAB16: 0 | AAC16: 0 | AAD16: 0 | AAE16: 0 | AAF16: 0 | AAG16: 0 | AAH16: 0 | AAI16: 0 | AAJ16: 0 | AAK16: 0 | AAL16: 0 | AAM16: 0 | AAN16: 0 | AAO16: 0 | AAP16: 0 | AAQ16: 0 | AAR16: 0 | AAS16: 0 | AAT16: 0 | AAU16: 0 | AAV16: 0 | AAW16: 0 | AAX16: 0 | AAY16: 0 | AAZ16: 0 | ABA16: 0 | ABB16: 0 | ABC16: 0 | ABD16: 0 | ABE16: 0 | ABF16: 0 | ABG16: 0 | ABH16: 0 | ABI16: 0 | ABJ16: 0 | ABK16: 0 | ABL16: 0 | ABM16: 0 | ABN16: 0 | ABO16: 0 | ABP16: 0 | ABQ16: 0 | ABR16: 0 | ABS16: 0 | ABT16: 0 | ABU16: 0 | ABV16: 0 | ABW16: 0 | ABX16: 0 | ABY16: 0 | ABZ16: 0 | ACA16: 0 | ACB16: 0 | ACC16: 0 | ACD16: 0 | ACE16: 0 | ACF16: 0 | ACG16: 0 | ACH16: 0 | ACI16: 0 | ACJ16: 0 | ACK16: 0 | ACL16: 0 | ACM16: 0 | ACN16: 0 | ACO16: 0 | ACP16: 0 | ACQ16: 0 | ACR16: 0 | ACS16: 0 | ACT16: 0 | ACU16: 0 | ACV16: 0 | ACW16: 0 | ACX16: 0 | ACY16: 0 | ACZ16: 0 | ADA16: 0 | ADB16: 0 | ADC16: 0 | ADD16: 0 | ADE16: 0 | ADF16: 0 | ADG16: 0 | ADH16: 0 | ADI16: 0 | ADJ16: 0 | ADK16: 0 | ADL16: 0 | ADM16: 0 | ADN16: 0 | ADO16: 0 | ADP16: 0 | ADQ16: 0 | ADR16: 0 | ADS16: 0 | ADT16: 0 | ADU16: 0 | ADV16: 0 | ADW16: 0 | ADX16: 0 | ADY16: 0 | ADZ16: 0 | AEA16: 0 | AEB16: 0 | AEC16: 0 | AED16: 0 | AEE16: 0 | AEF16: 0 | AEG16: 0 | AEH16: 0 | AEI16: 0 | AEJ16: 0 | AEK16: 0 | AEL16: 0 | AEM16: 0 | AEN16: 0 | AEO16: 0 | AEP16: 0 | AEQ16: 0 | AER16: 0 | AES16: 0 | AET16: 0 | AEU16: 0 | AEV16: 0 | AEW16: 0 | AEX16: 0 | AEY16: 0 | AEZ16: 0 | AFA16: 0 | AFB16: 0 | AFC16: 0 | AFD16: 0 | AFE16: 0 | AFF16: 0 | AFG16: 0 | AFI16: 0 | AFJ16: 0 | AFK16: 0 | AFL16: 0 | AFM16: 0 | AFN16: 0 | AFO16: 0 | AFP16: 0 | AFQ16: NO | AFR16: 0 | AFS16: 0 | AFT16: 0 | AFU16: 0 | AFV16: 0 | AFW16: 0 | AFX16: 0 | AFY16: 0 | AFZ16: 0 | AGA16: 0 | AGB16: 0 | AGC16: 0 | AGD16: 0 | AGE16: 0 | AGF16: 0 | AGG16: 0 | AGH16: 0 | AGI16: 0 | AGJ16: 0 | AGK16: 0 | AGL16: 0 | AGM16: 0 | AGN16: 0 | AGO16: 0 | AGP16: 0 | AGQ16: 0 | AGR16: 0 | AGS16: 0 | AGT16: 0 | AGU16: 0 | AGV16: 0 | AGW16: 0 | AGX16: 0 | AGY16: 0 | AGZ16: 0 | AHA16: 0 | AHB16: 0 | AHC16: 0 | AHD16: 0 | AHE16: 0 | AHF16: 0 | AHG16: 0 | AHH16: 0 | AHI16: 0 | AHJ16: 0 | AHK16: 0 | AHL16: 0 | AHM16: 0 | AHN16: 0 | AHO16: 0 | AHP16: NO | AHQ16: 0 | AHR16: 0 | AHS16: 0 | AHT16: 0 | AHU16: 0 | AHV16: 0 | AHW16: 0 | AHX16: 0 | AHY16: 0 | AHZ16: 0 | AIA16: 0 | AIB16: 0 | AIC16: 0 | AID16: 0 | AIE16: 0 | AIF16: 0 | AIG16: 0 | AIH16: 0 | AII16: 0 | AIJ16: 0 | AIK16: 0 | AIL16: 0 | AIM16: 0 | AIN16: 0 | AIO16: 0 | AIQ16: 0 | AIR16: 0 | AIS16: 0 | AIT16: 0 | AIU16: 0 | AIV16: 0 | AIW16: 0 | AIX16: 0 | AIY16: 0 | AIZ16: 0 | AJA16: 0 | AJB16: 0 | AJC16: 0 | AJD16: 0 | AJE16: 0 | AJF16: 0 | AJG16: 0 | AJH16: 0 | AJI16: 0 | AJJ16: 0 | AJK16: 0 | AJL16: 0 | AJM16: 0 | AJN16: 0 | AJO16: 0 | AJP16: 0 | AJQ16: 0 | AJR16: 0 | AJS16: 0 | AJT16: 0 | AJU16: 0 | AJV16: 0 | AJW16: 0 | AJX16: 0 | AJY16: 0 | AJZ16: 0 | AKA16: 0 | AKB16: 0 | AKC16: 0 | AKD16: 0 | AKE16: 0 | AKF16: 0 | AKG16: 0 | AKH16: 0 | AKI16: 0 | AKJ16: 0 | AKK16: 0 | AKL16: 0 | AKM16: 0 | AKN16: 0 | AKO16: 0 | AKP16: 0 | AKQ16: 0 | AKR16: 0 | AKS16: 0 | AKT16: 0 | AKU16: 0 | AKV16: 0 | AKW16: 0 | AKX16: 0 | AKY16: 0 | AKZ16: 0 | ALA16: 0 | ALB16: 0 | ALC16: 0 | ALD16: 0 | ALE16: 0 | ALF16: 0 | ALG16: 0 | ALH16: 0 | ALI16: 0 | ALJ16: 0 | ALK16: 0 | ALL16: 0 | ALM16: 0 | ALN16: 0 | ALO16: 0 | ALP16: 0 | ALQ16: 0 | ALR16: 0 | ALS16: 0 | ALT16: 0 | ALU16: 0 | ALV16: 0 | ALW16: 0 | ALX16: 0 | ALY16: 0 | ALZ16: 0 | AMA16: 0 | AMB16: 0 | AMC16: 0 | AMD16: 0 | AME16: 0 | AMF16: 0 | AMG16: 0 | AMH16: 0 | AMI16: 0 | AMJ16: 0 | AMK16: 0 | AML16: 0 | AMM16: 0 | AMN16: 0 | AMO16: 0 | AMP16: 0 | AMQ16: 0 | AMR16: 0 | AMS16: 0 | AMT16: 0 | AMU16: 0 | AMV16: 0 | AMW16: 0 | AMX16: 0 | AMY16: 0 | AMZ16: 0 | ANA16: 0 | ANB16: 0 | ANC16: 0 | AND16: 0 | ANE16: 0 | ANF16: 0 | ANG16: 0 | ANH16: 0 | ANI16: 0 | ANJ16: 0 | ANK16: 0 | ANL16: 0 | ANM16: 0 | ANN16: 0 | ANO16: 0 | ANP16: 0 | ANQ16: 0 | ANR16: 0 | ANS16: 0 | ANT16: 0 | ANU16: 0 | ANV16: 0 | ANW16: 0 | ANX16: 0 | ANY16: 0 | ANZ16: 0 | AOA16: 0 | AOB16: 0 | AOC16: 0 | AOD16: 0 | AOE16: 0 | AOF16: 0 | AOG16: 0 | AOH16: 0 | AOI16: 0 | AOJ16: 0 | AOK16: 0 | AOL16: 0 | AOM16: 0 | AOO16: 0 | AOP16: 0 | AOQ16: 0 | AOR16: 0 | AOS16: 0 | AOT16: 0 | AOU16: 0 | AOV16: 0 | AOW16: 0 | AOX16: 0 | AOY16: 0 | AOZ16: 0 | APA16: 0 | APB16: 0 | APC16: 0 | APD16: 0 | APE16: 0 | APF16: 0 | APG16: 0 | APH16: 0 | API16: 0 | APJ16: 0 | APK16: 0 | APL16: 0 | APM16: 0 | APN16: 0 | APO16: 0 | APP16: 0 | APQ16: 0 | APR16: 0 | APS16: 0 | APT16: 0 | APU16: 0 | APV16: 0 | APW16: 0 | APX16: 0 | APY16: 0 | APZ16: NO | AQA16: 0 | AQB16: 0 | AQC16: 0 | AQD16: 0 | AQE16: 0 | AQF16: 0 | AQG16: 0 | AQH16: 0 | AQI16: 0 | AQJ16: 0 | AQK16: 0 | AQL16: 0 | AQM16: 0 | AQN16: 0 | AQO16: 0 | AQP16: 0 | AQQ16: 0 | AQR16: 0 | AQS16: 0 | AQT16: 0 | AQU16: 0 | AQV16: 0 | AQW16: 0 | AQX16: 0 | AQY16: 0 | AQZ16: 0 | ARA16: 0 | ARB16: 0 | ARC16: 0 | ARD16: 0 | ARE16: 0 | ARF16: 0 | ARG16: 0 | ARH16: 0 | ARI16: 0 | ARJ16: 0 | ARK16: 0 | ARL16: 0 | ARM16: 0 | ARN16: 0 | ARO16: 0 | ARP16: 0 | ARQ16: 0 | ARR16: 0 | ARS16: 0 | ART16: 0 | ARU16: 0 | ARV16: 0 | ARW16: 0 | ARX16: 0 | ARY16: 0 | ARZ16: 0 | ASA16: 0 | ASB16: 0 | ASC16: 0 | ASD16: 0 | ASE16: 0 | ASF16: 0 | ASG16: 0 | ASH16: 0 | ASI16: 0 | ASJ16: 0 | ASK16: 0 | ASL16: 0 | ASM16: 0 | ASN16: 0 | ASO16: 0 | ASP16: 0 | ASQ16: 0 | ASR16: 0 | ASS16: 0 | AST16: 0 | ASU16: 0 | ASV16: 0 | ASW16: 0 | ASX16: 0 | ASY16: 0 | ASZ16: 0 | ATA16: 0 | ATB16: 0 | ATC16: 0 | ATD16: 0 | ATE16: 0 | ATF16: 0 | ATG16: 0 | ATH16: 0 | ATI16: 0 | ATJ16: 0 | ATK16: 0 | ATL16: 0 | ATM16: 0 | ATN16: 0 | ATO16: 0 | ATP16: 0 | ATQ16: 0 | ATR16: 0 | ATS16: 0 | ATT16: 0 | ATU16: 0 | ATV16: 0 | ATW16: 0 | ATX16: 0 | ATY16: 0 | ATZ16: 0 | AUA16: 0 | AUB16: NO | AUC16: 0 | AUD16: 0 | AUE16: 0 | AUF16: 0 | AUG16: 0 | AUH16: 0 | AUI16: 0 | AUJ16: 0 | AUK16: 0 | AUL16: 0 | AUM16: 0 | AUN16: 0 | AUO16: 0 | AUP16: 0 | AUQ16: 0 | AUR16: 0 | AUS16: 0 | AUT16: 0 | AUU16: 0 | AUV16: 0 | AUW16: 0 | AUX16: 0 | AUY16: 0 | AUZ16: 0 | AVA16: 0 | AVB16: 0 | AVC16: 0 | AVD16: 0 | AVE16: 0 | AVF16: 0 | AVG16: 0 | AVH16: 0 | AVI16: 0 | AVJ16: 0 | AVK16: 0 | AVL16: 0 | AVM16: 0 | AVN16: 0 | AVO16: 0 | AVP16: 0 | AVQ16: 0 | AVR16: 0 | AVS16: 0 | AVT16: 0 | AVU16: 0 | AVV16: 0 | AVW16: 0 | AVX16: 0 | AVY16: 0 | AVZ16: 0 | AWA16: 0 | AWB16: 0 | AWC16: 0 | AWD16: 0 | AWE16: YES | AWF16: 1 | AWG16: 2 | AWH16: 2 | AWI16: 0 | AWJ16: 0 | AWL16: 0 | AWM16: 52 | AWN16: 16 | AWO16: 0 | AWQ16: While assisting with two restraining orders both judges has asked about our presence and role with the victim. They asked for my name and agency and whether Cow Creek provides services. They seemed very receptive and happy knowing this new information. W | AWR16: Development of policies and confidentiality is an ever changing document as we learn more necessary implementation to serve victims appropriately and safely. These documents are in place but need revisions regularly as we go. | AWS16: I see an increase in trust and faith that all is confidential. | AWT16: Informational Articles were placed in the Tribal newsletter and website. Additional help was given to a victim that was counted in the previous report period. When we first had heard from this person she was not able to find help from other agencies. She | AWZ16: We need a private entrance or building area. We have a front desk person that works as programs assistant for all those in our building. We house Human Resources, our Timber lands management, grounds keeper, educational department, and emergency preparedness with so many different people working in the same building, having to go upstairs for our services can be uncomfortable. The need to assure Tribal members that they are protected and their information confidential has been an issue. Relations in the building can be a deterrent as well. I feel that we need to get more education out to our community as to what stalking, domestic violence, and rape looks like even when one is married to a person. | AXB16: More time with clients and the ability to work on policies, procedures. To develop safety planning for our members. To see the need and dynamics of family systems so that the whole family can be treated with services. Intervention with possible child abuse awareness within a victims home. More knowledge to referral to services with the collaboration in the TASK force and SART team. Better relations with community officers and District Attorneys. | AXD16: No funds were used in development or implementation to the Crystal Judson protocol stop funds.
A17: 40407 | B17: OR40407 | C17: 2020-01-24 | D17: 2019 | E17: Domestic Violence Resource Center | F17: Joint-2017-DVRC00017 | G17: Joint-2019-DVRC00019 | O17: GI5_OrgType_VicServ_DV | Q17: NO | R17: NO | S17: Rosemary | T17: A | U17: Taylor | V17: Domestic Violence Resource Center | W17: PO Box 494 | X17: Hillsboro | Y17: OR | Z17: 97123 | AA17: 503-640-5352 | AB17: 503-906-1223 | AC17: rowie@dvrc-or.org | AD17: NO | AF17: 0 | AG17: 100 | AH17: 0 | AI17: 100 | AJ17: YES | AK17: 1 | AL17: 0 | AM17: 0 | AN17: 0 | AO17: 0 | AP17: 0 | AQ17: 0 | AR17: 0 | AS17: 0 | AT17: 0 | AU17: 0 | AV17: 0 | AW17: 0 | AX17: 0 | AY17: 0 | AZ17: 0 | BA17: 0 | BB17: 0 | BC17: 0.5 | BD17: 0 | BF17: 0 | BG17: 0.5 | BH17: 0 | BI17: 0 | BJ17: 0 | BK17: 0 | BL17: 1 | BM17: 0 | BN17: 0 | BO17: 0 | BP17: 0 | BQ17: 0 | BR17: 0 | BS17: 0 | BT17: 0 | BU17: 0 | BV17: 0 | BW17: 0 | BX17: 0 | BY17: 0 | BZ17: 0 | CA17: 0 | CB17: NO | CC17: 0 | CD17: 0 | CE17: 0 | CF17: 0 | CG17: 0 | CH17: 0 | CI17: 0 | CJ17: 0 | CK17: 0 | CL17: 0 | CM17: 0 | CN17: 0 | CO17: 0 | CP17: 0 | CQ17: 0 | CR17: 0 | CS17: 0 | CT17: 0 | CU17: 0 | CV17: 0 | CW17: 0 | CX17: 0 | CY17: 0 | CZ17: 0 | DA17: 0 | DB17: 0 | DC17: 0 | DD17: 0 | DF17: 0 | DG17: 0 | DH17: 0 | DI17: 0 | DJ17: 0 | DK17: 0 | DL17: 0 | DM17: 0 | DN17: 0 | DO17: 0 | DP17: 0 | DQ17: 0 | DR17: 0 | DS17: 0 | DT17: 0 | DV17: 0 | DW17: 0 | DX17: 0 | DY17: 0 | DZ17: 0 | EA17: 0 | EB17: 0 | EC17: 0 | ED17: 0 | EE17: 0 | EF17: 0 | EG17: 0 | EH17: 0 | EI17: 0 | EJ17: 0 | EK17: 0 | EL17: 0 | EM17: 0 | EN17: 0 | EO17: 0 | EQ17: 0 | ER17: 0 | ES17: 0 | ET17: 0 | EU17: 0 | EV17: 0 | EW17: 0 | EX17: 0 | EY17: 0 | EZ17: 0 | FA17: 0 | FB17: 0 | FC17: 0 | FD17: 0 | FE17: 0 | FF17: 0 | FG17: 0 | FI17: 0 | FJ17: 0 | FK17: 0 | FL17: 0 | FM17: 0 | FO17: NO | FP17: 0 | FQ17: 0 | FR17: 0 | FS17: 0 | FT17: 0 | FU17: 0 | FV17: 0 | FW17: 0 | FX17: 0 | FY17: 0 | FZ17: 0 | GA17: 0 | GB17: 0 | GC17: 0 | GD17: 0 | GF17: 0 | GG17: 0 | GH17: 0 | GI17: 0 | GJ17: 0 | GK17: 0 | GL17: 0 | GM17: 0 | GN17: 0 | GO17: 0 | GP17: 0 | GQ17: 0 | GR17: 0 | GS17: 0 | GT17: 0 | GV17: 0 | GW17: 0 | GX17: 0 | GY17: 0 | GZ17: 0 | HA17: 0 | HB17: 0 | HC17: 0 | HD17: 0 | HE17: 0 | HF17: 0 | HG17: 0 | HH17: 0 | HI17: 0 | HJ17: 0 | HK17: 0 | HL17: 0 | HT17: Daily | HV17: Daily | HW17: Weekly | IP17: Daily | IQ17: Monthly | IW17: NO | IX17: 0 | IY17: 0 | IZ17: 0 | JA17: 0 | JB17: 0 | JC17: 0 | JD17: 0 | JE17: 0 | JF17: 0 | JG17: 0 | JH17: 0 | JI17: 0 | JJ17: 0 | JK17: 0 | JM17: 0 | JN17: 0 | JO17: 0 | JP17: 0 | JQ17: 0 | JR17: 0 | JS17: 0 | JT17: 0 | JU17: 0 | JV17: 0 | JW17: 0 | JX17: 0 | JY17: 0 | JZ17: 0 | KA17: 0 | KB17: 0 | KC17: 0 | KD17: 0 | KE17: 0 | KF17: 0 | KG17: 0 | KI17: 0 | KJ17: 0 | KK17: 0 | KL17: 0 | KM17: 0 | KN17: 0 | KO17: 0 | KP17: 0 | KQ17: 0 | KR17: 0 | KS17: 0 | KT17: 0 | KU17: 0 | KV17: 0 | KX17: 0 | KY17: 0 | KZ17: 0 | LA17: 0 | LB17: 0 | LC17: 0 | LD17: 0 | LE17: 0 | LF17: 0 | LG17: 0 | LH17: 0 | LI17: 0 | LJ17: 0 | LK17: 0 | LL17: 0 | LM17: 0 | LN17: 0 | LP17: 0 | LQ17: 0 | LR17: 0 | LS17: 0 | LT17: 0 | LU17: 0 | LV17: 0 | LW17: 0 | LX17: 0 | LZ17: 0 | MA17: 0 | MB17: 0 | MC17: 0 | MD17: 0 | ME17: 0 | MF17: 0 | MG17: 0 | MH17: 0 | MI17: 0 | MJ17: 0 | ML17: NO | MM17: 0 | MN17: 0 | MR17: 0 | MV17: 0 | MZ17: 0 | ND17: 0 | NH17: 0 | NL17: 0 | NP17: 0 | NT17: 0 | NY17: 0 | OC17: 0 | OG17: 0 | OK17: NO | OL17: 0 | OM17: 0 | ON17: 0 | OO17: 0 | OP17: 0 | OQ17: 0 | OR17: 0 | OS17: 0 | OT17: 0 | OU17: 0 | OV17: 0 | OW17: 0 | OX17: 0 | OY17: 0 | OZ17: 0 | PA17: 0 | PB17: 0 | PC17: 0 | PD17: 0 | PE17: 0 | PF17: 0 | PG17: 0 | PH17: 0 | PI17: 0 | PJ17: 0 | PK17: 0 | PL17: 0 | PM17: 0 | PO17: NO | PP17: 0 | PQ17: 0 | PR17: 0 | PS17: 0 | PT17: 0 | PU17: 0 | PV17: 0 | PW17: 0 | PX17: 0 | PY17: 0 | PZ17: 0 | QA17: 0 | QB17: 0 | QD17: 0 | QE17: 0 | QF17: 0 | QG17: 0 | QH17: 0 | QI17: 0 | QJ17: 0 | QK17: 0 | QL17: 0 | QM17: 0 | QN17: 0 | QO17: 0 | QP17: 0 | QQ17: 0 | QR17: 0 | QS17: 0 | QT17: NO | QU17: 0 | QV17: 0 | QW17: 0 | QX17: 0 | QY17: 0 | QZ17: 0 | RA17: 0 | RB17: 0 | RC17: 0 | RD17: 0 | RE17: 0 | RF17: 0 | RG17: 0 | RH17: 0 | RI17: 0 | RJ17: 0 | RK17: 0 | RL17: 0 | RM17: 0 | RN17: 0 | RO17: 0 | RP17: 0 | RQ17: 0 | RR17: 0 | RS17: 0 | RT17: 0 | RU17: 0 | RV17: 0 | RW17: 0 | RX17: 0 | RY17: 0 | RZ17: 0 | SA17: 0 | SB17: 0 | SC17: 0 | SD17: 0 | SE17: 0 | SF17: 0 | SG17: 0 | SH17: 0 | SI17: 0 | SJ17: 0 | SK17: 0 | SL17: 0 | SM17: 0 | SN17: 0 | SP17: 0 | SQ17: 0 | SR17: 0 | SS17: 0 | ST17: 0 | SU17: YES | SV17: 1 | SW17: 0 | SX17: 114 | SY17: 0 | SZ17: 114 | TA17: 0 | TB17: 13 | TC17: 0 | TD17: 13 | TE17: 0 | TF17: 127 | TG17: 0 | TH17: 127 | TI17: 0 | TJ17: 43 | TK17: 0 | TL17: 43 | TM17: 0 | TN17: 122 | TO17: 0 | TP17: 122 | TQ17: 0 | TR17: 0 | TS17: 0 | TT17: 0 | TU17: 4 | TV17: 127 | TW17: 2 | TX17: 0 | TY17: 0 | TZ17: 0 | UA17: 0 | UB17: 0 | UC17: 4 | UD17: 127 | UE17: 2 | UF17: 0 | UG17: 0 | UH17: 6 | UI17: 0 | UJ17: 6 | UK17: 0 | UL17: 0 | UM17: 0 | UN17: 0 | UO17: 0 | UP17: 0 | UQ17: 0 | UR17: 0 | US17: 0 | UT17: 0 | UU17: 0 | UV17: 0 | UW17: 0 | UX17: 0 | UY17: 0 | UZ17: 1 | VA17: 0 | VB17: 0 | VC17: 0 | VD17: 0 | VE17: 0 | VF17: 0 | VG17: 0 | VH17: 0 | VI17: 1 | VJ17: 0 | VK17: 0 | VL17: 0 | VM17: 0 | VN17: 0 | VO17: 0 | VP17: 0 | VR17: 0 | VS17: 6 | VT17: 4 | VU17: 64 | VV17: 3 | VW17: 79 | VX17: 11 | VY17: 3 | VZ17: 170 | WA17: 106 | WB17: 21 | WC17: 0 | WD17: 0 | WE17: 127 | WF17: 4 | WG17: 19 | WH17: 87 | WI17: 17 | WJ17: 0 | WK17: 127 | WL17: 7 | WM17: 19 | WN17: 5 | WO17: 0 | WP17: 0 | WQ17: 0 | WR17: 7 | WS17: 4 | WT17: 95 | WU17: 0 | WV17: 0 | WW17: 20 | WX17: 0 | WY17: 0 | WZ17: 3 | XA17: 2 | XB17: 0 | XC17: 5 | XD17: 0 | XE17: 0 | XF17: 0 | XG17: 0 | XH17: 4 | XI17: 0 | XJ17: 4 | XK17: 127 | XL17: 2 | XM17: 99 | XN17: 144 | XO17: 28 | XP17: 147 | XQ17: 0 | XR17: 0 | XS17: 0 | XT17: 0 | XU17: 0 | XV17: 0 | XW17: 0 | XX17: 0 | XY17: 0 | XZ17: 0 | YA17: 0 | YB17: 0 | YC17: 0 | YD17: 0 | YF17: 0 | YG17: 0 | YH17: 0 | YI17: 0 | YJ17: 0 | YK17: 0 | YL17: 0 | YM17: 0 | YN17: 0 | YO17: 0 | YP17: 0 | YQ17: 0 | YR17: 0 | YS17: 0 | YT17: 0 | YU17: 23 | YV17: 43 | YW17: 20 | YX17: 43 | YY17: 0 | YZ17: 0 | ZA17: 0 | ZB17: 0 | ZC17: NO | ZD17: 0 | ZE17: 0 | ZF17: 0 | ZG17: 0 | ZH17: 0 | ZI17: 0 | ZJ17: 0 | ZK17: 0 | ZL17: 0 | ZM17: 0 | ZN17: 0 | ZO17: 0 | ZP17: 0 | ZQ17: 0 | ZR17: 0 | ZS17: 0 | ZT17: 0 | ZU17: 0 | ZV17: 0 | ZW17: 0 | ZY17: 0 | ZZ17: 0 | AAA17: 0 | AAB17: 0 | AAC17: 0 | AAD17: 0 | AAE17: 0 | AAF17: 0 | AAG17: 0 | AAH17: 0 | AAI17: 0 | AAJ17: 0 | AAK17: 0 | AAL17: 0 | AAM17: 0 | AAN17: 0 | AAO17: 0 | AAP17: 0 | AAQ17: 0 | AAR17: 0 | AAS17: 0 | AAT17: 0 | AAU17: 0 | AAV17: 0 | AAW17: 0 | AAX17: 0 | AAY17: 0 | AAZ17: 0 | ABA17: 0 | ABB17: 0 | ABC17: 0 | ABD17: 0 | ABE17: 0 | ABF17: 0 | ABG17: 0 | ABH17: 0 | ABI17: 0 | ABJ17: 0 | ABK17: 0 | ABL17: 0 | ABM17: 0 | ABN17: 0 | ABO17: 0 | ABP17: 0 | ABQ17: 0 | ABR17: 0 | ABS17: 0 | ABT17: 0 | ABU17: 0 | ABV17: 0 | ABW17: 0 | ABX17: 0 | ABY17: 0 | ABZ17: 0 | ACA17: 0 | ACB17: 0 | ACC17: 0 | ACD17: 0 | ACE17: 0 | ACF17: 0 | ACG17: 0 | ACH17: 0 | ACI17: 0 | ACJ17: 0 | ACK17: 0 | ACL17: 0 | ACM17: 0 | ACN17: 0 | ACO17: 0 | ACP17: 0 | ACQ17: 0 | ACR17: 0 | ACS17: 0 | ACT17: 0 | ACU17: 0 | ACV17: 0 | ACW17: 0 | ACX17: 0 | ACY17: 0 | ACZ17: 0 | ADA17: 0 | ADB17: 0 | ADC17: 0 | ADD17: 0 | ADE17: 0 | ADF17: 0 | ADG17: 0 | ADH17: 0 | ADI17: 0 | ADJ17: 0 | ADK17: 0 | ADL17: 0 | ADM17: 0 | ADN17: 0 | ADO17: 0 | ADP17: 0 | ADQ17: 0 | ADR17: 0 | ADS17: 0 | ADT17: 0 | ADU17: 0 | ADV17: 0 | ADW17: 0 | ADX17: 0 | ADY17: 0 | ADZ17: 0 | AEA17: 0 | AEB17: 0 | AEC17: 0 | AED17: 0 | AEE17: 0 | AEF17: 0 | AEG17: 0 | AEH17: 0 | AEI17: 0 | AEJ17: 0 | AEK17: 0 | AEL17: 0 | AEM17: 0 | AEN17: 0 | AEO17: 0 | AEP17: 0 | AEQ17: 0 | AER17: 0 | AES17: 0 | AET17: 0 | AEU17: 0 | AEV17: 0 | AEW17: 0 | AEX17: 0 | AEY17: 0 | AEZ17: 0 | AFA17: 0 | AFB17: 0 | AFC17: 0 | AFD17: 0 | AFE17: 0 | AFF17: 0 | AFG17: 0 | AFI17: 0 | AFJ17: 0 | AFK17: 0 | AFL17: 0 | AFM17: 0 | AFN17: 0 | AFO17: 0 | AFP17: 0 | AFQ17: NO | AFR17: 0 | AFS17: 0 | AFT17: 0 | AFU17: 0 | AFV17: 0 | AFW17: 0 | AFX17: 0 | AFY17: 0 | AFZ17: 0 | AGA17: 0 | AGB17: 0 | AGC17: 0 | AGD17: 0 | AGE17: 0 | AGF17: 0 | AGG17: 0 | AGH17: 0 | AGI17: 0 | AGJ17: 0 | AGK17: 0 | AGL17: 0 | AGM17: 0 | AGN17: 0 | AGO17: 0 | AGP17: 0 | AGQ17: 0 | AGR17: 0 | AGS17: 0 | AGT17: 0 | AGU17: 0 | AGV17: 0 | AGW17: 0 | AGX17: 0 | AGY17: 0 | AGZ17: 0 | AHA17: 0 | AHB17: 0 | AHC17: 0 | AHD17: 0 | AHE17: 0 | AHF17: 0 | AHG17: 0 | AHH17: 0 | AHI17: 0 | AHJ17: 0 | AHK17: 0 | AHL17: 0 | AHM17: 0 | AHN17: 0 | AHO17: 0 | AHP17: NO | AHQ17: 0 | AHR17: 0 | AHS17: 0 | AHT17: 0 | AHU17: 0 | AHV17: 0 | AHW17: 0 | AHX17: 0 | AHY17: 0 | AHZ17: 0 | AIA17: 0 | AIB17: 0 | AIC17: 0 | AID17: 0 | AIE17: 0 | AIF17: 0 | AIG17: 0 | AIH17: 0 | AII17: 0 | AIJ17: 0 | AIK17: 0 | AIL17: 0 | AIM17: 0 | AIN17: 0 | AIO17: 0 | AIQ17: 0 | AIR17: 0 | AIS17: 0 | AIT17: 0 | AIU17: 0 | AIV17: 0 | AIW17: 0 | AIX17: 0 | AIY17: 0 | AIZ17: 0 | AJA17: 0 | AJB17: 0 | AJC17: 0 | AJD17: 0 | AJE17: 0 | AJF17: 0 | AJG17: 0 | AJH17: 0 | AJI17: 0 | AJJ17: 0 | AJK17: 0 | AJL17: 0 | AJM17: 0 | AJN17: 0 | AJO17: 0 | AJP17: 0 | AJQ17: 0 | AJR17: 0 | AJS17: 0 | AJT17: 0 | AJU17: 0 | AJV17: 0 | AJW17: 0 | AJX17: 0 | AJY17: 0 | AJZ17: 0 | AKA17: 0 | AKB17: 0 | AKC17: 0 | AKD17: 0 | AKE17: 0 | AKF17: 0 | AKG17: 0 | AKH17: 0 | AKI17: 0 | AKJ17: 0 | AKK17: 0 | AKL17: 0 | AKM17: 0 | AKN17: 0 | AKO17: 0 | AKP17: 0 | AKQ17: 0 | AKR17: 0 | AKS17: 0 | AKT17: 0 | AKU17: 0 | AKV17: 0 | AKW17: 0 | AKX17: 0 | AKY17: 0 | AKZ17: 0 | ALA17: 0 | ALB17: 0 | ALC17: 0 | ALD17: 0 | ALE17: 0 | ALF17: 0 | ALG17: 0 | ALH17: 0 | ALI17: 0 | ALJ17: 0 | ALK17: 0 | ALL17: 0 | ALM17: 0 | ALN17: 0 | ALO17: 0 | ALP17: 0 | ALQ17: 0 | ALR17: 0 | ALS17: 0 | ALT17: 0 | ALU17: 0 | ALV17: 0 | ALW17: 0 | ALX17: 0 | ALY17: 0 | ALZ17: 0 | AMA17: 0 | AMB17: 0 | AMC17: 0 | AMD17: 0 | AME17: 0 | AMF17: 0 | AMG17: 0 | AMH17: 0 | AMI17: 0 | AMJ17: 0 | AMK17: 0 | AML17: 0 | AMM17: 0 | AMN17: 0 | AMO17: 0 | AMP17: 0 | AMQ17: 0 | AMR17: 0 | AMS17: 0 | AMT17: 0 | AMU17: 0 | AMV17: 0 | AMW17: 0 | AMX17: 0 | AMY17: 0 | AMZ17: 0 | ANA17: 0 | ANB17: 0 | ANC17: 0 | AND17: 0 | ANE17: 0 | ANF17: 0 | ANG17: 0 | ANH17: 0 | ANI17: 0 | ANJ17: 0 | ANK17: 0 | ANL17: 0 | ANM17: 0 | ANN17: 0 | ANO17: 0 | ANP17: 0 | ANQ17: 0 | ANR17: 0 | ANS17: 0 | ANT17: 0 | ANU17: 0 | ANV17: 0 | ANW17: 0 | ANX17: 0 | ANY17: 0 | ANZ17: 0 | AOA17: 0 | AOB17: 0 | AOC17: 0 | AOD17: 0 | AOE17: 0 | AOF17: 0 | AOG17: 0 | AOH17: 0 | AOI17: 0 | AOJ17: 0 | AOK17: 0 | AOL17: 0 | AOM17: 0 | AOO17: 0 | AOP17: 0 | AOQ17: 0 | AOR17: 0 | AOS17: 0 | AOT17: 0 | AOU17: 0 | AOV17: 0 | AOW17: 0 | AOX17: 0 | AOY17: 0 | AOZ17: 0 | APA17: 0 | APB17: 0 | APC17: 0 | APD17: 0 | APE17: 0 | APF17: 0 | APG17: 0 | APH17: 0 | API17: 0 | APJ17: 0 | APK17: 0 | APL17: 0 | APM17: 0 | APN17: 0 | APO17: 0 | APP17: 0 | APQ17: 0 | APR17: 0 | APS17: 0 | APT17: 0 | APU17: 0 | APV17: 0 | APW17: 0 | APX17: 0 | APY17: 0 | APZ17: NO | AQA17: 0 | AQB17: 0 | AQC17: 0 | AQD17: 0 | AQE17: 0 | AQF17: 0 | AQG17: 0 | AQH17: 0 | AQI17: 0 | AQJ17: 0 | AQK17: 0 | AQL17: 0 | AQM17: 0 | AQN17: 0 | AQO17: 0 | AQP17: 0 | AQQ17: 0 | AQR17: 0 | AQS17: 0 | AQT17: 0 | AQU17: 0 | AQV17: 0 | AQW17: 0 | AQX17: 0 | AQY17: 0 | AQZ17: 0 | ARA17: 0 | ARB17: 0 | ARC17: 0 | ARD17: 0 | ARE17: 0 | ARF17: 0 | ARG17: 0 | ARH17: 0 | ARI17: 0 | ARJ17: 0 | ARK17: 0 | ARL17: 0 | ARM17: 0 | ARN17: 0 | ARO17: 0 | ARP17: 0 | ARQ17: 0 | ARR17: 0 | ARS17: 0 | ART17: 0 | ARU17: 0 | ARV17: 0 | ARW17: 0 | ARX17: 0 | ARY17: 0 | ARZ17: 0 | ASA17: 0 | ASB17: 0 | ASC17: 0 | ASD17: 0 | ASE17: 0 | ASF17: 0 | ASG17: 0 | ASH17: 0 | ASI17: 0 | ASJ17: 0 | ASK17: 0 | ASL17: 0 | ASM17: 0 | ASN17: 0 | ASO17: 0 | ASP17: 0 | ASQ17: 0 | ASR17: 0 | ASS17: 0 | AST17: 0 | ASU17: 0 | ASV17: 0 | ASW17: 0 | ASX17: 0 | ASY17: 0 | ASZ17: 0 | ATA17: 0 | ATB17: 0 | ATC17: 0 | ATD17: 0 | ATE17: 0 | ATF17: 0 | ATG17: 0 | ATH17: 0 | ATI17: 0 | ATJ17: 0 | ATK17: 0 | ATL17: 0 | ATM17: 0 | ATN17: 0 | ATO17: 0 | ATP17: 0 | ATQ17: 0 | ATR17: 0 | ATS17: 0 | ATT17: 0 | ATU17: 0 | ATV17: 0 | ATW17: 0 | ATX17: 0 | ATY17: 0 | ATZ17: 0 | AUA17: 0 | AUB17: NO | AUC17: 0 | AUD17: 0 | AUE17: 0 | AUF17: 0 | AUG17: 0 | AUH17: 0 | AUI17: 0 | AUJ17: 0 | AUK17: 0 | AUL17: 0 | AUM17: 0 | AUN17: 0 | AUO17: 0 | AUP17: 0 | AUQ17: 0 | AUR17: 0 | AUS17: 0 | AUT17: 0 | AUU17: 0 | AUV17: 0 | AUW17: 0 | AUX17: 0 | AUY17: 0 | AUZ17: 0 | AVA17: 0 | AVB17: 0 | AVC17: 0 | AVD17: 0 | AVE17: 0 | AVF17: 0 | AVG17: 0 | AVH17: 0 | AVI17: 0 | AVJ17: 0 | AVK17: 0 | AVL17: 0 | AVM17: 0 | AVN17: 0 | AVO17: 0 | AVP17: 0 | AVQ17: 0 | AVR17: 0 | AVS17: 0 | AVT17: 0 | AVU17: 0 | AVV17: 0 | AVW17: 0 | AVX17: 0 | AVY17: 0 | AVZ17: 0 | AWA17: 0 | AWB17: 0 | AWC17: 0 | AWD17: 0 | AWE17: NO | AWF17: 0 | AWG17: 0 | AWH17: 0 | AWI17: 0 | AWJ17: 0 | AWL17: 0 | AWM17: 0 | AWN17: 0 | AWO17: 0 | AWT17: Demographics are self-reported and not verified. | AWZ17: Washington County is large in both population (2nd largest in Oregon) and size. There are many parts of the county that are rural and public transportation is not always available. Access to services is still a barrier for those that live in rural areas and have limited or minimal transportation options. Survivors having access to meaningful resources when trying to leave an abusive relationship and attain stability is also a significant barrier. Many of the needed resources include housing, transportation, moving costs, etc. These are not readily available or come with many restrictions that they become, practically speaking, unwieldy. The many costs associated with leaving an abusive relationship do not have the correlated resources readily available. An example of this would be aid with credit and debt management, such as when an abuser has maxed-out a credit card in the survivor’s name causing the survivor to have poor credit and high cost debt. | AXB17: STOP Program funding allows us to provide counseling services in Spanish to Spanish-speaking individuals seeking services. Our bi-lingual counselor is a Licensed Professional Counselor who is able to provide culturally specific individual and group counseling in both English and Spanish. Washington County has a large percentage (17%) of individuals who identify as Hispanic or Latino and the counseling program sees this reflected in our requests for culturally specific services. Having a counselor dedicated serving this need helps us provide culturally responsive services that reflect the county we provided services in.
A18: 40408 | B18: OR40408 | C18: 2020-01-30 | D18: 2019 | E18: Domestic Violence Services, Inc. | F18: Joint-2019-DVS-00020 | I18: 2017-Joint-00019 | O18: GI5_OrgType_VicServ_Dual | Q18: NO | R18: NO | S18: Kathryn | T18: J | U18: Chaney | V18: Domestic Violence Services, Inc. | W18: PO Box 152 | X18: Pendleton | Y18: OR | Z18: 97801 | AA18: 541-276-3322 | AB18: 541-276-8958 | AC18: kathryn@dvs-or.org | AD18: NO | AF18: 6 | AG18: 89 | AH18: 5 | AI18: 100 | AJ18: YES | AK18: 1 | AL18: 0 | AM18: 0 | AN18: 0 | AO18: 0 | AP18: 0 | AQ18: 0 | AR18: 0 | AS18: 0 | AT18: 0 | AU18: 0 | AV18: 0 | AW18: 0 | AX18: 0 | AY18: 0 | AZ18: 0 | BA18: 0 | BB18: 0 | BC18: 0.56 | BD18: 0 | BF18: 0 | BG18: 0.56 | BH18: 0 | BI18: 0 | BJ18: 0 | BK18: 0 | BL18: 1 | BM18: 1 | BN18: 0 | BO18: 0 | BP18: 0 | BQ18: 1 | BR18: 0 | BS18: 0 | BT18: 0 | BU18: 0 | BV18: 0 | BW18: 0 | BX18: 0 | BY18: 0 | BZ18: 0 | CA18: 0 | CB18: NO | CC18: 0 | CD18: 0 | CE18: 0 | CF18: 0 | CG18: 0 | CH18: 0 | CI18: 0 | CJ18: 0 | CK18: 0 | CL18: 0 | CM18: 0 | CN18: 0 | CO18: 0 | CP18: 0 | CQ18: 0 | CR18: 0 | CS18: 0 | CT18: 0 | CU18: 0 | CV18: 0 | CW18: 0 | CX18: 0 | CY18: 0 | CZ18: 0 | DA18: 0 | DB18: 0 | DC18: 0 | DD18: 0 | DF18: 0 | DG18: 0 | DH18: 0 | DI18: 0 | DJ18: 0 | DK18: 0 | DL18: 0 | DM18: 0 | DN18: 0 | DO18: 0 | DP18: 0 | DQ18: 0 | DR18: 0 | DS18: 0 | DT18: 0 | DV18: 0 | DW18: 0 | DX18: 0 | DY18: 0 | DZ18: 0 | EA18: 0 | EB18: 0 | EC18: 0 | ED18: 0 | EE18: 0 | EF18: 0 | EG18: 0 | EH18: 0 | EI18: 0 | EJ18: 0 | EK18: 0 | EL18: 0 | EM18: 0 | EN18: 0 | EO18: 0 | EQ18: 0 | ER18: 0 | ES18: 0 | ET18: 0 | EU18: 0 | EV18: 0 | EW18: 0 | EX18: 0 | EY18: 0 | EZ18: 0 | FA18: 0 | FB18: 0 | FC18: 0 | FD18: 0 | FE18: 0 | FF18: 0 | FG18: 0 | FI18: 0 | FJ18: 0 | FK18: 0 | FL18: 0 | FM18: 0 | FO18: NO | FP18: 0 | FQ18: 0 | FR18: 0 | FS18: 0 | FT18: 0 | FU18: 0 | FV18: 0 | FW18: 0 | FX18: 0 | FY18: 0 | FZ18: 0 | GA18: 0 | GB18: 0 | GC18: 0 | GD18: 0 | GF18: 0 | GG18: 0 | GH18: 0 | GI18: 0 | GJ18: 0 | GK18: 0 | GL18: 0 | GM18: 0 | GN18: 0 | GO18: 0 | GP18: 0 | GQ18: 0 | GR18: 0 | GS18: 0 | GT18: 0 | GV18: 0 | GW18: 0 | GX18: 0 | GY18: 0 | GZ18: 0 | HA18: 0 | HB18: 0 | HC18: 0 | HD18: 0 | HE18: 0 | HF18: 0 | HG18: 0 | HH18: 0 | HI18: 0 | HJ18: 0 | HK18: 0 | HL18: 0 | HN18: Monthly | HP18: Monthly | HR18: Monthly | HS18: Monthly | HT18: Weekly | HU18: Monthly | HV18: Weekly | HW18: Monthly | HX18: Weekly | HY18: Monthly | HZ18: Weekly | IA18: Monthly | IB18: Daily | IC18: Weekly | ID18: Weekly | IF18: Weekly | IG18: Monthly | IH18: Weekly | II18: Monthly | IJ18: Weekly | IK18: Monthly | IO18: Monthly | IP18: Weekly | IQ18: Monthly | IR18: Monthly | IS18: Monthly | IW18: NO | IX18: 0 | IY18: 0 | IZ18: 0 | JA18: 0 | JB18: 0 | JC18: 0 | JD18: 0 | JE18: 0 | JF18: 0 | JG18: 0 | JH18: 0 | JI18: 0 | JJ18: 0 | JK18: 0 | JM18: 0 | JN18: 0 | JO18: 0 | JP18: 0 | JQ18: 0 | JR18: 0 | JS18: 0 | JT18: 0 | JU18: 0 | JV18: 0 | JW18: 0 | JX18: 0 | JY18: 0 | JZ18: 0 | KA18: 0 | KB18: 0 | KC18: 0 | KD18: 0 | KE18: 0 | KF18: 0 | KG18: 0 | KI18: 0 | KJ18: 0 | KK18: 0 | KL18: 0 | KM18: 0 | KN18: 0 | KO18: 0 | KP18: 0 | KQ18: 0 | KR18: 0 | KS18: 0 | KT18: 0 | KU18: 0 | KV18: 0 | KX18: 0 | KY18: 0 | KZ18: 0 | LA18: 0 | LB18: 0 | LC18: 0 | LD18: 0 | LE18: 0 | LF18: 0 | LG18: 0 | LH18: 0 | LI18: 0 | LJ18: 0 | LK18: 0 | LL18: 0 | LM18: 0 | LN18: 0 | LP18: 0 | LQ18: 0 | LR18: 0 | LS18: 0 | LT18: 0 | LU18: 0 | LV18: 0 | LW18: 0 | LX18: 0 | LZ18: 0 | MA18: 0 | MB18: 0 | MC18: 0 | MD18: 0 | ME18: 0 | MF18: 0 | MG18: 0 | MH18: 0 | MI18: 0 | MJ18: 0 | ML18: NO | MM18: 0 | MN18: 0 | MR18: 0 | MV18: 0 | MZ18: 0 | ND18: 0 | NH18: 0 | NL18: 0 | NP18: 0 | NT18: 0 | NY18: 0 | OC18: 0 | OG18: 0 | OK18: NO | OL18: 0 | OM18: 0 | ON18: 0 | OO18: 0 | OP18: 0 | OQ18: 0 | OR18: 0 | OS18: 0 | OT18: 0 | OU18: 0 | OV18: 0 | OW18: 0 | OX18: 0 | OY18: 0 | OZ18: 0 | PA18: 0 | PB18: 0 | PC18: 0 | PD18: 0 | PE18: 0 | PF18: 0 | PG18: 0 | PH18: 0 | PI18: 0 | PJ18: 0 | PK18: 0 | PL18: 0 | PM18: 0 | PO18: NO | PP18: 0 | PQ18: 0 | PR18: 0 | PS18: 0 | PT18: 0 | PU18: 0 | PV18: 0 | PW18: 0 | PX18: 0 | PY18: 0 | PZ18: 0 | QA18: 0 | QB18: 0 | QD18: 0 | QE18: 0 | QF18: 0 | QG18: 0 | QH18: 0 | QI18: 0 | QJ18: 0 | QK18: 0 | QL18: 0 | QM18: 0 | QN18: 0 | QO18: 0 | QP18: 0 | QQ18: 0 | QR18: 0 | QS18: 0 | QT18: NO | QU18: 0 | QV18: 0 | QW18: 0 | QX18: 0 | QY18: 0 | QZ18: 0 | RA18: 0 | RB18: 0 | RC18: 0 | RD18: 0 | RE18: 0 | RF18: 0 | RG18: 0 | RH18: 0 | RI18: 0 | RJ18: 0 | RK18: 0 | RL18: 0 | RM18: 0 | RN18: 0 | RO18: 0 | RP18: 0 | RQ18: 0 | RR18: 0 | RS18: 0 | RT18: 0 | RU18: 0 | RV18: 0 | RW18: 0 | RX18: 0 | RY18: 0 | RZ18: 0 | SA18: 0 | SB18: 0 | SC18: 0 | SD18: 0 | SE18: 0 | SF18: 0 | SG18: 0 | SH18: 0 | SI18: 0 | SJ18: 0 | SK18: 0 | SL18: 0 | SM18: 0 | SN18: 0 | SP18: 0 | SQ18: 0 | SR18: 0 | SS18: 0 | ST18: 0 | SU18: YES | SV18: 1 | SW18: 12 | SX18: 190 | SY18: 11 | SZ18: 213 | TA18: 0 | TB18: 0 | TC18: 0 | TD18: 0 | TE18: 12 | TF18: 190 | TG18: 11 | TH18: 213 | TI18: 0 | TJ18: 0 | TK18: 0 | TL18: 0 | TM18: 12 | TN18: 190 | TO18: 11 | TP18: 213 | TQ18: 12 | TR18: 0 | TS18: 0 | TT18: 2 | TU18: 0 | TV18: 190 | TW18: 0 | TX18: 0 | TY18: 0 | TZ18: 0 | UA18: 11 | UB18: 0 | UC18: 12 | UD18: 190 | UE18: 11 | UF18: 2 | UG18: 2 | UH18: 181 | UI18: 1 | UJ18: 184 | UK18: 0 | UL18: 0 | UM18: 0 | UN18: 0 | UO18: 0 | UP18: 0 | UQ18: 0 | UR18: 0 | US18: 0 | UT18: 0 | UU18: 0 | UV18: 0 | UW18: 0 | UX18: 0 | UY18: 0 | UZ18: 0 | VA18: 0 | VB18: 0 | VC18: 0 | VD18: 0 | VE18: 0 | VF18: 0 | VG18: 0 | VH18: 0 | VI18: 0 | VJ18: 0 | VK18: 0 | VL18: 0 | VM18: 0 | VN18: 0 | VO18: 0 | VP18: 0 | VR18: 7 | VS18: 1 | VT18: 3 | VU18: 114 | VV18: 0 | VW18: 85 | VX18: 0 | VY18: 3 | VZ18: 213 | WA18: 165 | WB18: 47 | WC18: 0 | WD18: 1 | WE18: 213 | WF18: 4 | WG18: 29 | WH18: 169 | WI18: 9 | WJ18: 2 | WK18: 213 | WL18: 2 | WM18: 7 | WN18: 97 | WO18: 1 | WP18: 0 | WQ18: 0 | WR18: 213 | WS18: 8 | WT18: 176 | WU18: 7 | WV18: 4 | WW18: 24 | WX18: 0 | WY18: 1 | WZ18: 4 | XA18: 0 | XB18: 2 | XC18: 2 | XD18: 1 | XE18: 1 | XF18: 2 | XG18: 0 | XH18: 1 | XI18: 1 | XJ18: 16 | XK18: 207 | XL18: 11 | XM18: 167 | XN18: 167 | XO18: 0 | XP18: 0 | XQ18: 213 | XR18: 230 | XS18: 213 | XT18: 556 | XU18: 0 | XV18: 0 | XW18: 21 | XX18: 21 | XY18: 97 | XZ18: 97 | YA18: 70 | YB18: 70 | YC18: 0 | YD18: 0 | YF18: 0 | YG18: 0 | YH18: 188 | YI18: 27 | YJ18: 1949 | YK18: 0 | YL18: 0 | YM18: 0 | YN18: 614 | YO18: 632 | YP18: 0 | YQ18: 0 | YR18: 0 | YS18: 0 | YT18: 0 | YU18: 76 | YV18: 0 | YW18: 0 | YX18: 0 | YY18: 0 | YZ18: 0 | ZA18: 0 | ZB18: 0 | ZC18: NO | ZD18: 0 | ZE18: 0 | ZF18: 0 | ZG18: 0 | ZH18: 0 | ZI18: 0 | ZJ18: 0 | ZK18: 0 | ZL18: 0 | ZM18: 0 | ZN18: 0 | ZO18: 0 | ZP18: 0 | ZQ18: 0 | ZR18: 0 | ZS18: 0 | ZT18: 0 | ZU18: 0 | ZV18: 0 | ZW18: 0 | ZY18: 0 | ZZ18: 0 | AAA18: 0 | AAB18: 0 | AAC18: 0 | AAD18: 0 | AAE18: 0 | AAF18: 0 | AAG18: 0 | AAH18: 0 | AAI18: 0 | AAJ18: 0 | AAK18: 0 | AAL18: 0 | AAM18: 0 | AAN18: 0 | AAO18: 0 | AAP18: 0 | AAQ18: 0 | AAR18: 0 | AAS18: 0 | AAT18: 0 | AAU18: 0 | AAV18: 0 | AAW18: 0 | AAX18: 0 | AAY18: 0 | AAZ18: 0 | ABA18: 0 | ABB18: 0 | ABC18: 0 | ABD18: 0 | ABE18: 0 | ABF18: 0 | ABG18: 0 | ABH18: 0 | ABI18: 0 | ABJ18: 0 | ABK18: 0 | ABL18: 0 | ABM18: 0 | ABN18: 0 | ABO18: 0 | ABP18: 0 | ABQ18: 0 | ABR18: 0 | ABS18: 0 | ABT18: 0 | ABU18: 0 | ABV18: 0 | ABW18: 0 | ABX18: 0 | ABY18: 0 | ABZ18: 0 | ACA18: 0 | ACB18: 0 | ACC18: 0 | ACD18: 0 | ACE18: 0 | ACF18: 0 | ACG18: 0 | ACH18: 0 | ACI18: 0 | ACJ18: 0 | ACK18: 0 | ACL18: 0 | ACM18: 0 | ACN18: 0 | ACO18: 0 | ACP18: 0 | ACQ18: 0 | ACR18: 0 | ACS18: 0 | ACT18: 0 | ACU18: 0 | ACV18: 0 | ACW18: 0 | ACX18: 0 | ACY18: 0 | ACZ18: 0 | ADA18: 0 | ADB18: 0 | ADC18: 0 | ADD18: 0 | ADE18: 0 | ADF18: 0 | ADG18: 0 | ADH18: 0 | ADI18: 0 | ADJ18: 0 | ADK18: 0 | ADL18: 0 | ADM18: 0 | ADN18: 0 | ADO18: 0 | ADP18: 0 | ADQ18: 0 | ADR18: 0 | ADS18: 0 | ADT18: 0 | ADU18: 0 | ADV18: 0 | ADW18: 0 | ADX18: 0 | ADY18: 0 | ADZ18: 0 | AEA18: 0 | AEB18: 0 | AEC18: 0 | AED18: 0 | AEE18: 0 | AEF18: 0 | AEG18: 0 | AEH18: 0 | AEI18: 0 | AEJ18: 0 | AEK18: 0 | AEL18: 0 | AEM18: 0 | AEN18: 0 | AEO18: 0 | AEP18: 0 | AEQ18: 0 | AER18: 0 | AES18: 0 | AET18: 0 | AEU18: 0 | AEV18: 0 | AEW18: 0 | AEX18: 0 | AEY18: 0 | AEZ18: 0 | AFA18: 0 | AFB18: 0 | AFC18: 0 | AFD18: 0 | AFE18: 0 | AFF18: 0 | AFG18: 0 | AFI18: 0 | AFJ18: 0 | AFK18: 0 | AFL18: 0 | AFM18: 0 | AFN18: 0 | AFO18: 0 | AFP18: 0 | AFQ18: NO | AFR18: 0 | AFS18: 0 | AFT18: 0 | AFU18: 0 | AFV18: 0 | AFW18: 0 | AFX18: 0 | AFY18: 0 | AFZ18: 0 | AGA18: 0 | AGB18: 0 | AGC18: 0 | AGD18: 0 | AGE18: 0 | AGF18: 0 | AGG18: 0 | AGH18: 0 | AGI18: 0 | AGJ18: 0 | AGK18: 0 | AGL18: 0 | AGM18: 0 | AGN18: 0 | AGO18: 0 | AGP18: 0 | AGQ18: 0 | AGR18: 0 | AGS18: 0 | AGT18: 0 | AGU18: 0 | AGV18: 0 | AGW18: 0 | AGX18: 0 | AGY18: 0 | AGZ18: 0 | AHA18: 0 | AHB18: 0 | AHC18: 0 | AHD18: 0 | AHE18: 0 | AHF18: 0 | AHG18: 0 | AHH18: 0 | AHI18: 0 | AHJ18: 0 | AHK18: 0 | AHL18: 0 | AHM18: 0 | AHN18: 0 | AHO18: 0 | AHP18: NO | AHQ18: 0 | AHR18: 0 | AHS18: 0 | AHT18: 0 | AHU18: 0 | AHV18: 0 | AHW18: 0 | AHX18: 0 | AHY18: 0 | AHZ18: 0 | AIA18: 0 | AIB18: 0 | AIC18: 0 | AID18: 0 | AIE18: 0 | AIF18: 0 | AIG18: 0 | AIH18: 0 | AII18: 0 | AIJ18: 0 | AIK18: 0 | AIL18: 0 | AIM18: 0 | AIN18: 0 | AIO18: 0 | AIQ18: 0 | AIR18: 0 | AIS18: 0 | AIT18: 0 | AIU18: 0 | AIV18: 0 | AIW18: 0 | AIX18: 0 | AIY18: 0 | AIZ18: 0 | AJA18: 0 | AJB18: 0 | AJC18: 0 | AJD18: 0 | AJE18: 0 | AJF18: 0 | AJG18: 0 | AJH18: 0 | AJI18: 0 | AJJ18: 0 | AJK18: 0 | AJL18: 0 | AJM18: 0 | AJN18: 0 | AJO18: 0 | AJP18: 0 | AJQ18: 0 | AJR18: 0 | AJS18: 0 | AJT18: 0 | AJU18: 0 | AJV18: 0 | AJW18: 0 | AJX18: 0 | AJY18: 0 | AJZ18: 0 | AKA18: 0 | AKB18: 0 | AKC18: 0 | AKD18: 0 | AKE18: 0 | AKF18: 0 | AKG18: 0 | AKH18: 0 | AKI18: 0 | AKJ18: 0 | AKK18: 0 | AKL18: 0 | AKM18: 0 | AKN18: 0 | AKO18: 0 | AKP18: 0 | AKQ18: 0 | AKR18: 0 | AKS18: 0 | AKT18: 0 | AKU18: 0 | AKV18: 0 | AKW18: 0 | AKX18: 0 | AKY18: 0 | AKZ18: 0 | ALA18: 0 | ALB18: 0 | ALC18: 0 | ALD18: 0 | ALE18: 0 | ALF18: 0 | ALG18: 0 | ALH18: 0 | ALI18: 0 | ALJ18: 0 | ALK18: 0 | ALL18: 0 | ALM18: 0 | ALN18: 0 | ALO18: 0 | ALP18: 0 | ALQ18: 0 | ALR18: 0 | ALS18: 0 | ALT18: 0 | ALU18: 0 | ALV18: 0 | ALW18: 0 | ALX18: 0 | ALY18: 0 | ALZ18: 0 | AMA18: 0 | AMB18: 0 | AMC18: 0 | AMD18: 0 | AME18: 0 | AMF18: 0 | AMG18: 0 | AMH18: 0 | AMI18: 0 | AMJ18: 0 | AMK18: 0 | AML18: 0 | AMM18: 0 | AMN18: 0 | AMO18: 0 | AMP18: 0 | AMQ18: 0 | AMR18: 0 | AMS18: 0 | AMT18: 0 | AMU18: 0 | AMV18: 0 | AMW18: 0 | AMX18: 0 | AMY18: 0 | AMZ18: 0 | ANA18: 0 | ANB18: 0 | ANC18: 0 | AND18: 0 | ANE18: 0 | ANF18: 0 | ANG18: 0 | ANH18: 0 | ANI18: 0 | ANJ18: 0 | ANK18: 0 | ANL18: 0 | ANM18: 0 | ANN18: 0 | ANO18: 0 | ANP18: 0 | ANQ18: 0 | ANR18: 0 | ANS18: 0 | ANT18: 0 | ANU18: 0 | ANV18: 0 | ANW18: 0 | ANX18: 0 | ANY18: 0 | ANZ18: 0 | AOA18: 0 | AOB18: 0 | AOC18: 0 | AOD18: 0 | AOE18: 0 | AOF18: 0 | AOG18: 0 | AOH18: 0 | AOI18: 0 | AOJ18: 0 | AOK18: 0 | AOL18: 0 | AOM18: 0 | AOO18: 0 | AOP18: 0 | AOQ18: 0 | AOR18: 0 | AOS18: 0 | AOT18: 0 | AOU18: 0 | AOV18: 0 | AOW18: 0 | AOX18: 0 | AOY18: 0 | AOZ18: 0 | APA18: 0 | APB18: 0 | APC18: 0 | APD18: 0 | APE18: 0 | APF18: 0 | APG18: 0 | APH18: 0 | API18: 0 | APJ18: 0 | APK18: 0 | APL18: 0 | APM18: 0 | APN18: 0 | APO18: 0 | APP18: 0 | APQ18: 0 | APR18: 0 | APS18: 0 | APT18: 0 | APU18: 0 | APV18: 0 | APW18: 0 | APX18: 0 | APY18: 0 | APZ18: NO | AQA18: 0 | AQB18: 0 | AQC18: 0 | AQD18: 0 | AQE18: 0 | AQF18: 0 | AQG18: 0 | AQH18: 0 | AQI18: 0 | AQJ18: 0 | AQK18: 0 | AQL18: 0 | AQM18: 0 | AQN18: 0 | AQO18: 0 | AQP18: 0 | AQQ18: 0 | AQR18: 0 | AQS18: 0 | AQT18: 0 | AQU18: 0 | AQV18: 0 | AQW18: 0 | AQX18: 0 | AQY18: 0 | AQZ18: 0 | ARA18: 0 | ARB18: 0 | ARC18: 0 | ARD18: 0 | ARE18: 0 | ARF18: 0 | ARG18: 0 | ARH18: 0 | ARI18: 0 | ARJ18: 0 | ARK18: 0 | ARL18: 0 | ARM18: 0 | ARN18: 0 | ARO18: 0 | ARP18: 0 | ARQ18: 0 | ARR18: 0 | ARS18: 0 | ART18: 0 | ARU18: 0 | ARV18: 0 | ARW18: 0 | ARX18: 0 | ARY18: 0 | ARZ18: 0 | ASA18: 0 | ASB18: 0 | ASC18: 0 | ASD18: 0 | ASE18: 0 | ASF18: 0 | ASG18: 0 | ASH18: 0 | ASI18: 0 | ASJ18: 0 | ASK18: 0 | ASL18: 0 | ASM18: 0 | ASN18: 0 | ASO18: 0 | ASP18: 0 | ASQ18: 0 | ASR18: 0 | ASS18: 0 | AST18: 0 | ASU18: 0 | ASV18: 0 | ASW18: 0 | ASX18: 0 | ASY18: 0 | ASZ18: 0 | ATA18: 0 | ATB18: 0 | ATC18: 0 | ATD18: 0 | ATE18: 0 | ATF18: 0 | ATG18: 0 | ATH18: 0 | ATI18: 0 | ATJ18: 0 | ATK18: 0 | ATL18: 0 | ATM18: 0 | ATN18: 0 | ATO18: 0 | ATP18: 0 | ATQ18: 0 | ATR18: 0 | ATS18: 0 | ATT18: 0 | ATU18: 0 | ATV18: 0 | ATW18: 0 | ATX18: 0 | ATY18: 0 | ATZ18: 0 | AUA18: 0 | AUB18: NO | AUC18: 0 | AUD18: 0 | AUE18: 0 | AUF18: 0 | AUG18: 0 | AUH18: 0 | AUI18: 0 | AUJ18: 0 | AUK18: 0 | AUL18: 0 | AUM18: 0 | AUN18: 0 | AUO18: 0 | AUP18: 0 | AUQ18: 0 | AUR18: 0 | AUS18: 0 | AUT18: 0 | AUU18: 0 | AUV18: 0 | AUW18: 0 | AUX18: 0 | AUY18: 0 | AUZ18: 0 | AVA18: 0 | AVB18: 0 | AVC18: 0 | AVD18: 0 | AVE18: 0 | AVF18: 0 | AVG18: 0 | AVH18: 0 | AVI18: 0 | AVJ18: 0 | AVK18: 0 | AVL18: 0 | AVM18: 0 | AVN18: 0 | AVO18: 0 | AVP18: 0 | AVQ18: 0 | AVR18: 0 | AVS18: 0 | AVT18: 0 | AVU18: 0 | AVV18: 0 | AVW18: 0 | AVX18: 0 | AVY18: 0 | AVZ18: 0 | AWA18: 0 | AWB18: 0 | AWC18: 0 | AWD18: 0 | AWE18: NO | AWF18: 0 | AWG18: 0 | AWH18: 0 | AWI18: 0 | AWJ18: 0 | AWL18: 0 | AWM18: 0 | AWN18: 0 | AWO18: 0 | AWT18: Victim/survivor demographics are self-reported. | AWZ18: DVS has been effective in resolving some areas of concern. We participate with the SARTs in our two counties. We have a more robust set of protocols with the hospital in Pendleton that is working better for survivors.There is better availability for survivors in terms of attorney services. We are participants in the Batterer’s Intervention Program. This participation gives is a picture of the cooperation of batterers in our area with treatment. This program works like an MDT. DVS can’t provide any information about survivors, of course, but we can receive information about the abuser in a relationship.We are better able to assist victims of sexual assault through the services of additional SANE nurses in both Hermiston and Pendleton.We continue to use our partnership opportunities to discourage law enforcement from "counseling and separating" abusers from victims, but that still happen occasionally. | AXB18: STOP Program funding continues to allow Domestic Violence Services, Inc. to provide comprehensive and thoughtful services for survivors in Umatilla and Morrow Counties in rural eastern Oregon. It provides funding for staff positions to provide trauma-informed advocacy for survivors in these two large rural counties. We provide shelter for survivors within two large shelter facilities. We staff two full-service Advocacy Centers (Hermiston and Pendleton). We also staff three outreach Advocacy Centers in the area: Milton-Freewater, Boardman and Heppner. The funding allows us to provide safety planning for survivors whether through our twenty-four-hour crisis line, in shelter, groups, classes, over the phone and as walk-in clients. We provide support groups and Life Skills classes in English and Spanish. DVS offers Life Skills programs to assist survivors with budgeting, job acquisition, stress management and tenant issues. We provide assistance for survivors as they progress toward safer circumstances. The funding helps us as we provide information and referral to survivors. This information is provided over the phone or in person and as part of our programming at shelter or at our Advocacy Centers. The funding allows us to advocate for clients and assist with applying for crime victim’s assistance or obtaining restraining orders. We provide accompaniment to court and to medical settings. We also advocate for survivors with community partners and others who may be involved as requested by the survivor. We offer service planning, case management and support and education for survivors in shelters or as individuals who come in for services.
